Workbook

Sheet Navigation Pane
C2: Mareeba Shire Council
C3: Refer to the accompanying User Manual for detailed instructions on how to use the Spreadsheet
B6: Version No | D6: B | F6: Date | G6: 2018-06-13 | J6: Author | K6: AP
B8: Comments | D8: Updated to include review comments and revised works schedules. Updated to address review comments.
D10: Inputs | I10: Calculation | N10: Outputs
C12: General Input Sheet | H12: Calculation Function | M12: Summary Cost Schedule
C13: l Financial Inputs l Other "generic" inputs | H13: l Catchment based summary of demand, infrastructure (existing and new) and cost allocation l Infrastructure Cost calculation for each catchment ("Average Cost" approach) l Optional Discounted Cashflow | M13: l Summary of demand and cost allocation by catchment l Final costs by catchment
M15: Summary Cash flow Projections
C16: l Unit Cost of Passive Assets l Unit Cost of Land | M16: l Summary of forecast Cap X and anticipated IC revenues
C19: l Estimates of current and future demand (per cost catchment)
C21: Asset Inputs
C29: Appendix C - Schedule of works model V11Feb2016

Sheet General Input Sheet
B2: ='Navigation Pane'!C2 -> Mareeba Shire Council
A3: Return to Navigation Pane
B4: General Input Sheet
B6: General Inputs | E6: Reference | G6: Value | I6: Comments
C8: Base Year | E8: YEAR | G8: 2016 | I8: As per draft LGIP and Supporting Studies
G9: =YEAR -> 2016
C10: Term (between 15 and 30 years) | E10: TERM | G10: 15
B12: Application of Discounted Cash flow
C14: Calculate charges using Discounted Cash flow? (Y/N) | E14: DCFTRIGGER | G14: Yes
B16: General Financial Inputs
B18: Discount Rate (WACC):
C19: Average 10 Year Bond Rate | E19: TenYr | G19: 0.04 | I19: 10 year average
B21: Option 1 | C21: Basic Margin on 10 Yr. Bond Rate | E21: Margin | G21: 0.035 | I21: 3.5% is the baseline figure quoted in LG Bulletin 06/01
C23: WACC: | E23: WACC1 | G23: =G19+G21 -> 0.075
B25: Option 2 | C25: Capital Structure (% Debt) | E25: Capstr | I25: Not used
C26: Market Risk Premium | E26: Risk | G26: 0.06
C27: Asset Beta | E27: AssetBeta
C28: Cost of Debt | E28: Debt
C30: WACC: | E30: WACC2 | G30: =(G25*G28)+(G19+(G27*G26)*(1-G25)) -> 0.04
C32: WACC Option to be applied in the calculation? | E32: WACC1 | G32: =IF(G14="No",0,IF(E32="WACC1",WACC1,IF(E32="WACC2",WACC2,"Error"))) -> 0.075
B34: Escalation Rates
C35: Capital Escalation - Future Cap X | E35: PPI | G35: 0.04 | I35: ten (10) yr. average Roads and Bridges Index (ABS 6427, Table 15, Index 3101)
C37: Capital Indexation Rates - Historical (June Qtr.)
E38: =YEAR -> 2016 | G38: 106.5 | I38: Roads and Bridges Index (ABS 6427, Table 15, Index 3101)
E39: =E38-1 -> 2015 | G39: 107.3
E40: =E39-1 -> 2014 | G40: 104.9
E41: 2013 | G41: 106.1
E42: 2012 | G42: 103.3
E43: 2011 | G43: 99.1
E44: 2010 | G44: 97.3
C46: Land Escalation | E46: LandInd | G46: 0.027 | I46: 7% seems too high. 10 year CPI average included.
C48: Charges Escalation Rate | E48: Chargeind | G48: 0.027
G49: =Chargeind -> 0.027
G51: =Chargeind -> 0.027

Sheet Unit Rates (hidden)
B2: ='Navigation Pane'!C2 -> Mareeba Shire Council
B4: Unit Rates
B6: Land Cost | D6: Transportation
B8: Water Supply | D8: Sewerage
B10: Stormwater | D10: Parks & Community Facilities

Sheet Catchment Demand (hidden)
B2: ='Navigation Pane'!C2 -> Mareeba Shire Council
B4: Demand Forecast
B6: Anticpated Growth Residential | D6: Anticpated Growth - NON Residential
B8: Water Supply | D8: Transportation
B10: Sewerage | D10: Parks & Community Facilities
B12: Stormwater

Sheet Existing Trunk Assets (hidden)
B2: ='Navigation Pane'!C2 -> Mareeba Shire Council
B4: Existing Trunk Assets
B6: Water Supply | D6: Transportation
B8: Sewerage | D8: Parks & Community Facilities
B10: Stormwater

Sheet Existing Trunk Assets - Water (hidden)
B2: ='Navigation Pane'!C2 -> Mareeba Shire Council
B3: Water Supply
A4: Return to "Existing Trunk Assets"
B5: EXISTING TRUNK ASSETS
B8: Land Valuation Type | E8: Location
I10: Asset Data | W10: Catchment Asset Allocation | BP10: Asset Usage | CV10: Cost Allocation
B11: Basic Asset Data | H11: Asset Attributes | K11: Baseline Asset Valuation | P11: Land Attributes | T11: Refined Asset Value | W11: ='Catchment Demand - Water Supply'!$C8 -> CHILLAGOE | X11: ='Catchment Demand - Water Supply'!$C9 -> DIMBULAH | Y11: ='Catchment Demand - Water Supply'!$C10 -> KURANDA | Z11: ='Catchment Demand - Water Supply'!$C11 -> MAREEBA | AB11: ='Catchment Demand - Water Supply'!$C13 -> 0 | AC11: ='Catchment Demand - Water Supply'!$C14 -> 0 | AD11: ='Catchment Demand - Water Supply'!$C15 -> 0 | AE11: ='Catchment Demand - Water Supply'!$C16 -> 0 | AF11: ='Catchment Demand - Water Supply'!$C17 -> 0 | AG11: ='Catchment Demand - Water Supply'!$C18 -> 0 | AH11: ='Catchment Demand - Water Supply'!$C19 -> 0 | AI11: ='Catchment Demand - Water Supply'!$C20 -> 0 | AJ11: ='Catchment Demand - Water Supply'!$C21 -> 0 | AK11: ='Catchment Demand - Water Supply'!$C22 -> 0 | AL11: ='Catchment Demand - Water Supply'!$C23 -> 0 | AM11: ='Catchment Demand - Water Supply'!$C24 -> 0 | AN11: ='Catchment Demand - Water Supply'!$C25 -> 0 | AO11: ='Catchment Demand - Water Supply'!$C26 -> 0 | AP11: ='Catchment Demand - Water Supply'!$C27 -> 0 | AQ11: ='Catchment Demand - Water Supply'!$C28 -> 0 | AR11: ='Catchment Demand - Water Supply'!$C29 -> 0 | AS11: ='Catchment Demand - Water Supply'!$C30 -> 0 | AT11: ='Catchment Demand - Water Supply'!$C31 -> 0 | AU11: ='Catchment Demand - Water Supply'!$C32 -> 0 | AV11: ='Catchment Demand - Water Supply'!$C33 -> 0 | AW11: ='Catchment Demand - Water Supply'!$C34 -> 0 | AX11: ='Catchment Demand - Water Supply'!$C35 -> 0 | AY11: ='Catchment Demand - Water Supply'!$C36 -> 0 | AZ11: ='Catchment Demand - Water Supply'!$C37 -> 0 | BB11: ='Catchment Demand - Water Supply'!$C8 -> CHILLAGOE | BC11: ='Catchment Demand - Water Supply'!$C9 -> DIMBULAH | BD11: ='Catchment Demand - Water Supply'!$C10 -> KURANDA | BE11: ='Catchment Demand - Water Supply'!$C11 -> MAREEBA | BF11: ='Catchment Demand - Water Supply'!$C12 -> 0 | BG11: ='Catchment Demand - Water Supply'!$C13 -> 0 | BH11: ='Catchment Demand - Water Supply'!$C14 -> 0 | BI11: ='Catchment Demand - Water Supply'!$C15 -> 0 | BJ11: ='Catchment Demand - Water Supply'!$C16 -> 0 | BK11: ='Catchment Demand - Water Supply'!$C17 -> 0 | BL11: ='Catchment Demand - Water Supply'!$C18 -> 0 | BM11: ='Catchment Demand - Water Supply'!$C19 -> 0 | BN11: ='Catchment Demand - Water Supply'!$C20 -> 0 | BO11: ='Catchment Demand - Water Supply'!$C21 -> 0 | BP11: ='Catchment Demand - Water Supply'!$C22 -> 0 | BQ11: ='Catchment Demand - Water Supply'!$C23 -> 0 | BR11: ='Catchment Demand - Water Supply'!$C24 -> 0 | BS11: ='Catchment Demand - Water Supply'!$C25 -> 0 | BT11: ='Catchment Demand - Water Supply'!$C26 -> 0 | BU11: ='Catchment Demand - Water Supply'!$C27 -> 0 | BV11: ='Catchment Demand - Water Supply'!$C28 -> 0 | BW11: ='Catchment Demand - Water Supply'!$C29 -> 0 | BX11: ='Catchment Demand - Water Supply'!$C30 -> 0 | BY11: ='Catchment Demand - Water Supply'!$C31 -> 0 | BZ11: ='Catchment Demand - Water Supply'!$C32 -> 0 | CA11: ='Catchment Demand - Water Supply'!$C33 -> 0 | CB11: ='Catchment Demand - Water Supply'!$C34 -> 0 | CC11: ='Catchment Demand - Water Supply'!$C35 -> 0 | CD11: ='Catchment Demand - Water Supply'!$C36 -> 0 | CE11: ='Catchment Demand - Water Supply'!$C37 -> 0 | CF11: TOTALS | CH11: ='Catchment Demand - Water Supply'!$C8 -> CHILLAGOE | CI11: ='Catchment Demand - Water Supply'!$C9 -> DIMBULAH | CJ11: ='Catchment Demand - Water Supply'!$C10 -> KURANDA | CK11: ='Catchment Demand - Water Supply'!$C11 -> MAREEBA | CL11: ='Catchment Demand - Water Supply'!$C12 -> 0 | CM11: ='Catchment Demand - Water Supply'!$C13 -> 0 | CN11: ='Catchment Demand - Water Supply'!$C14 -> 0 | CO11: ='Catchment Demand - Water Supply'!$C15 -> 0 | CP11: ='Catchment Demand - Water Supply'!$C16 -> 0 | CQ11: ='Catchment Demand - Water Supply'!$C17 -> 0 | CR11: ='Catchment Demand - Water Supply'!$C18 -> 0 | CS11: ='Catchment Demand - Water Supply'!$C19 -> 0 | CT11: ='Catchment Demand - Water Supply'!$C20 -> 0 | CU11: ='Catchment Demand - Water Supply'!$C21 -> 0 | CV11: ='Catchment Demand - Water Supply'!$C22 -> 0 | CW11: ='Catchment Demand - Water Supply'!$C23 -> 0 | CX11: ='Catchment Demand - Water Supply'!$C24 -> 0 | CY11: ='Catchment Demand - Water Supply'!$C25 -> 0 | CZ11: ='Catchment Demand - Water Supply'!$C26 -> 0 | DA11: ='Catchment Demand - Water Supply'!$C27 -> 0 | DB11: ='Catchment Demand - Water Supply'!$C28 -> 0 | DC11: ='Catchment Demand - Water Supply'!$C29 -> 0 | DD11: ='Catchment Demand - Water Supply'!$C30 -> 0 | DE11: ='Catchment Demand - Water Supply'!$C31 -> 0 | DF11: ='Catchment Demand - Water Supply'!$C32 -> 0 | DG11: ='Catchment Demand - Water Supply'!$C33 -> 0 | DH11: ='Catchment Demand - Water Supply'!$C34 -> 0 | DI11: ='Catchment Demand - Water Supply'!$C35 -> 0 | DJ11: ='Catchment Demand - Water Supply'!$C36 -> 0 | DK11: ='Catchment Demand - Water Supply'!$C37 -> 0 | DL11: Checksum 2
B12: Asset ID | C12: LGIP ID | D12: Asset Type (*) | E12: Asset Class | F12: Asset Name | G12: Description | H12: Unit Rate Type (*) | I12: Length/unit (*) | J12: Diameter (*) | K12: Unit Rate | L12: Baseline Valuation | M12: Site/Condition | N12: Multiplier | O12: Gross Value | P12: Land Location/Type | Q12: Size of land (ha) (*) | R12: Unit Cost | S12: Land Value | T12: Valuation Year | U12: Escalation | V12: Current Replacement Cost
W13: 1 | X13: =W13+1 -> 2 | Y13: =X13+1 -> 3 | Z13: 4 | AA13: 5 | AB13: 6 | AC13: 7 | AD13: 8 | AE13: 9 | AF13: 10 | AG13: 11 | AH13: 12 | AI13: 13 | AJ13: 14 | AK13: 15 | AL13: 16 | AM13: 17 | AN13: 18 | AO13: 19 | AP13: 20 | AQ13: 21 | AR13: 22 | AS13: 23 | AT13: 24 | AU13: 25 | AV13: 26 | AW13: 27 | AX13: 28 | AY13: 29 | AZ13: 30
B14: Councils ID (from GIS, FAR, AMA etc.) | C14: ID from the LGIP drawings | E14: Reservoir, Trunk Main, etc. | L14: May be calculated from unit rates OR unique values can be direct entered | V14: CRC | W14: =IFERROR(VLOOKUP(W11,watercatch,5,FALSE),"") -> 217 | X14: =IFERROR(VLOOKUP(X11,watercatch,5,FALSE),"") -> 426 | Y14: =IFERROR(VLOOKUP(Y11,watercatch,5,FALSE),"") -> 2242 | Z14: =IFERROR(VLOOKUP(Z11,watercatch,5,FALSE),"") -> 10371 | AA14: =IFERROR(VLOOKUP(AA11,watercatch,6,FALSE),"") ->  | AZ14: =IFERROR(VLOOKUP(AZ11,watercatch,6,FALSE),"") ->  | BB14: =IFERROR(VLOOKUP(BB11,watercatch,5,FALSE),"") -> 217 | BC14: =IFERROR(VLOOKUP(BC11,watercatch,5,FALSE),"") -> 426 | BD14: =IFERROR(VLOOKUP(BD11,watercatch,5,FALSE),"") -> 2242 | BE14: =IFERROR(VLOOKUP(BE11,watercatch,5,FALSE),"") -> 10371 | BF14: =VLOOKUP(BF11,'Catchment Demand - Water Supply'!$C$8:$H$37,6,FALSE) ->  | BG14: =VLOOKUP(BG11,'Catchment Demand - Water Supply'!$C$8:$H$37,6,FALSE) ->  | BH14: =VLOOKUP(BH11,'Catchment Demand - Water Supply'!$C$8:$H$37,6,FALSE) ->  | BI14: =VLOOKUP(BI11,'Catchment Demand - Water Supply'!$C$8:$H$37,6,FALSE) ->  | BJ14: =VLOOKUP(BJ11,'Catchment Demand - Water Supply'!$C$8:$H$37,6,FALSE) ->  | BK14: =VLOOKUP(BK11,'Catchment Demand - Water Supply'!$C$8:$H$37,6,FALSE) ->  | BL14: =VLOOKUP(BL11,'Catchment Demand - Water Supply'!$C$8:$H$37,6,FALSE) ->  | BM14: =VLOOKUP(BM11,'Catchment Demand - Water Supply'!$C$8:$H$37,6,FALSE) ->  | BN14: =VLOOKUP(BN11,'Catchment Demand - Water Supply'!$C$8:$H$37,6,FALSE) ->  | BO14: =VLOOKUP(BO11,'Catchment Demand - Water Supply'!$C$8:$H$37,6,FALSE) ->  | BP14: =VLOOKUP(BP11,'Catchment Demand - Water Supply'!$C$8:$H$37,6,FALSE) ->  | BQ14: =VLOOKUP(BQ11,'Catchment Demand - Water Supply'!$C$8:$H$37,6,FALSE) ->  | BR14: =VLOOKUP(BR11,'Catchment Demand - Water Supply'!$C$8:$H$37,6,FALSE) ->  | BS14: =VLOOKUP(BS11,'Catchment Demand - Water Supply'!$C$8:$H$37,6,FALSE) ->  | BT14: =VLOOKUP(BT11,'Catchment Demand - Water Supply'!$C$8:$H$37,6,FALSE) ->  | BU14: =VLOOKUP(BU11,'Catchment Demand - Water Supply'!$C$8:$H$37,6,FALSE) ->  | BV14: =VLOOKUP(BV11,'Catchment Demand - Water Supply'!$C$8:$H$37,6,FALSE) ->  | BW14: =VLOOKUP(BW11,'Catchment Demand - Water Supply'!$C$8:$H$37,6,FALSE) ->  | BX14: =VLOOKUP(BX11,'Catchment Demand - Water Supply'!$C$8:$H$37,6,FALSE) ->  | BY14: =VLOOKUP(BY11,'Catchment Demand - Water Supply'!$C$8:$H$37,6,FALSE) ->  | BZ14: =VLOOKUP(BZ11,'Catchment Demand - Water Supply'!$C$8:$H$37,6,FALSE) ->  | CA14: =VLOOKUP(CA11,'Catchment Demand - Water Supply'!$C$8:$H$37,6,FALSE) ->  | CB14: =VLOOKUP(CB11,'Catchment Demand - Water Supply'!$C$8:$H$37,6,FALSE) ->  | CC14: =VLOOKUP(CC11,'Catchment Demand - Water Supply'!$C$8:$H$37,6,FALSE) ->  | CD14: =VLOOKUP(CD11,'Catchment Demand - Water Supply'!$C$8:$H$37,6,FALSE) ->  | CE14: =VLOOKUP(CE11,'Catchment Demand - Water Supply'!$C$8:$H$37,6,FALSE) ->  | CH14: =SUM(CH15:CH401) -> 0 | CI14: 0 | CJ14: 3423867.285 | CK14: 25089307.49 | CL14: 0 | CM14: 0 | CN14: 0 | CO14: 0 | CP14: 0 | CQ14: 0 | CR14: 0 | CS14: 0 | CT14: 0 | CU14: 0 | CV14: 0 | CW14: 0 | CX14: 0 | CY14: 0 | CZ14: 0 | DA14: 0 | DB14: 0 | DC14: 0 | DD14: 0 | DE14: 0 | DF14: 0 | DG14: 0 | DH14: 0 | DI14: 0 | DJ14: 0 | DK14: 0 | DL14: 0
B15: WA-003730 | D15: Active (Above Ground) | E15: (Treatment Plant) Chem Dosing | F15: Treatment | G15: Chemical Dosing | K15: =IF(H15=TYPE1,VLOOKUP(J15,WaterUnitrates1,2,FALSE),IF(H15=TYPE2,VLOOKUP(J15,Unitrates2,2,FALSE),0)) -> 0 | L15: 16080 | N15: =IF(M15="",1,VLOOKUP(M15,'Unit Rates - Water'!$H$12:$I$23,2,FALSE)) -> 1 | O15: =L15*N15 -> 16080 | R15: =IF(P15="",'Unit Rates - Land'!landcst,IF($E$8="Landuse",VLOOKUP(P15,LAndcost3,2,FALSE),IF($E$8="Location",VLOOKUP(P15,Landcost2,2,FALSE),"Error"))) -> 10 | S15: =IF(R15="",0,R15*10000*Q15) -> 0 | U15: =IFERROR(('General Input Sheet'!$G$38/(VLOOKUP('Existing Trunk Assets - Water'!T15,Histindex,3,FALSE))),1) -> 1 | V15: =IFERROR((O15+S15)*U15,0) -> 16080 | Z15: y | BB15: =IF(W15="y",BB$14,IF(AND(W15>0,W15<=1),W15*BB$14,"")) ->  | BC15: =IF(X15="y",BC$14,IF(AND(X15>0,X15<=1),X15*BC$14,"")) ->  | BE15: 10371 | CF15: =SUM(BB15:CE15) -> 10371 | CH15: =IF(BB15="","",(BB15/$CF15)*$V15) ->  | CK15: 16080 | CX15: =IF(BR15="","",(BR15/$CF15)*$V15) ->  | DL15: =IF(SUM(CH15:DK15)=V15,"","ERROR") -> 
B16: WA-003731 | D16: Active (Above Ground) | E16: (Treatment Plant) Chem Dosing | F16: Treatment | G16: Chemical Dosing | K16: 0 | L16: 20100 | N16: =IF(M16="",1,VLOOKUP(M16,'Unit Rates - Water'!$H$12:$I$23,2,FALSE)) -> 1 | O16: =L16*N16 -> 20100 | R16: =IF(P16="",'Unit Rates - Land'!landcst,IF($E$8="Landuse",VLOOKUP(P16,LAndcost3,2,FALSE),IF($E$8="Location",VLOOKUP(P16,Landcost2,2,FALSE),"Error"))) -> 10 | S16: =IF(R16="",0,R16*10000*Q16) -> 0 | U16: =IFERROR(('General Input Sheet'!$G$38/(VLOOKUP('Existing Trunk Assets - Water'!T16,'General Input Sheet'!$E$38:$G$44,3,FALSE))),1) -> 1 | V16: =IFERROR((O16+S16)*U16,0) -> 20100 | Z16: y | BB16: =IF(W16="y",BB$14,IF(AND(W16>0,W16<=1),W16*BB$14,"")) ->  | BC16: =IF(X16="y",BC$14,IF(AND(X16>0,X16<=1),X16*BC$14,"")) ->  | BD16: =IF(Y16="y",BD$14,IF(AND(Y16>0,Y16<=1),Y16*BD$14,"")) ->  | BE16: =IF(Z16="y",BE$14,IF(AND(Z16>0,Z16<=1),Z16*BE$14,"")) -> 10371 | BF16: =IF(AA16="y",BF$14,IF(AND(AA16>0,AA16<=1),AA16*BF$14,"")) ->  | BG16: =IF(AB16="y",BG$14,IF(AND(AB16>0,AB16<=1),AB16*BG$14,"")) ->  | BH16: =IF(AC16="y",BH$14,IF(AND(AC16>0,AC16<=1),AC16*BH$14,"")) ->  | BJ16: =IF(AE16="y",BJ$14,IF(AND(AE16>0,AE16<=1),AE16*BJ$14,"")) ->  | BK16: =IF(AF16="y",BK$14,IF(AND(AF16>0,AF16<=1),AF16*BK$14,"")) ->  | BL16: =IF(AG16="y",BL$14,IF(AND(AG16>0,AG16<=1),AG16*BL$14,"")) ->  | BM16: =IF(AH16="y",BM$14,IF(AND(AH16>0,AH16<=1),AH16*BM$14,"")) ->  | BN16: =IF(AI16="y",BN$14,IF(AND(AI16>0,AI16<=1),AI16*BN$14,"")) ->  | BO16: =IF(AJ16="y",BO$14,IF(AND(AJ16>0,AJ16<=1),AJ16*BO$14,"")) ->  | BP16: =IF(AK16="y",BP$14,IF(AND(AK16>0,AK16<=1),AK16*BP$14,"")) ->  | BQ16: =IF(AL16="y",BQ$14,IF(AND(AL16>0,AL16<=1),AL16*BQ$14,"")) ->  | BR16: =IF(AM16="y",BR$14,IF(AND(AM16>0,AM16<=1),AM16*BR$14,"")) ->  | BS16: =IF(AN16="y",BS$14,IF(AND(AN16>0,AN16<=1),AN16*BS$14,"")) ->  | BT16: =IF(AO16="y",BT$14,IF(AND(AO16>0,AO16<=1),AO16*BT$14,"")) ->  | BU16: =IF(AP16="y",BU$14,IF(AND(AP16>0,AP16<=1),AP16*BU$14,"")) ->  | BV16: =IF(AQ16="y",BV$14,IF(AND(AQ16>0,AQ16<=1),AQ16*BV$14,"")) ->  | BW16: =IF(AR16="y",BW$14,IF(AND(AR16>0,AR16<=1),AR16*BW$14,"")) ->  | BX16: =IF(AS16="y",BX$14,IF(AND(AS16>0,AS16<=1),AS16*BX$14,"")) ->  | BY16: =IF(AT16="y",BY$14,IF(AND(AT16>0,AT16<=1),AT16*BY$14,"")) ->  | BZ16: =IF(AU16="y",BZ$14,IF(AND(AU16>0,AU16<=1),AU16*BZ$14,"")) ->  | CA16: =IF(AV16="y",CA$14,IF(AND(AV16>0,AV16<=1),AV16*CA$14,"")) ->  | CB16: =IF(AW16="y",CB$14,IF(AND(AW16>0,AW16<=1),AW16*CB$14,"")) ->  | CC16: =IF(AX16="y",CC$14,IF(AND(AX16>0,AX16<=1),AX16*CC$14,"")) ->  | CD16: =IF(AY16="y",CD$14,IF(AND(AY16>0,AY16<=1),AY16*CD$14,"")) ->  | CE16: =IF(AZ16="y",CE$14,IF(AND(AZ16>0,AZ16<=1),AZ16*CE$14,"")) ->  | CF16: =SUM(BB16:CE16) -> 10371 | CK16: 20100 | DL16: =IF(SUM(CH16:DK16)=V16,"","ERROR") -> 
B17: WA-003569 | D17: Active (Above Ground) | E17: (Treatment Plant) Chemical Storage | F17: Treatment | G17: Chemical Dosing | K17: 0 | L17: 121940 | N17: =IF(M17="",1,VLOOKUP(M17,'Unit Rates - Water'!$H$12:$I$23,2,FALSE)) -> 1 | O17: 121940 | R17: =IF(P17="",'Unit Rates - Land'!landcst,IF($E$8="Landuse",VLOOKUP(P17,LAndcost3,2,FALSE),IF($E$8="Location",VLOOKUP(P17,Landcost2,2,FALSE),"Error"))) -> 10 | S17: 0 | U17: =IFERROR(('General Input Sheet'!$G$38/(VLOOKUP('Existing Trunk Assets - Water'!T17,'General Input Sheet'!$E$38:$G$44,3,FALSE))),1) -> 1 | V17: 121940 | Z17: y | BE17: 10371 | CF17: =SUM(BB17:CE17) -> 10371 | CK17: 121940 | DL17: =IF(SUM(CH17:DK17)=V17,"","ERROR") -> 
B18: WA-003738 | D18: Active (Above Ground) | E18: (Treatment Plant) Clear Water Tanks | F18: Treatment | G18: Clear Water Storage | K18: 0 | L18: 1262920.247 | N18: =IF(M18="",1,VLOOKUP(M18,'Unit Rates - Water'!$H$12:$I$23,2,FALSE)) -> 1 | O18: 1262920.247 | R18: =IF(P18="",'Unit Rates - Land'!landcst,IF($E$8="Landuse",VLOOKUP(P18,LAndcost3,2,FALSE),IF($E$8="Location",VLOOKUP(P18,Landcost2,2,FALSE),"Error"))) -> 10 | S18: 0 | U18: =IFERROR(('General Input Sheet'!$G$38/(VLOOKUP('Existing Trunk Assets - Water'!T18,'General Input Sheet'!$E$38:$G$44,3,FALSE))),1) -> 1 | V18: 1262920.247 | Z18: y | BE18: 10371 | CF18: =SUM(BB18:CE18) -> 10371 | CK18: 1262920.247 | DL18: =IF(SUM(CH18:DK18)=V18,"","ERROR") -> 
B19: WA-003736 | D19: Active (Above Ground) | E19: (Treatment Plant) Clear Water Tanks | F19: Treatment | G19: Clear Water Storage | K19: 0 | L19: 2956085.729 | N19: =IF(M19="",1,VLOOKUP(M19,'Unit Rates - Water'!$H$12:$I$23,2,FALSE)) -> 1 | O19: 2956085.729 | R19: =IF(P19="",'Unit Rates - Land'!landcst,IF($E$8="Landuse",VLOOKUP(P19,LAndcost3,2,FALSE),IF($E$8="Location",VLOOKUP(P19,Landcost2,2,FALSE),"Error"))) -> 10 | S19: 0 | U19: =IFERROR(('General Input Sheet'!$G$38/(VLOOKUP('Existing Trunk Assets - Water'!T19,'General Input Sheet'!$E$38:$G$44,3,FALSE))),1) -> 1 | V19: 2956085.729 | Z19: y | BE19: 10371 | CF19: 10371 | CK19: 2956085.729
B20: WA-003735 | D20: Active (Above Ground) | E20: (Treatment Plant) Clear Water Tanks | F20: Treatment | G20: Clear Water Storage | K20: 0 | L20: 160800 | N20: =IF(M20="",1,VLOOKUP(M20,'Unit Rates - Water'!$H$12:$I$23,2,FALSE)) -> 1 | O20: 160800 | R20: =IF(P20="",'Unit Rates - Land'!landcst,IF($E$8="Landuse",VLOOKUP(P20,LAndcost3,2,FALSE),IF($E$8="Location",VLOOKUP(P20,Landcost2,2,FALSE),"Error"))) -> 10 | S20: 0 | U20: =IFERROR(('General Input Sheet'!$G$38/(VLOOKUP('Existing Trunk Assets - Water'!T20,'General Input Sheet'!$E$38:$G$44,3,FALSE))),1) -> 1 | V20: 160800 | Z20: y | BB20: =IF(W20="y",BB$14,IF(AND(W20>0,W20<=1),W20*BB$14,"")) ->  | BC20: =IF(X20="y",BC$14,IF(AND(X20>0,X20<=1),X20*BC$14,"")) ->  | BD20: =IF(Y20="y",BD$14,IF(AND(Y20>0,Y20<=1),Y20*BD$14,"")) ->  | BE20: =IF(Z20="y",BE$14,IF(AND(Z20>0,Z20<=1),Z20*BE$14,"")) -> 10371 | BF20: =IF(AA20="y",BF$14,IF(AND(AA20>0,AA20<=1),AA20*BF$14,"")) ->  | BG20: =IF(AB20="y",BG$14,IF(AND(AB20>0,AB20<=1),AB20*BG$14,"")) ->  | BH20: =IF(AC20="y",BH$14,IF(AND(AC20>0,AC20<=1),AC20*BH$14,"")) ->  | BJ20: =IF(AE20="y",BJ$14,IF(AND(AE20>0,AE20<=1),AE20*BJ$14,"")) ->  | BK20: =IF(AF20="y",BK$14,IF(AND(AF20>0,AF20<=1),AF20*BK$14,"")) ->  | BL20: =IF(AG20="y",BL$14,IF(AND(AG20>0,AG20<=1),AG20*BL$14,"")) ->  | BM20: =IF(AH20="y",BM$14,IF(AND(AH20>0,AH20<=1),AH20*BM$14,"")) ->  | BN20: =IF(AI20="y",BN$14,IF(AND(AI20>0,AI20<=1),AI20*BN$14,"")) ->  | BO20: =IF(AJ20="y",BO$14,IF(AND(AJ20>0,AJ20<=1),AJ20*BO$14,"")) ->  | BP20: =IF(AK20="y",BP$14,IF(AND(AK20>0,AK20<=1),AK20*BP$14,"")) ->  | BQ20: =IF(AL20="y",BQ$14,IF(AND(AL20>0,AL20<=1),AL20*BQ$14,"")) ->  | BR20: =IF(AM20="y",BR$14,IF(AND(AM20>0,AM20<=1),AM20*BR$14,"")) ->  | BS20: =IF(AN20="y",BS$14,IF(AND(AN20>0,AN20<=1),AN20*BS$14,"")) ->  | BT20: =IF(AO20="y",BT$14,IF(AND(AO20>0,AO20<=1),AO20*BT$14,"")) ->  | BU20: =IF(AP20="y",BU$14,IF(AND(AP20>0,AP20<=1),AP20*BU$14,"")) ->  | BV20: =IF(AQ20="y",BV$14,IF(AND(AQ20>0,AQ20<=1),AQ20*BV$14,"")) ->  | BW20: =IF(AR20="y",BW$14,IF(AND(AR20>0,AR20<=1),AR20*BW$14,"")) ->  | BX20: =IF(AS20="y",BX$14,IF(AND(AS20>0,AS20<=1),AS20*BX$14,"")) ->  | BY20: =IF(AT20="y",BY$14,IF(AND(AT20>0,AT20<=1),AT20*BY$14,"")) ->  | BZ20: =IF(AU20="y",BZ$14,IF(AND(AU20>0,AU20<=1),AU20*BZ$14,"")) ->  | CA20: =IF(AV20="y",CA$14,IF(AND(AV20>0,AV20<=1),AV20*CA$14,"")) ->  | CB20: =IF(AW20="y",CB$14,IF(AND(AW20>0,AW20<=1),AW20*CB$14,"")) ->  | CC20: =IF(AX20="y",CC$14,IF(AND(AX20>0,AX20<=1),AX20*CC$14,"")) ->  | CD20: =IF(AY20="y",CD$14,IF(AND(AY20>0,AY20<=1),AY20*CD$14,"")) ->  | CE20: =IF(AZ20="y",CE$14,IF(AND(AZ20>0,AZ20<=1),AZ20*CE$14,"")) ->  | CF20: 10371 | CK20: 160800
B21: WA-003734 | D21: Active (Above Ground) | E21: (Treatment Plant) Clear Water Tanks | F21: Treatment | G21: Clear Water Storage | K21: 0 | L21: 100500 | N21: =IF(M21="",1,VLOOKUP(M21,'Unit Rates - Water'!$H$12:$I$23,2,FALSE)) -> 1 | O21: 100500 | R21: =IF(P21="",'Unit Rates - Land'!landcst,IF($E$8="Landuse",VLOOKUP(P21,LAndcost3,2,FALSE),IF($E$8="Location",VLOOKUP(P21,Landcost2,2,FALSE),"Error"))) -> 10 | S21: 0 | U21: =IFERROR(('General Input Sheet'!$G$38/(VLOOKUP('Existing Trunk Assets - Water'!T21,'General Input Sheet'!$E$38:$G$44,3,FALSE))),1) -> 1 | V21: 100500 | Z21: y | BE21: 10371 | CF21: 10371 | CK21: 100500
B22: WA-003733 | D22: Active (Above Ground) | E22: (Treatment Plant) Clear Water Tanks | F22: Treatment | G22: Clear Water Storage | K22: 0 | L22: 33500 | N22: =IF(M22="",1,VLOOKUP(M22,'Unit Rates - Water'!$H$12:$I$23,2,FALSE)) -> 1 | O22: 33500 | R22: =IF(P22="",'Unit Rates - Land'!landcst,IF($E$8="Landuse",VLOOKUP(P22,LAndcost3,2,FALSE),IF($E$8="Location",VLOOKUP(P22,Landcost2,2,FALSE),"Error"))) -> 10 | S22: 0 | U22: =IFERROR(('General Input Sheet'!$G$38/(VLOOKUP('Existing Trunk Assets - Water'!T22,'General Input Sheet'!$E$38:$G$44,3,FALSE))),1) -> 1 | V22: 33500 | Z22: y | BE22: 10371 | CF22: 10371 | CK22: 33500
B23: WA-003732 | D23: Active (Above Ground) | E23: (Treatment Plant) Clear Water Tanks | F23: Treatment | G23: Clear Water Storage | K23: 0 | L23: 33500 | N23: =IF(M23="",1,VLOOKUP(M23,'Unit Rates - Water'!$H$12:$I$23,2,FALSE)) -> 1 | O23: 33500 | R23: =IF(P23="",'Unit Rates - Land'!landcst,IF($E$8="Landuse",VLOOKUP(P23,LAndcost3,2,FALSE),IF($E$8="Location",VLOOKUP(P23,Landcost2,2,FALSE),"Error"))) -> 10 | S23: 0 | U23: =IFERROR(('General Input Sheet'!$G$38/(VLOOKUP('Existing Trunk Assets - Water'!T23,'General Input Sheet'!$E$38:$G$44,3,FALSE))),1) -> 1 | V23: 33500 | Z23: y | BE23: 10371 | BI23: =IF(AD17="y",BI$14,IF(AND(AD17>0,AD17<=1),AD17*BI$14,"")) ->  | CF23: 10371 | CK23: 33500
B24: WA-003575 | D24: Active (Above Ground) | E24: (Treatment Plant) Clear Water Tanks | F24: Treatment | G24: Clear Water Storage | K24: 0 | L24: 1946950.406 | N24: =IF(M24="",1,VLOOKUP(M24,'Unit Rates - Water'!$H$12:$I$23,2,FALSE)) -> 1 | O24: 1946950.406 | R24: =IF(P24="",'Unit Rates - Land'!landcst,IF($E$8="Landuse",VLOOKUP(P24,LAndcost3,2,FALSE),IF($E$8="Location",VLOOKUP(P24,Landcost2,2,FALSE),"Error"))) -> 10 | S24: 0 | U24: =IFERROR(('General Input Sheet'!$G$38/(VLOOKUP('Existing Trunk Assets - Water'!T24,'General Input Sheet'!$E$38:$G$44,3,FALSE))),1) -> 1 | V24: 1946950.406 | Z24: y | BE24: 10371 | CF24: 10371 | CK24: 1946950.406
B25: WA-003737 | D25: Active (Above Ground) | E25: (Treatment Plant) Clear Water Tanks | F25: Treatment | G25: Clear Water Storage | K25: 0 | L25: 0 | N25: =IF(M25="",1,VLOOKUP(M25,'Unit Rates - Water'!$H$12:$I$23,2,FALSE)) -> 1 | O25: 0 | R25: =IF(P25="",'Unit Rates - Land'!landcst,IF($E$8="Landuse",VLOOKUP(P25,LAndcost3,2,FALSE),IF($E$8="Location",VLOOKUP(P25,Landcost2,2,FALSE),"Error"))) -> 10 | S25: 0 | U25: =IFERROR(('General Input Sheet'!$G$38/(VLOOKUP('Existing Trunk Assets - Water'!T25,'General Input Sheet'!$E$38:$G$44,3,FALSE))),1) -> 1 | V25: 0 | Z25: y | BE25: 10371 | CF25: 10371 | CK25: 0
B26: WA-003739 | D26: Active (Above Ground) | E26: (Treatment Plant) Clear Water Tanks | F26: Treatment | G26: Clear Water Storage | K26: 0 | L26: 0 | N26: =IF(M26="",1,VLOOKUP(M26,'Unit Rates - Water'!$H$12:$I$23,2,FALSE)) -> 1 | O26: 0 | R26: =IF(P26="",'Unit Rates - Land'!landcst,IF($E$8="Landuse",VLOOKUP(P26,LAndcost3,2,FALSE),IF($E$8="Location",VLOOKUP(P26,Landcost2,2,FALSE),"Error"))) -> 10 | S26: 0 | U26: =IFERROR(('General Input Sheet'!$G$38/(VLOOKUP('Existing Trunk Assets - Water'!T26,'General Input Sheet'!$E$38:$G$44,3,FALSE))),1) -> 1 | V26: 0 | Z26: y | BE26: 10371 | CF26: 10371 | CK26: 0
B27: WA-003740 | D27: Active (Above Ground) | E27: (Treatment Plant) Clear Water Tanks | F27: Treatment | G27: Clear Water Storage | K27: 0 | L27: 0 | N27: =IF(M27="",1,VLOOKUP(M27,'Unit Rates - Water'!$H$12:$I$23,2,FALSE)) -> 1 | O27: 0 | R27: =IF(P27="",'Unit Rates - Land'!landcst,IF($E$8="Landuse",VLOOKUP(P27,LAndcost3,2,FALSE),IF($E$8="Location",VLOOKUP(P27,Landcost2,2,FALSE),"Error"))) -> 10 | S27: 0 | U27: =IFERROR(('General Input Sheet'!$G$38/(VLOOKUP('Existing Trunk Assets - Water'!T27,'General Input Sheet'!$E$38:$G$44,3,FALSE))),1) -> 1 | V27: 0 | Z27: y | BE27: 10371 | CF27: 10371 | CK27: 0
B28: WA-003741 | D28: Active (Above Ground) | E28: (Treatment Plant) Clear Water Tanks | F28: Treatment | G28: Clear Water Storage | K28: 0 | L28: 0 | N28: =IF(M28="",1,VLOOKUP(M28,'Unit Rates - Water'!$H$12:$I$23,2,FALSE)) -> 1 | O28: 0 | R28: =IF(P28="",'Unit Rates - Land'!landcst,IF($E$8="Landuse",VLOOKUP(P28,LAndcost3,2,FALSE),IF($E$8="Location",VLOOKUP(P28,Landcost2,2,FALSE),"Error"))) -> 10 | S28: 0 | U28: =IFERROR(('General Input Sheet'!$G$38/(VLOOKUP('Existing Trunk Assets - Water'!T28,'General Input Sheet'!$E$38:$G$44,3,FALSE))),1) -> 1 | V28: 0 | Z28: y | BE28: 10371 | CF28: 10371 | CK28: 0
B29: WA-003572 | D29: Active (Above Ground) | E29: (Treatment Plant) Controls/Switchboard | F29: Treatment | G29: Process | K29: 0 | L29: 282740 | N29: =IF(M29="",1,VLOOKUP(M29,'Unit Rates - Water'!$H$12:$I$23,2,FALSE)) -> 1 | O29: 282740 | R29: =IF(P29="",'Unit Rates - Land'!landcst,IF($E$8="Landuse",VLOOKUP(P29,LAndcost3,2,FALSE),IF($E$8="Location",VLOOKUP(P29,Landcost2,2,FALSE),"Error"))) -> 10 | S29: 0 | U29: =IFERROR(('General Input Sheet'!$G$38/(VLOOKUP('Existing Trunk Assets - Water'!T29,'General Input Sheet'!$E$38:$G$44,3,FALSE))),1) -> 1 | V29: 282740 | Z29: y | BE29: 10371 | CF29: 10371 | CK29: 282740
B30: WA-003742 | D30: Active (Above Ground) | E30: (Treatment Plant) Electrical Reticulation | F30: Treatment | G30: Process | K30: 0 | L30: 335000 | N30: =IF(M30="",1,VLOOKUP(M30,'Unit Rates - Water'!$H$12:$I$23,2,FALSE)) -> 1 | O30: 335000 | R30: =IF(P30="",'Unit Rates - Land'!landcst,IF($E$8="Landuse",VLOOKUP(P30,LAndcost3,2,FALSE),IF($E$8="Location",VLOOKUP(P30,Landcost2,2,FALSE),"Error"))) -> 10 | S30: 0 | U30: =IFERROR(('General Input Sheet'!$G$38/(VLOOKUP('Existing Trunk Assets - Water'!T30,'General Input Sheet'!$E$38:$G$44,3,FALSE))),1) -> 1 | V30: 335000 | Z30: y | BE30: 10371 | CF30: 10371 | CK30: 335000 | CW30: =IF(BQ30="","",(BQ30/$CF30)*$V30) -> 
B31: WA-003747 | D31: Active (Above Ground) | E31: (Treatment Plant) Filtration System | F31: Treatment | G31: Filtration | K31: 0 | L31: 174200 | N31: =IF(M31="",1,VLOOKUP(M31,'Unit Rates - Water'!$H$12:$I$23,2,FALSE)) -> 1 | O31: 174200 | R31: =IF(P31="",'Unit Rates - Land'!landcst,IF($E$8="Landuse",VLOOKUP(P31,LAndcost3,2,FALSE),IF($E$8="Location",VLOOKUP(P31,Landcost2,2,FALSE),"Error"))) -> 10 | S31: 0 | U31: =IFERROR(('General Input Sheet'!$G$38/(VLOOKUP('Existing Trunk Assets - Water'!T31,'General Input Sheet'!$E$38:$G$44,3,FALSE))),1) -> 1 | V31: 174200 | Z31: y | BE31: 10371 | CF31: 10371 | CH31: =IF(BB31="","",(BB31/$CF31)*$V31) ->  | CK31: 174200
B32: WA-003754 | D32: Active (Above Ground) | E32: (Treatment Plant) Filtration System | F32: Treatment | G32: Filtration | K32: 0 | L32: 67000 | N32: =IF(M32="",1,VLOOKUP(M32,'Unit Rates - Water'!$H$12:$I$23,2,FALSE)) -> 1 | O32: 67000 | R32: =IF(P32="",'Unit Rates - Land'!landcst,IF($E$8="Landuse",VLOOKUP(P32,LAndcost3,2,FALSE),IF($E$8="Location",VLOOKUP(P32,Landcost2,2,FALSE),"Error"))) -> 10 | S32: 0 | U32: =IFERROR(('General Input Sheet'!$G$38/(VLOOKUP('Existing Trunk Assets - Water'!T32,'General Input Sheet'!$E$38:$G$44,3,FALSE))),1) -> 1 | V32: 67000 | Z32: y | BE32: 10371 | CF32: 10371 | CK32: 67000
B33: WA-003753 | D33: Active (Above Ground) | E33: (Treatment Plant) Filtration System | F33: Treatment | G33: Filtration | K33: 0 | L33: 64320 | N33: =IF(M33="",1,VLOOKUP(M33,'Unit Rates - Water'!$H$12:$I$23,2,FALSE)) -> 1 | O33: 64320 | R33: =IF(P33="",'Unit Rates - Land'!landcst,IF($E$8="Landuse",VLOOKUP(P33,LAndcost3,2,FALSE),IF($E$8="Location",VLOOKUP(P33,Landcost2,2,FALSE),"Error"))) -> 10 | S33: 0 | U33: =IFERROR(('General Input Sheet'!$G$38/(VLOOKUP('Existing Trunk Assets - Water'!T33,'General Input Sheet'!$E$38:$G$44,3,FALSE))),1) -> 1 | V33: 64320 | Z33: y | BE33: 10371 | CF33: 10371 | CK33: 64320
B34: WA-003743 | D34: Active (Above Ground) | E34: (Treatment Plant) Filtration System | F34: Treatment | G34: Filtration | K34: 0 | L34: 108540 | N34: =IF(M34="",1,VLOOKUP(M34,'Unit Rates - Water'!$H$12:$I$23,2,FALSE)) -> 1 | O34: 108540 | R34: =IF(P34="",'Unit Rates - Land'!landcst,IF($E$8="Landuse",VLOOKUP(P34,LAndcost3,2,FALSE),IF($E$8="Location",VLOOKUP(P34,Landcost2,2,FALSE),"Error"))) -> 10 | S34: 0 | U34: =IFERROR(('General Input Sheet'!$G$38/(VLOOKUP('Existing Trunk Assets - Water'!T34,'General Input Sheet'!$E$38:$G$44,3,FALSE))),1) -> 1 | V34: 108540 | Z34: y | BE34: 10371 | CF34: 10371 | CK34: 108540
B35: WA-003749 | D35: Active (Above Ground) | E35: (Treatment Plant) Filtration System | F35: Treatment | G35: Filtration | K35: 0 | L35: 134000 | N35: =IF(M35="",1,VLOOKUP(M35,'Unit Rates - Water'!$H$12:$I$23,2,FALSE)) -> 1 | O35: 134000 | R35: =IF(P35="",'Unit Rates - Land'!landcst,IF($E$8="Landuse",VLOOKUP(P35,LAndcost3,2,FALSE),IF($E$8="Location",VLOOKUP(P35,Landcost2,2,FALSE),"Error"))) -> 10 | S35: 0 | U35: =IFERROR(('General Input Sheet'!$G$38/(VLOOKUP('Existing Trunk Assets - Water'!T35,'General Input Sheet'!$E$38:$G$44,3,FALSE))),1) -> 1 | V35: 134000 | Z35: y | BE35: 10371 | CF35: 10371 | CK35: 134000
B36: WA-003746 | D36: Active (Above Ground) | E36: (Treatment Plant) Filtration System | F36: Treatment | G36: Filtration | K36: 0 | L36: 140700 | N36: =IF(M36="",1,VLOOKUP(M36,'Unit Rates - Water'!$H$12:$I$23,2,FALSE)) -> 1 | O36: 140700 | R36: =IF(P36="",'Unit Rates - Land'!landcst,IF($E$8="Landuse",VLOOKUP(P36,LAndcost3,2,FALSE),IF($E$8="Location",VLOOKUP(P36,Landcost2,2,FALSE),"Error"))) -> 10 | S36: 0 | U36: =IFERROR(('General Input Sheet'!$G$38/(VLOOKUP('Existing Trunk Assets - Water'!T36,'General Input Sheet'!$E$38:$G$44,3,FALSE))),1) -> 1 | V36: 140700 | Z36: y | BE36: 10371 | CF36: 10371 | CK36: 140700
B37: WA-003748 | D37: Active (Above Ground) | E37: (Treatment Plant) Filtration System | F37: Treatment | G37: Filtration | K37: 0 | L37: 80400 | N37: =IF(M37="",1,VLOOKUP(M37,'Unit Rates - Water'!$H$12:$I$23,2,FALSE)) -> 1 | O37: 80400 | R37: =IF(P37="",'Unit Rates - Land'!landcst,IF($E$8="Landuse",VLOOKUP(P37,LAndcost3,2,FALSE),IF($E$8="Location",VLOOKUP(P37,Landcost2,2,FALSE),"Error"))) -> 10 | S37: 0 | U37: =IFERROR(('General Input Sheet'!$G$38/(VLOOKUP('Existing Trunk Assets - Water'!T37,'General Input Sheet'!$E$38:$G$44,3,FALSE))),1) -> 1 | V37: 80400 | Z37: y | BE37: 10371 | CF37: 10371 | CK37: 80400
B38: WA-003759 | D38: Active (Above Ground) | E38: (Treatment Plant) Filtration System | F38: Treatment | G38: Filtration | K38: 0 | L38: 469000 | N38: =IF(M38="",1,VLOOKUP(M38,'Unit Rates - Water'!$H$12:$I$23,2,FALSE)) -> 1 | O38: 469000 | R38: =IF(P38="",'Unit Rates - Land'!landcst,IF($E$8="Landuse",VLOOKUP(P38,LAndcost3,2,FALSE),IF($E$8="Location",VLOOKUP(P38,Landcost2,2,FALSE),"Error"))) -> 10 | S38: 0 | U38: =IFERROR(('General Input Sheet'!$G$38/(VLOOKUP('Existing Trunk Assets - Water'!T38,'General Input Sheet'!$E$38:$G$44,3,FALSE))),1) -> 1 | V38: 469000 | Z38: y | BE38: 10371 | CF38: 10371 | CK38: 469000
B39: WA-003752 | D39: Active (Above Ground) | E39: (Treatment Plant) Filtration System | F39: Treatment | G39: Filtration | K39: 0 | L39: 80400 | N39: =IF(M39="",1,VLOOKUP(M39,'Unit Rates - Water'!$H$12:$I$23,2,FALSE)) -> 1 | O39: 80400 | R39: =IF(P39="",'Unit Rates - Land'!landcst,IF($E$8="Landuse",VLOOKUP(P39,LAndcost3,2,FALSE),IF($E$8="Location",VLOOKUP(P39,Landcost2,2,FALSE),"Error"))) -> 10 | S39: 0 | U39: =IFERROR(('General Input Sheet'!$G$38/(VLOOKUP('Existing Trunk Assets - Water'!T39,'General Input Sheet'!$E$38:$G$44,3,FALSE))),1) -> 1 | V39: 80400 | Z39: y | BE39: 10371 | CF39: 10371 | CK39: 80400
B40: WA-003762 | D40: Active (Above Ground) | E40: (Treatment Plant) Filtration System | F40: Treatment | G40: Filtration | K40: 0 | L40: 93800 | N40: =IF(M40="",1,VLOOKUP(M40,'Unit Rates - Water'!$H$12:$I$23,2,FALSE)) -> 1 | O40: 93800 | R40: =IF(P40="",'Unit Rates - Land'!landcst,IF($E$8="Landuse",VLOOKUP(P40,LAndcost3,2,FALSE),IF($E$8="Location",VLOOKUP(P40,Landcost2,2,FALSE),"Error"))) -> 10 | S40: 0 | U40: =IFERROR(('General Input Sheet'!$G$38/(VLOOKUP('Existing Trunk Assets - Water'!T40,'General Input Sheet'!$E$38:$G$44,3,FALSE))),1) -> 1 | V40: 93800 | Z40: y | BE40: 10371 | CF40: 10371 | CK40: 93800
B41: WA-003763 | D41: Active (Above Ground) | E41: (Treatment Plant) Filtration System | F41: Treatment | G41: Filtration | K41: 0 | L41: 93800 | N41: =IF(M41="",1,VLOOKUP(M41,'Unit Rates - Water'!$H$12:$I$23,2,FALSE)) -> 1 | O41: 93800 | R41: =IF(P41="",'Unit Rates - Land'!landcst,IF($E$8="Landuse",VLOOKUP(P41,LAndcost3,2,FALSE),IF($E$8="Location",VLOOKUP(P41,Landcost2,2,FALSE),"Error"))) -> 10 | S41: 0 | U41: =IFERROR(('General Input Sheet'!$G$38/(VLOOKUP('Existing Trunk Assets - Water'!T41,'General Input Sheet'!$E$38:$G$44,3,FALSE))),1) -> 1 | V41: 93800 | Z41: y | BE41: 10371 | CF41: 10371 | CK41: 93800
B42: WA-003760 | D42: Active (Above Ground) | E42: (Treatment Plant) Filtration System | F42: Treatment | G42: Filtration | K42: 0 | L42: 469000 | N42: =IF(M42="",1,VLOOKUP(M42,'Unit Rates - Water'!$H$12:$I$23,2,FALSE)) -> 1 | O42: 469000 | R42: =IF(P42="",'Unit Rates - Land'!landcst,IF($E$8="Landuse",VLOOKUP(P42,LAndcost3,2,FALSE),IF($E$8="Location",VLOOKUP(P42,Landcost2,2,FALSE),"Error"))) -> 10 | S42: 0 | U42: =IFERROR(('General Input Sheet'!$G$38/(VLOOKUP('Existing Trunk Assets - Water'!T42,'General Input Sheet'!$E$38:$G$44,3,FALSE))),1) -> 1 | V42: 469000 | Z42: y | BE42: 10371 | CF42: 10371 | CK42: 469000
B43: WA-003568 | D43: Active (Above Ground) | E43: (Treatment Plant) Filtration System | F43: Treatment | G43: Filtration | K43: 0 | L43: 562800 | N43: =IF(M43="",1,VLOOKUP(M43,'Unit Rates - Water'!$H$12:$I$23,2,FALSE)) -> 1 | O43: 562800 | R43: =IF(P43="",'Unit Rates - Land'!landcst,IF($E$8="Landuse",VLOOKUP(P43,LAndcost3,2,FALSE),IF($E$8="Location",VLOOKUP(P43,Landcost2,2,FALSE),"Error"))) -> 10 | S43: 0 | U43: =IFERROR(('General Input Sheet'!$G$38/(VLOOKUP('Existing Trunk Assets - Water'!T43,'General Input Sheet'!$E$38:$G$44,3,FALSE))),1) -> 1 | V43: 562800 | Z43: y | BE43: 10371 | CF43: 10371 | CK43: 562800
B44: WA-003751 | D44: Active (Above Ground) | E44: (Treatment Plant) Filtration System | F44: Treatment | G44: Filtration | K44: 0 | L44: 20100 | N44: =IF(M44="",1,VLOOKUP(M44,'Unit Rates - Water'!$H$12:$I$23,2,FALSE)) -> 1 | O44: 20100 | R44: =IF(P44="",'Unit Rates - Land'!landcst,IF($E$8="Landuse",VLOOKUP(P44,LAndcost3,2,FALSE),IF($E$8="Location",VLOOKUP(P44,Landcost2,2,FALSE),"Error"))) -> 10 | S44: 0 | U44: =IFERROR(('General Input Sheet'!$G$38/(VLOOKUP('Existing Trunk Assets - Water'!T44,'General Input Sheet'!$E$38:$G$44,3,FALSE))),1) -> 1 | V44: 20100 | Z44: y | BE44: 10371 | CF44: 10371 | CK44: 20100
B45: WA-003750 | D45: Active (Above Ground) | E45: (Treatment Plant) Filtration System | F45: Treatment | G45: Filtration | K45: 0 | L45: 80400 | N45: =IF(M45="",1,VLOOKUP(M45,'Unit Rates - Water'!$H$12:$I$23,2,FALSE)) -> 1 | O45: 80400 | R45: =IF(P45="",'Unit Rates - Land'!landcst,IF($E$8="Landuse",VLOOKUP(P45,LAndcost3,2,FALSE),IF($E$8="Location",VLOOKUP(P45,Landcost2,2,FALSE),"Error"))) -> 10 | S45: 0 | U45: =IFERROR(('General Input Sheet'!$G$38/(VLOOKUP('Existing Trunk Assets - Water'!T45,'General Input Sheet'!$E$38:$G$44,3,FALSE))),1) -> 1 | V45: 80400 | Z45: y | BE45: 10371 | CF45: 10371 | CK45: 80400
B46: WA-003744 | D46: Active (Above Ground) | E46: (Treatment Plant) Filtration System | F46: Treatment | G46: Filtration | K46: 0 | L46: 33500 | N46: =IF(M46="",1,VLOOKUP(M46,'Unit Rates - Water'!$H$12:$I$23,2,FALSE)) -> 1 | O46: 33500 | R46: =IF(P46="",'Unit Rates - Land'!landcst,IF($E$8="Landuse",VLOOKUP(P46,LAndcost3,2,FALSE),IF($E$8="Location",VLOOKUP(P46,Landcost2,2,FALSE),"Error"))) -> 10 | S46: 0 | U46: =IFERROR(('General Input Sheet'!$G$38/(VLOOKUP('Existing Trunk Assets - Water'!T46,'General Input Sheet'!$E$38:$G$44,3,FALSE))),1) -> 1 | V46: 33500 | Z46: y | BE46: 10371 | CF46: 10371 | CK46: 33500
B47: WA-003757 | D47: Active (Above Ground) | E47: (Treatment Plant) Filtration System | F47: Treatment | G47: Filtration | K47: 0 | L47: 113900 | N47: =IF(M47="",1,VLOOKUP(M47,'Unit Rates - Water'!$H$12:$I$23,2,FALSE)) -> 1 | O47: 113900 | R47: =IF(P47="",'Unit Rates - Land'!landcst,IF($E$8="Landuse",VLOOKUP(P47,LAndcost3,2,FALSE),IF($E$8="Location",VLOOKUP(P47,Landcost2,2,FALSE),"Error"))) -> 10 | S47: 0 | U47: =IFERROR(('General Input Sheet'!$G$38/(VLOOKUP('Existing Trunk Assets - Water'!T47,'General Input Sheet'!$E$38:$G$44,3,FALSE))),1) -> 1 | V47: 113900 | Z47: y | BE47: 10371 | CF47: 10371 | CK47: 113900 | DK47: =IF(CE47="","",(CE47/$CF47)*$V47) -> 
B48: WA-003758 | D48: Active (Above Ground) | E48: (Treatment Plant) Filtration System | F48: Treatment | G48: Filtration | K48: 0 | L48: 113900 | N48: =IF(M48="",1,VLOOKUP(M48,'Unit Rates - Water'!$H$12:$I$23,2,FALSE)) -> 1 | O48: 113900 | R48: =IF(P48="",'Unit Rates - Land'!landcst,IF($E$8="Landuse",VLOOKUP(P48,LAndcost3,2,FALSE),IF($E$8="Location",VLOOKUP(P48,Landcost2,2,FALSE),"Error"))) -> 10 | S48: 0 | U48: =IFERROR(('General Input Sheet'!$G$38/(VLOOKUP('Existing Trunk Assets - Water'!T48,'General Input Sheet'!$E$38:$G$44,3,FALSE))),1) -> 1 | V48: 113900 | Z48: y | BE48: 10371 | CF48: 10371 | CH48: =IF(BB48="","",(BB48/$CF48)*$V48) ->  | CK48: 113900 | CX48: =IF(BR48="","",(BR48/$CF48)*$V48) -> 
B49: WA-003756 | D49: Active (Above Ground) | E49: (Treatment Plant) Filtration System | F49: Treatment | G49: Chemical Dosing | K49: 0 | L49: 20100 | N49: =IF(M49="",1,VLOOKUP(M49,'Unit Rates - Water'!$H$12:$I$23,2,FALSE)) -> 1 | O49: 20100 | R49: =IF(P49="",'Unit Rates - Land'!landcst,IF($E$8="Landuse",VLOOKUP(P49,LAndcost3,2,FALSE),IF($E$8="Location",VLOOKUP(P49,Landcost2,2,FALSE),"Error"))) -> 10 | S49: 0 | U49: =IFERROR(('General Input Sheet'!$G$38/(VLOOKUP('Existing Trunk Assets - Water'!T49,'General Input Sheet'!$E$38:$G$44,3,FALSE))),1) -> 1 | V49: 20100 | Z49: y | BE49: 10371 | CF49: 10371 | CK49: 20100
B50: WA-003745 | D50: Active (Above Ground) | E50: (Treatment Plant) Filtration System | F50: Treatment | G50: Filtration | K50: 0 | L50: 20100 | N50: =IF(M50="",1,VLOOKUP(M50,'Unit Rates - Water'!$H$12:$I$23,2,FALSE)) -> 1 | O50: 20100 | R50: =IF(P50="",'Unit Rates - Land'!landcst,IF($E$8="Landuse",VLOOKUP(P50,LAndcost3,2,FALSE),IF($E$8="Location",VLOOKUP(P50,Landcost2,2,FALSE),"Error"))) -> 10 | S50: 0 | U50: =IFERROR(('General Input Sheet'!$G$38/(VLOOKUP('Existing Trunk Assets - Water'!T50,'General Input Sheet'!$E$38:$G$44,3,FALSE))),1) -> 1 | V50: 20100 | Z50: y | BE50: 10371 | CF50: 10371 | CK50: 20100
B51: WA-003761 | D51: Active (Above Ground) | E51: (Treatment Plant) Filtration System | F51: Treatment | G51: Filtration | K51: 0 | L51: 73700 | N51: =IF(M51="",1,VLOOKUP(M51,'Unit Rates - Water'!$H$12:$I$23,2,FALSE)) -> 1 | O51: 73700 | R51: =IF(P51="",'Unit Rates - Land'!landcst,IF($E$8="Landuse",VLOOKUP(P51,LAndcost3,2,FALSE),IF($E$8="Location",VLOOKUP(P51,Landcost2,2,FALSE),"Error"))) -> 10 | S51: 0 | U51: =IFERROR(('General Input Sheet'!$G$38/(VLOOKUP('Existing Trunk Assets - Water'!T51,'General Input Sheet'!$E$38:$G$44,3,FALSE))),1) -> 1 | V51: 73700 | Z51: y | BE51: 10371 | CF51: 10371 | CK51: 73700
B52: WA-003755 | D52: Active (Above Ground) | E52: (Treatment Plant) Filtration System | F52: Treatment | G52: Chemical Dosing | K52: 0 | L52: 20100 | N52: =IF(M52="",1,VLOOKUP(M52,'Unit Rates - Water'!$H$12:$I$23,2,FALSE)) -> 1 | O52: 20100 | R52: =IF(P52="",'Unit Rates - Land'!landcst,IF($E$8="Landuse",VLOOKUP(P52,LAndcost3,2,FALSE),IF($E$8="Location",VLOOKUP(P52,Landcost2,2,FALSE),"Error"))) -> 10 | S52: 0 | U52: =IFERROR(('General Input Sheet'!$G$38/(VLOOKUP('Existing Trunk Assets - Water'!T52,'General Input Sheet'!$E$38:$G$44,3,FALSE))),1) -> 1 | V52: 20100 | Z52: y | BE52: 10371 | CF52: 10371 | CK52: 20100
B53: WA-003699 | D53: Active (Above Ground) | E53: (Treatment Plant) Fluoridation | F53: Treatment | G53: Siteworks | K53: 0 | L53: 214400 | N53: =IF(M53="",1,VLOOKUP(M53,'Unit Rates - Water'!$H$12:$I$23,2,FALSE)) -> 1 | O53: 214400 | R53: =IF(P53="",'Unit Rates - Land'!landcst,IF($E$8="Landuse",VLOOKUP(P53,LAndcost3,2,FALSE),IF($E$8="Location",VLOOKUP(P53,Landcost2,2,FALSE),"Error"))) -> 10 | S53: 0 | U53: =IFERROR(('General Input Sheet'!$G$38/(VLOOKUP('Existing Trunk Assets - Water'!T53,'General Input Sheet'!$E$38:$G$44,3,FALSE))),1) -> 1 | V53: 214400 | Z53: y | BE53: 10371 | CF53: 10371 | CK53: 214400
B54: WA-003697 | D54: Active (Above Ground) | E54: (Treatment Plant) Fluoridation - preparations for installation | F54: Treatment | G54: Chemical Dosing | K54: 0 | L54: 0 | N54: =IF(M54="",1,VLOOKUP(M54,'Unit Rates - Water'!$H$12:$I$23,2,FALSE)) -> 1 | O54: 0 | R54: =IF(P54="",'Unit Rates - Land'!landcst,IF($E$8="Landuse",VLOOKUP(P54,LAndcost3,2,FALSE),IF($E$8="Location",VLOOKUP(P54,Landcost2,2,FALSE),"Error"))) -> 10 | S54: 0 | U54: =IFERROR(('General Input Sheet'!$G$38/(VLOOKUP('Existing Trunk Assets - Water'!T54,'General Input Sheet'!$E$38:$G$44,3,FALSE))),1) -> 1 | V54: 0 | Z54: y | BE54: 10371 | CF54: 10371 | CK54: 0
B55: WA-003573 | D55: Active (Above Ground) | E55: (Treatment Plant) Generator | F55: Treatment | G55: Siteworks | K55: 0 | L55: 0 | N55: =IF(M55="",1,VLOOKUP(M55,'Unit Rates - Water'!$H$12:$I$23,2,FALSE)) -> 1 | O55: 0 | R55: =IF(P55="",'Unit Rates - Land'!landcst,IF($E$8="Landuse",VLOOKUP(P55,LAndcost3,2,FALSE),IF($E$8="Location",VLOOKUP(P55,Landcost2,2,FALSE),"Error"))) -> 10 | S55: 0 | U55: =IFERROR(('General Input Sheet'!$G$38/(VLOOKUP('Existing Trunk Assets - Water'!T55,'General Input Sheet'!$E$38:$G$44,3,FALSE))),1) -> 1 | V55: 0 | Z55: y | BE55: 10371 | CF55: 10371 | CK55: 0
B56: WA-003764 | D56: Active (Above Ground) | E56: (Treatment Plant) Generator Building | F56: Treatment | G56: Siteworks | K56: 0 | L56: 96480 | N56: =IF(M56="",1,VLOOKUP(M56,'Unit Rates - Water'!$H$12:$I$23,2,FALSE)) -> 1 | O56: 96480 | R56: =IF(P56="",'Unit Rates - Land'!landcst,IF($E$8="Landuse",VLOOKUP(P56,LAndcost3,2,FALSE),IF($E$8="Location",VLOOKUP(P56,Landcost2,2,FALSE),"Error"))) -> 10 | S56: 0 | U56: =IFERROR(('General Input Sheet'!$G$38/(VLOOKUP('Existing Trunk Assets - Water'!T56,'General Input Sheet'!$E$38:$G$44,3,FALSE))),1) -> 1 | V56: 96480 | Z56: y | BE56: 10371 | CF56: 10371 | CK56: 96480
B57: WA-003765 | D57: Active (Above Ground) | E57: (Treatment Plant) Inlet Works | F57: Treatment | G57: Preliminary Treatment | K57: 0 | L57: 16080 | N57: =IF(M57="",1,VLOOKUP(M57,'Unit Rates - Water'!$H$12:$I$23,2,FALSE)) -> 1 | O57: 16080 | R57: =IF(P57="",'Unit Rates - Land'!landcst,IF($E$8="Landuse",VLOOKUP(P57,LAndcost3,2,FALSE),IF($E$8="Location",VLOOKUP(P57,Landcost2,2,FALSE),"Error"))) -> 10 | S57: 0 | U57: =IFERROR(('General Input Sheet'!$G$38/(VLOOKUP('Existing Trunk Assets - Water'!T57,'General Input Sheet'!$E$38:$G$44,3,FALSE))),1) -> 1 | V57: 16080 | Z57: y | BE57: 10371 | CF57: 10371 | CK57: 16080
B58: WA-003768 | D58: Active (Above Ground) | E58: (Treatment Plant) Inlet works | F58: Treatment | G58: Preliminary Treatment | K58: 0 | L58: 33500 | N58: =IF(M58="",1,VLOOKUP(M58,'Unit Rates - Water'!$H$12:$I$23,2,FALSE)) -> 1 | O58: 33500 | R58: =IF(P58="",'Unit Rates - Land'!landcst,IF($E$8="Landuse",VLOOKUP(P58,LAndcost3,2,FALSE),IF($E$8="Location",VLOOKUP(P58,Landcost2,2,FALSE),"Error"))) -> 10 | S58: 0 | U58: =IFERROR(('General Input Sheet'!$G$38/(VLOOKUP('Existing Trunk Assets - Water'!T58,'General Input Sheet'!$E$38:$G$44,3,FALSE))),1) -> 1 | V58: 33500 | Z58: y | BE58: 10371 | CF58: 10371 | CK58: 33500
B59: WA-003770 | D59: Active (Above Ground) | E59: (Treatment Plant) Inlet Works | F59: Treatment | G59: Preliminary Treatment | K59: 0 | L59: 87100 | N59: =IF(M59="",1,VLOOKUP(M59,'Unit Rates - Water'!$H$12:$I$23,2,FALSE)) -> 1 | O59: 87100 | R59: =IF(P59="",'Unit Rates - Land'!landcst,IF($E$8="Landuse",VLOOKUP(P59,LAndcost3,2,FALSE),IF($E$8="Location",VLOOKUP(P59,Landcost2,2,FALSE),"Error"))) -> 10 | S59: 0 | U59: =IFERROR(('General Input Sheet'!$G$38/(VLOOKUP('Existing Trunk Assets - Water'!T59,'General Input Sheet'!$E$38:$G$44,3,FALSE))),1) -> 1 | V59: 87100 | Z59: y | BE59: 10371 | CF59: 10371 | CK59: 87100
B60: WA-003766 | D60: Active (Above Ground) | E60: (Treatment Plant) Inlet works | F60: Treatment | G60: Preliminary Treatment | K60: 0 | L60: 46900 | N60: =IF(M60="",1,VLOOKUP(M60,'Unit Rates - Water'!$H$12:$I$23,2,FALSE)) -> 1 | O60: 46900 | R60: =IF(P60="",'Unit Rates - Land'!landcst,IF($E$8="Landuse",VLOOKUP(P60,LAndcost3,2,FALSE),IF($E$8="Location",VLOOKUP(P60,Landcost2,2,FALSE),"Error"))) -> 10 | S60: 0 | U60: =IFERROR(('General Input Sheet'!$G$38/(VLOOKUP('Existing Trunk Assets - Water'!T60,'General Input Sheet'!$E$38:$G$44,3,FALSE))),1) -> 1 | V60: 46900 | Z60: y | BE60: 10371 | CF60: 10371 | CK60: 46900
B61: WA-003771 | D61: Active (Above Ground) | E61: (Treatment Plant) Inlet works | F61: Treatment | G61: Preliminary Treatment | K61: 0 | L61: 10050 | N61: =IF(M61="",1,VLOOKUP(M61,'Unit Rates - Water'!$H$12:$I$23,2,FALSE)) -> 1 | O61: 10050 | R61: =IF(P61="",'Unit Rates - Land'!landcst,IF($E$8="Landuse",VLOOKUP(P61,LAndcost3,2,FALSE),IF($E$8="Location",VLOOKUP(P61,Landcost2,2,FALSE),"Error"))) -> 10 | S61: 0 | U61: =IFERROR(('General Input Sheet'!$G$38/(VLOOKUP('Existing Trunk Assets - Water'!T61,'General Input Sheet'!$E$38:$G$44,3,FALSE))),1) -> 1 | V61: 10050 | Z61: y | BE61: 10371 | CF61: 10371 | CK61: 10050
B62: WA-003767 | D62: Active (Above Ground) | E62: (Treatment Plant) Inlet works | F62: Treatment | G62: Preliminary Treatment | K62: 0 | L62: 10050 | N62: =IF(M62="",1,VLOOKUP(M62,'Unit Rates - Water'!$H$12:$I$23,2,FALSE)) -> 1 | O62: 10050 | R62: =IF(P62="",'Unit Rates - Land'!landcst,IF($E$8="Landuse",VLOOKUP(P62,LAndcost3,2,FALSE),IF($E$8="Location",VLOOKUP(P62,Landcost2,2,FALSE),"Error"))) -> 10 | S62: 0 | U62: =IFERROR(('General Input Sheet'!$G$38/(VLOOKUP('Existing Trunk Assets - Water'!T62,'General Input Sheet'!$E$38:$G$44,3,FALSE))),1) -> 1 | V62: 10050 | Z62: y | BE62: 10371 | CF62: 10371 | CK62: 10050
B63: WA-003769 | D63: Active (Above Ground) | E63: (Treatment Plant) Inlet Works | F63: Treatment | G63: Preliminary Treatment | K63: 0 | L63: 0 | N63: =IF(M63="",1,VLOOKUP(M63,'Unit Rates - Water'!$H$12:$I$23,2,FALSE)) -> 1 | O63: 0 | R63: =IF(P63="",'Unit Rates - Land'!landcst,IF($E$8="Landuse",VLOOKUP(P63,LAndcost3,2,FALSE),IF($E$8="Location",VLOOKUP(P63,Landcost2,2,FALSE),"Error"))) -> 10 | S63: 0 | U63: =IFERROR(('General Input Sheet'!$G$38/(VLOOKUP('Existing Trunk Assets - Water'!T63,'General Input Sheet'!$E$38:$G$44,3,FALSE))),1) -> 1 | V63: 0 | Z63: y | BE63: 10371 | CF63: 10371 | CK63: 0 | CW63: =IF(BQ63="","",(BQ63/$CF63)*$V63) -> 
B64: WA-003772 | D64: Active (Above Ground) | E64: (Treatment Plant) Instrumentation | F64: Treatment | G64: Process | K64: 0 | L64: 201000 | N64: =IF(M64="",1,VLOOKUP(M64,'Unit Rates - Water'!$H$12:$I$23,2,FALSE)) -> 1 | O64: 201000 | R64: =IF(P64="",'Unit Rates - Land'!landcst,IF($E$8="Landuse",VLOOKUP(P64,LAndcost3,2,FALSE),IF($E$8="Location",VLOOKUP(P64,Landcost2,2,FALSE),"Error"))) -> 10 | S64: 0 | U64: =IFERROR(('General Input Sheet'!$G$38/(VLOOKUP('Existing Trunk Assets - Water'!T64,'General Input Sheet'!$E$38:$G$44,3,FALSE))),1) -> 1 | V64: 201000 | Z64: y | BE64: 10371 | CF64: 10371 | CH64: =IF(BB64="","",(BB64/$CF64)*$V64) ->  | CK64: 201000
B65: WA-003788 | D65: Active (Above Ground) | E65: (Treatment Plant) Intake Pump Station | F65: Treatment | G65: Intake PS | K65: 0 | L65: 60300 | N65: =IF(M65="",1,VLOOKUP(M65,'Unit Rates - Water'!$H$12:$I$23,2,FALSE)) -> 1 | O65: 60300 | R65: =IF(P65="",'Unit Rates - Land'!landcst,IF($E$8="Landuse",VLOOKUP(P65,LAndcost3,2,FALSE),IF($E$8="Location",VLOOKUP(P65,Landcost2,2,FALSE),"Error"))) -> 10 | S65: 0 | U65: =IFERROR(('General Input Sheet'!$G$38/(VLOOKUP('Existing Trunk Assets - Water'!T65,'General Input Sheet'!$E$38:$G$44,3,FALSE))),1) -> 1 | V65: 60300 | Z65: y | BE65: 10371 | CF65: 10371 | CK65: 60300
B66: WA-003777 | D66: Active (Above Ground) | E66: (Treatment Plant) Intake Pump Station | F66: Treatment | G66: Intake PS | K66: 0 | L66: 33500 | N66: =IF(M66="",1,VLOOKUP(M66,'Unit Rates - Water'!$H$12:$I$23,2,FALSE)) -> 1 | O66: 33500 | R66: =IF(P66="",'Unit Rates - Land'!landcst,IF($E$8="Landuse",VLOOKUP(P66,LAndcost3,2,FALSE),IF($E$8="Location",VLOOKUP(P66,Landcost2,2,FALSE),"Error"))) -> 10 | S66: 0 | U66: =IFERROR(('General Input Sheet'!$G$38/(VLOOKUP('Existing Trunk Assets - Water'!T66,'General Input Sheet'!$E$38:$G$44,3,FALSE))),1) -> 1 | V66: 33500 | Z66: y | BE66: 10371 | CF66: 10371 | CK66: 33500
B67: WA-002883 | D67: Passive (Below Ground) | E67: Constance St 319 - 367 | F67: Reticulation | G67: Pipe Network | K67: 0 | L67: 648297.5554 | N67: =IF(M67="",1,VLOOKUP(M67,'Unit Rates - Water'!$H$12:$I$23,2,FALSE)) -> 1 | O67: 648297.5554 | R67: =IF(P67="",'Unit Rates - Land'!landcst,IF($E$8="Landuse",VLOOKUP(P67,LAndcost3,2,FALSE),IF($E$8="Location",VLOOKUP(P67,Landcost2,2,FALSE),"Error"))) -> 10 | S67: 0 | U67: =IFERROR(('General Input Sheet'!$G$38/(VLOOKUP('Existing Trunk Assets - Water'!T67,'General Input Sheet'!$E$38:$G$44,3,FALSE))),1) -> 1 | V67: 648297.5554 | Z67: y | BE67: 10371 | CF67: 10371 | CK67: 648297.5554 | DF67: =IF(BZ67="","",(BZ67/$CF67)*$V67) -> 
B68: WA-003776 | D68: Active (Above Ground) | E68: (Treatment Plant) Intake Pump Station | F68: Treatment | G68: Intake PS | K68: 0 | L68: 46900 | N68: =IF(M68="",1,VLOOKUP(M68,'Unit Rates - Water'!$H$12:$I$23,2,FALSE)) -> 1 | O68: 46900 | R68: =IF(P68="",'Unit Rates - Land'!landcst,IF($E$8="Landuse",VLOOKUP(P68,LAndcost3,2,FALSE),IF($E$8="Location",VLOOKUP(P68,Landcost2,2,FALSE),"Error"))) -> 10 | S68: 0 | U68: =IFERROR(('General Input Sheet'!$G$38/(VLOOKUP('Existing Trunk Assets - Water'!T68,'General Input Sheet'!$E$38:$G$44,3,FALSE))),1) -> 1 | V68: 46900 | Z68: y | BE68: 10371 | CF68: 10371 | CK68: 46900
B69: WA-003782 | D69: Active (Above Ground) | E69: (Treatment Plant) Intake Pump Station | F69: Treatment | G69: Intake PS | K69: 0 | L69: 37520 | N69: =IF(M69="",1,VLOOKUP(M69,'Unit Rates - Water'!$H$12:$I$23,2,FALSE)) -> 1 | O69: 37520 | R69: =IF(P69="",'Unit Rates - Land'!landcst,IF($E$8="Landuse",VLOOKUP(P69,LAndcost3,2,FALSE),IF($E$8="Location",VLOOKUP(P69,Landcost2,2,FALSE),"Error"))) -> 10 | S69: 0 | U69: =IFERROR(('General Input Sheet'!$G$38/(VLOOKUP('Existing Trunk Assets - Water'!T69,'General Input Sheet'!$E$38:$G$44,3,FALSE))),1) -> 1 | V69: 37520 | Z69: y | BE69: 10371 | CF69: 10371 | CK69: 37520
B70: WA-003784 | D70: Active (Above Ground) | E70: (Treatment Plant) Intake Pump Station | F70: Treatment | G70: Intake PS | K70: 0 | L70: 37520 | N70: =IF(M70="",1,VLOOKUP(M70,'Unit Rates - Water'!$H$12:$I$23,2,FALSE)) -> 1 | O70: 37520 | R70: =IF(P70="",'Unit Rates - Land'!landcst,IF($E$8="Landuse",VLOOKUP(P70,LAndcost3,2,FALSE),IF($E$8="Location",VLOOKUP(P70,Landcost2,2,FALSE),"Error"))) -> 10 | S70: 0 | U70: =IFERROR(('General Input Sheet'!$G$38/(VLOOKUP('Existing Trunk Assets - Water'!T70,'General Input Sheet'!$E$38:$G$44,3,FALSE))),1) -> 1 | V70: 37520 | Z70: y | BE70: 10371 | CF70: 10371 | CK70: 37520
B71: WA-003786 | D71: Active (Above Ground) | E71: (Treatment Plant) Intake Pump Station | F71: Treatment | G71: Intake PS | K71: 0 | L71: 37520 | N71: =IF(M71="",1,VLOOKUP(M71,'Unit Rates - Water'!$H$12:$I$23,2,FALSE)) -> 1 | O71: 37520 | R71: =IF(P71="",'Unit Rates - Land'!landcst,IF($E$8="Landuse",VLOOKUP(P71,LAndcost3,2,FALSE),IF($E$8="Location",VLOOKUP(P71,Landcost2,2,FALSE),"Error"))) -> 10 | S71: 0 | U71: =IFERROR(('General Input Sheet'!$G$38/(VLOOKUP('Existing Trunk Assets - Water'!T71,'General Input Sheet'!$E$38:$G$44,3,FALSE))),1) -> 1 | V71: 37520 | Z71: y | BE71: 10371 | CF71: 10371 | CK71: 37520
B72: WA-003571 | D72: Active (Above Ground) | E72: (Treatment Plant) Intake Pump Station | F72: Treatment | G72: Intake PS | K72: 0 | L72: 1474000 | N72: =IF(M72="",1,VLOOKUP(M72,'Unit Rates - Water'!$H$12:$I$23,2,FALSE)) -> 1 | O72: 1474000 | R72: =IF(P72="",'Unit Rates - Land'!landcst,IF($E$8="Landuse",VLOOKUP(P72,LAndcost3,2,FALSE),IF($E$8="Location",VLOOKUP(P72,Landcost2,2,FALSE),"Error"))) -> 10 | S72: 0 | U72: =IFERROR(('General Input Sheet'!$G$38/(VLOOKUP('Existing Trunk Assets - Water'!T72,'General Input Sheet'!$E$38:$G$44,3,FALSE))),1) -> 1 | V72: 1474000 | Z72: y | BE72: 10371 | CF72: 10371 | CK72: 1474000
B73: WA-003779 | D73: Active (Above Ground) | E73: (Treatment Plant) Intake Pump Station | F73: Treatment | G73: Intake PS | K73: 0 | L73: 33500 | N73: =IF(M73="",1,VLOOKUP(M73,'Unit Rates - Water'!$H$12:$I$23,2,FALSE)) -> 1 | O73: 33500 | R73: =IF(P73="",'Unit Rates - Land'!landcst,IF($E$8="Landuse",VLOOKUP(P73,LAndcost3,2,FALSE),IF($E$8="Location",VLOOKUP(P73,Landcost2,2,FALSE),"Error"))) -> 10 | S73: 0 | U73: =IFERROR(('General Input Sheet'!$G$38/(VLOOKUP('Existing Trunk Assets - Water'!T73,'General Input Sheet'!$E$38:$G$44,3,FALSE))),1) -> 1 | V73: 33500 | Z73: y | BE73: 10371 | CF73: 10371 | CK73: 33500
B74: WA-003778 | D74: Active (Above Ground) | E74: (Treatment Plant) Intake Pump Station | F74: Treatment | G74: Intake PS | K74: 0 | L74: 20100 | N74: =IF(M74="",1,VLOOKUP(M74,'Unit Rates - Water'!$H$12:$I$23,2,FALSE)) -> 1 | O74: 20100 | R74: =IF(P74="",'Unit Rates - Land'!landcst,IF($E$8="Landuse",VLOOKUP(P74,LAndcost3,2,FALSE),IF($E$8="Location",VLOOKUP(P74,Landcost2,2,FALSE),"Error"))) -> 10 | S74: 0 | U74: =IFERROR(('General Input Sheet'!$G$38/(VLOOKUP('Existing Trunk Assets - Water'!T74,'General Input Sheet'!$E$38:$G$44,3,FALSE))),1) -> 1 | V74: 20100 | Z74: y | BE74: 10371 | CF74: 10371 | CK74: 20100
B75: WA-003780 | D75: Active (Above Ground) | E75: (Treatment Plant) Intake Pump Station | F75: Treatment | G75: Intake PS | K75: 0 | L75: 87100 | N75: =IF(M75="",1,VLOOKUP(M75,'Unit Rates - Water'!$H$12:$I$23,2,FALSE)) -> 1 | O75: 87100 | R75: =IF(P75="",'Unit Rates - Land'!landcst,IF($E$8="Landuse",VLOOKUP(P75,LAndcost3,2,FALSE),IF($E$8="Location",VLOOKUP(P75,Landcost2,2,FALSE),"Error"))) -> 10 | S75: 0 | U75: =IFERROR(('General Input Sheet'!$G$38/(VLOOKUP('Existing Trunk Assets - Water'!T75,'General Input Sheet'!$E$38:$G$44,3,FALSE))),1) -> 1 | V75: 87100 | Z75: y | BE75: 10371 | CF75: 10371 | CK75: 87100
B76: WA-003787 | D76: Active (Above Ground) | E76: (Treatment Plant) Intake Pump Station | F76: Treatment | G76: Intake PS | K76: 0 | L76: 113900 | N76: =IF(M76="",1,VLOOKUP(M76,'Unit Rates - Water'!$H$12:$I$23,2,FALSE)) -> 1 | O76: 113900 | R76: =IF(P76="",'Unit Rates - Land'!landcst,IF($E$8="Landuse",VLOOKUP(P76,LAndcost3,2,FALSE),IF($E$8="Location",VLOOKUP(P76,Landcost2,2,FALSE),"Error"))) -> 10 | S76: 0 | U76: =IFERROR(('General Input Sheet'!$G$38/(VLOOKUP('Existing Trunk Assets - Water'!T76,'General Input Sheet'!$E$38:$G$44,3,FALSE))),1) -> 1 | V76: 113900 | Z76: y | BE76: 10371 | CF76: 10371 | CK76: 113900
B77: WA-003781 | D77: Active (Above Ground) | E77: (Treatment Plant) Intake Pump Station | F77: Treatment | G77: Intake PS | K77: 0 | L77: 20100 | N77: =IF(M77="",1,VLOOKUP(M77,'Unit Rates - Water'!$H$12:$I$23,2,FALSE)) -> 1 | O77: 20100 | R77: =IF(P77="",'Unit Rates - Land'!landcst,IF($E$8="Landuse",VLOOKUP(P77,LAndcost3,2,FALSE),IF($E$8="Location",VLOOKUP(P77,Landcost2,2,FALSE),"Error"))) -> 10 | S77: 0 | U77: =IFERROR(('General Input Sheet'!$G$38/(VLOOKUP('Existing Trunk Assets - Water'!T77,'General Input Sheet'!$E$38:$G$44,3,FALSE))),1) -> 1 | V77: 20100 | Z77: y | BE77: 10371 | CF77: 10371 | CK77: 20100
B78: WA-003783 | D78: Active (Above Ground) | E78: (Treatment Plant) Intake Pump Station | F78: Treatment | G78: Intake PS | K78: 0 | L78: 20100 | N78: =IF(M78="",1,VLOOKUP(M78,'Unit Rates - Water'!$H$12:$I$23,2,FALSE)) -> 1 | O78: 20100 | R78: =IF(P78="",'Unit Rates - Land'!landcst,IF($E$8="Landuse",VLOOKUP(P78,LAndcost3,2,FALSE),IF($E$8="Location",VLOOKUP(P78,Landcost2,2,FALSE),"Error"))) -> 10 | S78: 0 | U78: =IFERROR(('General Input Sheet'!$G$38/(VLOOKUP('Existing Trunk Assets - Water'!T78,'General Input Sheet'!$E$38:$G$44,3,FALSE))),1) -> 1 | V78: 20100 | Z78: y | BE78: 10371 | CF78: 10371 | CK78: 20100
B79: WA-003785 | D79: Active (Above Ground) | E79: (Treatment Plant) Intake Pump Station | F79: Treatment | G79: Intake PS | K79: =IF(H79=TYPE1,VLOOKUP(J79,WaterUnitrates1,2,FALSE),IF(H79=TYPE2,VLOOKUP(J79,Unitrates2,2,FALSE),0)) -> 0 | L79: 20100 | N79: =IF(M79="",1,VLOOKUP(M79,'Unit Rates - Water'!$H$12:$I$23,2,FALSE)) -> 1 | O79: 20100 | R79: =IF(P79="",'Unit Rates - Land'!landcst,IF($E$8="Landuse",VLOOKUP(P79,LAndcost3,2,FALSE),IF($E$8="Location",VLOOKUP(P79,Landcost2,2,FALSE),"Error"))) -> 10 | S79: 0 | U79: =IFERROR(('General Input Sheet'!$G$38/(VLOOKUP('Existing Trunk Assets - Water'!T79,'General Input Sheet'!$E$38:$G$44,3,FALSE))),1) -> 1 | V79: 20100 | Z79: y | BE79: 10371 | CF79: 10371 | CK79: 20100
B80: WA-003773 | D80: Active (Above Ground) | E80: (Treatment Plant) Intake Pump Station | F80: Treatment | G80: Intake PS | K80: 0 | L80: 19296 | N80: =IF(M80="",1,VLOOKUP(M80,'Unit Rates - Water'!$H$12:$I$23,2,FALSE)) -> 1 | O80: =L80*N80 -> 19296 | R80: =IF(P80="",'Unit Rates - Land'!landcst,IF($E$8="Landuse",VLOOKUP(P80,LAndcost3,2,FALSE),IF($E$8="Location",VLOOKUP(P80,Landcost2,2,FALSE),"Error"))) -> 10 | S80: =IF(R80="",0,R80*10000*Q80) -> 0 | U80: =IFERROR(('General Input Sheet'!$G$38/(VLOOKUP('Existing Trunk Assets - Water'!T80,'General Input Sheet'!$E$38:$G$44,3,FALSE))),1) -> 1 | V80: =IFERROR((O80+S80)*U80,0) -> 19296 | Z80: y | BE80: 10371 | CF80: 10371 | CK80: 19296
B81: WA-003774 | D81: Active (Above Ground) | E81: (Treatment Plant) Intake Pump Station | F81: Treatment | G81: Intake PS | K81: 0 | L81: 0 | N81: =IF(M81="",1,VLOOKUP(M81,'Unit Rates - Water'!$H$12:$I$23,2,FALSE)) -> 1 | O81: 0 | R81: =IF(P81="",'Unit Rates - Land'!landcst,IF($E$8="Landuse",VLOOKUP(P81,LAndcost3,2,FALSE),IF($E$8="Location",VLOOKUP(P81,Landcost2,2,FALSE),"Error"))) -> 10 | S81: 0 | U81: =IFERROR(('General Input Sheet'!$G$38/(VLOOKUP('Existing Trunk Assets - Water'!T81,'General Input Sheet'!$E$38:$G$44,3,FALSE))),1) -> 1 | V81: 0 | Z81: y | BE81: 10371 | CF81: 10371 | CH81: =IF(BB81="","",(BB81/$CF81)*$V81) ->  | CK81: 0
B82: WA-003775 | D82: Active (Above Ground) | E82: (Treatment Plant) Intake Pump Station | F82: Treatment | G82: Intake PS | K82: 0 | L82: 0 | N82: =IF(M82="",1,VLOOKUP(M82,'Unit Rates - Water'!$H$12:$I$23,2,FALSE)) -> 1 | O82: 0 | R82: =IF(P82="",'Unit Rates - Land'!landcst,IF($E$8="Landuse",VLOOKUP(P82,LAndcost3,2,FALSE),IF($E$8="Location",VLOOKUP(P82,Landcost2,2,FALSE),"Error"))) -> 10 | S82: 0 | U82: =IFERROR(('General Input Sheet'!$G$38/(VLOOKUP('Existing Trunk Assets - Water'!T82,'General Input Sheet'!$E$38:$G$44,3,FALSE))),1) -> 1 | V82: 0 | Z82: y | BE82: 10371 | CF82: =SUM(BB82:CE82) -> 10371 | CK82: 0 | DL82: =IF(SUM(CH82:DK82)=V82,"","ERROR") -> 
B83: WA-003789 | D83: Active (Above Ground) | E83: (Treatment Plant) Perimeter Fencing | F83: Treatment | G83: Siteworks | K83: 0 | L83: 60970 | N83: =IF(M83="",1,VLOOKUP(M83,'Unit Rates - Water'!$H$12:$I$23,2,FALSE)) -> 1 | O83: 60970 | R83: =IF(P83="",'Unit Rates - Land'!landcst,IF($E$8="Landuse",VLOOKUP(P83,LAndcost3,2,FALSE),IF($E$8="Location",VLOOKUP(P83,Landcost2,2,FALSE),"Error"))) -> 10 | S83: 0 | U83: =IFERROR(('General Input Sheet'!$G$38/(VLOOKUP('Existing Trunk Assets - Water'!T83,'General Input Sheet'!$E$38:$G$44,3,FALSE))),1) -> 1 | V83: 60970 | Z83: y | BE83: 10371 | CF83: 10371 | CK83: 60970
B84: WA-002993 | D84: Passive (Below Ground) | E84: Mammino St 573 - 532 | F84: Reticulation | G84: Pipe Network | K84: 0 | L84: 522395.4295 | N84: =IF(M84="",1,VLOOKUP(M84,'Unit Rates - Water'!$H$12:$I$23,2,FALSE)) -> 1 | O84: 522395.4295 | R84: =IF(P84="",'Unit Rates - Land'!landcst,IF($E$8="Landuse",VLOOKUP(P84,LAndcost3,2,FALSE),IF($E$8="Location",VLOOKUP(P84,Landcost2,2,FALSE),"Error"))) -> 10 | S84: 0 | U84: =IFERROR(('General Input Sheet'!$G$38/(VLOOKUP('Existing Trunk Assets - Water'!T84,'General Input Sheet'!$E$38:$G$44,3,FALSE))),1) -> 1 | V84: 522395.4295 | Z84: y | BB84: =IF(W84="y",BB$14,IF(AND(W84>0,W84<=1),W84*BB$14,"")) ->  | BC84: =IF(X84="y",BC$14,IF(AND(X84>0,X84<=1),X84*BC$14,"")) ->  | BD84: =IF(Y84="y",BD$14,IF(AND(Y84>0,Y84<=1),Y84*BD$14,"")) ->  | BE84: =IF(Z84="y",BE$14,IF(AND(Z84>0,Z84<=1),Z84*BE$14,"")) -> 10371 | BF84: =IF(AA84="y",BF$14,IF(AND(AA84>0,AA84<=1),AA84*BF$14,"")) ->  | BG84: =IF(AB84="y",BG$14,IF(AND(AB84>0,AB84<=1),AB84*BG$14,"")) ->  | BH84: =IF(AC84="y",BH$14,IF(AND(AC84>0,AC84<=1),AC84*BH$14,"")) ->  | BJ84: =IF(AE84="y",BJ$14,IF(AND(AE84>0,AE84<=1),AE84*BJ$14,"")) ->  | BK84: =IF(AF84="y",BK$14,IF(AND(AF84>0,AF84<=1),AF84*BK$14,"")) ->  | BL84: =IF(AG84="y",BL$14,IF(AND(AG84>0,AG84<=1),AG84*BL$14,"")) ->  | BM84: =IF(AH84="y",BM$14,IF(AND(AH84>0,AH84<=1),AH84*BM$14,"")) ->  | BN84: =IF(AI84="y",BN$14,IF(AND(AI84>0,AI84<=1),AI84*BN$14,"")) ->  | BO84: =IF(AJ84="y",BO$14,IF(AND(AJ84>0,AJ84<=1),AJ84*BO$14,"")) ->  | BP84: =IF(AK84="y",BP$14,IF(AND(AK84>0,AK84<=1),AK84*BP$14,"")) ->  | BQ84: =IF(AL84="y",BQ$14,IF(AND(AL84>0,AL84<=1),AL84*BQ$14,"")) ->  | BR84: =IF(AM84="y",BR$14,IF(AND(AM84>0,AM84<=1),AM84*BR$14,"")) ->  | BS84: =IF(AN84="y",BS$14,IF(AND(AN84>0,AN84<=1),AN84*BS$14,"")) ->  | BT84: =IF(AO84="y",BT$14,IF(AND(AO84>0,AO84<=1),AO84*BT$14,"")) ->  | BU84: =IF(AP84="y",BU$14,IF(AND(AP84>0,AP84<=1),AP84*BU$14,"")) ->  | BV84: =IF(AQ84="y",BV$14,IF(AND(AQ84>0,AQ84<=1),AQ84*BV$14,"")) ->  | BW84: =IF(AR84="y",BW$14,IF(AND(AR84>0,AR84<=1),AR84*BW$14,"")) ->  | BX84: =IF(AS84="y",BX$14,IF(AND(AS84>0,AS84<=1),AS84*BX$14,"")) ->  | BY84: =IF(AT84="y",BY$14,IF(AND(AT84>0,AT84<=1),AT84*BY$14,"")) ->  | BZ84: =IF(AU84="y",BZ$14,IF(AND(AU84>0,AU84<=1),AU84*BZ$14,"")) ->  | CA84: =IF(AV84="y",CA$14,IF(AND(AV84>0,AV84<=1),AV84*CA$14,"")) ->  | CB84: =IF(AW84="y",CB$14,IF(AND(AW84>0,AW84<=1),AW84*CB$14,"")) ->  | CC84: =IF(AX84="y",CC$14,IF(AND(AX84>0,AX84<=1),AX84*CC$14,"")) ->  | CD84: =IF(AY84="y",CD$14,IF(AND(AY84>0,AY84<=1),AY84*CD$14,"")) ->  | CE84: =IF(AZ84="y",CE$14,IF(AND(AZ84>0,AZ84<=1),AZ84*CE$14,"")) ->  | CF84: 10371 | CK84: 522395.4295
B85: WA-003790 | D85: Active (Above Ground) | E85: (Treatment Plant) Pipework | F85: Treatment | G85: Process | K85: 0 | L85: 469000 | N85: =IF(M85="",1,VLOOKUP(M85,'Unit Rates - Water'!$H$12:$I$23,2,FALSE)) -> 1 | O85: 469000 | R85: =IF(P85="",'Unit Rates - Land'!landcst,IF($E$8="Landuse",VLOOKUP(P85,LAndcost3,2,FALSE),IF($E$8="Location",VLOOKUP(P85,Landcost2,2,FALSE),"Error"))) -> 10 | S85: 0 | U85: =IFERROR(('General Input Sheet'!$G$38/(VLOOKUP('Existing Trunk Assets - Water'!T85,'General Input Sheet'!$E$38:$G$44,3,FALSE))),1) -> 1 | V85: 469000 | Z85: y | BE85: 10371 | CF85: 10371 | CK85: 469000
B86: WA-003791 | D86: Active (Above Ground) | E86: (Treatment Plant) Roads Pavement | F86: Treatment | G86: Siteworks | K86: 0 | L86: 12060 | N86: =IF(M86="",1,VLOOKUP(M86,'Unit Rates - Water'!$H$12:$I$23,2,FALSE)) -> 1 | O86: 12060 | R86: =IF(P86="",'Unit Rates - Land'!landcst,IF($E$8="Landuse",VLOOKUP(P86,LAndcost3,2,FALSE),IF($E$8="Location",VLOOKUP(P86,Landcost2,2,FALSE),"Error"))) -> 10 | S86: 0 | U86: =IFERROR(('General Input Sheet'!$G$38/(VLOOKUP('Existing Trunk Assets - Water'!T86,'General Input Sheet'!$E$38:$G$44,3,FALSE))),1) -> 1 | V86: 12060 | Z86: y | BE86: 10371 | CF86: 10371 | CK86: 12060
B87: WA-003792 | D87: Active (Above Ground) | E87: (Treatment Plant) Roads Seal | F87: Treatment | G87: Siteworks | K87: 0 | L87: 9648 | N87: =IF(M87="",1,VLOOKUP(M87,'Unit Rates - Water'!$H$12:$I$23,2,FALSE)) -> 1 | O87: 9648 | R87: =IF(P87="",'Unit Rates - Land'!landcst,IF($E$8="Landuse",VLOOKUP(P87,LAndcost3,2,FALSE),IF($E$8="Location",VLOOKUP(P87,Landcost2,2,FALSE),"Error"))) -> 10 | S87: 0 | U87: =IFERROR(('General Input Sheet'!$G$38/(VLOOKUP('Existing Trunk Assets - Water'!T87,'General Input Sheet'!$E$38:$G$44,3,FALSE))),1) -> 1 | V87: 9648 | Z87: y | BE87: 10371 | BI87: =IF(AD81="y",BI$14,IF(AND(AD81>0,AD81<=1),AD81*BI$14,"")) ->  | CF87: 10371 | CK87: 9648
B88: WA-003793 | D88: Active (Above Ground) | E88: (Treatment Plant) Sed Tank 1 | F88: Treatment | G88: Sedimentation Tank 1 | K88: 0 | L88: 46900 | N88: =IF(M88="",1,VLOOKUP(M88,'Unit Rates - Water'!$H$12:$I$23,2,FALSE)) -> 1 | O88: 46900 | R88: =IF(P88="",'Unit Rates - Land'!landcst,IF($E$8="Landuse",VLOOKUP(P88,LAndcost3,2,FALSE),IF($E$8="Location",VLOOKUP(P88,Landcost2,2,FALSE),"Error"))) -> 10 | S88: 0 | U88: =IFERROR(('General Input Sheet'!$G$38/(VLOOKUP('Existing Trunk Assets - Water'!T88,'General Input Sheet'!$E$38:$G$44,3,FALSE))),1) -> 1 | V88: 46900 | Z88: y | BE88: 10371 | CF88: 10371 | CK88: 46900
B89: WA-003798 | D89: Active (Above Ground) | E89: (Treatment Plant) Sed Tank 1 | F89: Treatment | G89: Sedimentation Tank 1 | K89: 0 | L89: 964800 | N89: =IF(M89="",1,VLOOKUP(M89,'Unit Rates - Water'!$H$12:$I$23,2,FALSE)) -> 1 | O89: 964800 | R89: =IF(P89="",'Unit Rates - Land'!landcst,IF($E$8="Landuse",VLOOKUP(P89,LAndcost3,2,FALSE),IF($E$8="Location",VLOOKUP(P89,Landcost2,2,FALSE),"Error"))) -> 10 | S89: 0 | U89: =IFERROR(('General Input Sheet'!$G$38/(VLOOKUP('Existing Trunk Assets - Water'!T89,'General Input Sheet'!$E$38:$G$44,3,FALSE))),1) -> 1 | V89: 964800 | Z89: y | BE89: 10371 | CF89: 10371 | CK89: 964800
B90: WA-003797 | D90: Active (Above Ground) | E90: (Treatment Plant) Sed Tank 1 | F90: Treatment | G90: Sedimentation Tank 1 | K90: 0 | L90: 19899 | N90: =IF(M90="",1,VLOOKUP(M90,'Unit Rates - Water'!$H$12:$I$23,2,FALSE)) -> 1 | O90: 19899 | R90: =IF(P90="",'Unit Rates - Land'!landcst,IF($E$8="Landuse",VLOOKUP(P90,LAndcost3,2,FALSE),IF($E$8="Location",VLOOKUP(P90,Landcost2,2,FALSE),"Error"))) -> 10 | S90: 0 | U90: =IFERROR(('General Input Sheet'!$G$38/(VLOOKUP('Existing Trunk Assets - Water'!T90,'General Input Sheet'!$E$38:$G$44,3,FALSE))),1) -> 1 | V90: 19899 | Z90: y | BE90: 10371 | CF90: 10371 | CK90: 19899
B91: WA-003794 | D91: Active (Above Ground) | E91: (Treatment Plant) Sed Tank 1 | F91: Treatment | G91: Sedimentation Tank 1 | K91: 0 | L91: 46900 | N91: =IF(M91="",1,VLOOKUP(M91,'Unit Rates - Water'!$H$12:$I$23,2,FALSE)) -> 1 | O91: 46900 | R91: =IF(P91="",'Unit Rates - Land'!landcst,IF($E$8="Landuse",VLOOKUP(P91,LAndcost3,2,FALSE),IF($E$8="Location",VLOOKUP(P91,Landcost2,2,FALSE),"Error"))) -> 10 | S91: 0 | U91: =IFERROR(('General Input Sheet'!$G$38/(VLOOKUP('Existing Trunk Assets - Water'!T91,'General Input Sheet'!$E$38:$G$44,3,FALSE))),1) -> 1 | V91: 46900 | Z91: y | BE91: 10371 | CF91: 10371 | CK91: 46900
B92: WA-003796 | D92: Active (Above Ground) | E92: (Treatment Plant) Sed Tank 1 | F92: Treatment | G92: Sedimentation Tank 1 | K92: 0 | L92: 46900 | N92: =IF(M92="",1,VLOOKUP(M92,'Unit Rates - Water'!$H$12:$I$23,2,FALSE)) -> 1 | O92: 46900 | R92: =IF(P92="",'Unit Rates - Land'!landcst,IF($E$8="Landuse",VLOOKUP(P92,LAndcost3,2,FALSE),IF($E$8="Location",VLOOKUP(P92,Landcost2,2,FALSE),"Error"))) -> 10 | S92: 0 | U92: =IFERROR(('General Input Sheet'!$G$38/(VLOOKUP('Existing Trunk Assets - Water'!T92,'General Input Sheet'!$E$38:$G$44,3,FALSE))),1) -> 1 | V92: 46900 | Z92: y | BE92: 10371 | CF92: 10371 | CK92: 46900
B93: WA-003795 | D93: Active (Above Ground) | E93: (Treatment Plant) Sed Tank 1 | F93: Treatment | G93: Sedimentation Tank 1 | K93: 0 | L93: 10050 | N93: =IF(M93="",1,VLOOKUP(M93,'Unit Rates - Water'!$H$12:$I$23,2,FALSE)) -> 1 | O93: 10050 | R93: =IF(P93="",'Unit Rates - Land'!landcst,IF($E$8="Landuse",VLOOKUP(P93,LAndcost3,2,FALSE),IF($E$8="Location",VLOOKUP(P93,Landcost2,2,FALSE),"Error"))) -> 10 | S93: 0 | U93: =IFERROR(('General Input Sheet'!$G$38/(VLOOKUP('Existing Trunk Assets - Water'!T93,'General Input Sheet'!$E$38:$G$44,3,FALSE))),1) -> 1 | V93: 10050 | Z93: y | BE93: 10371 | CF93: 10371 | CK93: 10050
B94: WA-003799 | D94: Active (Above Ground) | E94: (Treatment Plant) Sed Tank 1 Electrical | F94: Treatment | G94: Sedimentation Tank 1 | K94: 0 | L94: 20100 | N94: =IF(M94="",1,VLOOKUP(M94,'Unit Rates - Water'!$H$12:$I$23,2,FALSE)) -> 1 | O94: 20100 | R94: =IF(P94="",'Unit Rates - Land'!landcst,IF($E$8="Landuse",VLOOKUP(P94,LAndcost3,2,FALSE),IF($E$8="Location",VLOOKUP(P94,Landcost2,2,FALSE),"Error"))) -> 10 | S94: 0 | U94: =IFERROR(('General Input Sheet'!$G$38/(VLOOKUP('Existing Trunk Assets - Water'!T94,'General Input Sheet'!$E$38:$G$44,3,FALSE))),1) -> 1 | V94: 20100 | Z94: y | BE94: 10371 | CF94: 10371 | CK94: 20100
B95: WA-003800 | D95: Active (Above Ground) | E95: (Treatment Plant) Sed Tank 1 Local Control Panel | F95: Treatment | G95: Sedimentation Tank 1 | K95: 0 | L95: 33500 | N95: =IF(M95="",1,VLOOKUP(M95,'Unit Rates - Water'!$H$12:$I$23,2,FALSE)) -> 1 | O95: 33500 | R95: =IF(P95="",'Unit Rates - Land'!landcst,IF($E$8="Landuse",VLOOKUP(P95,LAndcost3,2,FALSE),IF($E$8="Location",VLOOKUP(P95,Landcost2,2,FALSE),"Error"))) -> 10 | S95: 0 | U95: =IFERROR(('General Input Sheet'!$G$38/(VLOOKUP('Existing Trunk Assets - Water'!T95,'General Input Sheet'!$E$38:$G$44,3,FALSE))),1) -> 1 | V95: 33500 | Z95: y | BE95: 10371 | CF95: 10371 | CK95: 33500 | DD95: =IF(BX95="","",(BX95/$CF95)*$V95) -> 
B96: WA-003805 | D96: Active (Above Ground) | E96: (Treatment Plant) Sed Tank 2 | F96: Treatment | G96: Sedimentation Tank 2 | K96: 0 | L96: 1098800 | N96: =IF(M96="",1,VLOOKUP(M96,'Unit Rates - Water'!$H$12:$I$23,2,FALSE)) -> 1 | O96: 1098800 | R96: =IF(P96="",'Unit Rates - Land'!landcst,IF($E$8="Landuse",VLOOKUP(P96,LAndcost3,2,FALSE),IF($E$8="Location",VLOOKUP(P96,Landcost2,2,FALSE),"Error"))) -> 10 | S96: 0 | U96: =IFERROR(('General Input Sheet'!$G$38/(VLOOKUP('Existing Trunk Assets - Water'!T96,'General Input Sheet'!$E$38:$G$44,3,FALSE))),1) -> 1 | V96: 1098800 | Z96: y | BE96: 10371 | CF96: 10371 | CK96: 1098800 | CX96: =IF(BR96="","",(BR96/$CF96)*$V96) -> 
B97: WA-003804 | D97: Active (Above Ground) | E97: (Treatment Plant) Sed Tank 2 | F97: Treatment | G97: Sedimentation Tank 2 | K97: 0 | L97: 100500 | N97: =IF(M97="",1,VLOOKUP(M97,'Unit Rates - Water'!$H$12:$I$23,2,FALSE)) -> 1 | O97: 100500 | R97: =IF(P97="",'Unit Rates - Land'!landcst,IF($E$8="Landuse",VLOOKUP(P97,LAndcost3,2,FALSE),IF($E$8="Location",VLOOKUP(P97,Landcost2,2,FALSE),"Error"))) -> 10 | S97: 0 | U97: =IFERROR(('General Input Sheet'!$G$38/(VLOOKUP('Existing Trunk Assets - Water'!T97,'General Input Sheet'!$E$38:$G$44,3,FALSE))),1) -> 1 | V97: 100500 | Z97: y | BE97: 10371 | CF97: 10371 | CK97: 100500 | CV97: =IF(BP97="","",(BP97/$CF97)*$V97) -> 
B98: WA-003803 | D98: Active (Above Ground) | E98: (Treatment Plant) Sed Tank 2 | F98: Treatment | G98: Sedimentation Tank 2 | K98: 0 | L98: 46900 | N98: =IF(M98="",1,VLOOKUP(M98,'Unit Rates - Water'!$H$12:$I$23,2,FALSE)) -> 1 | O98: 46900 | R98: =IF(P98="",'Unit Rates - Land'!landcst,IF($E$8="Landuse",VLOOKUP(P98,LAndcost3,2,FALSE),IF($E$8="Location",VLOOKUP(P98,Landcost2,2,FALSE),"Error"))) -> 10 | S98: 0 | U98: =IFERROR(('General Input Sheet'!$G$38/(VLOOKUP('Existing Trunk Assets - Water'!T98,'General Input Sheet'!$E$38:$G$44,3,FALSE))),1) -> 1 | V98: 46900 | Z98: y | BE98: 10371 | CF98: 10371 | CH98: =IF(BB98="","",(BB98/$CF98)*$V98) ->  | CK98: 46900
B99: WA-003802 | D99: Active (Above Ground) | E99: (Treatment Plant) Sed Tank 2 | F99: Treatment | G99: Sedimentation Tank 2 | K99: 0 | L99: 33500 | N99: =IF(M99="",1,VLOOKUP(M99,'Unit Rates - Water'!$H$12:$I$23,2,FALSE)) -> 1 | O99: 33500 | R99: =IF(P99="",'Unit Rates - Land'!landcst,IF($E$8="Landuse",VLOOKUP(P99,LAndcost3,2,FALSE),IF($E$8="Location",VLOOKUP(P99,Landcost2,2,FALSE),"Error"))) -> 10 | S99: 0 | U99: =IFERROR(('General Input Sheet'!$G$38/(VLOOKUP('Existing Trunk Assets - Water'!T99,'General Input Sheet'!$E$38:$G$44,3,FALSE))),1) -> 1 | V99: 33500 | Z99: y | BE99: 10371 | CF99: 10371 | CK99: 33500
B100: WA-003801 | D100: Active (Above Ground) | E100: (Treatment Plant) Sed Tank 2 | F100: Treatment | G100: Sedimentation Tank 2 | K100: 0 | L100: 6700 | N100: =IF(M100="",1,VLOOKUP(M100,'Unit Rates - Water'!$H$12:$I$23,2,FALSE)) -> 1 | O100: 6700 | R100: =IF(P100="",'Unit Rates - Land'!landcst,IF($E$8="Landuse",VLOOKUP(P100,LAndcost3,2,FALSE),IF($E$8="Location",VLOOKUP(P100,Landcost2,2,FALSE),"Error"))) -> 10 | S100: 0 | U100: =IFERROR(('General Input Sheet'!$G$38/(VLOOKUP('Existing Trunk Assets - Water'!T100,'General Input Sheet'!$E$38:$G$44,3,FALSE))),1) -> 1 | V100: 6700 | Z100: y | BE100: 10371 | CF100: 10371 | CK100: 6700
B101: WA-003806 | D101: Active (Above Ground) | E101: (Treatment Plant) Site Earthworks | F101: Treatment | G101: Siteworks | K101: 0 | L101: 241200 | N101: =IF(M101="",1,VLOOKUP(M101,'Unit Rates - Water'!$H$12:$I$23,2,FALSE)) -> 1 | O101: 241200 | R101: =IF(P101="",'Unit Rates - Land'!landcst,IF($E$8="Landuse",VLOOKUP(P101,LAndcost3,2,FALSE),IF($E$8="Location",VLOOKUP(P101,Landcost2,2,FALSE),"Error"))) -> 10 | S101: 0 | U101: =IFERROR(('General Input Sheet'!$G$38/(VLOOKUP('Existing Trunk Assets - Water'!T101,'General Input Sheet'!$E$38:$G$44,3,FALSE))),1) -> 1 | V101: 241200 | Z101: y | BE101: 10371 | CF101: 10371 | CK101: 241200
B102: WA-002992 | D102: Passive (Below Ground) | E102: Mammino St 45 - 580 | F102: Reticulation | G102: Pipe Network | K102: 0 | L102: 365687.8167 | N102: =IF(M102="",1,VLOOKUP(M102,'Unit Rates - Water'!$H$12:$I$23,2,FALSE)) -> 1 | O102: 365687.8167 | R102: =IF(P102="",'Unit Rates - Land'!landcst,IF($E$8="Landuse",VLOOKUP(P102,LAndcost3,2,FALSE),IF($E$8="Location",VLOOKUP(P102,Landcost2,2,FALSE),"Error"))) -> 10 | S102: 0 | U102: =IFERROR(('General Input Sheet'!$G$38/(VLOOKUP('Existing Trunk Assets - Water'!T102,'General Input Sheet'!$E$38:$G$44,3,FALSE))),1) -> 1 | V102: 365687.8167 | Z102: y | BE102: 10371 | CF102: 10371 | CK102: 365687.8167
B103: WA-003807 | D103: Active (Above Ground) | E103: (Treatment Plant) Site Retaining Works | F103: Treatment | G103: Siteworks | K103: 0 | L103: 60300 | N103: =IF(M103="",1,VLOOKUP(M103,'Unit Rates - Water'!$H$12:$I$23,2,FALSE)) -> 1 | O103: 60300 | R103: =IF(P103="",'Unit Rates - Land'!landcst,IF($E$8="Landuse",VLOOKUP(P103,LAndcost3,2,FALSE),IF($E$8="Location",VLOOKUP(P103,Landcost2,2,FALSE),"Error"))) -> 10 | S103: 0 | U103: =IFERROR(('General Input Sheet'!$G$38/(VLOOKUP('Existing Trunk Assets - Water'!T103,'General Input Sheet'!$E$38:$G$44,3,FALSE))),1) -> 1 | V103: 60300 | Z103: y | BE103: 10371 | CF103: 10371 | CK103: 60300
B104: WA-003808 | D104: Active (Above Ground) | E104: (Treatment Plant) Site Stormwater | F104: Treatment | G104: Siteworks | K104: 0 | L104: 87100 | N104: =IF(M104="",1,VLOOKUP(M104,'Unit Rates - Water'!$H$12:$I$23,2,FALSE)) -> 1 | O104: 87100 | R104: =IF(P104="",'Unit Rates - Land'!landcst,IF($E$8="Landuse",VLOOKUP(P104,LAndcost3,2,FALSE),IF($E$8="Location",VLOOKUP(P104,Landcost2,2,FALSE),"Error"))) -> 10 | S104: 0 | U104: =IFERROR(('General Input Sheet'!$G$38/(VLOOKUP('Existing Trunk Assets - Water'!T104,'General Input Sheet'!$E$38:$G$44,3,FALSE))),1) -> 1 | V104: 87100 | Z104: y | BE104: 10371 | CF104: 10371 | CK104: 87100
B105: WA-003811 | D105: Active (Above Ground) | E105: (Treatment Plant) Sludge Ponds | F105: Treatment | G105: Sludge Treatment | K105: 0 | L105: 67000 | N105: =IF(M105="",1,VLOOKUP(M105,'Unit Rates - Water'!$H$12:$I$23,2,FALSE)) -> 1 | O105: 67000 | R105: =IF(P105="",'Unit Rates - Land'!landcst,IF($E$8="Landuse",VLOOKUP(P105,LAndcost3,2,FALSE),IF($E$8="Location",VLOOKUP(P105,Landcost2,2,FALSE),"Error"))) -> 10 | S105: 0 | U105: =IFERROR(('General Input Sheet'!$G$38/(VLOOKUP('Existing Trunk Assets - Water'!T105,'General Input Sheet'!$E$38:$G$44,3,FALSE))),1) -> 1 | V105: 67000 | Z105: y | BE105: 10371 | CF105: 10371 | CK105: 67000
B106: WA-003810 | D106: Active (Above Ground) | E106: (Treatment Plant) Sludge Ponds | F106: Treatment | G106: Sludge Treatment | K106: 0 | L106: 53600 | N106: =IF(M106="",1,VLOOKUP(M106,'Unit Rates - Water'!$H$12:$I$23,2,FALSE)) -> 1 | O106: 53600 | R106: =IF(P106="",'Unit Rates - Land'!landcst,IF($E$8="Landuse",VLOOKUP(P106,LAndcost3,2,FALSE),IF($E$8="Location",VLOOKUP(P106,Landcost2,2,FALSE),"Error"))) -> 10 | S106: 0 | U106: =IFERROR(('General Input Sheet'!$G$38/(VLOOKUP('Existing Trunk Assets - Water'!T106,'General Input Sheet'!$E$38:$G$44,3,FALSE))),1) -> 1 | V106: 53600 | Z106: y | BE106: 10371 | CF106: 10371 | CK106: 53600
B107: WA-003809 | D107: Active (Above Ground) | E107: (Treatment Plant) Sludge Ponds | F107: Treatment | G107: Sludge Treatment | K107: 0 | L107: 20100 | N107: =IF(M107="",1,VLOOKUP(M107,'Unit Rates - Water'!$H$12:$I$23,2,FALSE)) -> 1 | O107: 20100 | R107: =IF(P107="",'Unit Rates - Land'!landcst,IF($E$8="Landuse",VLOOKUP(P107,LAndcost3,2,FALSE),IF($E$8="Location",VLOOKUP(P107,Landcost2,2,FALSE),"Error"))) -> 10 | S107: 0 | U107: =IFERROR(('General Input Sheet'!$G$38/(VLOOKUP('Existing Trunk Assets - Water'!T107,'General Input Sheet'!$E$38:$G$44,3,FALSE))),1) -> 1 | V107: 20100 | Z107: y | BE107: 10371 | CF107: 10371 | CK107: 20100
B108: WA-003574 | D108: Active (Above Ground) | E108: (Treatment Plant) Sludge Ponds | F108: Treatment | G108: Sludge Treatment | K108: 0 | L108: 0 | N108: =IF(M108="",1,VLOOKUP(M108,'Unit Rates - Water'!$H$12:$I$23,2,FALSE)) -> 1 | O108: 0 | R108: =IF(P108="",'Unit Rates - Land'!landcst,IF($E$8="Landuse",VLOOKUP(P108,LAndcost3,2,FALSE),IF($E$8="Location",VLOOKUP(P108,Landcost2,2,FALSE),"Error"))) -> 10 | S108: 0 | U108: =IFERROR(('General Input Sheet'!$G$38/(VLOOKUP('Existing Trunk Assets - Water'!T108,'General Input Sheet'!$E$38:$G$44,3,FALSE))),1) -> 1 | V108: 0 | Z108: y | BE108: 10371 | CF108: 10371 | CK108: 0
B109: WA-003812 | D109: Active (Above Ground) | E109: (Treatment Plant) Splitter/Settling Tank 1 | F109: Treatment | G109: Sedimentation | K109: 0 | L109: 46900 | N109: =IF(M109="",1,VLOOKUP(M109,'Unit Rates - Water'!$H$12:$I$23,2,FALSE)) -> 1 | O109: 46900 | R109: =IF(P109="",'Unit Rates - Land'!landcst,IF($E$8="Landuse",VLOOKUP(P109,LAndcost3,2,FALSE),IF($E$8="Location",VLOOKUP(P109,Landcost2,2,FALSE),"Error"))) -> 10 | S109: 0 | U109: =IFERROR(('General Input Sheet'!$G$38/(VLOOKUP('Existing Trunk Assets - Water'!T109,'General Input Sheet'!$E$38:$G$44,3,FALSE))),1) -> 1 | V109: 46900 | Z109: y | BE109: 10371 | CF109: 10371 | CK109: 46900
B110: WA-003567 | D110: Active (Above Ground) | E110: (Treatment Plant) Splitter/Settling Tank 2 | F110: Treatment | G110: Sedimentation | K110: 0 | L110: 46900 | N110: =IF(M110="",1,VLOOKUP(M110,'Unit Rates - Water'!$H$12:$I$23,2,FALSE)) -> 1 | O110: 46900 | R110: =IF(P110="",'Unit Rates - Land'!landcst,IF($E$8="Landuse",VLOOKUP(P110,LAndcost3,2,FALSE),IF($E$8="Location",VLOOKUP(P110,Landcost2,2,FALSE),"Error"))) -> 10 | S110: 0 | U110: =IFERROR(('General Input Sheet'!$G$38/(VLOOKUP('Existing Trunk Assets - Water'!T110,'General Input Sheet'!$E$38:$G$44,3,FALSE))),1) -> 1 | V110: 46900 | Z110: y | BE110: 10371 | CF110: 10371 | CK110: 46900
B111: WA-003813 | D111: Active (Above Ground) | E111: (Treatment Plant) Valves | F111: Treatment | G111: Process | K111: 0 | L111: 100500 | N111: =IF(M111="",1,VLOOKUP(M111,'Unit Rates - Water'!$H$12:$I$23,2,FALSE)) -> 1 | O111: 100500 | R111: =IF(P111="",'Unit Rates - Land'!landcst,IF($E$8="Landuse",VLOOKUP(P111,LAndcost3,2,FALSE),IF($E$8="Location",VLOOKUP(P111,Landcost2,2,FALSE),"Error"))) -> 10 | S111: 0 | U111: =IFERROR(('General Input Sheet'!$G$38/(VLOOKUP('Existing Trunk Assets - Water'!T111,'General Input Sheet'!$E$38:$G$44,3,FALSE))),1) -> 1 | V111: 100500 | Z111: y | BE111: 10371 | CF111: 10371 | CK111: 100500
B112: WA-003814 | D112: Active (Above Ground) | E112: (Treatment Plant) Walkways/Stairs | F112: Treatment | G112: Process | K112: 0 | L112: 60300 | N112: =IF(M112="",1,VLOOKUP(M112,'Unit Rates - Water'!$H$12:$I$23,2,FALSE)) -> 1 | O112: 60300 | R112: =IF(P112="",'Unit Rates - Land'!landcst,IF($E$8="Landuse",VLOOKUP(P112,LAndcost3,2,FALSE),IF($E$8="Location",VLOOKUP(P112,Landcost2,2,FALSE),"Error"))) -> 10 | S112: 0 | U112: =IFERROR(('General Input Sheet'!$G$38/(VLOOKUP('Existing Trunk Assets - Water'!T112,'General Input Sheet'!$E$38:$G$44,3,FALSE))),1) -> 1 | V112: 60300 | Z112: y | BE112: 10371 | CF112: 10371 | CK112: 60300
B113: WA-003824 | D113: Active (Above Ground) | E113: (Treatment Plant) WTP Backwash System | F113: Treatment | G113: Backwash Ponds | K113: 0 | L113: 10050 | N113: =IF(M113="",1,VLOOKUP(M113,'Unit Rates - Water'!$H$12:$I$23,2,FALSE)) -> 1 | O113: 10050 | R113: =IF(P113="",'Unit Rates - Land'!landcst,IF($E$8="Landuse",VLOOKUP(P113,LAndcost3,2,FALSE),IF($E$8="Location",VLOOKUP(P113,Landcost2,2,FALSE),"Error"))) -> 10 | S113: 0 | U113: =IFERROR(('General Input Sheet'!$G$38/(VLOOKUP('Existing Trunk Assets - Water'!T113,'General Input Sheet'!$E$38:$G$44,3,FALSE))),1) -> 1 | V113: 10050 | Z113: y | BE113: 10371 | CF113: 10371 | CK113: 10050
B114: WA-003820 | D114: Active (Above Ground) | E114: (Treatment Plant) WTP Backwash System | F114: Treatment | G114: Backwash Ponds | K114: 0 | L114: 20100 | N114: =IF(M114="",1,VLOOKUP(M114,'Unit Rates - Water'!$H$12:$I$23,2,FALSE)) -> 1 | O114: 20100 | R114: =IF(P114="",'Unit Rates - Land'!landcst,IF($E$8="Landuse",VLOOKUP(P114,LAndcost3,2,FALSE),IF($E$8="Location",VLOOKUP(P114,Landcost2,2,FALSE),"Error"))) -> 10 | S114: 0 | U114: =IFERROR(('General Input Sheet'!$G$38/(VLOOKUP('Existing Trunk Assets - Water'!T114,'General Input Sheet'!$E$38:$G$44,3,FALSE))),1) -> 1 | V114: 20100 | Z114: y | BE114: 10371 | CF114: 10371 | CK114: 20100
B115: WA-003825 | D115: Active (Above Ground) | E115: (Treatment Plant) WTP Backwash System | F115: Treatment | G115: Backwash Recovery | K115: 0 | L115: 10050 | N115: =IF(M115="",1,VLOOKUP(M115,'Unit Rates - Water'!$H$12:$I$23,2,FALSE)) -> 1 | O115: 10050 | R115: =IF(P115="",'Unit Rates - Land'!landcst,IF($E$8="Landuse",VLOOKUP(P115,LAndcost3,2,FALSE),IF($E$8="Location",VLOOKUP(P115,Landcost2,2,FALSE),"Error"))) -> 10 | S115: 0 | U115: =IFERROR(('General Input Sheet'!$G$38/(VLOOKUP('Existing Trunk Assets - Water'!T115,'General Input Sheet'!$E$38:$G$44,3,FALSE))),1) -> 1 | V115: 10050 | Z115: y | BE115: 10371 | CF115: 10371 | CK115: 10050
B116: WA-003821 | D116: Active (Above Ground) | E116: (Treatment Plant) WTP Backwash System | F116: Treatment | G116: Backwash Recovery | K116: 0 | L116: 20100 | N116: =IF(M116="",1,VLOOKUP(M116,'Unit Rates - Water'!$H$12:$I$23,2,FALSE)) -> 1 | O116: 20100 | R116: =IF(P116="",'Unit Rates - Land'!landcst,IF($E$8="Landuse",VLOOKUP(P116,LAndcost3,2,FALSE),IF($E$8="Location",VLOOKUP(P116,Landcost2,2,FALSE),"Error"))) -> 10 | S116: 0 | U116: =IFERROR(('General Input Sheet'!$G$38/(VLOOKUP('Existing Trunk Assets - Water'!T116,'General Input Sheet'!$E$38:$G$44,3,FALSE))),1) -> 1 | V116: 20100 | Z116: y | BE116: 10371 | CF116: 10371 | CK116: =IF(BE116="","",(BE116/$CF116)*$V116) -> 20100 | DK116: =IF(CE116="","",(CE116/$CF116)*$V116) -> 
B117: WA-002868 | D117: Passive (Below Ground) | E117: Byrnes St 233 - 227 | F117: Reticulation | G117: Pipe Network | K117: 0 | L117: 319555.403 | N117: =IF(M117="",1,VLOOKUP(M117,'Unit Rates - Water'!$H$12:$I$23,2,FALSE)) -> 1 | O117: 319555.403 | R117: =IF(P117="",'Unit Rates - Land'!landcst,IF($E$8="Landuse",VLOOKUP(P117,LAndcost3,2,FALSE),IF($E$8="Location",VLOOKUP(P117,Landcost2,2,FALSE),"Error"))) -> 10 | S117: 0 | U117: =IFERROR(('General Input Sheet'!$G$38/(VLOOKUP('Existing Trunk Assets - Water'!T117,'General Input Sheet'!$E$38:$G$44,3,FALSE))),1) -> 1 | V117: 319555.403 | Z117: y | BE117: 10371 | CF117: 10371 | CH117: =IF(BB117="","",(BB117/$CF117)*$V117) ->  | CK117: 319555.403
B118: WA-003822 | D118: Active (Above Ground) | E118: (Treatment Plant) WTP Backwash System | F118: Treatment | G118: Backwash Ponds | K118: 0 | L118: 16080 | N118: =IF(M118="",1,VLOOKUP(M118,'Unit Rates - Water'!$H$12:$I$23,2,FALSE)) -> 1 | O118: 16080 | R118: =IF(P118="",'Unit Rates - Land'!landcst,IF($E$8="Landuse",VLOOKUP(P118,LAndcost3,2,FALSE),IF($E$8="Location",VLOOKUP(P118,Landcost2,2,FALSE),"Error"))) -> 10 | S118: 0 | U118: =IFERROR(('General Input Sheet'!$G$38/(VLOOKUP('Existing Trunk Assets - Water'!T118,'General Input Sheet'!$E$38:$G$44,3,FALSE))),1) -> 1 | V118: 16080 | Z118: y | BE118: 10371 | CF118: 10371 | CK118: 16080
B119: WA-003823 | D119: Active (Above Ground) | E119: (Treatment Plant) WTP Backwash System | F119: Treatment | G119: Backwash Recovery | K119: 0 | L119: 16080 | N119: =IF(M119="",1,VLOOKUP(M119,'Unit Rates - Water'!$H$12:$I$23,2,FALSE)) -> 1 | O119: 16080 | R119: =IF(P119="",'Unit Rates - Land'!landcst,IF($E$8="Landuse",VLOOKUP(P119,LAndcost3,2,FALSE),IF($E$8="Location",VLOOKUP(P119,Landcost2,2,FALSE),"Error"))) -> 10 | S119: 0 | U119: =IFERROR(('General Input Sheet'!$G$38/(VLOOKUP('Existing Trunk Assets - Water'!T119,'General Input Sheet'!$E$38:$G$44,3,FALSE))),1) -> 1 | V119: 16080 | Z119: y | BE119: 10371 | CF119: 10371 | CK119: 16080
B120: WA-002876 | D120: Passive (Below Ground) | E120: Constance St 247 - 243 | F120: Reticulation | G120: Pipe Network | K120: 0 | L120: 278651.3325 | N120: =IF(M120="",1,VLOOKUP(M120,'Unit Rates - Water'!$H$12:$I$23,2,FALSE)) -> 1 | O120: 278651.3325 | R120: =IF(P120="",'Unit Rates - Land'!landcst,IF($E$8="Landuse",VLOOKUP(P120,LAndcost3,2,FALSE),IF($E$8="Location",VLOOKUP(P120,Landcost2,2,FALSE),"Error"))) -> 10 | S120: 0 | U120: =IFERROR(('General Input Sheet'!$G$38/(VLOOKUP('Existing Trunk Assets - Water'!T120,'General Input Sheet'!$E$38:$G$44,3,FALSE))),1) -> 1 | V120: 278651.3325 | Z120: y | BE120: 10371 | CF120: 10371 | CK120: 278651.3325
B121: WA-003817 | D121: Active (Above Ground) | E121: (Treatment Plant) WTP Backwash System | F121: Treatment | G121: Backwash Settling | K121: 0 | L121: 38592 | N121: =IF(M121="",1,VLOOKUP(M121,'Unit Rates - Water'!$H$12:$I$23,2,FALSE)) -> 1 | O121: 38592 | R121: =IF(P121="",'Unit Rates - Land'!landcst,IF($E$8="Landuse",VLOOKUP(P121,LAndcost3,2,FALSE),IF($E$8="Location",VLOOKUP(P121,Landcost2,2,FALSE),"Error"))) -> 10 | S121: 0 | U121: =IFERROR(('General Input Sheet'!$G$38/(VLOOKUP('Existing Trunk Assets - Water'!T121,'General Input Sheet'!$E$38:$G$44,3,FALSE))),1) -> 1 | V121: 38592 | Z121: y | BE121: 10371 | CF121: 10371 | CK121: 38592
B122: WA-003826 | D122: Active (Above Ground) | E122: (Treatment Plant) WTP Backwash System | F122: Treatment | G122: Backwash Ponds | K122: 0 | L122: 26800 | N122: =IF(M122="",1,VLOOKUP(M122,'Unit Rates - Water'!$H$12:$I$23,2,FALSE)) -> 1 | O122: 26800 | R122: =IF(P122="",'Unit Rates - Land'!landcst,IF($E$8="Landuse",VLOOKUP(P122,LAndcost3,2,FALSE),IF($E$8="Location",VLOOKUP(P122,Landcost2,2,FALSE),"Error"))) -> 10 | S122: 0 | U122: =IFERROR(('General Input Sheet'!$G$38/(VLOOKUP('Existing Trunk Assets - Water'!T122,'General Input Sheet'!$E$38:$G$44,3,FALSE))),1) -> 1 | V122: 26800 | Z122: y | BE122: 10371 | CF122: 10371 | CK122: 26800
B123: WA-002616 | D123: Passive (Below Ground) | E123: Hellcat Close 478 - 480 | F123: Reticulation | G123: Pipe Network | K123: 0 | L123: 312436.7204 | N123: =IF(M123="",1,VLOOKUP(M123,'Unit Rates - Water'!$H$12:$I$23,2,FALSE)) -> 1 | O123: 312436.7204 | R123: =IF(P123="",'Unit Rates - Land'!landcst,IF($E$8="Landuse",VLOOKUP(P123,LAndcost3,2,FALSE),IF($E$8="Location",VLOOKUP(P123,Landcost2,2,FALSE),"Error"))) -> 10 | S123: 0 | U123: =IFERROR(('General Input Sheet'!$G$38/(VLOOKUP('Existing Trunk Assets - Water'!T123,'General Input Sheet'!$E$38:$G$44,3,FALSE))),1) -> 1 | V123: 312436.7204 | Z123: y | BE123: 10371 | CF123: 10371 | CK123: 312436.7204
B124: WA-003818 | D124: Active (Above Ground) | E124: (Treatment Plant) WTP Backwash System | F124: Treatment | G124: Backwash Settling | K124: 0 | L124: 99495 | N124: =IF(M124="",1,VLOOKUP(M124,'Unit Rates - Water'!$H$12:$I$23,2,FALSE)) -> 1 | O124: 99495 | R124: =IF(P124="",'Unit Rates - Land'!landcst,IF($E$8="Landuse",VLOOKUP(P124,LAndcost3,2,FALSE),IF($E$8="Location",VLOOKUP(P124,Landcost2,2,FALSE),"Error"))) -> 10 | S124: 0 | U124: =IFERROR(('General Input Sheet'!$G$38/(VLOOKUP('Existing Trunk Assets - Water'!T124,'General Input Sheet'!$E$38:$G$44,3,FALSE))),1) -> 1 | V124: 99495 | Z124: y | BE124: 10371 | CF124: 10371 | CK124: 99495
B125: WA-003827 | D125: Active (Above Ground) | E125: (Treatment Plant) WTP Backwash System | F125: Treatment | G125: Backwash Recovery | K125: 0 | L125: 26800 | N125: =IF(M125="",1,VLOOKUP(M125,'Unit Rates - Water'!$H$12:$I$23,2,FALSE)) -> 1 | O125: 26800 | R125: =IF(P125="",'Unit Rates - Land'!landcst,IF($E$8="Landuse",VLOOKUP(P125,LAndcost3,2,FALSE),IF($E$8="Location",VLOOKUP(P125,Landcost2,2,FALSE),"Error"))) -> 10 | S125: 0 | U125: =IFERROR(('General Input Sheet'!$G$38/(VLOOKUP('Existing Trunk Assets - Water'!T125,'General Input Sheet'!$E$38:$G$44,3,FALSE))),1) -> 1 | V125: 26800 | Z125: y | BE125: 10371 | CF125: 10371 | CK125: 26800
B126: WA-003819 | D126: Active (Above Ground) | E126: (Treatment Plant) WTP Backwash System | F126: Treatment | G126: Backwash Recovery | K126: 0 | L126: 90450 | N126: =IF(M126="",1,VLOOKUP(M126,'Unit Rates - Water'!$H$12:$I$23,2,FALSE)) -> 1 | O126: 90450 | R126: =IF(P126="",'Unit Rates - Land'!landcst,IF($E$8="Landuse",VLOOKUP(P126,LAndcost3,2,FALSE),IF($E$8="Location",VLOOKUP(P126,Landcost2,2,FALSE),"Error"))) -> 10 | S126: 0 | U126: =IFERROR(('General Input Sheet'!$G$38/(VLOOKUP('Existing Trunk Assets - Water'!T126,'General Input Sheet'!$E$38:$G$44,3,FALSE))),1) -> 1 | V126: 90450 | Z126: y | BE126: 10371 | CF126: 10371 | CK126: 90450
B127: WA-003815 | D127: Active (Above Ground) | E127: (Treatment Plant) WTP Backwash System | F127: Treatment | G127: Backwash Settling | K127: 0 | L127: 26800 | N127: =IF(M127="",1,VLOOKUP(M127,'Unit Rates - Water'!$H$12:$I$23,2,FALSE)) -> 1 | O127: 26800 | R127: =IF(P127="",'Unit Rates - Land'!landcst,IF($E$8="Landuse",VLOOKUP(P127,LAndcost3,2,FALSE),IF($E$8="Location",VLOOKUP(P127,Landcost2,2,FALSE),"Error"))) -> 10 | S127: 0 | U127: =IFERROR(('General Input Sheet'!$G$38/(VLOOKUP('Existing Trunk Assets - Water'!T127,'General Input Sheet'!$E$38:$G$44,3,FALSE))),1) -> 1 | V127: 26800 | Z127: y | BE127: 10371 | CF127: 10371 | CK127: 26800
B128: WA-003816 | D128: Active (Above Ground) | E128: (Treatment Plant) WTP Backwash System | F128: Treatment | G128: Backwash Recovery | K128: 0 | L128: 26800 | N128: =IF(M128="",1,VLOOKUP(M128,'Unit Rates - Water'!$H$12:$I$23,2,FALSE)) -> 1 | O128: 26800 | R128: =IF(P128="",'Unit Rates - Land'!landcst,IF($E$8="Landuse",VLOOKUP(P128,LAndcost3,2,FALSE),IF($E$8="Location",VLOOKUP(P128,Landcost2,2,FALSE),"Error"))) -> 10 | S128: 0 | U128: =IFERROR(('General Input Sheet'!$G$38/(VLOOKUP('Existing Trunk Assets - Water'!T128,'General Input Sheet'!$E$38:$G$44,3,FALSE))),1) -> 1 | V128: 26800 | Z128: y | BE128: 10371 | CF128: 10371 | CK128: 26800
B129: WA-003831 | D129: Active (Above Ground) | E129: (Treatment Plant) WTP Chemical Dosing System | F129: Treatment | G129: Chemical Dosing | K129: 0 | L129: 85760 | N129: =IF(M129="",1,VLOOKUP(M129,'Unit Rates - Water'!$H$12:$I$23,2,FALSE)) -> 1 | O129: 85760 | R129: =IF(P129="",'Unit Rates - Land'!landcst,IF($E$8="Landuse",VLOOKUP(P129,LAndcost3,2,FALSE),IF($E$8="Location",VLOOKUP(P129,Landcost2,2,FALSE),"Error"))) -> 10 | S129: 0 | U129: =IFERROR(('General Input Sheet'!$G$38/(VLOOKUP('Existing Trunk Assets - Water'!T129,'General Input Sheet'!$E$38:$G$44,3,FALSE))),1) -> 1 | V129: 85760 | Z129: y | BE129: 10371 | CF129: 10371 | CK129: 85760
B130: WA-003833 | D130: Active (Above Ground) | E130: (Treatment Plant) WTP Chemical Dosing System | F130: Treatment | G130: Chemical Dosing | K130: 0 | L130: 16080 | N130: =IF(M130="",1,VLOOKUP(M130,'Unit Rates - Water'!$H$12:$I$23,2,FALSE)) -> 1 | O130: 16080 | R130: =IF(P130="",'Unit Rates - Land'!landcst,IF($E$8="Landuse",VLOOKUP(P130,LAndcost3,2,FALSE),IF($E$8="Location",VLOOKUP(P130,Landcost2,2,FALSE),"Error"))) -> 10 | S130: 0 | U130: =IFERROR(('General Input Sheet'!$G$38/(VLOOKUP('Existing Trunk Assets - Water'!T130,'General Input Sheet'!$E$38:$G$44,3,FALSE))),1) -> 1 | V130: 16080 | Z130: y | BE130: 10371 | CF130: 10371 | CK130: 16080
B131: WA-003837 | D131: Active (Above Ground) | E131: (Treatment Plant) WTP Chemical Dosing System | F131: Treatment | G131: Chemical Dosing | K131: 0 | L131: 9380 | N131: =IF(M131="",1,VLOOKUP(M131,'Unit Rates - Water'!$H$12:$I$23,2,FALSE)) -> 1 | O131: 9380 | R131: =IF(P131="",'Unit Rates - Land'!landcst,IF($E$8="Landuse",VLOOKUP(P131,LAndcost3,2,FALSE),IF($E$8="Location",VLOOKUP(P131,Landcost2,2,FALSE),"Error"))) -> 10 | S131: 0 | U131: =IFERROR(('General Input Sheet'!$G$38/(VLOOKUP('Existing Trunk Assets - Water'!T131,'General Input Sheet'!$E$38:$G$44,3,FALSE))),1) -> 1 | V131: 9380 | Z131: y | BE131: 10371 | CF131: 10371 | CK131: 9380
B132: WA-003828 | D132: Active (Above Ground) | E132: (Treatment Plant) WTP Chemical Dosing System | F132: Treatment | G132: Chemical Dosing | K132: 0 | L132: 26130 | N132: =IF(M132="",1,VLOOKUP(M132,'Unit Rates - Water'!$H$12:$I$23,2,FALSE)) -> 1 | O132: 26130 | R132: =IF(P132="",'Unit Rates - Land'!landcst,IF($E$8="Landuse",VLOOKUP(P132,LAndcost3,2,FALSE),IF($E$8="Location",VLOOKUP(P132,Landcost2,2,FALSE),"Error"))) -> 10 | S132: 0 | U132: =IFERROR(('General Input Sheet'!$G$38/(VLOOKUP('Existing Trunk Assets - Water'!T132,'General Input Sheet'!$E$38:$G$44,3,FALSE))),1) -> 1 | V132: 26130 | Z132: y | BE132: 10371 | CF132: 10371 | CK132: 26130
B133: WA-003830 | D133: Active (Above Ground) | E133: (Treatment Plant) WTP Chemical Dosing System | F133: Treatment | G133: Chemical Dosing | K133: 0 | L133: 9380 | N133: =IF(M133="",1,VLOOKUP(M133,'Unit Rates - Water'!$H$12:$I$23,2,FALSE)) -> 1 | O133: 9380 | R133: =IF(P133="",'Unit Rates - Land'!landcst,IF($E$8="Landuse",VLOOKUP(P133,LAndcost3,2,FALSE),IF($E$8="Location",VLOOKUP(P133,Landcost2,2,FALSE),"Error"))) -> 10 | S133: 0 | U133: =IFERROR(('General Input Sheet'!$G$38/(VLOOKUP('Existing Trunk Assets - Water'!T133,'General Input Sheet'!$E$38:$G$44,3,FALSE))),1) -> 1 | V133: 9380 | Z133: y | BE133: 10371 | CF133: 10371 | CK133: 9380
B134: WA-003840 | D134: Active (Above Ground) | E134: (Treatment Plant) WTP Chemical Dosing System | F134: Treatment | G134: Chemical Dosing | K134: 0 | L134: 13400 | N134: =IF(M134="",1,VLOOKUP(M134,'Unit Rates - Water'!$H$12:$I$23,2,FALSE)) -> 1 | O134: 13400 | R134: =IF(P134="",'Unit Rates - Land'!landcst,IF($E$8="Landuse",VLOOKUP(P134,LAndcost3,2,FALSE),IF($E$8="Location",VLOOKUP(P134,Landcost2,2,FALSE),"Error"))) -> 10 | S134: 0 | U134: =IFERROR(('General Input Sheet'!$G$38/(VLOOKUP('Existing Trunk Assets - Water'!T134,'General Input Sheet'!$E$38:$G$44,3,FALSE))),1) -> 1 | V134: 13400 | Z134: y | BE134: 10371 | CF134: 10371 | CK134: 13400
B135: WA-003836 | D135: Active (Above Ground) | E135: (Treatment Plant) WTP Chemical Dosing System | F135: Treatment | G135: Chemical Dosing | K135: 0 | L135: 48240 | N135: =IF(M135="",1,VLOOKUP(M135,'Unit Rates - Water'!$H$12:$I$23,2,FALSE)) -> 1 | O135: 48240 | R135: =IF(P135="",'Unit Rates - Land'!landcst,IF($E$8="Landuse",VLOOKUP(P135,LAndcost3,2,FALSE),IF($E$8="Location",VLOOKUP(P135,Landcost2,2,FALSE),"Error"))) -> 10 | S135: 0 | U135: =IFERROR(('General Input Sheet'!$G$38/(VLOOKUP('Existing Trunk Assets - Water'!T135,'General Input Sheet'!$E$38:$G$44,3,FALSE))),1) -> 1 | V135: 48240 | Z135: y | BE135: 10371 | CF135: 10371 | CK135: 48240
B136: WA-003832 | D136: Active (Above Ground) | E136: (Treatment Plant) WTP Chemical Dosing System | F136: Treatment | G136: Chemical Dosing | K136: 0 | L136: 20100 | N136: =IF(M136="",1,VLOOKUP(M136,'Unit Rates - Water'!$H$12:$I$23,2,FALSE)) -> 1 | O136: 20100 | R136: =IF(P136="",'Unit Rates - Land'!landcst,IF($E$8="Landuse",VLOOKUP(P136,LAndcost3,2,FALSE),IF($E$8="Location",VLOOKUP(P136,Landcost2,2,FALSE),"Error"))) -> 10 | S136: 0 | U136: =IFERROR(('General Input Sheet'!$G$38/(VLOOKUP('Existing Trunk Assets - Water'!T136,'General Input Sheet'!$E$38:$G$44,3,FALSE))),1) -> 1 | V136: 20100 | Z136: y | BE136: 10371 | CF136: 10371 | CK136: 20100
B137: WA-003829 | D137: Active (Above Ground) | E137: (Treatment Plant) WTP Chemical Dosing System | F137: Treatment | G137: Chemical Dosing | K137: 0 | L137: 26800 | N137: =IF(M137="",1,VLOOKUP(M137,'Unit Rates - Water'!$H$12:$I$23,2,FALSE)) -> 1 | O137: 26800 | R137: =IF(P137="",'Unit Rates - Land'!landcst,IF($E$8="Landuse",VLOOKUP(P137,LAndcost3,2,FALSE),IF($E$8="Location",VLOOKUP(P137,Landcost2,2,FALSE),"Error"))) -> 10 | S137: 0 | U137: =IFERROR(('General Input Sheet'!$G$38/(VLOOKUP('Existing Trunk Assets - Water'!T137,'General Input Sheet'!$E$38:$G$44,3,FALSE))),1) -> 1 | V137: 26800 | Z137: y | BE137: 10371 | CF137: 10371 | CK137: 26800
B138: WA-003839 | D138: Active (Above Ground) | E138: (Treatment Plant) WTP Chemical Dosing System | F138: Treatment | G138: Chemical Dosing | K138: 0 | L138: 16080 | N138: =IF(M138="",1,VLOOKUP(M138,'Unit Rates - Water'!$H$12:$I$23,2,FALSE)) -> 1 | O138: 16080 | R138: =IF(P138="",'Unit Rates - Land'!landcst,IF($E$8="Landuse",VLOOKUP(P138,LAndcost3,2,FALSE),IF($E$8="Location",VLOOKUP(P138,Landcost2,2,FALSE),"Error"))) -> 10 | S138: 0 | U138: =IFERROR(('General Input Sheet'!$G$38/(VLOOKUP('Existing Trunk Assets - Water'!T138,'General Input Sheet'!$E$38:$G$44,3,FALSE))),1) -> 1 | V138: 16080 | Z138: y | BE138: 10371 | CF138: 10371 | CK138: 16080 | CX138: =IF(BR138="","",(BR138/$CF138)*$V138) -> 
B139: WA-003835 | D139: Active (Above Ground) | E139: (Treatment Plant) WTP Chemical Dosing System | F139: Treatment | G139: Chemical Dosing | K139: 0 | L139: 60300 | N139: =IF(M139="",1,VLOOKUP(M139,'Unit Rates - Water'!$H$12:$I$23,2,FALSE)) -> 1 | O139: 60300 | R139: =IF(P139="",'Unit Rates - Land'!landcst,IF($E$8="Landuse",VLOOKUP(P139,LAndcost3,2,FALSE),IF($E$8="Location",VLOOKUP(P139,Landcost2,2,FALSE),"Error"))) -> 10 | S139: 0 | U139: =IFERROR(('General Input Sheet'!$G$38/(VLOOKUP('Existing Trunk Assets - Water'!T139,'General Input Sheet'!$E$38:$G$44,3,FALSE))),1) -> 1 | V139: 60300 | Z139: y | BE139: 10371 | CF139: 10371 | CK139: 60300
B140: WA-003841 | D140: Active (Above Ground) | E140: (Treatment Plant) WTP Chemical Dosing System | F140: Treatment | G140: Chemical Dosing | K140: 0 | L140: 10050 | N140: =IF(M140="",1,VLOOKUP(M140,'Unit Rates - Water'!$H$12:$I$23,2,FALSE)) -> 1 | O140: 10050 | R140: =IF(P140="",'Unit Rates - Land'!landcst,IF($E$8="Landuse",VLOOKUP(P140,LAndcost3,2,FALSE),IF($E$8="Location",VLOOKUP(P140,Landcost2,2,FALSE),"Error"))) -> 10 | S140: 0 | U140: =IFERROR(('General Input Sheet'!$G$38/(VLOOKUP('Existing Trunk Assets - Water'!T140,'General Input Sheet'!$E$38:$G$44,3,FALSE))),1) -> 1 | V140: 10050 | Z140: y | BE140: 10371 | CF140: 10371 | CK140: 10050
B141: WA-003834 | D141: Active (Above Ground) | E141: (Treatment Plant) WTP Chemical Dosing System | F141: Treatment | G141: Chemical Dosing | K141: 0 | L141: 10050 | N141: =IF(M141="",1,VLOOKUP(M141,'Unit Rates - Water'!$H$12:$I$23,2,FALSE)) -> 1 | O141: 10050 | R141: =IF(P141="",'Unit Rates - Land'!landcst,IF($E$8="Landuse",VLOOKUP(P141,LAndcost3,2,FALSE),IF($E$8="Location",VLOOKUP(P141,Landcost2,2,FALSE),"Error"))) -> 10 | S141: 0 | U141: =IFERROR(('General Input Sheet'!$G$38/(VLOOKUP('Existing Trunk Assets - Water'!T141,'General Input Sheet'!$E$38:$G$44,3,FALSE))),1) -> 1 | V141: 10050 | Z141: y | BE141: 10371 | CF141: 10371 | CK141: 10050
B142: WA-003838 | D142: Active (Above Ground) | E142: (Treatment Plant) WTP Chemical Dosing System | F142: Treatment | G142: Chemical Dosing | K142: 0 | L142: 20100 | N142: =IF(M142="",1,VLOOKUP(M142,'Unit Rates - Water'!$H$12:$I$23,2,FALSE)) -> 1 | O142: 20100 | R142: =IF(P142="",'Unit Rates - Land'!landcst,IF($E$8="Landuse",VLOOKUP(P142,LAndcost3,2,FALSE),IF($E$8="Location",VLOOKUP(P142,Landcost2,2,FALSE),"Error"))) -> 10 | S142: 0 | U142: =IFERROR(('General Input Sheet'!$G$38/(VLOOKUP('Existing Trunk Assets - Water'!T142,'General Input Sheet'!$E$38:$G$44,3,FALSE))),1) -> 1 | V142: 20100 | Z142: y | BE142: 10371 | CF142: 10371 | CK142: 20100
B143: WA-003846 | D143: Active (Above Ground) | E143: (Treatment Plant) WTP Transfer Pump Station | F143: Treatment | G143: Clearwater Transfer | K143: =IF(H143=TYPE1,VLOOKUP(J143,WaterUnitrates1,2,FALSE),IF(H143=TYPE2,VLOOKUP(J143,Unitrates2,2,FALSE),0)) -> 0 | L143: 67000 | N143: =IF(M143="",1,VLOOKUP(M143,'Unit Rates - Water'!$H$12:$I$23,2,FALSE)) -> 1 | O143: 67000 | R143: =IF(P143="",'Unit Rates - Land'!landcst,IF($E$8="Landuse",VLOOKUP(P143,LAndcost3,2,FALSE),IF($E$8="Location",VLOOKUP(P143,Landcost2,2,FALSE),"Error"))) -> 10 | S143: 0 | U143: =IFERROR(('General Input Sheet'!$G$38/(VLOOKUP('Existing Trunk Assets - Water'!T143,'General Input Sheet'!$E$38:$G$44,3,FALSE))),1) -> 1 | V143: 67000 | Z143: y | BE143: 10371 | CF143: 10371 | CK143: 67000
B144: WA-003844 | D144: Active (Above Ground) | E144: (Treatment Plant) WTP Transfer Pump Station | F144: Treatment | G144: Clearwater Transfer | K144: 0 | L144: 67000 | N144: =IF(M144="",1,VLOOKUP(M144,'Unit Rates - Water'!$H$12:$I$23,2,FALSE)) -> 1 | O144: =L144*N144 -> 67000 | R144: =IF(P144="",'Unit Rates - Land'!landcst,IF($E$8="Landuse",VLOOKUP(P144,LAndcost3,2,FALSE),IF($E$8="Location",VLOOKUP(P144,Landcost2,2,FALSE),"Error"))) -> 10 | S144: =IF(R144="",0,R144*10000*Q144) -> 0 | U144: =IFERROR(('General Input Sheet'!$G$38/(VLOOKUP('Existing Trunk Assets - Water'!T144,'General Input Sheet'!$E$38:$G$44,3,FALSE))),1) -> 1 | V144: =IFERROR((O144+S144)*U144,0) -> 67000 | Z144: y | BE144: 10371 | CF144: 10371 | CK144: 67000
B145: WA-003849 | D145: Active (Above Ground) | E145: (Treatment Plant) WTP Transfer Pump Station | F145: Treatment | G145: Clearwater Transfer | K145: 0 | L145: 60300 | N145: =IF(M145="",1,VLOOKUP(M145,'Unit Rates - Water'!$H$12:$I$23,2,FALSE)) -> 1 | O145: 60300 | R145: =IF(P145="",'Unit Rates - Land'!landcst,IF($E$8="Landuse",VLOOKUP(P145,LAndcost3,2,FALSE),IF($E$8="Location",VLOOKUP(P145,Landcost2,2,FALSE),"Error"))) -> 10 | S145: 0 | U145: =IFERROR(('General Input Sheet'!$G$38/(VLOOKUP('Existing Trunk Assets - Water'!T145,'General Input Sheet'!$E$38:$G$44,3,FALSE))),1) -> 1 | V145: 60300 | Z145: y | BE145: 10371 | CF145: 10371 | CK145: 60300
B146: WA-003851 | D146: Active (Above Ground) | E146: (Treatment Plant) WTP Transfer Pump Station | F146: Treatment | G146: Clearwater Transfer | K146: 0 | L146: 60300 | N146: =IF(M146="",1,VLOOKUP(M146,'Unit Rates - Water'!$H$12:$I$23,2,FALSE)) -> 1 | O146: 60300 | R146: =IF(P146="",'Unit Rates - Land'!landcst,IF($E$8="Landuse",VLOOKUP(P146,LAndcost3,2,FALSE),IF($E$8="Location",VLOOKUP(P146,Landcost2,2,FALSE),"Error"))) -> 10 | S146: 0 | U146: =IFERROR(('General Input Sheet'!$G$38/(VLOOKUP('Existing Trunk Assets - Water'!T146,'General Input Sheet'!$E$38:$G$44,3,FALSE))),1) -> 1 | V146: 60300 | Z146: y | BE146: 10371 | CF146: =SUM(BB146:CE146) -> 10371 | CK146: 60300 | DL146: =IF(SUM(CH146:DK146)=V146,"","ERROR") -> 
B147: WA-003848 | D147: Active (Above Ground) | E147: (Treatment Plant) WTP Transfer Pump Station | F147: Treatment | G147: Clearwater Transfer | K147: 0 | L147: 187600 | N147: =IF(M147="",1,VLOOKUP(M147,'Unit Rates - Water'!$H$12:$I$23,2,FALSE)) -> 1 | O147: 187600 | R147: =IF(P147="",'Unit Rates - Land'!landcst,IF($E$8="Landuse",VLOOKUP(P147,LAndcost3,2,FALSE),IF($E$8="Location",VLOOKUP(P147,Landcost2,2,FALSE),"Error"))) -> 10 | S147: 0 | U147: =IFERROR(('General Input Sheet'!$G$38/(VLOOKUP('Existing Trunk Assets - Water'!T147,'General Input Sheet'!$E$38:$G$44,3,FALSE))),1) -> 1 | V147: 187600 | Z147: y | BE147: 10371 | CF147: 10371 | CK147: 187600
B148: WA-003855 | D148: Active (Above Ground) | E148: (Treatment Plant) WTP Transfer Pump Station | F148: Treatment | G148: Clearwater Transfer | K148: 0 | L148: 107200 | N148: =IF(M148="",1,VLOOKUP(M148,'Unit Rates - Water'!$H$12:$I$23,2,FALSE)) -> 1 | O148: 107200 | R148: =IF(P148="",'Unit Rates - Land'!landcst,IF($E$8="Landuse",VLOOKUP(P148,LAndcost3,2,FALSE),IF($E$8="Location",VLOOKUP(P148,Landcost2,2,FALSE),"Error"))) -> 10 | S148: 0 | U148: =IFERROR(('General Input Sheet'!$G$38/(VLOOKUP('Existing Trunk Assets - Water'!T148,'General Input Sheet'!$E$38:$G$44,3,FALSE))),1) -> 1 | V148: 107200 | Z148: y | BB148: =IF(W148="y",BB$14,IF(AND(W148>0,W148<=1),W148*BB$14,"")) ->  | BC148: =IF(X148="y",BC$14,IF(AND(X148>0,X148<=1),X148*BC$14,"")) ->  | BD148: =IF(Y148="y",BD$14,IF(AND(Y148>0,Y148<=1),Y148*BD$14,"")) ->  | BE148: =IF(Z148="y",BE$14,IF(AND(Z148>0,Z148<=1),Z148*BE$14,"")) -> 10371 | BF148: =IF(AA148="y",BF$14,IF(AND(AA148>0,AA148<=1),AA148*BF$14,"")) ->  | BG148: =IF(AB148="y",BG$14,IF(AND(AB148>0,AB148<=1),AB148*BG$14,"")) ->  | BH148: =IF(AC148="y",BH$14,IF(AND(AC148>0,AC148<=1),AC148*BH$14,"")) ->  | BJ148: =IF(AE148="y",BJ$14,IF(AND(AE148>0,AE148<=1),AE148*BJ$14,"")) ->  | BK148: =IF(AF148="y",BK$14,IF(AND(AF148>0,AF148<=1),AF148*BK$14,"")) ->  | BL148: =IF(AG148="y",BL$14,IF(AND(AG148>0,AG148<=1),AG148*BL$14,"")) ->  | BM148: =IF(AH148="y",BM$14,IF(AND(AH148>0,AH148<=1),AH148*BM$14,"")) ->  | BN148: =IF(AI148="y",BN$14,IF(AND(AI148>0,AI148<=1),AI148*BN$14,"")) ->  | BO148: =IF(AJ148="y",BO$14,IF(AND(AJ148>0,AJ148<=1),AJ148*BO$14,"")) ->  | BP148: =IF(AK148="y",BP$14,IF(AND(AK148>0,AK148<=1),AK148*BP$14,"")) ->  | BQ148: =IF(AL148="y",BQ$14,IF(AND(AL148>0,AL148<=1),AL148*BQ$14,"")) ->  | BR148: =IF(AM148="y",BR$14,IF(AND(AM148>0,AM148<=1),AM148*BR$14,"")) ->  | BS148: =IF(AN148="y",BS$14,IF(AND(AN148>0,AN148<=1),AN148*BS$14,"")) ->  | BT148: =IF(AO148="y",BT$14,IF(AND(AO148>0,AO148<=1),AO148*BT$14,"")) ->  | BU148: =IF(AP148="y",BU$14,IF(AND(AP148>0,AP148<=1),AP148*BU$14,"")) ->  | BV148: =IF(AQ148="y",BV$14,IF(AND(AQ148>0,AQ148<=1),AQ148*BV$14,"")) ->  | BW148: =IF(AR148="y",BW$14,IF(AND(AR148>0,AR148<=1),AR148*BW$14,"")) ->  | BX148: =IF(AS148="y",BX$14,IF(AND(AS148>0,AS148<=1),AS148*BX$14,"")) ->  | BY148: =IF(AT148="y",BY$14,IF(AND(AT148>0,AT148<=1),AT148*BY$14,"")) ->  | BZ148: =IF(AU148="y",BZ$14,IF(AND(AU148>0,AU148<=1),AU148*BZ$14,"")) ->  | CA148: =IF(AV148="y",CA$14,IF(AND(AV148>0,AV148<=1),AV148*CA$14,"")) ->  | CB148: =IF(AW148="y",CB$14,IF(AND(AW148>0,AW148<=1),AW148*CB$14,"")) ->  | CC148: =IF(AX148="y",CC$14,IF(AND(AX148>0,AX148<=1),AX148*CC$14,"")) ->  | CD148: =IF(AY148="y",CD$14,IF(AND(AY148>0,AY148<=1),AY148*CD$14,"")) ->  | CE148: =IF(AZ148="y",CE$14,IF(AND(AZ148>0,AZ148<=1),AZ148*CE$14,"")) ->  | CF148: 10371 | CK148: 107200
B149: WA-003853 | D149: Active (Above Ground) | E149: (Treatment Plant) WTP Transfer Pump Station | F149: Treatment | G149: Clearwater Transfer | K149: 0 | L149: 60300 | N149: =IF(M149="",1,VLOOKUP(M149,'Unit Rates - Water'!$H$12:$I$23,2,FALSE)) -> 1 | O149: 60300 | R149: =IF(P149="",'Unit Rates - Land'!landcst,IF($E$8="Landuse",VLOOKUP(P149,LAndcost3,2,FALSE),IF($E$8="Location",VLOOKUP(P149,Landcost2,2,FALSE),"Error"))) -> 10 | S149: 0 | U149: =IFERROR(('General Input Sheet'!$G$38/(VLOOKUP('Existing Trunk Assets - Water'!T149,'General Input Sheet'!$E$38:$G$44,3,FALSE))),1) -> 1 | V149: 60300 | Z149: y | BE149: 10371 | CF149: 10371 | CK149: 60300
B150: WA-003850 | D150: Active (Above Ground) | E150: (Treatment Plant) WTP Transfer Pump Station | F150: Treatment | G150: Clearwater Transfer | K150: 0 | L150: 113900 | N150: =IF(M150="",1,VLOOKUP(M150,'Unit Rates - Water'!$H$12:$I$23,2,FALSE)) -> 1 | O150: 113900 | R150: =IF(P150="",'Unit Rates - Land'!landcst,IF($E$8="Landuse",VLOOKUP(P150,LAndcost3,2,FALSE),IF($E$8="Location",VLOOKUP(P150,Landcost2,2,FALSE),"Error"))) -> 10 | S150: 0 | U150: =IFERROR(('General Input Sheet'!$G$38/(VLOOKUP('Existing Trunk Assets - Water'!T150,'General Input Sheet'!$E$38:$G$44,3,FALSE))),1) -> 1 | V150: 113900 | Z150: y | BE150: 10371 | CF150: 10371 | CK150: 113900 | CU150: =IF(BO150="","",(BO150/$CF150)*$V150) -> 
B151: WA-003852 | D151: Active (Above Ground) | E151: (Treatment Plant) WTP Transfer Pump Station | F151: Treatment | G151: Clearwater Transfer | K151: 0 | L151: 113900 | N151: =IF(M151="",1,VLOOKUP(M151,'Unit Rates - Water'!$H$12:$I$23,2,FALSE)) -> 1 | O151: 113900 | R151: =IF(P151="",'Unit Rates - Land'!landcst,IF($E$8="Landuse",VLOOKUP(P151,LAndcost3,2,FALSE),IF($E$8="Location",VLOOKUP(P151,Landcost2,2,FALSE),"Error"))) -> 10 | S151: 0 | U151: =IFERROR(('General Input Sheet'!$G$38/(VLOOKUP('Existing Trunk Assets - Water'!T151,'General Input Sheet'!$E$38:$G$44,3,FALSE))),1) -> 1 | V151: 113900 | Z151: y | BE151: 10371 | BI151: =IF(AD145="y",BI$14,IF(AND(AD145>0,AD145<=1),AD145*BI$14,"")) ->  | CF151: 10371 | CH151: =IF(BB151="","",(BB151/$CF151)*$V151) ->  | CK151: 113900
B152: WA-003842 | D152: Active (Above Ground) | E152: (Treatment Plant) WTP Transfer Pump Station | F152: Treatment | G152: Clearwater Transfer | K152: 0 | L152: 56615 | N152: =IF(M152="",1,VLOOKUP(M152,'Unit Rates - Water'!$H$12:$I$23,2,FALSE)) -> 1 | O152: 56615 | R152: =IF(P152="",'Unit Rates - Land'!landcst,IF($E$8="Landuse",VLOOKUP(P152,LAndcost3,2,FALSE),IF($E$8="Location",VLOOKUP(P152,Landcost2,2,FALSE),"Error"))) -> 10 | S152: 0 | U152: =IFERROR(('General Input Sheet'!$G$38/(VLOOKUP('Existing Trunk Assets - Water'!T152,'General Input Sheet'!$E$38:$G$44,3,FALSE))),1) -> 1 | V152: 56615 | Z152: y | BE152: 10371 | CF152: 10371 | CK152: 56615
B153: WA-003854 | D153: Active (Above Ground) | E153: (Treatment Plant) WTP Transfer Pump Station | F153: Treatment | G153: Clearwater Transfer | K153: 0 | L153: 113900 | N153: =IF(M153="",1,VLOOKUP(M153,'Unit Rates - Water'!$H$12:$I$23,2,FALSE)) -> 1 | O153: 113900 | R153: =IF(P153="",'Unit Rates - Land'!landcst,IF($E$8="Landuse",VLOOKUP(P153,LAndcost3,2,FALSE),IF($E$8="Location",VLOOKUP(P153,Landcost2,2,FALSE),"Error"))) -> 10 | S153: 0 | U153: =IFERROR(('General Input Sheet'!$G$38/(VLOOKUP('Existing Trunk Assets - Water'!T153,'General Input Sheet'!$E$38:$G$44,3,FALSE))),1) -> 1 | V153: 113900 | Z153: y | BE153: 10371 | CF153: 10371 | CK153: 113900
B154: WA-003845 | D154: Active (Above Ground) | E154: (Treatment Plant) WTP Transfer Pump Station | F154: Treatment | G154: Clearwater Transfer | K154: 0 | L154: 20100 | N154: =IF(M154="",1,VLOOKUP(M154,'Unit Rates - Water'!$H$12:$I$23,2,FALSE)) -> 1 | O154: 20100 | R154: =IF(P154="",'Unit Rates - Land'!landcst,IF($E$8="Landuse",VLOOKUP(P154,LAndcost3,2,FALSE),IF($E$8="Location",VLOOKUP(P154,Landcost2,2,FALSE),"Error"))) -> 10 | S154: 0 | U154: =IFERROR(('General Input Sheet'!$G$38/(VLOOKUP('Existing Trunk Assets - Water'!T154,'General Input Sheet'!$E$38:$G$44,3,FALSE))),1) -> 1 | V154: 20100 | Z154: y | BE154: 10371 | CF154: 10371 | CK154: 20100
B155: WA-003570 | D155: Active (Above Ground) | E155: (Treatment Plant) WTP Transfer Pump Station | F155: Treatment | G155: Clearwater Transfer | K155: 0 | L155: 121940 | N155: =IF(M155="",1,VLOOKUP(M155,'Unit Rates - Water'!$H$12:$I$23,2,FALSE)) -> 1 | O155: 121940 | R155: =IF(P155="",'Unit Rates - Land'!landcst,IF($E$8="Landuse",VLOOKUP(P155,LAndcost3,2,FALSE),IF($E$8="Location",VLOOKUP(P155,Landcost2,2,FALSE),"Error"))) -> 10 | S155: 0 | U155: =IFERROR(('General Input Sheet'!$G$38/(VLOOKUP('Existing Trunk Assets - Water'!T155,'General Input Sheet'!$E$38:$G$44,3,FALSE))),1) -> 1 | V155: 121940 | Z155: y | BE155: 10371 | CF155: 10371 | CK155: 121940
B156: WA-003847 | D156: Active (Above Ground) | E156: (Treatment Plant) WTP Transfer Pump Station | F156: Treatment | G156: Clearwater Transfer | K156: 0 | L156: 33500 | N156: =IF(M156="",1,VLOOKUP(M156,'Unit Rates - Water'!$H$12:$I$23,2,FALSE)) -> 1 | O156: 33500 | R156: =IF(P156="",'Unit Rates - Land'!landcst,IF($E$8="Landuse",VLOOKUP(P156,LAndcost3,2,FALSE),IF($E$8="Location",VLOOKUP(P156,Landcost2,2,FALSE),"Error"))) -> 10 | S156: 0 | U156: =IFERROR(('General Input Sheet'!$G$38/(VLOOKUP('Existing Trunk Assets - Water'!T156,'General Input Sheet'!$E$38:$G$44,3,FALSE))),1) -> 1 | V156: 33500 | Z156: y | BE156: 10371 | CF156: 10371 | CK156: 33500
B157: WA-003843 | D157: Active (Above Ground) | E157: (Treatment Plant) WTP Transfer Pump Station | F157: Treatment | G157: Clearwater Transfer | K157: 0 | L157: 14472 | N157: =IF(M157="",1,VLOOKUP(M157,'Unit Rates - Water'!$H$12:$I$23,2,FALSE)) -> 1 | O157: 14472 | R157: =IF(P157="",'Unit Rates - Land'!landcst,IF($E$8="Landuse",VLOOKUP(P157,LAndcost3,2,FALSE),IF($E$8="Location",VLOOKUP(P157,Landcost2,2,FALSE),"Error"))) -> 10 | S157: 0 | U157: =IFERROR(('General Input Sheet'!$G$38/(VLOOKUP('Existing Trunk Assets - Water'!T157,'General Input Sheet'!$E$38:$G$44,3,FALSE))),1) -> 1 | V157: 14472 | Z157: y | BE157: 10371 | CF157: 10371 | CK157: 14472 | DF157: =IF(BZ157="","",(BZ157/$CF157)*$V157) -> 
B158: WA-002533 | D158: Passive (Below Ground) | E158: Rankin St 153 - 164 | F158: Reticulation | G158: Pipe Network | K158: 0 | L158: 182825.8699 | N158: =IF(M158="",1,VLOOKUP(M158,'Unit Rates - Water'!$H$12:$I$23,2,FALSE)) -> 1 | O158: 182825.8699 | R158: =IF(P158="",'Unit Rates - Land'!landcst,IF($E$8="Landuse",VLOOKUP(P158,LAndcost3,2,FALSE),IF($E$8="Location",VLOOKUP(P158,Landcost2,2,FALSE),"Error"))) -> 10 | S158: 0 | U158: =IFERROR(('General Input Sheet'!$G$38/(VLOOKUP('Existing Trunk Assets - Water'!T158,'General Input Sheet'!$E$38:$G$44,3,FALSE))),1) -> 1 | V158: 182825.8699 | Z158: y | BE158: 10371 | CF158: 10371 | CK158: 182825.8699
B159: WA-003579 | D159: Active (Above Ground) | E159: Auto Cutover Start Diesel Pump - Mareeba WTP | F159: Treatment | G159: Clearwater Transfer | K159: 0 | L159: 87100 | N159: =IF(M159="",1,VLOOKUP(M159,'Unit Rates - Water'!$H$12:$I$23,2,FALSE)) -> 1 | O159: 87100 | R159: =IF(P159="",'Unit Rates - Land'!landcst,IF($E$8="Landuse",VLOOKUP(P159,LAndcost3,2,FALSE),IF($E$8="Location",VLOOKUP(P159,Landcost2,2,FALSE),"Error"))) -> 10 | S159: 0 | U159: =IFERROR(('General Input Sheet'!$G$38/(VLOOKUP('Existing Trunk Assets - Water'!T159,'General Input Sheet'!$E$38:$G$44,3,FALSE))),1) -> 1 | V159: 87100 | Z159: y | BE159: 10371 | CF159: 10371 | CK159: 87100
B160: WA-003639 | D160: Active (Above Ground) | E160: Aux Building WTP | F160: Treatment | G160: Siteworks | K160: 0 | L160: 19095 | N160: =IF(M160="",1,VLOOKUP(M160,'Unit Rates - Water'!$H$12:$I$23,2,FALSE)) -> 1 | O160: 19095 | R160: =IF(P160="",'Unit Rates - Land'!landcst,IF($E$8="Landuse",VLOOKUP(P160,LAndcost3,2,FALSE),IF($E$8="Location",VLOOKUP(P160,Landcost2,2,FALSE),"Error"))) -> 10 | S160: 0 | U160: =IFERROR(('General Input Sheet'!$G$38/(VLOOKUP('Existing Trunk Assets - Water'!T160,'General Input Sheet'!$E$38:$G$44,3,FALSE))),1) -> 1 | V160: 19095 | Z160: y | BE160: 10371 | CF160: 10371 | CK160: 19095
B161: WA-002002 | D161: Passive (Below Ground) | E161: Byrnes St 70 - 72 | F161: Reticulation | G161: Pipe Network | K161: 0 | L161: 142326.8301 | N161: =IF(M161="",1,VLOOKUP(M161,'Unit Rates - Water'!$H$12:$I$23,2,FALSE)) -> 1 | O161: 142326.8301 | R161: =IF(P161="",'Unit Rates - Land'!landcst,IF($E$8="Landuse",VLOOKUP(P161,LAndcost3,2,FALSE),IF($E$8="Location",VLOOKUP(P161,Landcost2,2,FALSE),"Error"))) -> 10 | S161: 0 | U161: =IFERROR(('General Input Sheet'!$G$38/(VLOOKUP('Existing Trunk Assets - Water'!T161,'General Input Sheet'!$E$38:$G$44,3,FALSE))),1) -> 1 | V161: 142326.8301 | Z161: y | BE161: 10371 | CF161: 10371 | CK161: 142326.8301
B162: WA-002962 | D162: Passive (Below Ground) | E162: Constance St 315 - 316 | F162: Reticulation | G162: Pipe Network | K162: 0 | L162: 131383.9001 | N162: =IF(M162="",1,VLOOKUP(M162,'Unit Rates - Water'!$H$12:$I$23,2,FALSE)) -> 1 | O162: 131383.9001 | R162: =IF(P162="",'Unit Rates - Land'!landcst,IF($E$8="Landuse",VLOOKUP(P162,LAndcost3,2,FALSE),IF($E$8="Location",VLOOKUP(P162,Landcost2,2,FALSE),"Error"))) -> 10 | S162: 0 | U162: =IFERROR(('General Input Sheet'!$G$38/(VLOOKUP('Existing Trunk Assets - Water'!T162,'General Input Sheet'!$E$38:$G$44,3,FALSE))),1) -> 1 | V162: 131383.9001 | Z162: y | BE162: 10371 | CF162: 10371 | CK162: 131383.9001
B163: WA-003887 | D163: Active (Above Ground) | E163: Chlorine Shed WTP Kuranda | F163: Treatment | G163: Chemical Treatment | K163: 0 | L163: 9380 | N163: =IF(M163="",1,VLOOKUP(M163,'Unit Rates - Water'!$H$12:$I$23,2,FALSE)) -> 1 | O163: 9380 | R163: =IF(P163="",'Unit Rates - Land'!landcst,IF($E$8="Landuse",VLOOKUP(P163,LAndcost3,2,FALSE),IF($E$8="Location",VLOOKUP(P163,Landcost2,2,FALSE),"Error"))) -> 10 | S163: 0 | U163: =IFERROR(('General Input Sheet'!$G$38/(VLOOKUP('Existing Trunk Assets - Water'!T163,'General Input Sheet'!$E$38:$G$44,3,FALSE))),1) -> 1 | V163: 9380 | Y163: y | BD163: 2242 | CF163: 2242 | CJ163: 9380
B164: WA-003886 | D164: Active (Above Ground) | E164: Chlorine Shed WTP Kuranda | F164: Treatment | G164: Chemical Treatment | K164: 0 | L164: 16080 | N164: =IF(M164="",1,VLOOKUP(M164,'Unit Rates - Water'!$H$12:$I$23,2,FALSE)) -> 1 | O164: 16080 | R164: =IF(P164="",'Unit Rates - Land'!landcst,IF($E$8="Landuse",VLOOKUP(P164,LAndcost3,2,FALSE),IF($E$8="Location",VLOOKUP(P164,Landcost2,2,FALSE),"Error"))) -> 10 | S164: 0 | U164: =IFERROR(('General Input Sheet'!$G$38/(VLOOKUP('Existing Trunk Assets - Water'!T164,'General Input Sheet'!$E$38:$G$44,3,FALSE))),1) -> 1 | V164: 16080 | Y164: y | BD164: 2242 | CF164: 2242 | CJ164: 16080
B165: WA-002724 | D165: Passive (Below Ground) | E165: Walsh St 241 - 86 | F165: Reticulation | G165: Pipe Network | K165: 0 | L165: 125824.6558 | N165: =IF(M165="",1,VLOOKUP(M165,'Unit Rates - Water'!$H$12:$I$23,2,FALSE)) -> 1 | O165: 125824.6558 | R165: =IF(P165="",'Unit Rates - Land'!landcst,IF($E$8="Landuse",VLOOKUP(P165,LAndcost3,2,FALSE),IF($E$8="Location",VLOOKUP(P165,Landcost2,2,FALSE),"Error"))) -> 10 | S165: 0 | U165: =IFERROR(('General Input Sheet'!$G$38/(VLOOKUP('Existing Trunk Assets - Water'!T165,'General Input Sheet'!$E$38:$G$44,3,FALSE))),1) -> 1 | V165: 125824.6558 | Z165: y | BE165: 10371 | CF165: 10371 | CK165: 125824.6558
B166: WA-002218 | D166: Passive (Below Ground) | E166: Margherita Close 25 - 496 | F166: Reticulation | G166: Pipe Network | K166: 0 | L166: 126347.7199 | N166: =IF(M166="",1,VLOOKUP(M166,'Unit Rates - Water'!$H$12:$I$23,2,FALSE)) -> 1 | O166: 126347.7199 | R166: =IF(P166="",'Unit Rates - Land'!landcst,IF($E$8="Landuse",VLOOKUP(P166,LAndcost3,2,FALSE),IF($E$8="Location",VLOOKUP(P166,Landcost2,2,FALSE),"Error"))) -> 10 | S166: 0 | U166: =IFERROR(('General Input Sheet'!$G$38/(VLOOKUP('Existing Trunk Assets - Water'!T166,'General Input Sheet'!$E$38:$G$44,3,FALSE))),1) -> 1 | V166: 126347.7199 | Z166: y | BE166: 10371 | CF166: 10371 | CK166: 126347.7199
B167: WA-003634 | D167: Active (Above Ground) | E167: Chlorine Shed WTP Kuranda | F167: Treatment | G167: Chemical Treatment | K167: 0 | L167: 15075 | N167: =IF(M167="",1,VLOOKUP(M167,'Unit Rates - Water'!$H$12:$I$23,2,FALSE)) -> 1 | O167: 15075 | R167: =IF(P167="",'Unit Rates - Land'!landcst,IF($E$8="Landuse",VLOOKUP(P167,LAndcost3,2,FALSE),IF($E$8="Location",VLOOKUP(P167,Landcost2,2,FALSE),"Error"))) -> 10 | S167: 0 | U167: =IFERROR(('General Input Sheet'!$G$38/(VLOOKUP('Existing Trunk Assets - Water'!T167,'General Input Sheet'!$E$38:$G$44,3,FALSE))),1) -> 1 | V167: 15075 | Y167: y | BD167: 2242 | CF167: 2242 | CJ167: 15075
B168: WA-003888 | D168: Active (Above Ground) | E168: Chlorine Shed WTP Kuranda | F168: Treatment | G168: Chemical Treatment | K168: 0 | L168: 4690 | N168: =IF(M168="",1,VLOOKUP(M168,'Unit Rates - Water'!$H$12:$I$23,2,FALSE)) -> 1 | O168: 4690 | R168: =IF(P168="",'Unit Rates - Land'!landcst,IF($E$8="Landuse",VLOOKUP(P168,LAndcost3,2,FALSE),IF($E$8="Location",VLOOKUP(P168,Landcost2,2,FALSE),"Error"))) -> 10 | S168: 0 | U168: =IFERROR(('General Input Sheet'!$G$38/(VLOOKUP('Existing Trunk Assets - Water'!T168,'General Input Sheet'!$E$38:$G$44,3,FALSE))),1) -> 1 | V168: 4690 | Y168: y | BD168: 2242 | CF168: 2242 | CJ168: 4690
B169: WA-002861 | D169: Passive (Below Ground) | E169: Byrnes St 80 - 240 | F169: Reticulation | G169: Pipe Network | K169: 0 | L169: 126230.753 | N169: =IF(M169="",1,VLOOKUP(M169,'Unit Rates - Water'!$H$12:$I$23,2,FALSE)) -> 1 | O169: 126230.753 | R169: =IF(P169="",'Unit Rates - Land'!landcst,IF($E$8="Landuse",VLOOKUP(P169,LAndcost3,2,FALSE),IF($E$8="Location",VLOOKUP(P169,Landcost2,2,FALSE),"Error"))) -> 10 | S169: 0 | U169: =IFERROR(('General Input Sheet'!$G$38/(VLOOKUP('Existing Trunk Assets - Water'!T169,'General Input Sheet'!$E$38:$G$44,3,FALSE))),1) -> 1 | V169: 126230.753 | Z169: y | BE169: 10371 | CF169: 10371 | CK169: 126230.753
B170: WA-002977 | D170: Passive (Below Ground) | E170: Anzac Avenue 600 - 470 | F170: Reticulation | G170: Pipe Network | K170: 0 | L170: 127611.6451 | N170: =IF(M170="",1,VLOOKUP(M170,'Unit Rates - Water'!$H$12:$I$23,2,FALSE)) -> 1 | O170: 127611.6451 | R170: =IF(P170="",'Unit Rates - Land'!landcst,IF($E$8="Landuse",VLOOKUP(P170,LAndcost3,2,FALSE),IF($E$8="Location",VLOOKUP(P170,Landcost2,2,FALSE),"Error"))) -> 10 | S170: 0 | U170: =IFERROR(('General Input Sheet'!$G$38/(VLOOKUP('Existing Trunk Assets - Water'!T170,'General Input Sheet'!$E$38:$G$44,3,FALSE))),1) -> 1 | V170: 127611.6451 | Z170: y | BE170: 10371 | CF170: 10371 | CK170: 127611.6451 | CP170: =IF(BJ170="","",(BJ170/$CF170)*$V170) -> 
B171: WA-003635 | D171: Active (Above Ground) | E171: Control Room WTP | F171: Treatment | G171: Siteworks | K171: 0 | L171: 19296 | N171: =IF(M171="",1,VLOOKUP(M171,'Unit Rates - Water'!$H$12:$I$23,2,FALSE)) -> 1 | O171: 19296 | R171: =IF(P171="",'Unit Rates - Land'!landcst,IF($E$8="Landuse",VLOOKUP(P171,LAndcost3,2,FALSE),IF($E$8="Location",VLOOKUP(P171,Landcost2,2,FALSE),"Error"))) -> 10 | S171: 0 | U171: =IFERROR(('General Input Sheet'!$G$38/(VLOOKUP('Existing Trunk Assets - Water'!T171,'General Input Sheet'!$E$38:$G$44,3,FALSE))),1) -> 1 | V171: 19296 | Y171: y | BD171: 2242 | CF171: 2242 | CH171: =IF(BB171="","",(BB171/$CF171)*$V171) ->  | CJ171: 19296
B172: WA-003687 | D172: Active (Above Ground) | E172: Cummins Water Generators x 2 | F172: Treatment | G172: Siteworks | K172: 0 | L172: 120600 | N172: =IF(M172="",1,VLOOKUP(M172,'Unit Rates - Water'!$H$12:$I$23,2,FALSE)) -> 1 | O172: 120600 | R172: =IF(P172="",'Unit Rates - Land'!landcst,IF($E$8="Landuse",VLOOKUP(P172,LAndcost3,2,FALSE),IF($E$8="Location",VLOOKUP(P172,Landcost2,2,FALSE),"Error"))) -> 10 | S172: 0 | U172: =IFERROR(('General Input Sheet'!$G$38/(VLOOKUP('Existing Trunk Assets - Water'!T172,'General Input Sheet'!$E$38:$G$44,3,FALSE))),1) -> 1 | V172: 120600 | Z172: y | BE172: 10371 | CF172: 10371 | CK172: 120600
B173: WA-002621 | D173: Passive (Below Ground) | E173: Herberton St 87 - 438 | F173: Reticulation | G173: Pipe Network | K173: 0 | L173: 109674.5535 | N173: =IF(M173="",1,VLOOKUP(M173,'Unit Rates - Water'!$H$12:$I$23,2,FALSE)) -> 1 | O173: 109674.5535 | R173: =IF(P173="",'Unit Rates - Land'!landcst,IF($E$8="Landuse",VLOOKUP(P173,LAndcost3,2,FALSE),IF($E$8="Location",VLOOKUP(P173,Landcost2,2,FALSE),"Error"))) -> 10 | S173: 0 | U173: =IFERROR(('General Input Sheet'!$G$38/(VLOOKUP('Existing Trunk Assets - Water'!T173,'General Input Sheet'!$E$38:$G$44,3,FALSE))),1) -> 1 | V173: 109674.5535 | Z173: y | BE173: 10371 | CF173: 10371 | CK173: 109674.5535
B174: WA-002220 | D174: Passive (Below Ground) | E174: Martin Avenue 529 - 528 | F174: Reticulation | G174: Pipe Network | K174: 0 | L174: 103415.1284 | N174: =IF(M174="",1,VLOOKUP(M174,'Unit Rates - Water'!$H$12:$I$23,2,FALSE)) -> 1 | O174: 103415.1284 | R174: =IF(P174="",'Unit Rates - Land'!landcst,IF($E$8="Landuse",VLOOKUP(P174,LAndcost3,2,FALSE),IF($E$8="Location",VLOOKUP(P174,Landcost2,2,FALSE),"Error"))) -> 10 | S174: 0 | U174: =IFERROR(('General Input Sheet'!$G$38/(VLOOKUP('Existing Trunk Assets - Water'!T174,'General Input Sheet'!$E$38:$G$44,3,FALSE))),1) -> 1 | V174: 103415.1284 | Z174: y | BE174: 10371 | CF174: 10371 | CK174: 103415.1284
B175: WA-002943 | D175: Passive (Below Ground) | E175: Basalt St 75 - 601 | F175: Reticulation | G175: Pipe Network | K175: 0 | L175: 87105.86946 | N175: =IF(M175="",1,VLOOKUP(M175,'Unit Rates - Water'!$H$12:$I$23,2,FALSE)) -> 1 | O175: 87105.86946 | R175: =IF(P175="",'Unit Rates - Land'!landcst,IF($E$8="Landuse",VLOOKUP(P175,LAndcost3,2,FALSE),IF($E$8="Location",VLOOKUP(P175,Landcost2,2,FALSE),"Error"))) -> 10 | S175: 0 | U175: =IFERROR(('General Input Sheet'!$G$38/(VLOOKUP('Existing Trunk Assets - Water'!T175,'General Input Sheet'!$E$38:$G$44,3,FALSE))),1) -> 1 | V175: 87105.86946 | Z175: y | BE175: 10371 | CF175: 10371 | CK175: 87105.86946
B176: WA-002084 | D176: Passive (Below Ground) | E176: Eccles St 398 - 397 | F176: Reticulation | G176: Pipe Network | K176: 0 | L176: 79931.59487 | N176: =IF(M176="",1,VLOOKUP(M176,'Unit Rates - Water'!$H$12:$I$23,2,FALSE)) -> 1 | O176: 79931.59487 | R176: =IF(P176="",'Unit Rates - Land'!landcst,IF($E$8="Landuse",VLOOKUP(P176,LAndcost3,2,FALSE),IF($E$8="Location",VLOOKUP(P176,Landcost2,2,FALSE),"Error"))) -> 10 | S176: 0 | U176: =IFERROR(('General Input Sheet'!$G$38/(VLOOKUP('Existing Trunk Assets - Water'!T176,'General Input Sheet'!$E$38:$G$44,3,FALSE))),1) -> 1 | V176: 79931.59487 | Z176: y | BE176: 10371 | CF176: 10371 | CK176: 79931.59487
B177: WA-001998 | D177: Passive (Below Ground) | E177: Byrnes St 53 - 68 | F177: Reticulation | G177: Pipe Network | K177: 0 | L177: 84792.52171 | N177: =IF(M177="",1,VLOOKUP(M177,'Unit Rates - Water'!$H$12:$I$23,2,FALSE)) -> 1 | O177: 84792.52171 | R177: =IF(P177="",'Unit Rates - Land'!landcst,IF($E$8="Landuse",VLOOKUP(P177,LAndcost3,2,FALSE),IF($E$8="Location",VLOOKUP(P177,Landcost2,2,FALSE),"Error"))) -> 10 | S177: 0 | U177: =IFERROR(('General Input Sheet'!$G$38/(VLOOKUP('Existing Trunk Assets - Water'!T177,'General Input Sheet'!$E$38:$G$44,3,FALSE))),1) -> 1 | V177: 84792.52171 | Z177: y | BE177: 10371 | CF177: 10371 | CK177: 84792.52171
B178: WA-003644 | D178: Active (Above Ground) | E178: Equipment Storage Shed WTP | F178: Treatment | G178: Siteworks | K178: 0 | L178: 83616 | N178: =IF(M178="",1,VLOOKUP(M178,'Unit Rates - Water'!$H$12:$I$23,2,FALSE)) -> 1 | O178: 83616 | R178: =IF(P178="",'Unit Rates - Land'!landcst,IF($E$8="Landuse",VLOOKUP(P178,LAndcost3,2,FALSE),IF($E$8="Location",VLOOKUP(P178,Landcost2,2,FALSE),"Error"))) -> 10 | S178: 0 | U178: =IFERROR(('General Input Sheet'!$G$38/(VLOOKUP('Existing Trunk Assets - Water'!T178,'General Input Sheet'!$E$38:$G$44,3,FALSE))),1) -> 1 | V178: 83616 | Z178: y | BE178: 10371 | CF178: 10371 | CK178: 83616
B179: WA-002094 | D179: Passive (Below Ground) | E179: Emmerson And Doyle Sts 204 - 205 | F179: Reticulation | G179: Pipe Network | K179: 0 | L179: 69055.22303 | N179: =IF(M179="",1,VLOOKUP(M179,'Unit Rates - Water'!$H$12:$I$23,2,FALSE)) -> 1 | O179: 69055.22303 | R179: =IF(P179="",'Unit Rates - Land'!landcst,IF($E$8="Landuse",VLOOKUP(P179,LAndcost3,2,FALSE),IF($E$8="Location",VLOOKUP(P179,Landcost2,2,FALSE),"Error"))) -> 10 | S179: 0 | U179: =IFERROR(('General Input Sheet'!$G$38/(VLOOKUP('Existing Trunk Assets - Water'!T179,'General Input Sheet'!$E$38:$G$44,3,FALSE))),1) -> 1 | V179: 69055.22303 | Z179: y | BE179: 10371 | CF179: 10371 | CK179: 69055.22303
B180: WA-003632 | D180: Active (Above Ground) | E180: Hazard Material Shed WTP | F180: Treatment | G180: Siteworks | K180: 0 | L180: 18090 | N180: =IF(M180="",1,VLOOKUP(M180,'Unit Rates - Water'!$H$12:$I$23,2,FALSE)) -> 1 | O180: 18090 | R180: =IF(P180="",'Unit Rates - Land'!landcst,IF($E$8="Landuse",VLOOKUP(P180,LAndcost3,2,FALSE),IF($E$8="Location",VLOOKUP(P180,Landcost2,2,FALSE),"Error"))) -> 10 | S180: 0 | U180: =IFERROR(('General Input Sheet'!$G$38/(VLOOKUP('Existing Trunk Assets - Water'!T180,'General Input Sheet'!$E$38:$G$44,3,FALSE))),1) -> 1 | V180: 18090 | Y180: y | BD180: 2242 | CF180: 2242 | CJ180: 18090
B181: WA-007836 | D181: Active (Above Ground) | E181: Historian (Stage 2) | F181: Treatment | G181: Process | K181: 0 | N181: =IF(M181="",1,VLOOKUP(M181,'Unit Rates - Water'!$H$12:$I$23,2,FALSE)) -> 1 | O181: 0 | R181: =IF(P181="",'Unit Rates - Land'!landcst,IF($E$8="Landuse",VLOOKUP(P181,LAndcost3,2,FALSE),IF($E$8="Location",VLOOKUP(P181,Landcost2,2,FALSE),"Error"))) -> 10 | S181: 0 | U181: =IFERROR(('General Input Sheet'!$G$38/(VLOOKUP('Existing Trunk Assets - Water'!T181,'General Input Sheet'!$E$38:$G$44,3,FALSE))),1) -> 1 | V181: 0 | Z181: y | BE181: 10371 | CF181: 10371 | CK181: 0
B182: WA-004497 | D182: Active (Above Ground) | E182: Kowa Street Inline Chlorine Analyser | F182: Treatment | G182: Process | K182: 0 | L182: 16080 | N182: =IF(M182="",1,VLOOKUP(M182,'Unit Rates - Water'!$H$12:$I$23,2,FALSE)) -> 1 | O182: 16080 | R182: =IF(P182="",'Unit Rates - Land'!landcst,IF($E$8="Landuse",VLOOKUP(P182,LAndcost3,2,FALSE),IF($E$8="Location",VLOOKUP(P182,Landcost2,2,FALSE),"Error"))) -> 10 | S182: 0 | U182: =IFERROR(('General Input Sheet'!$G$38/(VLOOKUP('Existing Trunk Assets - Water'!T182,'General Input Sheet'!$E$38:$G$44,3,FALSE))),1) -> 1 | V182: 16080 | Z182: y | BE182: 10371 | CF182: 10371 | CK182: 16080
B183: WA-004492 | D183: Active (Above Ground) | E183: Kowa Street Scada and Telemetry - Stage 2 | F183: Treatment | G183: Telemetery Equipment | K183: 0 | L183: 241200 | N183: =IF(M183="",1,VLOOKUP(M183,'Unit Rates - Water'!$H$12:$I$23,2,FALSE)) -> 1 | O183: 241200 | R183: =IF(P183="",'Unit Rates - Land'!landcst,IF($E$8="Landuse",VLOOKUP(P183,LAndcost3,2,FALSE),IF($E$8="Location",VLOOKUP(P183,Landcost2,2,FALSE),"Error"))) -> 10 | S183: 0 | U183: =IFERROR(('General Input Sheet'!$G$38/(VLOOKUP('Existing Trunk Assets - Water'!T183,'General Input Sheet'!$E$38:$G$44,3,FALSE))),1) -> 1 | V183: 241200 | Z183: y | BE183: 10371 | CF183: 10371 | CK183: 241200
B184: WA-004501 | D184: Passive (Below Ground) | E184: Mains - Catherine Atherton Drive - Mareeba | F184: Reticulation | G184: Pipe Network | K184: 0 | L184: 71755.56253 | N184: =IF(M184="",1,VLOOKUP(M184,'Unit Rates - Water'!$H$12:$I$23,2,FALSE)) -> 1 | O184: 71755.56253 | R184: =IF(P184="",'Unit Rates - Land'!landcst,IF($E$8="Landuse",VLOOKUP(P184,LAndcost3,2,FALSE),IF($E$8="Location",VLOOKUP(P184,Landcost2,2,FALSE),"Error"))) -> 10 | S184: 0 | U184: =IFERROR(('General Input Sheet'!$G$38/(VLOOKUP('Existing Trunk Assets - Water'!T184,'General Input Sheet'!$E$38:$G$44,3,FALSE))),1) -> 1 | V184: 71755.56253 | Z184: y | BE184: 10371 | CF184: 10371 | CK184: 71755.56253
B185: WA-004494 | D185: Active (Above Ground) | E185: Kuranda Heights Road Inline Chlorine Analysers | F185: Treatment | G185: Process | K185: 0 | L185: 33500 | N185: =IF(M185="",1,VLOOKUP(M185,'Unit Rates - Water'!$H$12:$I$23,2,FALSE)) -> 1 | O185: 33500 | R185: =IF(P185="",'Unit Rates - Land'!landcst,IF($E$8="Landuse",VLOOKUP(P185,LAndcost3,2,FALSE),IF($E$8="Location",VLOOKUP(P185,Landcost2,2,FALSE),"Error"))) -> 10 | S185: 0 | U185: =IFERROR(('General Input Sheet'!$G$38/(VLOOKUP('Existing Trunk Assets - Water'!T185,'General Input Sheet'!$E$38:$G$44,3,FALSE))),1) -> 1 | V185: 33500 | Y185: y | BD185: 2242 | CF185: 2242 | CJ185: 33500
B186: WA-002986 | D186: Passive (Below Ground) | E186: Hopkins Avenue 179 - 602 | F186: Reticulation | G186: Pipe Network | K186: 0 | L186: 68324.70299 | N186: =IF(M186="",1,VLOOKUP(M186,'Unit Rates - Water'!$H$12:$I$23,2,FALSE)) -> 1 | O186: 68324.70299 | R186: =IF(P186="",'Unit Rates - Land'!landcst,IF($E$8="Landuse",VLOOKUP(P186,LAndcost3,2,FALSE),IF($E$8="Location",VLOOKUP(P186,Landcost2,2,FALSE),"Error"))) -> 10 | S186: 0 | U186: =IFERROR(('General Input Sheet'!$G$38/(VLOOKUP('Existing Trunk Assets - Water'!T186,'General Input Sheet'!$E$38:$G$44,3,FALSE))),1) -> 1 | V186: 68324.70299 | Z186: y | BE186: 10371 | CF186: 10371 | CK186: 68324.70299
B187: WA-004491 | D187: Active (Above Ground) | E187: Kuranda Heights Road Scada and Telemetry - Stage 2 | F187: Treatment | G187: Process | K187: 0 | L187: 60300 | N187: =IF(M187="",1,VLOOKUP(M187,'Unit Rates - Water'!$H$12:$I$23,2,FALSE)) -> 1 | O187: 60300 | R187: =IF(P187="",'Unit Rates - Land'!landcst,IF($E$8="Landuse",VLOOKUP(P187,LAndcost3,2,FALSE),IF($E$8="Location",VLOOKUP(P187,Landcost2,2,FALSE),"Error"))) -> 10 | S187: 0 | U187: =IFERROR(('General Input Sheet'!$G$38/(VLOOKUP('Existing Trunk Assets - Water'!T187,'General Input Sheet'!$E$38:$G$44,3,FALSE))),1) -> 1 | V187: 60300 | Y187: y | BD187: 2242 | CF187: 2242 | CJ187: 60300
B188: WA-004668 | D188: Active (Above Ground) | E188: Kuranda SCADA - Additions to outstations and server room work | F188: Treatment | G188: Process | K188: 0 | L188: 46900 | N188: =IF(M188="",1,VLOOKUP(M188,'Unit Rates - Water'!$H$12:$I$23,2,FALSE)) -> 1 | O188: 46900 | R188: =IF(P188="",'Unit Rates - Land'!landcst,IF($E$8="Landuse",VLOOKUP(P188,LAndcost3,2,FALSE),IF($E$8="Location",VLOOKUP(P188,Landcost2,2,FALSE),"Error"))) -> 10 | S188: 0 | U188: =IFERROR(('General Input Sheet'!$G$38/(VLOOKUP('Existing Trunk Assets - Water'!T188,'General Input Sheet'!$E$38:$G$44,3,FALSE))),1) -> 1 | V188: 46900 | Y188: y | BD188: 2242 | CF188: 2242 | CJ188: 46900
B189: WA-002531 | D189: Passive (Below Ground) | E189: Rankin St 170 - 169 | F189: Reticulation | G189: Pipe Network | K189: 0 | L189: 64125.53746 | N189: =IF(M189="",1,VLOOKUP(M189,'Unit Rates - Water'!$H$12:$I$23,2,FALSE)) -> 1 | O189: 64125.53746 | R189: =IF(P189="",'Unit Rates - Land'!landcst,IF($E$8="Landuse",VLOOKUP(P189,LAndcost3,2,FALSE),IF($E$8="Location",VLOOKUP(P189,Landcost2,2,FALSE),"Error"))) -> 10 | S189: 0 | U189: =IFERROR(('General Input Sheet'!$G$38/(VLOOKUP('Existing Trunk Assets - Water'!T189,'General Input Sheet'!$E$38:$G$44,3,FALSE))),1) -> 1 | V189: 64125.53746 | Z189: y | BE189: 10371 | CF189: 10371 | CK189: 64125.53746
B190: WA-003952 | D190: Active (Above Ground) | E190: Kuranda Water Treatment Plant | F190: Treatment | G190: Process | K190: 0 | L190: 87100 | N190: =IF(M190="",1,VLOOKUP(M190,'Unit Rates - Water'!$H$12:$I$23,2,FALSE)) -> 1 | O190: 87100 | R190: =IF(P190="",'Unit Rates - Land'!landcst,IF($E$8="Landuse",VLOOKUP(P190,LAndcost3,2,FALSE),IF($E$8="Location",VLOOKUP(P190,Landcost2,2,FALSE),"Error"))) -> 10 | S190: 0 | U190: =IFERROR(('General Input Sheet'!$G$38/(VLOOKUP('Existing Trunk Assets - Water'!T190,'General Input Sheet'!$E$38:$G$44,3,FALSE))),1) -> 1 | V190: 87100 | Y190: y | BD190: 2242 | CF190: 2242 | CJ190: 87100
B191: WA-003953 | D191: Active (Above Ground) | E191: Kuranda Water Treatment Plant | F191: Treatment | G191: Process | K191: 0 | L191: 113900 | N191: =IF(M191="",1,VLOOKUP(M191,'Unit Rates - Water'!$H$12:$I$23,2,FALSE)) -> 1 | O191: 113900 | R191: =IF(P191="",'Unit Rates - Land'!landcst,IF($E$8="Landuse",VLOOKUP(P191,LAndcost3,2,FALSE),IF($E$8="Location",VLOOKUP(P191,Landcost2,2,FALSE),"Error"))) -> 10 | S191: 0 | U191: =IFERROR(('General Input Sheet'!$G$38/(VLOOKUP('Existing Trunk Assets - Water'!T191,'General Input Sheet'!$E$38:$G$44,3,FALSE))),1) -> 1 | V191: 113900 | Y191: y | BD191: 2242 | CF191: 2242 | CJ191: 113900
B192: WA-003962 | D192: Active (Above Ground) | E192: Kuranda Water Treatment Plant | F192: Treatment | G192: Potable Water Treatment | K192: 0 | L192: 48240 | N192: =IF(M192="",1,VLOOKUP(M192,'Unit Rates - Water'!$H$12:$I$23,2,FALSE)) -> 1 | O192: 48240 | R192: =IF(P192="",'Unit Rates - Land'!landcst,IF($E$8="Landuse",VLOOKUP(P192,LAndcost3,2,FALSE),IF($E$8="Location",VLOOKUP(P192,Landcost2,2,FALSE),"Error"))) -> 10 | S192: 0 | U192: =IFERROR(('General Input Sheet'!$G$38/(VLOOKUP('Existing Trunk Assets - Water'!T192,'General Input Sheet'!$E$38:$G$44,3,FALSE))),1) -> 1 | V192: 48240 | Y192: y | BD192: 2242 | CF192: 2242 | CJ192: 48240 | CR192: =IF(BL192="","",(BL192/$CF192)*$V192) -> 
B193: WA-003945 | D193: Active (Above Ground) | E193: Kuranda Water Treatment Plant | F193: Treatment | G193: Filtration | K193: 0 | L193: 48240 | N193: =IF(M193="",1,VLOOKUP(M193,'Unit Rates - Water'!$H$12:$I$23,2,FALSE)) -> 1 | O193: 48240 | R193: =IF(P193="",'Unit Rates - Land'!landcst,IF($E$8="Landuse",VLOOKUP(P193,LAndcost3,2,FALSE),IF($E$8="Location",VLOOKUP(P193,Landcost2,2,FALSE),"Error"))) -> 10 | S193: 0 | U193: =IFERROR(('General Input Sheet'!$G$38/(VLOOKUP('Existing Trunk Assets - Water'!T193,'General Input Sheet'!$E$38:$G$44,3,FALSE))),1) -> 1 | V193: 48240 | Y193: y | BD193: 2242 | CF193: 2242 | CJ193: 48240
B194: WA-003947 | D194: Active (Above Ground) | E194: Kuranda Water Treatment Plant | F194: Treatment | G194: Chemical Dosing | K194: 0 | L194: 16080 | N194: =IF(M194="",1,VLOOKUP(M194,'Unit Rates - Water'!$H$12:$I$23,2,FALSE)) -> 1 | O194: 16080 | R194: =IF(P194="",'Unit Rates - Land'!landcst,IF($E$8="Landuse",VLOOKUP(P194,LAndcost3,2,FALSE),IF($E$8="Location",VLOOKUP(P194,Landcost2,2,FALSE),"Error"))) -> 10 | S194: 0 | U194: =IFERROR(('General Input Sheet'!$G$38/(VLOOKUP('Existing Trunk Assets - Water'!T194,'General Input Sheet'!$E$38:$G$44,3,FALSE))),1) -> 1 | V194: 16080 | Y194: y | BD194: 2242 | CF194: 2242 | CJ194: 16080
B195: WA-003949 | D195: Active (Above Ground) | E195: Kuranda Water Treatment Plant | F195: Treatment | G195: Filtration | K195: 0 | L195: 16080 | N195: =IF(M195="",1,VLOOKUP(M195,'Unit Rates - Water'!$H$12:$I$23,2,FALSE)) -> 1 | O195: 16080 | R195: =IF(P195="",'Unit Rates - Land'!landcst,IF($E$8="Landuse",VLOOKUP(P195,LAndcost3,2,FALSE),IF($E$8="Location",VLOOKUP(P195,Landcost2,2,FALSE),"Error"))) -> 10 | S195: 0 | U195: =IFERROR(('General Input Sheet'!$G$38/(VLOOKUP('Existing Trunk Assets - Water'!T195,'General Input Sheet'!$E$38:$G$44,3,FALSE))),1) -> 1 | V195: 16080 | Y195: y | BD195: 2242 | CF195: 2242 | CJ195: 16080
B196: WA-003956 | D196: Active (Above Ground) | E196: Kuranda Water Treatment Plant | F196: Treatment | G196: Preliminary Treatment | K196: 0 | L196: 28810 | N196: =IF(M196="",1,VLOOKUP(M196,'Unit Rates - Water'!$H$12:$I$23,2,FALSE)) -> 1 | O196: 28810 | R196: =IF(P196="",'Unit Rates - Land'!landcst,IF($E$8="Landuse",VLOOKUP(P196,LAndcost3,2,FALSE),IF($E$8="Location",VLOOKUP(P196,Landcost2,2,FALSE),"Error"))) -> 10 | S196: 0 | U196: =IFERROR(('General Input Sheet'!$G$38/(VLOOKUP('Existing Trunk Assets - Water'!T196,'General Input Sheet'!$E$38:$G$44,3,FALSE))),1) -> 1 | V196: 28810 | Y196: y | BD196: 2242 | CF196: 2242 | CJ196: 28810
B197: WA-003955 | D197: Active (Above Ground) | E197: Kuranda Water Treatment Plant | F197: Treatment | G197: Preliminary Treatment | K197: 0 | L197: 100500 | N197: =IF(M197="",1,VLOOKUP(M197,'Unit Rates - Water'!$H$12:$I$23,2,FALSE)) -> 1 | O197: 100500 | R197: =IF(P197="",'Unit Rates - Land'!landcst,IF($E$8="Landuse",VLOOKUP(P197,LAndcost3,2,FALSE),IF($E$8="Location",VLOOKUP(P197,Landcost2,2,FALSE),"Error"))) -> 10 | S197: 0 | U197: =IFERROR(('General Input Sheet'!$G$38/(VLOOKUP('Existing Trunk Assets - Water'!T197,'General Input Sheet'!$E$38:$G$44,3,FALSE))),1) -> 1 | V197: 100500 | Y197: y | BD197: 2242 | CF197: 2242 | CJ197: 100500
B198: WA-003961 | D198: Active (Above Ground) | E198: Kuranda Water Treatment Plant | F198: Treatment | G198: Process | K198: 0 | L198: 60300 | N198: =IF(M198="",1,VLOOKUP(M198,'Unit Rates - Water'!$H$12:$I$23,2,FALSE)) -> 1 | O198: 60300 | R198: =IF(P198="",'Unit Rates - Land'!landcst,IF($E$8="Landuse",VLOOKUP(P198,LAndcost3,2,FALSE),IF($E$8="Location",VLOOKUP(P198,Landcost2,2,FALSE),"Error"))) -> 10 | S198: 0 | U198: =IFERROR(('General Input Sheet'!$G$38/(VLOOKUP('Existing Trunk Assets - Water'!T198,'General Input Sheet'!$E$38:$G$44,3,FALSE))),1) -> 1 | V198: 60300 | Y198: y | BD198: 2242 | CF198: 2242 | CJ198: 60300
B199: WA-003967 | D199: Active (Above Ground) | E199: Kuranda Water Treatment Plant | F199: Treatment | G199: Siteworks | K199: 0 | L199: 32160 | N199: =IF(M199="",1,VLOOKUP(M199,'Unit Rates - Water'!$H$12:$I$23,2,FALSE)) -> 1 | O199: 32160 | R199: =IF(P199="",'Unit Rates - Land'!landcst,IF($E$8="Landuse",VLOOKUP(P199,LAndcost3,2,FALSE),IF($E$8="Location",VLOOKUP(P199,Landcost2,2,FALSE),"Error"))) -> 10 | S199: 0 | U199: =IFERROR(('General Input Sheet'!$G$38/(VLOOKUP('Existing Trunk Assets - Water'!T199,'General Input Sheet'!$E$38:$G$44,3,FALSE))),1) -> 1 | V199: 32160 | Y199: y | BD199: 2242 | CF199: 2242 | CJ199: 32160
B200: WA-003954 | D200: Active (Above Ground) | E200: Kuranda Water Treatment Plant | F200: Treatment | G200: Process | K200: 0 | L200: 46900 | N200: =IF(M200="",1,VLOOKUP(M200,'Unit Rates - Water'!$H$12:$I$23,2,FALSE)) -> 1 | O200: 46900 | R200: =IF(P200="",'Unit Rates - Land'!landcst,IF($E$8="Landuse",VLOOKUP(P200,LAndcost3,2,FALSE),IF($E$8="Location",VLOOKUP(P200,Landcost2,2,FALSE),"Error"))) -> 10 | S200: 0 | U200: =IFERROR(('General Input Sheet'!$G$38/(VLOOKUP('Existing Trunk Assets - Water'!T200,'General Input Sheet'!$E$38:$G$44,3,FALSE))),1) -> 1 | V200: 46900 | Y200: y | BD200: 2242 | CF200: 2242 | CJ200: 46900 | CQ200: =IF(BK200="","",(BK200/$CF200)*$V200) -> 
B201: WA-003958 | D201: Active (Above Ground) | E201: Kuranda Water Treatment Plant | F201: Treatment | G201: Primary Sedimentation | K201: 0 | L201: 46900 | N201: =IF(M201="",1,VLOOKUP(M201,'Unit Rates - Water'!$H$12:$I$23,2,FALSE)) -> 1 | O201: 46900 | R201: =IF(P201="",'Unit Rates - Land'!landcst,IF($E$8="Landuse",VLOOKUP(P201,LAndcost3,2,FALSE),IF($E$8="Location",VLOOKUP(P201,Landcost2,2,FALSE),"Error"))) -> 10 | S201: 0 | U201: =IFERROR(('General Input Sheet'!$G$38/(VLOOKUP('Existing Trunk Assets - Water'!T201,'General Input Sheet'!$E$38:$G$44,3,FALSE))),1) -> 1 | V201: 46900 | Y201: y | BD201: 2242 | CF201: 2242 | CH201: =IF(BB201="","",(BB201/$CF201)*$V201) ->  | CJ201: 46900
B202: WA-003960 | D202: Active (Above Ground) | E202: Kuranda Water Treatment Plant | F202: Treatment | G202: Primary Sedimentation | K202: 0 | L202: 46900 | N202: =IF(M202="",1,VLOOKUP(M202,'Unit Rates - Water'!$H$12:$I$23,2,FALSE)) -> 1 | O202: 46900 | R202: =IF(P202="",'Unit Rates - Land'!landcst,IF($E$8="Landuse",VLOOKUP(P202,LAndcost3,2,FALSE),IF($E$8="Location",VLOOKUP(P202,Landcost2,2,FALSE),"Error"))) -> 10 | S202: 0 | U202: =IFERROR(('General Input Sheet'!$G$38/(VLOOKUP('Existing Trunk Assets - Water'!T202,'General Input Sheet'!$E$38:$G$44,3,FALSE))),1) -> 1 | V202: 46900 | Y202: y | BD202: 2242 | CF202: 2242 | CJ202: 46900
B203: WA-003969 | D203: Active (Above Ground) | E203: Kuranda Water Treatment Plant | F203: Treatment | G203: Filtration | K203: 0 | L203: 361800 | N203: =IF(M203="",1,VLOOKUP(M203,'Unit Rates - Water'!$H$12:$I$23,2,FALSE)) -> 1 | O203: 361800 | R203: =IF(P203="",'Unit Rates - Land'!landcst,IF($E$8="Landuse",VLOOKUP(P203,LAndcost3,2,FALSE),IF($E$8="Location",VLOOKUP(P203,Landcost2,2,FALSE),"Error"))) -> 10 | S203: 0 | U203: =IFERROR(('General Input Sheet'!$G$38/(VLOOKUP('Existing Trunk Assets - Water'!T203,'General Input Sheet'!$E$38:$G$44,3,FALSE))),1) -> 1 | V203: 361800 | Y203: y | BD203: 2242 | CF203: 2242 | CJ203: 361800 | DH203: =IF(CB203="","",(CB203/$CF203)*$V203) -> 
B204: WA-002025 | D204: Passive (Below Ground) | E204: Chewko Road 127 - 128 | F204: Reticulation | G204: Pipe Network | K204: 0 | L204: 36715.91225 | N204: =IF(M204="",1,VLOOKUP(M204,'Unit Rates - Water'!$H$12:$I$23,2,FALSE)) -> 1 | O204: 36715.91225 | R204: =IF(P204="",'Unit Rates - Land'!landcst,IF($E$8="Landuse",VLOOKUP(P204,LAndcost3,2,FALSE),IF($E$8="Location",VLOOKUP(P204,Landcost2,2,FALSE),"Error"))) -> 10 | S204: 0 | U204: =IFERROR(('General Input Sheet'!$G$38/(VLOOKUP('Existing Trunk Assets - Water'!T204,'General Input Sheet'!$E$38:$G$44,3,FALSE))),1) -> 1 | V204: 36715.91225 | Z204: y | BE204: 10371 | CF204: 10371 | CK204: 36715.91225
... 515 more rows

Sheet Existing Trunk Assets - Sewer (hidden)
B2: ='Navigation Pane'!C2 -> Mareeba Shire Council
B3: Wastewater
A4: Return to "Existing Trunk Assets"
B5: EXISTING TRUNK ASSETS
B8: Land Valuation Type | E8: Location | R8: =IF(H15=TYPE2,VLOOKUP((J15&"_"&K15),Sewerrates2,2,FALSE),"") -> 
I10: Asset Data | X10: Catchment Asset Allocation | BQ10: Asset Usage | CW10: Cost Allocation
B11: Basic Asset Data | H11: Asset Attributes | L11: Basic Asset Valuation | Q11: Land Attributes | U11: Refined Asset Value | X11: ='Catchment Demand- Sewer'!C8 -> CHILLAGOE | Y11: ='Catchment Demand- Sewer'!$C9 -> DIMBULAH | Z11: ='Catchment Demand- Sewer'!$C10 -> KURANDA | AA11: ='Catchment Demand- Sewer'!$C11 -> MAREEBA | AB11: ='Catchment Demand- Sewer'!$C12 -> 0 | AC11: ='Catchment Demand- Sewer'!$C13 -> 0 | AD11: ='Catchment Demand- Sewer'!$C14 -> 0 | AE11: ='Catchment Demand- Sewer'!$C15 -> 0 | AF11: ='Catchment Demand- Sewer'!$C16 -> 0 | AG11: ='Catchment Demand- Sewer'!$C17 -> 0 | AH11: ='Catchment Demand- Sewer'!$C18 -> 0 | AI11: ='Catchment Demand- Sewer'!$C19 -> 0 | AJ11: ='Catchment Demand- Sewer'!$C20 -> 0 | AK11: ='Catchment Demand- Sewer'!$C21 -> 0 | AL11: ='Catchment Demand- Sewer'!$C22 -> 0 | AM11: ='Catchment Demand- Sewer'!$C23 -> 0 | AN11: ='Catchment Demand- Sewer'!$C24 -> 0 | AO11: ='Catchment Demand- Sewer'!$C25 -> 0 | AP11: ='Catchment Demand- Sewer'!$C26 -> 0 | AQ11: ='Catchment Demand- Sewer'!$C27 -> 0 | AR11: ='Catchment Demand- Sewer'!$C28 -> 0 | AS11: ='Catchment Demand- Sewer'!$C29 -> 0 | AT11: ='Catchment Demand- Sewer'!$C30 -> 0 | AU11: ='Catchment Demand- Sewer'!$C31 -> 0 | AV11: ='Catchment Demand- Sewer'!$C32 -> 0 | AW11: ='Catchment Demand- Sewer'!$C33 -> 0 | AX11: ='Catchment Demand- Sewer'!$C34 -> 0 | AY11: ='Catchment Demand- Sewer'!$C35 -> 0 | AZ11: ='Catchment Demand- Sewer'!$C36 -> 0 | BA11: ='Catchment Demand- Sewer'!$C37 -> 0 | BC11: =X11 -> CHILLAGOE | BD11: =Y11 -> DIMBULAH | BE11: KURANDA | BF11: MAREEBA | BG11: 0 | BH11: 0 | BI11: 0 | BJ11: 0 | BK11: 0 | BL11: 0 | BM11: 0 | BN11: 0 | BO11: 0 | BP11: 0 | BQ11: 0 | BR11: 0 | BS11: 0 | BT11: 0 | BU11: 0 | BV11: 0 | BW11: 0 | BX11: 0 | BY11: 0 | BZ11: 0 | CA11: 0 | CB11: 0 | CC11: 0 | CD11: 0 | CE11: 0 | CF11: 0 | CG11: TOTALS | CI11: =BC11 -> CHILLAGOE | CJ11: =BD11 -> DIMBULAH | CK11: KURANDA | CL11: MAREEBA | CM11: 0 | CN11: 0 | CO11: 0 | CP11: 0 | CQ11: 0 | CR11: 0 | CS11: 0 | CT11: 0 | CU11: 0 | CV11: 0 | CW11: 0 | CX11: 0 | CY11: 0 | CZ11: 0 | DA11: 0 | DB11: 0 | DC11: 0 | DD11: 0 | DE11: 0 | DF11: 0 | DG11: 0 | DH11: 0 | DI11: 0 | DJ11: 0 | DK11: 0 | DL11: 0 | DM11: Checksum 2
B12: Asset ID | C12: LGIP ID | D12: Asset Type (*) | E12: Asset Class | F12: Asset Name | G12: Description | H12: Unit Rate Type (*) | I12: Length/unit (*) | J12: Diameter (*) | K12: Depth (*) | L12: Unit Rate | M12: Baseline Valuation | N12: Site/Condition | O12: Multiplier | P12: Gross Value | Q12: Land Location/Type | R12: Size of land (ha) (*) | S12: Unit Cost | T12: Land Value | U12: Valuation Year | V12: Escalation | W12: Current Replaceement Costs
X13: 1 | Y13: =X13+1 -> 2 | Z13: =Y13+1 -> 3 | AA13: 4 | AB13: 5 | AC13: 6 | AD13: 7 | AE13: 8 | AF13: 9 | AG13: 10 | AH13: 11 | AI13: 12 | AJ13: 13 | AK13: 14 | AL13: 15 | AM13: 16 | AN13: 17 | AO13: 18 | AP13: 19 | AQ13: 20 | AR13: 21 | AS13: 22 | AT13: 23 | AU13: 24 | AV13: 25 | AW13: 26 | AX13: 27 | AY13: 28 | AZ13: 29 | BA13: 30
B14: Councils ID (from GIS, FAR, AMA etc.) | C14: ID from the LGIP drawings | E14: Pump Station, Gravity Main, Rising Main etc | M14: May be calculated from unit rates OR unique values can be direct entered | W14: CRC | X14: =IFERROR(VLOOKUP(X11,Sewcatch,5,FALSE),"") -> 217 | Y14: =IFERROR(VLOOKUP(Y11,Sewcatch,5,FALSE),"") -> 426 | Z14: =IFERROR(VLOOKUP(Z11,Sewcatch,5,FALSE),"") -> 2242 | AA14: =IFERROR(VLOOKUP(AA11,Sewcatch,5,FALSE),"") -> 10371 | AB14: =IFERROR(VLOOKUP(AB11,Sewcatch,6,FALSE),"") ->  | BC14: =X14 -> 217 | BD14: =Y14 -> 426 | BE14: 2242 | BF14: 10371 | CI14: =SUM(CI15:CI401) -> 0 | CJ14: 0 | CK14: 5438993.593 | CL14: 20790021.53 | CM14: 0 | CN14: 0 | CO14: 0 | CP14: 0 | CQ14: 0 | CR14: 0 | CS14: 0 | CT14: 0 | CU14: 0 | CV14: 0 | CW14: 0 | CX14: 0 | CY14: 0 | CZ14: 0 | DA14: 0 | DB14: 0 | DC14: 0 | DD14: 0 | DE14: 0 | DF14: 0 | DG14: 0 | DH14: 0 | DI14: 0 | DJ14: 0 | DK14: 0 | DL14: 0 | DM14: 0
B15: SW-005738 | D15: Active (Above Ground) | E15: Wastewater Treatment | F15: KSTP Generator | G15: Auxilary Power | L15: =IF(H15=SewerTYPE1,VLOOKUP(J15,SewerUnitrates1,2,FALSE),IF(H15=SEWERTYPE2,VLOOKUP((J15&"_"&K15),Sewerrates2,2,FALSE),0)) -> 0 | M15: 92137.5 | O15: =IF(N15="",1,VLOOKUP(N15,Sewersitecond,2,FALSE)) -> 1 | P15: =IF(M15="","",M15*O15) -> 92137.5 | S15: =IF(Q15="",'Unit Rates - Land'!landcst,IF($E$8="Landuse",VLOOKUP(Q15,LAndcost3,2,FALSE),IF($E$8="Location",VLOOKUP(Q15,Landcost2,2,FALSE),"Error"))) -> 10 | T15: =IF(S15="",0,S15*10000*R15) -> 0 | U15: 2016 | V15: =IFERROR(('General Input Sheet'!$G$38/(VLOOKUP(U15,'General Input Sheet'!$E$38:$G$44,3,FALSE))),1) -> 1 | W15: =IFERROR((P15+T15)*V15,0) -> 92137.5 | Z15: y | BC15: =IF(X15="y",BC$14,IF(AND(X15>0,X15<=1),X15*BC$14,"")) ->  | BD15: =IF(Y15="y",BD$14,IF(AND(Y15>0,Y15<=1),Y15*BD$14,"")) ->  | BE15: 2242 | CG15: =SUM(BC15:CF15) -> 2242 | CI15: =IF(BC15="","",(BC15/$CG15)*$W15) ->  | CK15: 92137.5 | CY15: =IF(BS15="","",(BS15/$CG15)*$W15) ->  | DM15: =IF(SUM(CI15:DL15)=W15,"","ERROR") ->  | DN15: Kuranda
B16: SW-006130 | D16: Active (Above Ground) | E16: Wastewater Treatment | F16: KSTP Generator Shed | G16: Building | L16: 0 | M16: 20199.375 | O16: 1 | P16: =IF(M16="","",M16*O16) -> 20199.375 | S16: =IF(Q16="",'Unit Rates - Land'!landcst,IF($E$8="Landuse",VLOOKUP(Q16,LAndcost3,2,FALSE),IF($E$8="Location",VLOOKUP(Q16,Landcost2,2,FALSE),"Error"))) -> 10 | T16: =IF(S16="",0,S16*10000*R16) -> 0 | U16: 2016 | V16: =IFERROR(('General Input Sheet'!$G$38/(VLOOKUP(U16,'General Input Sheet'!$E$38:$G$44,3,FALSE))),1) -> 1 | W16: =IFERROR((P16+T16)*V16,0) -> 20199.375 | Z16: y | BC16: =IF(X16="y",BC$14,IF(AND(X16>0,X16<=1),X16*BC$14,"")) ->  | BE16: 2242 | CG16: =SUM(BC16:CF16) -> 2242 | CK16: 20199.375 | DM16: =IF(SUM(CI16:DL16)=W16,"","ERROR") ->  | DN16: Kuranda
B17: SW-006114 | D17: Active (Above Ground) | E17: Wastewater Treatment | F17: KSTP Bioreactor Instrumentation | G17: Bioreactor | L17: 0 | M17: 49612.5 | O17: 1 | P17: 49612.5 | S17: =IF(Q17="",'Unit Rates - Land'!landcst,IF($E$8="Landuse",VLOOKUP(Q17,LAndcost3,2,FALSE),IF($E$8="Location",VLOOKUP(Q17,Landcost2,2,FALSE),"Error"))) -> 10 | T17: 0 | U17: 2016 | V17: =IFERROR(('General Input Sheet'!$G$38/(VLOOKUP(U17,'General Input Sheet'!$E$38:$G$44,3,FALSE))),1) -> 1 | W17: 49612.5 | Z17: y | BE17: 2242 | CG17: =SUM(BC17:CF17) -> 2242 | CK17: 49612.5 | DM17: =IF(SUM(CI17:DL17)=W17,"","ERROR") ->  | DN17: Kuranda
B18: SW-006117 | D18: Active (Above Ground) | E18: Wastewater Treatment | F18: KSTP Bioreactor Switchboard | G18: Bioreactor | L18: 0 | M18: 63787.5 | O18: 1 | P18: 63787.5 | S18: =IF(Q18="",'Unit Rates - Land'!landcst,IF($E$8="Landuse",VLOOKUP(Q18,LAndcost3,2,FALSE),IF($E$8="Location",VLOOKUP(Q18,Landcost2,2,FALSE),"Error"))) -> 10 | T18: 0 | U18: 2016 | V18: =IFERROR(('General Input Sheet'!$G$38/(VLOOKUP(U18,'General Input Sheet'!$E$38:$G$44,3,FALSE))),1) -> 1 | W18: 63787.5 | Z18: y | BE18: 2242 | CG18: =SUM(BC18:CF18) -> 2242 | CK18: 63787.5 | DM18: =IF(SUM(CI18:DL18)=W18,"","ERROR") ->  | DN18: Kuranda
B19: SW-006109 | D19: Active (Above Ground) | E19: Wastewater Treatment | F19: KSTP Bioreactor Aeration Blower Local Control Panel | G19: Bioreactor | L19: 0 | M19: 10631.25 | O19: 1 | P19: 10631.25 | S19: =IF(Q19="",'Unit Rates - Land'!landcst,IF($E$8="Landuse",VLOOKUP(Q19,LAndcost3,2,FALSE),IF($E$8="Location",VLOOKUP(Q19,Landcost2,2,FALSE),"Error"))) -> 10 | T19: 0 | U19: 2016 | V19: =IFERROR(('General Input Sheet'!$G$38/(VLOOKUP(U19,'General Input Sheet'!$E$38:$G$44,3,FALSE))),1) -> 1 | W19: 10631.25 | Z19: y | BE19: 2242 | CG19: 2242 | CK19: 10631.25 | DN19: Kuranda
B20: SW-006127 | D20: Active (Above Ground) | E20: Wastewater Treatment | F20: KSTP Declorination Mixer Local Control Panel | G20: Chlorine Dosing | L20: 0 | M20: 4961.25 | O20: 1 | P20: 4961.25 | S20: =IF(Q20="",'Unit Rates - Land'!landcst,IF($E$8="Landuse",VLOOKUP(Q20,LAndcost3,2,FALSE),IF($E$8="Location",VLOOKUP(Q20,Landcost2,2,FALSE),"Error"))) -> 10 | T20: 0 | U20: 2016 | V20: =IFERROR(('General Input Sheet'!$G$38/(VLOOKUP(U20,'General Input Sheet'!$E$38:$G$44,3,FALSE))),1) -> 1 | W20: 4961.25 | Z20: y | BE20: 2242 | CG20: 2242 | CK20: 4961.25 | DN20: Kuranda
B21: SW-006111 | D21: Active (Above Ground) | E21: Wastewater Treatment | F21: KSTP Bioreactor Aeration Diffuser Racks | G21: Bioreactor | L21: 0 | M21: 102060 | O21: 1 | P21: 102060 | S21: =IF(Q21="",'Unit Rates - Land'!landcst,IF($E$8="Landuse",VLOOKUP(Q21,LAndcost3,2,FALSE),IF($E$8="Location",VLOOKUP(Q21,Landcost2,2,FALSE),"Error"))) -> 10 | T21: 0 | U21: 2016 | V21: =IFERROR(('General Input Sheet'!$G$38/(VLOOKUP(U21,'General Input Sheet'!$E$38:$G$44,3,FALSE))),1) -> 1 | W21: 102060 | Z21: y | BE21: 2242 | CG21: 2242 | CK21: 102060 | DN21: Kuranda
B22: SW-006112 | D22: Active (Above Ground) | E22: Wastewater Treatment | F22: KSTP Bioreactor Aeration Diffusers | G22: Bioreactor | L22: 0 | M22: 15309 | O22: 1 | P22: 15309 | S22: =IF(Q22="",'Unit Rates - Land'!landcst,IF($E$8="Landuse",VLOOKUP(Q22,LAndcost3,2,FALSE),IF($E$8="Location",VLOOKUP(Q22,Landcost2,2,FALSE),"Error"))) -> 10 | T22: 0 | U22: 2016 | V22: =IFERROR(('General Input Sheet'!$G$38/(VLOOKUP(U22,'General Input Sheet'!$E$38:$G$44,3,FALSE))),1) -> 1 | W22: 15309 | Z22: y | BE22: 2242 | CG22: 2242 | CK22: 15309 | DN22: Kuranda
B23: SW-006113 | D23: Active (Above Ground) | E23: Wastewater Treatment | F23: KSTP Bioreactor Aeration Pipework | G23: Bioreactor | L23: 0 | M23: 170100 | O23: 1 | P23: 170100 | S23: =IF(Q23="",'Unit Rates - Land'!landcst,IF($E$8="Landuse",VLOOKUP(Q23,LAndcost3,2,FALSE),IF($E$8="Location",VLOOKUP(Q23,Landcost2,2,FALSE),"Error"))) -> 10 | T23: 0 | U23: 2016 | V23: =IFERROR(('General Input Sheet'!$G$38/(VLOOKUP(U23,'General Input Sheet'!$E$38:$G$44,3,FALSE))),1) -> 1 | W23: 170100 | Z23: y | BE23: 2242 | CA23: =IF(AV23="y",CA$14,IF(AND(AV23>0,AV23<=1),AV23*CA$14,"")) ->  | CG23: 2242 | CK23: 170100 | DN23: Kuranda
B24: SW-006110 | D24: Active (Above Ground) | E24: Wastewater Treatment | F24: KSTP Bioreactor Aeration Blowers | G24: Bioreactor | L24: 0 | M24: 62370 | O24: 1 | P24: 62370 | S24: =IF(Q24="",'Unit Rates - Land'!landcst,IF($E$8="Landuse",VLOOKUP(Q24,LAndcost3,2,FALSE),IF($E$8="Location",VLOOKUP(Q24,Landcost2,2,FALSE),"Error"))) -> 10 | T24: 0 | U24: 2016 | V24: =IFERROR(('General Input Sheet'!$G$38/(VLOOKUP(U24,'General Input Sheet'!$E$38:$G$44,3,FALSE))),1) -> 1 | W24: 62370 | Z24: y | BE24: 2242 | BS24: =IF(AN24="y",BS$14,IF(AND(AN24>0,AN24<=1),AN24*BS$14,"")) ->  | CG24: 2242 | CK24: 62370 | DN24: Kuranda
B25: SW-006145 | D25: Active (Above Ground) | E25: Wastewater Treatment | F25: KSTP Oxygenated Ditch Linear Aerators | G25: Oxidation Channel | L25: 0 | M25: 85050 | O25: 1 | P25: 85050 | S25: =IF(Q25="",'Unit Rates - Land'!landcst,IF($E$8="Landuse",VLOOKUP(Q25,LAndcost3,2,FALSE),IF($E$8="Location",VLOOKUP(Q25,Landcost2,2,FALSE),"Error"))) -> 10 | T25: 0 | U25: 2016 | V25: =IFERROR(('General Input Sheet'!$G$38/(VLOOKUP(U25,'General Input Sheet'!$E$38:$G$44,3,FALSE))),1) -> 1 | W25: 85050 | Z25: y | BE25: 2242 | CG25: 2242 | CK25: 85050 | DN25: Kuranda
B26: SW-006128 | D26: Active (Above Ground) | E26: Wastewater Treatment | F26: KSTP Effluent Autosampler | G26: Chlorine Dosing | L26: 0 | M26: 28350 | O26: 1 | P26: 28350 | S26: =IF(Q26="",'Unit Rates - Land'!landcst,IF($E$8="Landuse",VLOOKUP(Q26,LAndcost3,2,FALSE),IF($E$8="Location",VLOOKUP(Q26,Landcost2,2,FALSE),"Error"))) -> 10 | T26: 0 | U26: 2016 | V26: =IFERROR(('General Input Sheet'!$G$38/(VLOOKUP(U26,'General Input Sheet'!$E$38:$G$44,3,FALSE))),1) -> 1 | W26: 28350 | Z26: y | BE26: 2242 | CG26: 2242 | CK26: 28350 | DN26: Kuranda
B27: SW-006132 | D27: Active (Above Ground) | E27: Wastewater Treatment | F27: KSTP Inlet Auto Sampler | G27: Inlet Works | L27: 0 | M27: 21262.5 | O27: 1 | P27: 21262.5 | S27: =IF(Q27="",'Unit Rates - Land'!landcst,IF($E$8="Landuse",VLOOKUP(Q27,LAndcost3,2,FALSE),IF($E$8="Location",VLOOKUP(Q27,Landcost2,2,FALSE),"Error"))) -> 10 | T27: 0 | U27: 2016 | V27: =IFERROR(('General Input Sheet'!$G$38/(VLOOKUP(U27,'General Input Sheet'!$E$38:$G$44,3,FALSE))),1) -> 1 | W27: 21262.5 | Z27: y | BE27: 2242 | CG27: 2242 | CK27: 21262.5 | DN27: Kuranda
B28: SW-006131 | D28: Active (Above Ground) | E28: Wastewater Treatment | F28: KSTP Inlet Auto Helical Screen | G28: Inlet Works | L28: 0 | M28: 49612.5 | O28: 1 | P28: 49612.5 | S28: =IF(Q28="",'Unit Rates - Land'!landcst,IF($E$8="Landuse",VLOOKUP(Q28,LAndcost3,2,FALSE),IF($E$8="Location",VLOOKUP(Q28,Landcost2,2,FALSE),"Error"))) -> 10 | T28: 0 | U28: 2016 | V28: =IFERROR(('General Input Sheet'!$G$38/(VLOOKUP(U28,'General Input Sheet'!$E$38:$G$44,3,FALSE))),1) -> 1 | W28: 49612.5 | Z28: y | BE28: 2242 | CG28: 2242 | CK28: 49612.5 | DN28: Kuranda
B29: SW-006134 | D29: Active (Above Ground) | E29: Wastewater Treatment | F29: KSTP Inlet Classifier | G29: Inlet Works | L29: 0 | M29: 35437.5 | O29: 1 | P29: 35437.5 | S29: =IF(Q29="",'Unit Rates - Land'!landcst,IF($E$8="Landuse",VLOOKUP(Q29,LAndcost3,2,FALSE),IF($E$8="Location",VLOOKUP(Q29,Landcost2,2,FALSE),"Error"))) -> 10 | T29: 0 | U29: 2016 | V29: =IFERROR(('General Input Sheet'!$G$38/(VLOOKUP(U29,'General Input Sheet'!$E$38:$G$44,3,FALSE))),1) -> 1 | W29: 35437.5 | Z29: y | BE29: 2242 | CG29: 2242 | CK29: 35437.5 | DN29: Kuranda
B30: SW-006118 | D30: Active (Above Ground) | E30: Wastewater Treatment | F30: KSTP Chlorine Chemical Storage Building | G30: Chlorine Dosing | L30: 0 | M30: 41674.5 | O30: 1 | P30: 41674.5 | S30: =IF(Q30="",'Unit Rates - Land'!landcst,IF($E$8="Landuse",VLOOKUP(Q30,LAndcost3,2,FALSE),IF($E$8="Location",VLOOKUP(Q30,Landcost2,2,FALSE),"Error"))) -> 10 | T30: 0 | U30: 2016 | V30: =IFERROR(('General Input Sheet'!$G$38/(VLOOKUP(U30,'General Input Sheet'!$E$38:$G$44,3,FALSE))),1) -> 1 | W30: 41674.5 | Z30: y | BE30: 2242 | CG30: 2242 | CK30: 41674.5 | CX30: =IF(BR30="","",(BR30/$CG30)*$W30) ->  | DN30: Kuranda
B31: SW-005916 | D31: Active (Above Ground) | E31: Wastewater Treatment | F31: KSTP Laboratory Building | G31: Laboratory | L31: 0 | M31: 108864 | O31: 1 | P31: 108864 | S31: =IF(Q31="",'Unit Rates - Land'!landcst,IF($E$8="Landuse",VLOOKUP(Q31,LAndcost3,2,FALSE),IF($E$8="Location",VLOOKUP(Q31,Landcost2,2,FALSE),"Error"))) -> 10 | T31: 0 | U31: 2016 | V31: =IFERROR(('General Input Sheet'!$G$38/(VLOOKUP(U31,'General Input Sheet'!$E$38:$G$44,3,FALSE))),1) -> 1 | W31: 108864 | Z31: y | BE31: 2242 | CG31: 2242 | CI31: =IF(BC31="","",(BC31/$CG31)*$W31) ->  | CK31: 108864 | DN31: Kuranda
B32: SW-006122 | D32: Active (Above Ground) | E32: Wastewater Treatment | F32: KSTP Clarifier Bridge Drive | G32: Clarifier | L32: 0 | M32: 14175 | O32: 1 | P32: 14175 | S32: =IF(Q32="",'Unit Rates - Land'!landcst,IF($E$8="Landuse",VLOOKUP(Q32,LAndcost3,2,FALSE),IF($E$8="Location",VLOOKUP(Q32,Landcost2,2,FALSE),"Error"))) -> 10 | T32: 0 | U32: 2016 | V32: =IFERROR(('General Input Sheet'!$G$38/(VLOOKUP(U32,'General Input Sheet'!$E$38:$G$44,3,FALSE))),1) -> 1 | W32: 14175 | Z32: y | BC32: =IF(X32="y",BC$14,IF(AND(X32>0,X32<=1),X32*BC$14,"")) ->  | BE32: 2242 | CG32: 2242 | CK32: 14175 | DN32: Kuranda
B33: SW-005737 | D33: Active (Above Ground) | E33: Wastewater Treatment | F33: KSTP Site Shed (Near Sludge lagoons) | G33: Stores | L33: 0 | M33: 33169.5 | O33: 1 | P33: 33169.5 | S33: =IF(Q33="",'Unit Rates - Land'!landcst,IF($E$8="Landuse",VLOOKUP(Q33,LAndcost3,2,FALSE),IF($E$8="Location",VLOOKUP(Q33,Landcost2,2,FALSE),"Error"))) -> 10 | T33: 0 | U33: 2016 | V33: =IFERROR(('General Input Sheet'!$G$38/(VLOOKUP(U33,'General Input Sheet'!$E$38:$G$44,3,FALSE))),1) -> 1 | W33: 33169.5 | Z33: y | BE33: 2242 | CG33: 2242 | CK33: 33169.5 | DN33: Kuranda
B34: SW-006173 | D34: Active (Above Ground) | E34: Wastewater Treatment | F34: KSTP Store Shed (Near Chlorine Contact Tank) | G34: Stores | L34: 0 | M34: 15946.875 | O34: 1 | P34: 15946.875 | S34: =IF(Q34="",'Unit Rates - Land'!landcst,IF($E$8="Landuse",VLOOKUP(Q34,LAndcost3,2,FALSE),IF($E$8="Location",VLOOKUP(Q34,Landcost2,2,FALSE),"Error"))) -> 10 | T34: 0 | U34: 2016 | V34: =IFERROR(('General Input Sheet'!$G$38/(VLOOKUP(U34,'General Input Sheet'!$E$38:$G$44,3,FALSE))),1) -> 1 | W34: 15946.875 | Z34: y | BE34: 2242 | CG34: 2242 | CK34: 15946.875 | DN34: Kuranda
B35: SW-006161 | D35: Active (Above Ground) | E35: Wastewater Treatment | F35: KSTP Site Preliminary Earthworks | G35: Preliminary Works | L35: 0 | M35: 85050 | O35: 1 | P35: 85050 | S35: =IF(Q35="",'Unit Rates - Land'!landcst,IF($E$8="Landuse",VLOOKUP(Q35,LAndcost3,2,FALSE),IF($E$8="Location",VLOOKUP(Q35,Landcost2,2,FALSE),"Error"))) -> 10 | T35: 0 | U35: 2016 | V35: =IFERROR(('General Input Sheet'!$G$38/(VLOOKUP(U35,'General Input Sheet'!$E$38:$G$44,3,FALSE))),1) -> 1 | W35: 85050 | Z35: y | BE35: 2242 | CG35: 2242 | CK35: 85050 | DN35: Kuranda
B36: SW-006136 | D36: Active (Above Ground) | E36: Wastewater Treatment | F36: KSTP Inlet Local Control Panels | G36: Inlet Works | L36: 0 | M36: 10631.25 | O36: 1 | P36: 10631.25 | S36: =IF(Q36="",'Unit Rates - Land'!landcst,IF($E$8="Landuse",VLOOKUP(Q36,LAndcost3,2,FALSE),IF($E$8="Location",VLOOKUP(Q36,Landcost2,2,FALSE),"Error"))) -> 10 | T36: 0 | U36: 2016 | V36: =IFERROR(('General Input Sheet'!$G$38/(VLOOKUP(U36,'General Input Sheet'!$E$38:$G$44,3,FALSE))),1) -> 1 | W36: 10631.25 | Z36: y | BE36: 2242 | CG36: 2242 | CK36: 10631.25 | DN36: Kuranda
B37: SW-006165 | D37: Active (Above Ground) | E37: Wastewater Treatment | F37: KSTP Sitewide Electrical Cables and Pits | G37: Electrical | L37: 0 | M37: 255150 | O37: 1 | P37: 255150 | S37: =IF(Q37="",'Unit Rates - Land'!landcst,IF($E$8="Landuse",VLOOKUP(Q37,LAndcost3,2,FALSE),IF($E$8="Location",VLOOKUP(Q37,Landcost2,2,FALSE),"Error"))) -> 10 | T37: 0 | U37: 2016 | V37: =IFERROR(('General Input Sheet'!$G$38/(VLOOKUP(U37,'General Input Sheet'!$E$38:$G$44,3,FALSE))),1) -> 1 | W37: 255150 | Z37: y | BE37: 2242 | CG37: 2242 | CK37: 255150 | DN37: Kuranda
B38: SW-006135 | D38: Active (Above Ground) | E38: Wastewater Treatment | F38: KSTP Inlet Instrumentation | G38: Inlet Works | L38: 0 | M38: 17010 | O38: 1 | P38: 17010 | S38: =IF(Q38="",'Unit Rates - Land'!landcst,IF($E$8="Landuse",VLOOKUP(Q38,LAndcost3,2,FALSE),IF($E$8="Location",VLOOKUP(Q38,Landcost2,2,FALSE),"Error"))) -> 10 | T38: 0 | U38: 2016 | V38: =IFERROR(('General Input Sheet'!$G$38/(VLOOKUP(U38,'General Input Sheet'!$E$38:$G$44,3,FALSE))),1) -> 1 | W38: 17010 | Z38: y | BE38: 2242 | CG38: 2242 | CK38: 17010 | DN38: Kuranda
B39: SW-006144 | D39: Active (Above Ground) | E39: Wastewater Treatment | F39: KSTP Liquid Alum Storage Tank Level Meter | G39: Liquid Alum Dosing | L39: 0 | M39: 7087.5 | O39: 1 | P39: 7087.5 | S39: =IF(Q39="",'Unit Rates - Land'!landcst,IF($E$8="Landuse",VLOOKUP(Q39,LAndcost3,2,FALSE),IF($E$8="Location",VLOOKUP(Q39,Landcost2,2,FALSE),"Error"))) -> 10 | T39: 0 | U39: 2016 | V39: =IFERROR(('General Input Sheet'!$G$38/(VLOOKUP(U39,'General Input Sheet'!$E$38:$G$44,3,FALSE))),1) -> 1 | W39: 7087.5 | Z39: y | BE39: 2242 | CG39: 2242 | CK39: 7087.5 | DN39: Kuranda
B40: SW-006160 | D40: Active (Above Ground) | E40: Wastewater Treatment | F40: KSTP Site Perimeter Security Fencing | G40: Security | L40: 0 | M40: 42525 | O40: 1 | P40: 42525 | S40: =IF(Q40="",'Unit Rates - Land'!landcst,IF($E$8="Landuse",VLOOKUP(Q40,LAndcost3,2,FALSE),IF($E$8="Location",VLOOKUP(Q40,Landcost2,2,FALSE),"Error"))) -> 10 | T40: 0 | U40: 2016 | V40: =IFERROR(('General Input Sheet'!$G$38/(VLOOKUP(U40,'General Input Sheet'!$E$38:$G$44,3,FALSE))),1) -> 1 | W40: 42525 | Z40: y | BE40: 2242 | CG40: 2242 | CK40: 42525 | DN40: Kuranda
B41: SW-006140 | D41: Active (Above Ground) | E41: Wastewater Treatment | F41: KSTP Liquid Alum Dosing Local Control Panel | G41: Liquid Alum Dosing | L41: 0 | M41: 4961.25 | O41: 1 | P41: 4961.25 | S41: =IF(Q41="",'Unit Rates - Land'!landcst,IF($E$8="Landuse",VLOOKUP(Q41,LAndcost3,2,FALSE),IF($E$8="Location",VLOOKUP(Q41,Landcost2,2,FALSE),"Error"))) -> 10 | T41: 0 | U41: 2016 | V41: =IFERROR(('General Input Sheet'!$G$38/(VLOOKUP(U41,'General Input Sheet'!$E$38:$G$44,3,FALSE))),1) -> 1 | W41: 4961.25 | Z41: y | BE41: 2242 | CG41: 2242 | CK41: 4961.25 | DN41: Kuranda
B42: SW-005920 | D42: Active (Above Ground) | E42: Wastewater Treatment | F42: Kuranda Influent Mag Flow Meter | G42: Inlet Works | L42: 0 | M42: 9213.75 | O42: 1 | P42: 9213.75 | S42: =IF(Q42="",'Unit Rates - Land'!landcst,IF($E$8="Landuse",VLOOKUP(Q42,LAndcost3,2,FALSE),IF($E$8="Location",VLOOKUP(Q42,Landcost2,2,FALSE),"Error"))) -> 10 | T42: 0 | U42: 2016 | V42: =IFERROR(('General Input Sheet'!$G$38/(VLOOKUP(U42,'General Input Sheet'!$E$38:$G$44,3,FALSE))),1) -> 1 | W42: 9213.75 | Z42: y | BE42: 2242 | CG42: 2242 | CK42: 9213.75 | DN42: Kuranda
B43: SW-005925 | D43: Active (Above Ground) | E43: Wastewater Treatment | F43: Sludge Waste & RAS Return Mag Flow Kuranda | G43: RAS System | L43: 0 | M43: 6378.75 | O43: 1 | P43: 6378.75 | S43: =IF(Q43="",'Unit Rates - Land'!landcst,IF($E$8="Landuse",VLOOKUP(Q43,LAndcost3,2,FALSE),IF($E$8="Location",VLOOKUP(Q43,Landcost2,2,FALSE),"Error"))) -> 10 | T43: 0 | U43: 2016 | V43: =IFERROR(('General Input Sheet'!$G$38/(VLOOKUP(U43,'General Input Sheet'!$E$38:$G$44,3,FALSE))),1) -> 1 | W43: 6378.75 | Z43: y | BE43: 2242 | CG43: 2242 | CK43: 6378.75 | DN43: Kuranda
B44: SW-006177 | D44: Active (Above Ground) | E44: Wastewater Treatment | F44: KSTP WAS Flowmeter | G44: WAS System | L44: 0 | M44: 6378.75 | O44: 1 | P44: 6378.75 | S44: =IF(Q44="",'Unit Rates - Land'!landcst,IF($E$8="Landuse",VLOOKUP(Q44,LAndcost3,2,FALSE),IF($E$8="Location",VLOOKUP(Q44,Landcost2,2,FALSE),"Error"))) -> 10 | T44: 0 | U44: 2016 | V44: =IFERROR(('General Input Sheet'!$G$38/(VLOOKUP(U44,'General Input Sheet'!$E$38:$G$44,3,FALSE))),1) -> 1 | W44: 6378.75 | Z44: y | BE44: 2242 | CG44: 2242 | CK44: 6378.75 | DN44: Kuranda
B45: SW-006147 | D45: Active (Above Ground) | E45: Wastewater Treatment | F45: KSTP Oxygenated Ditch Switchboard | G45: Oxidation Channel | L45: 0 | M45: 35437.5 | O45: 1 | P45: 35437.5 | S45: =IF(Q45="",'Unit Rates - Land'!landcst,IF($E$8="Landuse",VLOOKUP(Q45,LAndcost3,2,FALSE),IF($E$8="Location",VLOOKUP(Q45,Landcost2,2,FALSE),"Error"))) -> 10 | T45: 0 | U45: 2016 | V45: =IFERROR(('General Input Sheet'!$G$38/(VLOOKUP(U45,'General Input Sheet'!$E$38:$G$44,3,FALSE))),1) -> 1 | W45: 35437.5 | Z45: y | BE45: 2242 | CG45: 2242 | CK45: 35437.5 | DN45: Kuranda
B46: SW-006162 | D46: Active (Above Ground) | E46: Wastewater Treatment | F46: KSTP Site Roads Formation | G46: Roads | L46: 0 | M46: 10631.25 | O46: 1 | P46: 10631.25 | S46: =IF(Q46="",'Unit Rates - Land'!landcst,IF($E$8="Landuse",VLOOKUP(Q46,LAndcost3,2,FALSE),IF($E$8="Location",VLOOKUP(Q46,Landcost2,2,FALSE),"Error"))) -> 10 | T46: 0 | U46: 2016 | V46: =IFERROR(('General Input Sheet'!$G$38/(VLOOKUP(U46,'General Input Sheet'!$E$38:$G$44,3,FALSE))),1) -> 1 | W46: 10631.25 | Z46: y | BE46: 2242 | CG46: 2242 | CK46: 10631.25 | DN46: Kuranda
B47: SW-006126 | D47: Active (Above Ground) | E47: Wastewater Treatment | F47: KSTP Declorination Mixer | G47: Chlorine Dosing | L47: 0 | M47: 13466.25 | O47: 1 | P47: 13466.25 | S47: =IF(Q47="",'Unit Rates - Land'!landcst,IF($E$8="Landuse",VLOOKUP(Q47,LAndcost3,2,FALSE),IF($E$8="Location",VLOOKUP(Q47,Landcost2,2,FALSE),"Error"))) -> 10 | T47: 0 | U47: 2016 | V47: =IFERROR(('General Input Sheet'!$G$38/(VLOOKUP(U47,'General Input Sheet'!$E$38:$G$44,3,FALSE))),1) -> 1 | W47: 13466.25 | Z47: y | BE47: 2242 | BR47: =IF(AM47="y",BR$14,IF(AND(AM47>0,AM47<=1),AM47*BR$14,"")) ->  | CG47: 2242 | CK47: 13466.25 | DL47: =IF(CF47="","",(CF47/$CG47)*$W47) ->  | DN47: Kuranda
B48: SW-006163 | D48: Active (Above Ground) | E48: Wastewater Treatment | F48: KSTP Site Roads Pavement | G48: Roads | L48: 0 | M48: 53156.25 | O48: 1 | P48: 53156.25 | S48: =IF(Q48="",'Unit Rates - Land'!landcst,IF($E$8="Landuse",VLOOKUP(Q48,LAndcost3,2,FALSE),IF($E$8="Location",VLOOKUP(Q48,Landcost2,2,FALSE),"Error"))) -> 10 | T48: 0 | U48: 2016 | V48: =IFERROR(('General Input Sheet'!$G$38/(VLOOKUP(U48,'General Input Sheet'!$E$38:$G$44,3,FALSE))),1) -> 1 | W48: 53156.25 | Z48: y | BC48: =IF(X48="y",BC$14,IF(AND(X48>0,X48<=1),X48*BC$14,"")) ->  | BE48: 2242 | CG48: 2242 | CI48: =IF(BC48="","",(BC48/$CG48)*$W48) ->  | CK48: 53156.25 | CY48: =IF(BS48="","",(BS48/$CG48)*$W48) ->  | DN48: Kuranda
B49: SW-006120 | D49: Active (Above Ground) | E49: Wastewater Treatment | F49: KSTP Chlorine Dosing Pumps | G49: Chlorine Dosing | L49: 0 | M49: 4961.25 | O49: 1 | P49: 4961.25 | S49: =IF(Q49="",'Unit Rates - Land'!landcst,IF($E$8="Landuse",VLOOKUP(Q49,LAndcost3,2,FALSE),IF($E$8="Location",VLOOKUP(Q49,Landcost2,2,FALSE),"Error"))) -> 10 | T49: 0 | U49: 2016 | V49: =IFERROR(('General Input Sheet'!$G$38/(VLOOKUP(U49,'General Input Sheet'!$E$38:$G$44,3,FALSE))),1) -> 1 | W49: 4961.25 | Z49: y | BE49: 2242 | CG49: 2242 | CK49: 4961.25 | DN49: Kuranda
B50: SW-006142 | D50: Active (Above Ground) | E50: Wastewater Treatment | F50: KSTP Liquid Alum Dosing Pumps | G50: Liquid Alum Dosing | L50: 0 | M50: 12757.5 | O50: 1 | P50: 12757.5 | S50: =IF(Q50="",'Unit Rates - Land'!landcst,IF($E$8="Landuse",VLOOKUP(Q50,LAndcost3,2,FALSE),IF($E$8="Location",VLOOKUP(Q50,Landcost2,2,FALSE),"Error"))) -> 10 | T50: 0 | U50: 2016 | V50: =IFERROR(('General Input Sheet'!$G$38/(VLOOKUP(U50,'General Input Sheet'!$E$38:$G$44,3,FALSE))),1) -> 1 | W50: 12757.5 | Z50: y | BE50: 2242 | CG50: 2242 | CK50: 12757.5 | DN50: Kuranda
B51: SW-006159 | D51: Active (Above Ground) | E51: Wastewater Treatment | F51: KSTP Remote Telemetry Unit | G51: Process | L51: 0 | M51: 28350 | O51: 1 | P51: 28350 | S51: =IF(Q51="",'Unit Rates - Land'!landcst,IF($E$8="Landuse",VLOOKUP(Q51,LAndcost3,2,FALSE),IF($E$8="Location",VLOOKUP(Q51,Landcost2,2,FALSE),"Error"))) -> 10 | T51: 0 | U51: 2016 | V51: =IFERROR(('General Input Sheet'!$G$38/(VLOOKUP(U51,'General Input Sheet'!$E$38:$G$44,3,FALSE))),1) -> 1 | W51: 28350 | Z51: y | BE51: 2242 | CG51: 2242 | CK51: 28350 | DN51: Kuranda
B52: SW-005919 | D52: Active (Above Ground) | E52: Wastewater Treatment | F52: Kuranda STP Inlet flow meter & telemetry | G52: Inlet Works | L52: 0 | M52: 0 | O52: 1 | P52: 0 | S52: =IF(Q52="",'Unit Rates - Land'!landcst,IF($E$8="Landuse",VLOOKUP(Q52,LAndcost3,2,FALSE),IF($E$8="Location",VLOOKUP(Q52,Landcost2,2,FALSE),"Error"))) -> 10 | T52: 0 | U52: 2016 | V52: =IFERROR(('General Input Sheet'!$G$38/(VLOOKUP(U52,'General Input Sheet'!$E$38:$G$44,3,FALSE))),1) -> 1 | W52: 0 | Z52: y | BE52: 2242 | CG52: 2242 | CK52: 0 | DN52: Kuranda
B53: SW-006155 | D53: Active (Above Ground) | E53: Wastewater Treatment | F53: KSTP RAS System Submersable Pumps | G53: RAS System | L53: 0 | M53: 21262.5 | O53: 1 | P53: 21262.5 | S53: =IF(Q53="",'Unit Rates - Land'!landcst,IF($E$8="Landuse",VLOOKUP(Q53,LAndcost3,2,FALSE),IF($E$8="Location",VLOOKUP(Q53,Landcost2,2,FALSE),"Error"))) -> 10 | T53: 0 | U53: 2016 | V53: =IFERROR(('General Input Sheet'!$G$38/(VLOOKUP(U53,'General Input Sheet'!$E$38:$G$44,3,FALSE))),1) -> 1 | W53: 21262.5 | Z53: y | BE53: 2242 | CG53: 2242 | CK53: 21262.5 | DN53: Kuranda
B54: SW-005736 | D54: Active (Above Ground) | E54: Wastewater Treatment | F54: KSTP Control PLC | G54: Process | L54: 0 | M54: 49612.5 | O54: 1 | P54: 49612.5 | S54: =IF(Q54="",'Unit Rates - Land'!landcst,IF($E$8="Landuse",VLOOKUP(Q54,LAndcost3,2,FALSE),IF($E$8="Location",VLOOKUP(Q54,Landcost2,2,FALSE),"Error"))) -> 10 | T54: 0 | U54: 2016 | V54: =IFERROR(('General Input Sheet'!$G$38/(VLOOKUP(U54,'General Input Sheet'!$E$38:$G$44,3,FALSE))),1) -> 1 | W54: 49612.5 | Z54: y | BE54: 2242 | CG54: 2242 | CK54: 49612.5 | DN54: Kuranda
B55: SW-006148 | D55: Active (Above Ground) | E55: Wastewater Treatment | F55: KSTP Plant Swichboard | G55: Process | L55: 0 | M55: 63787.5 | O55: 1 | P55: 63787.5 | S55: =IF(Q55="",'Unit Rates - Land'!landcst,IF($E$8="Landuse",VLOOKUP(Q55,LAndcost3,2,FALSE),IF($E$8="Location",VLOOKUP(Q55,Landcost2,2,FALSE),"Error"))) -> 10 | T55: 0 | U55: 2016 | V55: =IFERROR(('General Input Sheet'!$G$38/(VLOOKUP(U55,'General Input Sheet'!$E$38:$G$44,3,FALSE))),1) -> 1 | W55: 63787.5 | Z55: y | BE55: 2242 | BZ55: =IF(AU55="y",BZ$14,IF(AND(AU55>0,AU55<=1),AU55*BZ$14,"")) ->  | CG55: 2242 | CK55: 63787.5 | DN55: Kuranda
B56: SW-006169 | D56: Active (Above Ground) | E56: Wastewater Treatment | F56: KSTP Sodium Hydroxide Dosing Pumps | G56: Sodium Hydroxide Dosing | L56: 0 | M56: 6378.75 | O56: 1 | P56: 6378.75 | S56: =IF(Q56="",'Unit Rates - Land'!landcst,IF($E$8="Landuse",VLOOKUP(Q56,LAndcost3,2,FALSE),IF($E$8="Location",VLOOKUP(Q56,Landcost2,2,FALSE),"Error"))) -> 10 | T56: 0 | U56: 2016 | V56: =IFERROR(('General Input Sheet'!$G$38/(VLOOKUP(U56,'General Input Sheet'!$E$38:$G$44,3,FALSE))),1) -> 1 | W56: 6378.75 | Z56: y | BE56: 2242 | CG56: 2242 | CK56: 6378.75 | DN56: Kuranda
B57: SW-006164 | D57: Active (Above Ground) | E57: Wastewater Treatment | F57: KSTP Site Roads Seal | G57: Roads | L57: 0 | M57: 31893.75 | O57: 1 | P57: 31893.75 | S57: =IF(Q57="",'Unit Rates - Land'!landcst,IF($E$8="Landuse",VLOOKUP(Q57,LAndcost3,2,FALSE),IF($E$8="Location",VLOOKUP(Q57,Landcost2,2,FALSE),"Error"))) -> 10 | T57: 0 | U57: 2016 | V57: =IFERROR(('General Input Sheet'!$G$38/(VLOOKUP(U57,'General Input Sheet'!$E$38:$G$44,3,FALSE))),1) -> 1 | W57: 31893.75 | Z57: y | BE57: 2242 | CG57: 2242 | CK57: 31893.75 | DN57: Kuranda
B58: SW-006116 | D58: Active (Above Ground) | E58: Wastewater Treatment | F58: KSTP Bioreactor Structure | G58: Bioreactor | L58: 0 | M58: 650538 | O58: 1 | P58: 650538 | S58: =IF(Q58="",'Unit Rates - Land'!landcst,IF($E$8="Landuse",VLOOKUP(Q58,LAndcost3,2,FALSE),IF($E$8="Location",VLOOKUP(Q58,Landcost2,2,FALSE),"Error"))) -> 10 | T58: 0 | U58: 2016 | V58: =IFERROR(('General Input Sheet'!$G$38/(VLOOKUP(U58,'General Input Sheet'!$E$38:$G$44,3,FALSE))),1) -> 1 | W58: 650538 | Z58: y | BE58: 2242 | CG58: 2242 | CK58: 650538 | DN58: Kuranda
B59: SW-006150 | D59: Active (Above Ground) | E59: Wastewater Treatment | F59: KSTP Process Chemcial Dosing Storage Structure Awning | G59: Chemical Store | L59: 0 | M59: 59535 | O59: 1 | P59: 59535 | S59: =IF(Q59="",'Unit Rates - Land'!landcst,IF($E$8="Landuse",VLOOKUP(Q59,LAndcost3,2,FALSE),IF($E$8="Location",VLOOKUP(Q59,Landcost2,2,FALSE),"Error"))) -> 10 | T59: 0 | U59: 2016 | V59: =IFERROR(('General Input Sheet'!$G$38/(VLOOKUP(U59,'General Input Sheet'!$E$38:$G$44,3,FALSE))),1) -> 1 | W59: 59535 | Z59: y | BE59: 2242 | CG59: 2242 | CK59: 59535 | DN59: Kuranda
B60: SW-006154 | D60: Active (Above Ground) | E60: Wastewater Treatment | F60: KSTP RAS System Pump Local Control Panels | G60: RAS System | L60: 0 | M60: 11340 | O60: 1 | P60: 11340 | S60: =IF(Q60="",'Unit Rates - Land'!landcst,IF($E$8="Landuse",VLOOKUP(Q60,LAndcost3,2,FALSE),IF($E$8="Location",VLOOKUP(Q60,Landcost2,2,FALSE),"Error"))) -> 10 | T60: 0 | U60: 2016 | V60: =IFERROR(('General Input Sheet'!$G$38/(VLOOKUP(U60,'General Input Sheet'!$E$38:$G$44,3,FALSE))),1) -> 1 | W60: 11340 | Z60: y | BE60: 2242 | CG60: 2242 | CK60: 11340 | DN60: Kuranda
B61: SW-006156 | D61: Active (Above Ground) | E61: Wastewater Treatment | F61: KSTP RAS System Switchboard | G61: RAS System | L61: 0 | M61: 32602.5 | O61: 1 | P61: 32602.5 | S61: =IF(Q61="",'Unit Rates - Land'!landcst,IF($E$8="Landuse",VLOOKUP(Q61,LAndcost3,2,FALSE),IF($E$8="Location",VLOOKUP(Q61,Landcost2,2,FALSE),"Error"))) -> 10 | T61: 0 | U61: 2016 | V61: =IFERROR(('General Input Sheet'!$G$38/(VLOOKUP(U61,'General Input Sheet'!$E$38:$G$44,3,FALSE))),1) -> 1 | W61: 32602.5 | Z61: y | BE61: 2242 | CG61: 2242 | CK61: 32602.5 | DN61: Kuranda
B62: SW-006167 | D62: Active (Above Ground) | E62: Wastewater Treatment | F62: KSTP Sodium Hydroxide Dosing Local Control Panel | G62: Sodium Hydroxide Dosing | L62: 0 | M62: 4961.25 | O62: 1 | P62: 4961.25 | S62: =IF(Q62="",'Unit Rates - Land'!landcst,IF($E$8="Landuse",VLOOKUP(Q62,LAndcost3,2,FALSE),IF($E$8="Location",VLOOKUP(Q62,Landcost2,2,FALSE),"Error"))) -> 10 | T62: 0 | U62: 2016 | V62: =IFERROR(('General Input Sheet'!$G$38/(VLOOKUP(U62,'General Input Sheet'!$E$38:$G$44,3,FALSE))),1) -> 1 | W62: 4961.25 | Z62: y | BE62: 2242 | CG62: 2242 | CK62: 4961.25 | DN62: Kuranda
B63: SW-006151 | D63: Active (Above Ground) | E63: Wastewater Treatment | F63: KSTP Process Chemcial Dosing Storage Structure Bunded Area | G63: Chemical Store | L63: 0 | M63: 31185 | O63: 1 | P63: 31185 | S63: =IF(Q63="",'Unit Rates - Land'!landcst,IF($E$8="Landuse",VLOOKUP(Q63,LAndcost3,2,FALSE),IF($E$8="Location",VLOOKUP(Q63,Landcost2,2,FALSE),"Error"))) -> 10 | T63: 0 | U63: 2016 | V63: =IFERROR(('General Input Sheet'!$G$38/(VLOOKUP(U63,'General Input Sheet'!$E$38:$G$44,3,FALSE))),1) -> 1 | W63: 31185 | Z63: y | BE63: 2242 | CG63: 2242 | CK63: 31185 | CX63: =IF(BR63="","",(BR63/$CG63)*$W63) ->  | DN63: Kuranda
B64: SW-006149 | D64: Active (Above Ground) | E64: Wastewater Treatment | F64: KSTP Process Chemcial Delivery Area and Hardstand | G64: Chemical Store | L64: 0 | M64: 38272.5 | O64: 1 | P64: 38272.5 | S64: =IF(Q64="",'Unit Rates - Land'!landcst,IF($E$8="Landuse",VLOOKUP(Q64,LAndcost3,2,FALSE),IF($E$8="Location",VLOOKUP(Q64,Landcost2,2,FALSE),"Error"))) -> 10 | T64: 0 | U64: 2016 | V64: =IFERROR(('General Input Sheet'!$G$38/(VLOOKUP(U64,'General Input Sheet'!$E$38:$G$44,3,FALSE))),1) -> 1 | W64: 38272.5 | Z64: y | BE64: 2242 | CG64: 2242 | CI64: =IF(BC64="","",(BC64/$CG64)*$W64) ->  | CK64: 38272.5 | DN64: Kuranda
B65: SW-006129 | D65: Active (Above Ground) | E65: Wastewater Treatment | F65: KSTP Effluent Chemcial Dosing Storage Structure | G65: Chemical Store | L65: 0 | M65: 12119.625 | O65: 1 | P65: 12119.625 | S65: =IF(Q65="",'Unit Rates - Land'!landcst,IF($E$8="Landuse",VLOOKUP(Q65,LAndcost3,2,FALSE),IF($E$8="Location",VLOOKUP(Q65,Landcost2,2,FALSE),"Error"))) -> 10 | T65: 0 | U65: 2016 | V65: =IFERROR(('General Input Sheet'!$G$38/(VLOOKUP(U65,'General Input Sheet'!$E$38:$G$44,3,FALSE))),1) -> 1 | W65: 12119.625 | Z65: y | BC65: =IF(X65="y",BC$14,IF(AND(X65>0,X65<=1),X65*BC$14,"")) ->  | BE65: 2242 | CD65: =IF(AY65="y",CD$14,IF(AND(AY65>0,AY65<=1),AY65*CD$14,"")) ->  | CG65: 2242 | CK65: 12119.625 | DN65: Kuranda
B66: SW-006171 | D66: Active (Above Ground) | E66: Wastewater Treatment | F66: KSTP Sodium Hydroxide Storage Tank Level Meter | G66: Sodium Hydroxide Dosing | L66: 0 | M66: 7087.5 | O66: 1 | P66: 7087.5 | S66: =IF(Q66="",'Unit Rates - Land'!landcst,IF($E$8="Landuse",VLOOKUP(Q66,LAndcost3,2,FALSE),IF($E$8="Location",VLOOKUP(Q66,Landcost2,2,FALSE),"Error"))) -> 10 | T66: 0 | U66: 2016 | V66: =IFERROR(('General Input Sheet'!$G$38/(VLOOKUP(U66,'General Input Sheet'!$E$38:$G$44,3,FALSE))),1) -> 1 | W66: 7087.5 | Z66: y | BE66: 2242 | CG66: 2242 | CK66: 7087.5 | DN66: Kuranda
B67: SW-005733 | D67: Active (Above Ground) | E67: Wastewater Treatment | F67: KSTP Chlorine Contact Tank and Chemical Storage | G67: Chlorine Dosing | L67: 0 | M67: 63787.5 | O67: 1 | P67: 63787.5 | S67: =IF(Q67="",'Unit Rates - Land'!landcst,IF($E$8="Landuse",VLOOKUP(Q67,LAndcost3,2,FALSE),IF($E$8="Location",VLOOKUP(Q67,Landcost2,2,FALSE),"Error"))) -> 10 | T67: 0 | U67: 2016 | V67: =IFERROR(('General Input Sheet'!$G$38/(VLOOKUP(U67,'General Input Sheet'!$E$38:$G$44,3,FALSE))),1) -> 1 | W67: 63787.5 | Z67: y | BE67: 2242 | CG67: 2242 | CK67: 63787.5 | DG67: =IF(CA67="","",(CA67/$CG67)*$W67) ->  | DN67: Kuranda
B68: SW-006115 | D68: Active (Above Ground) | E68: Wastewater Treatment | F68: KSTP Bioreactor Mechancial | G68: Bioreactor | L68: 0 | M68: 28350 | O68: 1 | P68: 28350 | S68: =IF(Q68="",'Unit Rates - Land'!landcst,IF($E$8="Landuse",VLOOKUP(Q68,LAndcost3,2,FALSE),IF($E$8="Location",VLOOKUP(Q68,Landcost2,2,FALSE),"Error"))) -> 10 | T68: 0 | U68: 2016 | V68: =IFERROR(('General Input Sheet'!$G$38/(VLOOKUP(U68,'General Input Sheet'!$E$38:$G$44,3,FALSE))),1) -> 1 | W68: 28350 | Z68: y | BE68: 2242 | CG68: 2242 | CK68: 28350 | DN68: Kuranda
B69: SW-005732 | D69: Active (Above Ground) | E69: Wastewater Treatment | F69: KSTP Clarifier Structure | G69: Clarifier | L69: 0 | M69: 380828.9754 | O69: 1 | P69: 380828.9754 | S69: =IF(Q69="",'Unit Rates - Land'!landcst,IF($E$8="Landuse",VLOOKUP(Q69,LAndcost3,2,FALSE),IF($E$8="Location",VLOOKUP(Q69,Landcost2,2,FALSE),"Error"))) -> 10 | T69: 0 | U69: 2016 | V69: =IFERROR(('General Input Sheet'!$G$38/(VLOOKUP(U69,'General Input Sheet'!$E$38:$G$44,3,FALSE))),1) -> 1 | W69: 380828.9754 | Z69: y | BE69: 2242 | CG69: 2242 | CK69: 380828.9754 | DN69: Kuranda
B70: SW-006119 | D70: Active (Above Ground) | E70: Wastewater Treatment | F70: KSTP Chlorine Contact Tank Mechanical | G70: Chlorine Dosing | L70: 0 | M70: 35437.5 | O70: 1 | P70: 35437.5 | S70: =IF(Q70="",'Unit Rates - Land'!landcst,IF($E$8="Landuse",VLOOKUP(Q70,LAndcost3,2,FALSE),IF($E$8="Location",VLOOKUP(Q70,Landcost2,2,FALSE),"Error"))) -> 10 | T70: 0 | U70: 2016 | V70: =IFERROR(('General Input Sheet'!$G$38/(VLOOKUP(U70,'General Input Sheet'!$E$38:$G$44,3,FALSE))),1) -> 1 | W70: 35437.5 | Z70: y | BE70: 2242 | CG70: 2242 | CK70: 35437.5 | DN70: Kuranda
B71: SW-006123 | D71: Active (Above Ground) | E71: Wastewater Treatment | F71: KSTP Clarifier Mechanical Rotating Bridge | G71: Clarifier | L71: 0 | M71: 113400 | O71: 1 | P71: 113400 | S71: =IF(Q71="",'Unit Rates - Land'!landcst,IF($E$8="Landuse",VLOOKUP(Q71,LAndcost3,2,FALSE),IF($E$8="Location",VLOOKUP(Q71,Landcost2,2,FALSE),"Error"))) -> 10 | T71: 0 | U71: 2016 | V71: =IFERROR(('General Input Sheet'!$G$38/(VLOOKUP(U71,'General Input Sheet'!$E$38:$G$44,3,FALSE))),1) -> 1 | W71: 113400 | Z71: y | BE71: 2242 | CG71: 2242 | CK71: 113400 | DN71: Kuranda
B72: SW-006125 | D72: Active (Above Ground) | E72: Wastewater Treatment | F72: KSTP Clarifier Walkway Structure | G72: Clarifier | L72: 0 | M72: 71442 | O72: 1 | P72: 71442 | S72: =IF(Q72="",'Unit Rates - Land'!landcst,IF($E$8="Landuse",VLOOKUP(Q72,LAndcost3,2,FALSE),IF($E$8="Location",VLOOKUP(Q72,Landcost2,2,FALSE),"Error"))) -> 10 | T72: 0 | U72: 2016 | V72: =IFERROR(('General Input Sheet'!$G$38/(VLOOKUP(U72,'General Input Sheet'!$E$38:$G$44,3,FALSE))),1) -> 1 | W72: 71442 | Z72: y | BE72: 2242 | CG72: 2242 | CK72: 71442 | DN72: Kuranda
B73: SW-006139 | D73: Active (Above Ground) | E73: Wastewater Treatment | F73: KSTP Inlet Structure Steel Supports and walkway | G73: Inlet Works | L73: 0 | M73: 21262.5 | O73: 1 | P73: 21262.5 | S73: =IF(Q73="",'Unit Rates - Land'!landcst,IF($E$8="Landuse",VLOOKUP(Q73,LAndcost3,2,FALSE),IF($E$8="Location",VLOOKUP(Q73,Landcost2,2,FALSE),"Error"))) -> 10 | T73: 0 | U73: 2016 | V73: =IFERROR(('General Input Sheet'!$G$38/(VLOOKUP(U73,'General Input Sheet'!$E$38:$G$44,3,FALSE))),1) -> 1 | W73: 21262.5 | Z73: y | BE73: 2242 | CG73: 2242 | CK73: 21262.5 | DN73: Kuranda
B74: SW-006124 | D74: Active (Above Ground) | E74: Wastewater Treatment | F74: KSTP Clarifier Structure Internal Coating | G74: Clarifier | L74: 0 | M74: 16357.95 | O74: 1 | P74: 16357.95 | S74: =IF(Q74="",'Unit Rates - Land'!landcst,IF($E$8="Landuse",VLOOKUP(Q74,LAndcost3,2,FALSE),IF($E$8="Location",VLOOKUP(Q74,Landcost2,2,FALSE),"Error"))) -> 10 | T74: 0 | U74: 2016 | V74: =IFERROR(('General Input Sheet'!$G$38/(VLOOKUP(U74,'General Input Sheet'!$E$38:$G$44,3,FALSE))),1) -> 1 | W74: 16357.95 | Z74: y | BE74: 2242 | CG74: 2242 | CK74: 16357.95 | DN74: Kuranda
B75: SW-006141 | D75: Active (Above Ground) | E75: Wastewater Treatment | F75: KSTP Liquid Alum Dosing Mechanical | G75: Liquid Alum Dosing | L75: 0 | M75: 21262.5 | O75: 1 | P75: 21262.5 | S75: =IF(Q75="",'Unit Rates - Land'!landcst,IF($E$8="Landuse",VLOOKUP(Q75,LAndcost3,2,FALSE),IF($E$8="Location",VLOOKUP(Q75,Landcost2,2,FALSE),"Error"))) -> 10 | T75: 0 | U75: 2016 | V75: =IFERROR(('General Input Sheet'!$G$38/(VLOOKUP(U75,'General Input Sheet'!$E$38:$G$44,3,FALSE))),1) -> 1 | W75: 21262.5 | Z75: y | BE75: 2242 | CG75: 2242 | CK75: 21262.5 | DN75: Kuranda
B76: SW-006146 | D76: Active (Above Ground) | E76: Wastewater Treatment | F76: KSTP Oxygenated Ditch Mechanical | G76: Oxidation Channel | L76: 0 | M76: 35437.5 | O76: 1 | P76: 35437.5 | S76: =IF(Q76="",'Unit Rates - Land'!landcst,IF($E$8="Landuse",VLOOKUP(Q76,LAndcost3,2,FALSE),IF($E$8="Location",VLOOKUP(Q76,Landcost2,2,FALSE),"Error"))) -> 10 | T76: 0 | U76: 2016 | V76: =IFERROR(('General Input Sheet'!$G$38/(VLOOKUP(U76,'General Input Sheet'!$E$38:$G$44,3,FALSE))),1) -> 1 | W76: 35437.5 | Z76: y | BE76: 2242 | CG76: 2242 | CK76: 35437.5 | DN76: Kuranda
B77: SW-005731 | D77: Active (Above Ground) | E77: Wastewater Treatment | F77: KSTP Inlet Structure Stainless Steel Channel | G77: Inlet Works | L77: 0 | M77: 49612.5 | O77: 1 | P77: 49612.5 | S77: =IF(Q77="",'Unit Rates - Land'!landcst,IF($E$8="Landuse",VLOOKUP(Q77,LAndcost3,2,FALSE),IF($E$8="Location",VLOOKUP(Q77,Landcost2,2,FALSE),"Error"))) -> 10 | T77: 0 | U77: 2016 | V77: =IFERROR(('General Input Sheet'!$G$38/(VLOOKUP(U77,'General Input Sheet'!$E$38:$G$44,3,FALSE))),1) -> 1 | W77: 49612.5 | Z77: y | BE77: 2242 | CG77: 2242 | CK77: 49612.5 | DN77: Kuranda
B78: SW-006158 | D78: Active (Above Ground) | E78: Wastewater Treatment | F78: KSTP RAS System Wet Well Mechanical | G78: RAS System | L78: 0 | M78: 14175 | O78: 1 | P78: 14175 | S78: =IF(Q78="",'Unit Rates - Land'!landcst,IF($E$8="Landuse",VLOOKUP(Q78,LAndcost3,2,FALSE),IF($E$8="Location",VLOOKUP(Q78,Landcost2,2,FALSE),"Error"))) -> 10 | T78: 0 | U78: 2016 | V78: =IFERROR(('General Input Sheet'!$G$38/(VLOOKUP(U78,'General Input Sheet'!$E$38:$G$44,3,FALSE))),1) -> 1 | W78: 14175 | Z78: y | BE78: 2242 | CG78: 2242 | CK78: 14175 | DN78: Kuranda
B79: SW-006133 | D79: Active (Above Ground) | E79: Wastewater Treatment | F79: KSTP Inlet Civil Structures | G79: Inlet Works | L79: =IF(H79=SewerTYPE1,VLOOKUP(J79,SewerUnitrates1,2,FALSE),IF(H79=SEWERTYPE2,VLOOKUP((J79&"_"&K79),Sewerrates2,2,FALSE),0)) -> 0 | M79: 14175 | O79: =IF(N79="",1,VLOOKUP(N79,Sewersitecond,2,FALSE)) -> 1 | P79: 14175 | S79: =IF(Q79="",'Unit Rates - Land'!landcst,IF($E$8="Landuse",VLOOKUP(Q79,LAndcost3,2,FALSE),IF($E$8="Location",VLOOKUP(Q79,Landcost2,2,FALSE),"Error"))) -> 10 | T79: 0 | U79: 2016 | V79: =IFERROR(('General Input Sheet'!$G$38/(VLOOKUP(U79,'General Input Sheet'!$E$38:$G$44,3,FALSE))),1) -> 1 | W79: 14175 | Z79: y | BE79: 2242 | CG79: 2242 | CK79: 14175 | DN79: Kuranda
B80: SW-006168 | D80: Active (Above Ground) | E80: Wastewater Treatment | F80: KSTP Sodium Hydroxide Dosing Mechanical | G80: Sodium Hydroxide Dosing | L80: 0 | M80: 19845 | O80: 1 | P80: =IF(M80="","",M80*O80) -> 19845 | S80: =IF(Q80="",'Unit Rates - Land'!landcst,IF($E$8="Landuse",VLOOKUP(Q80,LAndcost3,2,FALSE),IF($E$8="Location",VLOOKUP(Q80,Landcost2,2,FALSE),"Error"))) -> 10 | T80: =IF(S80="",0,S80*10000*R80) -> 0 | U80: 2016 | V80: =IFERROR(('General Input Sheet'!$G$38/(VLOOKUP(U80,'General Input Sheet'!$E$38:$G$44,3,FALSE))),1) -> 1 | W80: =IFERROR((P80+T80)*V80,0) -> 19845 | Z80: y | BE80: 2242 | CG80: 2242 | CK80: 19845 | DN80: Kuranda
B81: SW-006138 | D81: Active (Above Ground) | E81: Wastewater Treatment | F81: KSTP Inlet Stainless Overflow Bypass Chamber | G81: Inlet Works | L81: 0 | M81: 17010 | O81: 1 | P81: 17010 | S81: =IF(Q81="",'Unit Rates - Land'!landcst,IF($E$8="Landuse",VLOOKUP(Q81,LAndcost3,2,FALSE),IF($E$8="Location",VLOOKUP(Q81,Landcost2,2,FALSE),"Error"))) -> 10 | T81: 0 | U81: 2016 | V81: =IFERROR(('General Input Sheet'!$G$38/(VLOOKUP(U81,'General Input Sheet'!$E$38:$G$44,3,FALSE))),1) -> 1 | W81: 17010 | Z81: y | BE81: 2242 | CG81: 2242 | CI81: =IF(BC81="","",(BC81/$CG81)*$W81) ->  | CK81: 17010
B82: SW-005734 | D82: Active (Above Ground) | E82: Wastewater Treatment | F82: KSTP Solid Stream Storage Lagoon 1 | G82: Lagoon | L82: 0 | M82: 30873.15 | O82: 1 | P82: 30873.15 | S82: =IF(Q82="",'Unit Rates - Land'!landcst,IF($E$8="Landuse",VLOOKUP(Q82,LAndcost3,2,FALSE),IF($E$8="Location",VLOOKUP(Q82,Landcost2,2,FALSE),"Error"))) -> 10 | T82: 0 | U82: 2016 | V82: =IFERROR(('General Input Sheet'!$G$38/(VLOOKUP(U82,'General Input Sheet'!$E$38:$G$44,3,FALSE))),1) -> 1 | W82: 30873.15 | Z82: y | BC82: =IF(X82="y",BC$14,IF(AND(X82>0,X82<=1),X82*BC$14,"")) ->  | BE82: 2242 | CG82: =SUM(BC82:CF82) -> 2242 | CK82: 30873.15 | DM82: =IF(SUM(CI82:DL82)=W82,"","ERROR") -> 
B83: SW-006172 | D83: Active (Above Ground) | E83: Wastewater Treatment | F83: KSTP Solid Stream Storage Lagoon 2 | G83: Lagoon | L83: 0 | M83: 20667.15 | O83: 1 | P83: 20667.15 | S83: =IF(Q83="",'Unit Rates - Land'!landcst,IF($E$8="Landuse",VLOOKUP(Q83,LAndcost3,2,FALSE),IF($E$8="Location",VLOOKUP(Q83,Landcost2,2,FALSE),"Error"))) -> 10 | T83: 0 | U83: 2016 | V83: =IFERROR(('General Input Sheet'!$G$38/(VLOOKUP(U83,'General Input Sheet'!$E$38:$G$44,3,FALSE))),1) -> 1 | W83: 20667.15 | Z83: y | BE83: 2242 | CG83: 2242 | CK83: 20667.15
B84: SW-005735 | D84: Active (Above Ground) | E84: Wastewater Treatment | F84: KSTP Oxygenated Ditch Structure | G84: Oxidation Channel | L84: 0 | M84: 327499.2 | O84: 1 | P84: 327499.2 | S84: =IF(Q84="",'Unit Rates - Land'!landcst,IF($E$8="Landuse",VLOOKUP(Q84,LAndcost3,2,FALSE),IF($E$8="Location",VLOOKUP(Q84,Landcost2,2,FALSE),"Error"))) -> 10 | T84: 0 | U84: 2016 | V84: =IFERROR(('General Input Sheet'!$G$38/(VLOOKUP(U84,'General Input Sheet'!$E$38:$G$44,3,FALSE))),1) -> 1 | W84: 327499.2 | Z84: y | BE84: 2242 | CG84: 2242 | CK84: 327499.2
B85: SW-006157 | D85: Active (Above Ground) | E85: Wastewater Treatment | F85: KSTP RAS System Wet Well | G85: RAS System | L85: 0 | M85: 35437.5 | O85: 1 | P85: 35437.5 | S85: =IF(Q85="",'Unit Rates - Land'!landcst,IF($E$8="Landuse",VLOOKUP(Q85,LAndcost3,2,FALSE),IF($E$8="Location",VLOOKUP(Q85,Landcost2,2,FALSE),"Error"))) -> 10 | T85: 0 | U85: 2016 | V85: =IFERROR(('General Input Sheet'!$G$38/(VLOOKUP(U85,'General Input Sheet'!$E$38:$G$44,3,FALSE))),1) -> 1 | W85: 35437.5 | Z85: y | BE85: 2242 | CG85: 2242 | CK85: 35437.5
B86: SW-006137 | D86: Active (Above Ground) | E86: Wastewater Treatment | F86: KSTP Inlet Pipework | G86: Inlet Works | L86: 0 | M86: 25515 | O86: 1 | P86: 25515 | S86: =IF(Q86="",'Unit Rates - Land'!landcst,IF($E$8="Landuse",VLOOKUP(Q86,LAndcost3,2,FALSE),IF($E$8="Location",VLOOKUP(Q86,Landcost2,2,FALSE),"Error"))) -> 10 | T86: 0 | U86: 2016 | V86: =IFERROR(('General Input Sheet'!$G$38/(VLOOKUP(U86,'General Input Sheet'!$E$38:$G$44,3,FALSE))),1) -> 1 | W86: 25515 | Z86: y | BE86: 2242 | BX86: =IF(AS86="y",BX$14,IF(AND(AS86>0,AS86<=1),AS86*BX$14,"")) ->  | CG86: 2242 | CK86: 25515
B87: SW-006166 | D87: Active (Above Ground) | E87: Wastewater Treatment | F87: KSTP Sitewide Process Pipework | G87: Process | L87: 0 | M87: 354375 | O87: 1 | P87: 354375 | S87: =IF(Q87="",'Unit Rates - Land'!landcst,IF($E$8="Landuse",VLOOKUP(Q87,LAndcost3,2,FALSE),IF($E$8="Location",VLOOKUP(Q87,Landcost2,2,FALSE),"Error"))) -> 10 | T87: 0 | U87: 2016 | V87: =IFERROR(('General Input Sheet'!$G$38/(VLOOKUP(U87,'General Input Sheet'!$E$38:$G$44,3,FALSE))),1) -> 1 | W87: 354375 | Z87: y | BE87: 2242 | BS87: =IF(AN87="y",BS$14,IF(AND(AN87>0,AN87<=1),AN87*BS$14,"")) ->  | CG87: 2242 | CK87: 354375
B88: SW-006174 | D88: Active (Above Ground) | E88: Wastewater Treatment | F88: KSTP Stormwater Structures | G88: Stormwater | L88: 0 | M88: 25515 | O88: 1 | P88: 25515 | S88: =IF(Q88="",'Unit Rates - Land'!landcst,IF($E$8="Landuse",VLOOKUP(Q88,LAndcost3,2,FALSE),IF($E$8="Location",VLOOKUP(Q88,Landcost2,2,FALSE),"Error"))) -> 10 | T88: 0 | U88: 2016 | V88: =IFERROR(('General Input Sheet'!$G$38/(VLOOKUP(U88,'General Input Sheet'!$E$38:$G$44,3,FALSE))),1) -> 1 | W88: 25515 | Z88: y | BE88: 2242 | CG88: 2242 | CK88: 25515
B89: SW-006176 | D89: Active (Above Ground) | E89: Wastewater Treatment | F89: KSTP WAS Awning Structure | G89: WAS System | L89: 0 | M89: 2126.25 | O89: 1 | P89: 2126.25 | S89: =IF(Q89="",'Unit Rates - Land'!landcst,IF($E$8="Landuse",VLOOKUP(Q89,LAndcost3,2,FALSE),IF($E$8="Location",VLOOKUP(Q89,Landcost2,2,FALSE),"Error"))) -> 10 | T89: 0 | U89: 2016 | V89: =IFERROR(('General Input Sheet'!$G$38/(VLOOKUP(U89,'General Input Sheet'!$E$38:$G$44,3,FALSE))),1) -> 1 | W89: 2126.25 | Z89: y | BE89: 2242 | CG89: 2242 | CK89: 2126.25
B90: SW-006153 | D90: Active (Above Ground) | E90: Wastewater Treatment | F90: KSTP RAS System Pipework | G90: RAS System | L90: 0 | M90: 21262.5 | O90: 1 | P90: 21262.5 | S90: =IF(Q90="",'Unit Rates - Land'!landcst,IF($E$8="Landuse",VLOOKUP(Q90,LAndcost3,2,FALSE),IF($E$8="Location",VLOOKUP(Q90,Landcost2,2,FALSE),"Error"))) -> 10 | T90: 0 | U90: 2016 | V90: =IFERROR(('General Input Sheet'!$G$38/(VLOOKUP(U90,'General Input Sheet'!$E$38:$G$44,3,FALSE))),1) -> 1 | W90: 21262.5 | Z90: y | BE90: 2242 | CG90: 2242 | CK90: 21262.5
B91: SW-006121 | D91: Active (Above Ground) | E91: Wastewater Treatment | F91: KSTP Chlorine Storage Tanks | G91: Chlorine Dosing | L91: 0 | M91: 28350 | O91: 1 | P91: 28350 | S91: =IF(Q91="",'Unit Rates - Land'!landcst,IF($E$8="Landuse",VLOOKUP(Q91,LAndcost3,2,FALSE),IF($E$8="Location",VLOOKUP(Q91,Landcost2,2,FALSE),"Error"))) -> 10 | T91: 0 | U91: 2016 | V91: =IFERROR(('General Input Sheet'!$G$38/(VLOOKUP(U91,'General Input Sheet'!$E$38:$G$44,3,FALSE))),1) -> 1 | W91: 28350 | Z91: y | BE91: 2242 | CG91: 2242 | CK91: 28350
B92: SW-006143 | D92: Active (Above Ground) | E92: Wastewater Treatment | F92: KSTP Liquid Alum Storage Tank | G92: Liquid Alum Dosing | L92: 0 | M92: 7087.5 | O92: 1 | P92: 7087.5 | S92: =IF(Q92="",'Unit Rates - Land'!landcst,IF($E$8="Landuse",VLOOKUP(Q92,LAndcost3,2,FALSE),IF($E$8="Location",VLOOKUP(Q92,Landcost2,2,FALSE),"Error"))) -> 10 | T92: 0 | U92: 2016 | V92: =IFERROR(('General Input Sheet'!$G$38/(VLOOKUP(U92,'General Input Sheet'!$E$38:$G$44,3,FALSE))),1) -> 1 | W92: 7087.5 | Z92: y | BE92: 2242 | CG92: 2242 | CK92: 7087.5
B93: SW-006170 | D93: Active (Above Ground) | E93: Wastewater Treatment | F93: KSTP Sodium Hydroxide Storage Tank | G93: Sodium Hydroxide Dosing | L93: 0 | M93: 7087.5 | O93: 1 | P93: 7087.5 | S93: =IF(Q93="",'Unit Rates - Land'!landcst,IF($E$8="Landuse",VLOOKUP(Q93,LAndcost3,2,FALSE),IF($E$8="Location",VLOOKUP(Q93,Landcost2,2,FALSE),"Error"))) -> 10 | T93: 0 | U93: 2016 | V93: =IFERROR(('General Input Sheet'!$G$38/(VLOOKUP(U93,'General Input Sheet'!$E$38:$G$44,3,FALSE))),1) -> 1 | W93: 7087.5 | Z93: y | BE93: 2242 | CG93: 2242 | CK93: 7087.5
B94: SW-006152 | D94: Active (Above Ground) | E94: Wastewater Treatment | F94: KSTP RAS System Assorted valves | G94: RAS System | L94: 0 | M94: 11340 | O94: 1 | P94: 11340 | S94: =IF(Q94="",'Unit Rates - Land'!landcst,IF($E$8="Landuse",VLOOKUP(Q94,LAndcost3,2,FALSE),IF($E$8="Location",VLOOKUP(Q94,Landcost2,2,FALSE),"Error"))) -> 10 | T94: 0 | U94: 2016 | V94: =IFERROR(('General Input Sheet'!$G$38/(VLOOKUP(U94,'General Input Sheet'!$E$38:$G$44,3,FALSE))),1) -> 1 | W94: 11340 | Z94: y | BE94: 2242 | CG94: 2242 | CK94: 11340
B95: SW-006175 | D95: Active (Above Ground) | E95: Wastewater Treatment | F95: KSTP WAS Auto Valve | G95: WAS System | L95: 0 | M95: 12757.5 | O95: 1 | P95: 12757.5 | S95: =IF(Q95="",'Unit Rates - Land'!landcst,IF($E$8="Landuse",VLOOKUP(Q95,LAndcost3,2,FALSE),IF($E$8="Location",VLOOKUP(Q95,Landcost2,2,FALSE),"Error"))) -> 10 | T95: 0 | U95: 2016 | V95: =IFERROR(('General Input Sheet'!$G$38/(VLOOKUP(U95,'General Input Sheet'!$E$38:$G$44,3,FALSE))),1) -> 1 | W95: 12757.5 | Z95: y | BE95: 2242 | CG95: 2242 | CK95: 12757.5 | DE95: =IF(BY95="","",(BY95/$CG95)*$W95) -> 
B96: SW-006371 | D96: Active (Above Ground) | E96: Wastewater Treatment | F96: MWWR Portable generator load bank | G96: Generator | L96: 0 | M96: 11550 | O96: 1 | P96: 11550 | S96: =IF(Q96="",'Unit Rates - Land'!landcst,IF($E$8="Landuse",VLOOKUP(Q96,LAndcost3,2,FALSE),IF($E$8="Location",VLOOKUP(Q96,Landcost2,2,FALSE),"Error"))) -> 10 | T96: 0 | U96: 2016 | V96: =IFERROR(('General Input Sheet'!$G$38/(VLOOKUP(U96,'General Input Sheet'!$E$38:$G$44,3,FALSE))),1) -> 1 | W96: 11550 | Z96: y | BE96: 2242 | CG96: 2242 | CK96: 11550 | CY96: =IF(BS96="","",(BS96/$CG96)*$W96) -> 
B97: SW-006178 | D97: Active (Above Ground) | E97: Wastewater Treatment | F97: KSTP WAS Pipework | G97: WAS System | L97: 0 | M97: 9922.5 | O97: 1 | P97: 9922.5 | S97: =IF(Q97="",'Unit Rates - Land'!landcst,IF($E$8="Landuse",VLOOKUP(Q97,LAndcost3,2,FALSE),IF($E$8="Location",VLOOKUP(Q97,Landcost2,2,FALSE),"Error"))) -> 10 | T97: 0 | U97: 2016 | V97: =IFERROR(('General Input Sheet'!$G$38/(VLOOKUP(U97,'General Input Sheet'!$E$38:$G$44,3,FALSE))),1) -> 1 | W97: 9922.5 | Z97: y | BE97: 2242 | CG97: 2242 | CK97: 9922.5 | CW97: =IF(BQ97="","",(BQ97/$CG97)*$W97) -> 
B98: SW-006201 | D98: Active (Above Ground) | E98: Wastewater Treatment | F98: MSTP Effluent Outflow Channel | G98: Effluent Channel | L98: 0 | M98: 140332.5 | O98: 1 | P98: 140332.5 | S98: =IF(Q98="",'Unit Rates - Land'!landcst,IF($E$8="Landuse",VLOOKUP(Q98,LAndcost3,2,FALSE),IF($E$8="Location",VLOOKUP(Q98,Landcost2,2,FALSE),"Error"))) -> 10 | T98: 0 | U98: 2016 | V98: =IFERROR(('General Input Sheet'!$G$38/(VLOOKUP(U98,'General Input Sheet'!$E$38:$G$44,3,FALSE))),1) -> 1 | W98: 140332.5 | AA98: y | BF98: 10371 | BG98: =IF(AB98="y",BG$14,IF(AND(AB98>0,AB98<=1),AB98*BG$14,"")) ->  | CG98: 10371 | CI98: =IF(BC98="","",(BC98/$CG98)*$W98) ->  | CL98: 140332.5
B99: SW-005874 | D99: Active (Above Ground) | E99: Wastewater Treatment | F99: MSTP Advanced Secondary Treatment Tank 2 Structure | G99: Hummus Tank 2 | L99: 0 | M99: 519750 | O99: 1 | P99: 519750 | S99: =IF(Q99="",'Unit Rates - Land'!landcst,IF($E$8="Landuse",VLOOKUP(Q99,LAndcost3,2,FALSE),IF($E$8="Location",VLOOKUP(Q99,Landcost2,2,FALSE),"Error"))) -> 10 | T99: 0 | U99: 2016 | V99: =IFERROR(('General Input Sheet'!$G$38/(VLOOKUP(U99,'General Input Sheet'!$E$38:$G$44,3,FALSE))),1) -> 1 | W99: 519750 | AA99: y | BC99: =IF(X99="y",BC$14,IF(AND(X99>0,X99<=1),X99*BC$14,"")) ->  | BF99: 10371 | CG99: 10371 | CL99: 519750
B100: SW-006198 | D100: Active (Above Ground) | E100: Wastewater Treatment | F100: MSTP Advanced Secondary Treatment Tank 2 Electrical | G100: Hummus Tank 2 | L100: 0 | M100: 17820 | O100: 1 | P100: 17820 | S100: =IF(Q100="",'Unit Rates - Land'!landcst,IF($E$8="Landuse",VLOOKUP(Q100,LAndcost3,2,FALSE),IF($E$8="Location",VLOOKUP(Q100,Landcost2,2,FALSE),"Error"))) -> 10 | T100: 0 | U100: 2016 | V100: =IFERROR(('General Input Sheet'!$G$38/(VLOOKUP(U100,'General Input Sheet'!$E$38:$G$44,3,FALSE))),1) -> 1 | W100: 17820 | AA100: y | BF100: 10371 | CG100: 10371 | CL100: 17820
B101: SW-006200 | D101: Active (Above Ground) | E101: Wastewater Treatment | F101: MSTP Advanced Secondary Treatment Tank 2 Rotating Scraper Bridge | G101: Hummus Tank 2 | L101: 0 | M101: 133650 | O101: 1 | P101: 133650 | S101: =IF(Q101="",'Unit Rates - Land'!landcst,IF($E$8="Landuse",VLOOKUP(Q101,LAndcost3,2,FALSE),IF($E$8="Location",VLOOKUP(Q101,Landcost2,2,FALSE),"Error"))) -> 10 | T101: 0 | U101: 2016 | V101: =IFERROR(('General Input Sheet'!$G$38/(VLOOKUP(U101,'General Input Sheet'!$E$38:$G$44,3,FALSE))),1) -> 1 | W101: 133650 | AA101: y | BF101: 10371 | CG101: 10371 | CL101: 133650
B102: SW-006199 | D102: Active (Above Ground) | E102: Wastewater Treatment | F102: MSTP Advanced Secondary Treatment Tank 2 Mechanical | G102: Hummus Tank 2 | L102: 0 | M102: 51975 | O102: 1 | P102: 51975 | S102: =IF(Q102="",'Unit Rates - Land'!landcst,IF($E$8="Landuse",VLOOKUP(Q102,LAndcost3,2,FALSE),IF($E$8="Location",VLOOKUP(Q102,Landcost2,2,FALSE),"Error"))) -> 10 | T102: 0 | U102: 2016 | V102: =IFERROR(('General Input Sheet'!$G$38/(VLOOKUP(U102,'General Input Sheet'!$E$38:$G$44,3,FALSE))),1) -> 1 | W102: 51975 | AA102: y | BF102: 10371 | CG102: 10371 | CL102: 51975
B103: SW-006246 | D103: Active (Above Ground) | E103: Wastewater Treatment | F103: MSTP Septic Receival Station Pipework | G103: Pump Station | L103: 0 | M103: 8910 | O103: 1 | P103: 8910 | S103: =IF(Q103="",'Unit Rates - Land'!landcst,IF($E$8="Landuse",VLOOKUP(Q103,LAndcost3,2,FALSE),IF($E$8="Location",VLOOKUP(Q103,Landcost2,2,FALSE),"Error"))) -> 10 | T103: 0 | U103: 2016 | V103: =IFERROR(('General Input Sheet'!$G$38/(VLOOKUP(U103,'General Input Sheet'!$E$38:$G$44,3,FALSE))),1) -> 1 | W103: 8910 | AA103: y | BF103: 10371 | CG103: 10371 | CL103: 8910
B104: SW-005705 | D104: Active (Above Ground) | E104: Wastewater Treatment | F104: MSTP Septic Receival Station Tank | G104: Pump Station | L104: 0 | M104: 11137.5 | O104: 1 | P104: 11137.5 | S104: =IF(Q104="",'Unit Rates - Land'!landcst,IF($E$8="Landuse",VLOOKUP(Q104,LAndcost3,2,FALSE),IF($E$8="Location",VLOOKUP(Q104,Landcost2,2,FALSE),"Error"))) -> 10 | T104: 0 | U104: 2016 | V104: =IFERROR(('General Input Sheet'!$G$38/(VLOOKUP(U104,'General Input Sheet'!$E$38:$G$44,3,FALSE))),1) -> 1 | W104: 11137.5 | AA104: y | BF104: 10371 | CG104: 10371 | CL104: 11137.5
B105: SW-006248 | D105: Active (Above Ground) | E105: Wastewater Treatment | F105: MSTP Septic Receival Station Switchboard | G105: Pump Station | L105: 0 | M105: 22275 | O105: 1 | P105: 22275 | S105: =IF(Q105="",'Unit Rates - Land'!landcst,IF($E$8="Landuse",VLOOKUP(Q105,LAndcost3,2,FALSE),IF($E$8="Location",VLOOKUP(Q105,Landcost2,2,FALSE),"Error"))) -> 10 | T105: 0 | U105: 2016 | V105: =IFERROR(('General Input Sheet'!$G$38/(VLOOKUP(U105,'General Input Sheet'!$E$38:$G$44,3,FALSE))),1) -> 1 | W105: 22275 | AA105: y | BF105: 10371 | CG105: 10371 | CL105: 22275
B106: SW-006256 | D106: Active (Above Ground) | E106: Wastewater Treatment | F106: MSTP Trade Waste Facility Pump Switchboard | G106: Pump Station | L106: 0 | M106: 11137.5 | O106: 1 | P106: 11137.5 | S106: =IF(Q106="",'Unit Rates - Land'!landcst,IF($E$8="Landuse",VLOOKUP(Q106,LAndcost3,2,FALSE),IF($E$8="Location",VLOOKUP(Q106,Landcost2,2,FALSE),"Error"))) -> 10 | T106: 0 | U106: 2016 | V106: =IFERROR(('General Input Sheet'!$G$38/(VLOOKUP(U106,'General Input Sheet'!$E$38:$G$44,3,FALSE))),1) -> 1 | W106: 11137.5 | AA106: y | BF106: 10371 | CG106: 10371 | CL106: 11137.5
B107: SW-006257 | D107: Active (Above Ground) | E107: Wastewater Treatment | F107: MSTP Trade Waste Facility Screen | G107: Pump Station | L107: 0 | M107: 59400 | O107: 1 | P107: 59400 | S107: =IF(Q107="",'Unit Rates - Land'!landcst,IF($E$8="Landuse",VLOOKUP(Q107,LAndcost3,2,FALSE),IF($E$8="Location",VLOOKUP(Q107,Landcost2,2,FALSE),"Error"))) -> 10 | T107: 0 | U107: 2016 | V107: =IFERROR(('General Input Sheet'!$G$38/(VLOOKUP(U107,'General Input Sheet'!$E$38:$G$44,3,FALSE))),1) -> 1 | W107: 59400 | AA107: y | BF107: 10371 | CG107: 10371 | CL107: 59400
B108: SW-009238 | D108: Active (Above Ground) | E108: Wastewater Treatment | F108: Historian (Stage 2) | L108: 0 | M108: 23980.67 | O108: 1 | P108: 23980.67 | S108: =IF(Q108="",'Unit Rates - Land'!landcst,IF($E$8="Landuse",VLOOKUP(Q108,LAndcost3,2,FALSE),IF($E$8="Location",VLOOKUP(Q108,Landcost2,2,FALSE),"Error"))) -> 10 | T108: 0 | U108: 2016 | V108: =IFERROR(('General Input Sheet'!$G$38/(VLOOKUP(U108,'General Input Sheet'!$E$38:$G$44,3,FALSE))),1) -> 1 | W108: 23980.67 | Z108: y | BE108: 2242 | CG108: 2242 | CK108: 23980.67
B109: SW-009259 | D109: Active (Above Ground) | E109: Wastewater Treatment | F109: KSTP Belt Filter Press | L109: 0 | M109: 114428.47 | O109: 1 | P109: 114428.47 | S109: =IF(Q109="",'Unit Rates - Land'!landcst,IF($E$8="Landuse",VLOOKUP(Q109,LAndcost3,2,FALSE),IF($E$8="Location",VLOOKUP(Q109,Landcost2,2,FALSE),"Error"))) -> 10 | T109: 0 | U109: 2016 | V109: =IFERROR(('General Input Sheet'!$G$38/(VLOOKUP(U109,'General Input Sheet'!$E$38:$G$44,3,FALSE))),1) -> 1 | W109: 114428.47 | Z109: y | BE109: 2242 | CG109: 2242 | CK109: 114428.47
B110: SW-009260 | D110: Active (Above Ground) | E110: Wastewater Treatment | F110: KSTP Sludge Cake Conveyor | L110: 0 | M110: 21001.83 | O110: 1 | P110: 21001.83 | S110: =IF(Q110="",'Unit Rates - Land'!landcst,IF($E$8="Landuse",VLOOKUP(Q110,LAndcost3,2,FALSE),IF($E$8="Location",VLOOKUP(Q110,Landcost2,2,FALSE),"Error"))) -> 10 | T110: 0 | U110: 2016 | V110: =IFERROR(('General Input Sheet'!$G$38/(VLOOKUP(U110,'General Input Sheet'!$E$38:$G$44,3,FALSE))),1) -> 1 | W110: 21001.83 | Z110: y | BE110: 2242 | CG110: 2242 | CK110: 21001.83
B111: SW-009261 | D111: Active (Above Ground) | E111: Wastewater Treatment | F111: KSTP Sludge Facility Shed | L111: 0 | M111: 328072.56 | O111: 1 | P111: 328072.56 | S111: =IF(Q111="",'Unit Rates - Land'!landcst,IF($E$8="Landuse",VLOOKUP(Q111,LAndcost3,2,FALSE),IF($E$8="Location",VLOOKUP(Q111,Landcost2,2,FALSE),"Error"))) -> 10 | T111: 0 | U111: 2016 | V111: =IFERROR(('General Input Sheet'!$G$38/(VLOOKUP(U111,'General Input Sheet'!$E$38:$G$44,3,FALSE))),1) -> 1 | W111: 328072.56 | Z111: y | BE111: 2242 | CG111: 2242 | CK111: 328072.56
B112: SW-009262 | D112: Active (Above Ground) | E112: Wastewater Treatment | F112: KSTP Electrical Switchboard | L112: 0 | M112: 40057.98 | O112: 1 | P112: 40057.98 | S112: =IF(Q112="",'Unit Rates - Land'!landcst,IF($E$8="Landuse",VLOOKUP(Q112,LAndcost3,2,FALSE),IF($E$8="Location",VLOOKUP(Q112,Landcost2,2,FALSE),"Error"))) -> 10 | T112: 0 | U112: 2016 | V112: =IFERROR(('General Input Sheet'!$G$38/(VLOOKUP(U112,'General Input Sheet'!$E$38:$G$44,3,FALSE))),1) -> 1 | W112: 40057.98 | Z112: y | BE112: 2242 | CG112: 2242 | CK112: 40057.98
B113: SW-009263 | D113: Active (Above Ground) | E113: Wastewater Treatment | F113: KSTP Sludge Feed Pump | L113: 0 | M113: 10300.62 | O113: 1 | P113: 10300.62 | S113: =IF(Q113="",'Unit Rates - Land'!landcst,IF($E$8="Landuse",VLOOKUP(Q113,LAndcost3,2,FALSE),IF($E$8="Location",VLOOKUP(Q113,Landcost2,2,FALSE),"Error"))) -> 10 | T113: 0 | U113: 2016 | V113: =IFERROR(('General Input Sheet'!$G$38/(VLOOKUP(U113,'General Input Sheet'!$E$38:$G$44,3,FALSE))),1) -> 1 | W113: 10300.62 | Z113: y | BE113: 2242 | CG113: 2242 | CK113: 10300.62
B114: SW-009264 | D114: Active (Above Ground) | E114: Wastewater Treatment | F114: KSTP Ploymer Batching & Dosing System | L114: 0 | M114: 20601.25 | O114: 1 | P114: 20601.25 | S114: =IF(Q114="",'Unit Rates - Land'!landcst,IF($E$8="Landuse",VLOOKUP(Q114,LAndcost3,2,FALSE),IF($E$8="Location",VLOOKUP(Q114,Landcost2,2,FALSE),"Error"))) -> 10 | T114: 0 | U114: 2016 | V114: =IFERROR(('General Input Sheet'!$G$38/(VLOOKUP(U114,'General Input Sheet'!$E$38:$G$44,3,FALSE))),1) -> 1 | W114: 20601.25 | Z114: y | BE114: 2242 | CG114: 2242 | CK114: 20601.25
B115: SW-009265 | D115: Active (Above Ground) | E115: Wastewater Treatment | F115: KSTP SCADA & Telemetry Control | L115: 0 | M115: 85838.53 | O115: 1 | P115: 85838.53 | S115: =IF(Q115="",'Unit Rates - Land'!landcst,IF($E$8="Landuse",VLOOKUP(Q115,LAndcost3,2,FALSE),IF($E$8="Location",VLOOKUP(Q115,Landcost2,2,FALSE),"Error"))) -> 10 | T115: 0 | U115: 2016 | V115: =IFERROR(('General Input Sheet'!$G$38/(VLOOKUP(U115,'General Input Sheet'!$E$38:$G$44,3,FALSE))),1) -> 1 | W115: 85838.53 | Z115: y | BE115: 2242 | CG115: 2242 | CK115: 85838.53
B116: SW-009266 | D116: Active (Above Ground) | E116: Wastewater Treatment | F116: KSTP Filtrate Return Pump & Valves | L116: 0 | M116: 4578.05 | O116: 1 | P116: 4578.05 | S116: =IF(Q116="",'Unit Rates - Land'!landcst,IF($E$8="Landuse",VLOOKUP(Q116,LAndcost3,2,FALSE),IF($E$8="Location",VLOOKUP(Q116,Landcost2,2,FALSE),"Error"))) -> 10 | T116: 0 | U116: 2016 | V116: =IFERROR(('General Input Sheet'!$G$38/(VLOOKUP(U116,'General Input Sheet'!$E$38:$G$44,3,FALSE))),1) -> 1 | W116: 4578.05 | Z116: y | BE116: 2242 | CG116: 2242 | CK116: 4578.05 | CL116: =IF(BF116="","",(BF116/$CG116)*$W116) ->  | DL116: =IF(CF116="","",(CF116/$CG116)*$W116) -> 
B117: SW-009267 | D117: Active (Above Ground) | E117: Wastewater Treatment | F117: KSTP FIlter Belt Wash Pump | L117: 0 | M117: 2289.03 | O117: 1 | P117: 2289.03 | S117: =IF(Q117="",'Unit Rates - Land'!landcst,IF($E$8="Landuse",VLOOKUP(Q117,LAndcost3,2,FALSE),IF($E$8="Location",VLOOKUP(Q117,Landcost2,2,FALSE),"Error"))) -> 10 | T117: 0 | U117: 2016 | V117: =IFERROR(('General Input Sheet'!$G$38/(VLOOKUP(U117,'General Input Sheet'!$E$38:$G$44,3,FALSE))),1) -> 1 | W117: 2289.03 | Z117: y | BE117: 2242 | CG117: 2242 | CI117: =IF(BC117="","",(BC117/$CG117)*$W117) ->  | CK117: 2289.03
B118: SW-009268 | D118: Active (Above Ground) | E118: Wastewater Treatment | F118: KSTP Air Compressor - Belt Press | L118: 0 | M118: 2289.03 | O118: 1 | P118: 2289.03 | S118: =IF(Q118="",'Unit Rates - Land'!landcst,IF($E$8="Landuse",VLOOKUP(Q118,LAndcost3,2,FALSE),IF($E$8="Location",VLOOKUP(Q118,Landcost2,2,FALSE),"Error"))) -> 10 | T118: 0 | U118: 2016 | V118: =IFERROR(('General Input Sheet'!$G$38/(VLOOKUP(U118,'General Input Sheet'!$E$38:$G$44,3,FALSE))),1) -> 1 | W118: 2289.03 | Z118: y | BE118: 2242 | CG118: 2242 | CK118: 2289.03
B119: SW-011237 | D119: Active (Above Ground) | E119: Wastewater Treatment | F119: MSTP - Pipework - Septage to Inlet Works | L119: 0 | M119: 33048.50912 | O119: 1 | P119: 33048.50912 | S119: =IF(Q119="",'Unit Rates - Land'!landcst,IF($E$8="Landuse",VLOOKUP(Q119,LAndcost3,2,FALSE),IF($E$8="Location",VLOOKUP(Q119,Landcost2,2,FALSE),"Error"))) -> 10 | T119: 0 | U119: 2016 | V119: =IFERROR(('General Input Sheet'!$G$38/(VLOOKUP(U119,'General Input Sheet'!$E$38:$G$44,3,FALSE))),1) -> 1 | W119: 33048.50912 | AA119: y | BF119: 10371 | BJ119: =IF(AE119="y",BJ$14,IF(AND(AE119>0,AE119<=1),AE119*BJ$14,"")) ->  | CG119: 10371 | CL119: 33048.50912
B120: SW-011238 | D120: Active (Above Ground) | E120: Wastewater Treatment | F120: MSTP - Pipework - Rising Main to Inlet Works | L120: 0 | M120: 50545.21431 | O120: 1 | P120: 50545.21431 | S120: =IF(Q120="",'Unit Rates - Land'!landcst,IF($E$8="Landuse",VLOOKUP(Q120,LAndcost3,2,FALSE),IF($E$8="Location",VLOOKUP(Q120,Landcost2,2,FALSE),"Error"))) -> 10 | T120: 0 | U120: 2016 | V120: =IFERROR(('General Input Sheet'!$G$38/(VLOOKUP(U120,'General Input Sheet'!$E$38:$G$44,3,FALSE))),1) -> 1 | W120: 50545.21431 | AA120: y | BF120: 10371 | CG120: 10371 | CL120: 50545.21431
B121: SW-011239 | D121: Active (Above Ground) | E121: Wastewater Treatment | F121: MSTP - Pipework - Inlet Works to Emergency Bypass | L121: 0 | M121: 159187.6116 | O121: 1 | P121: 159187.6116 | S121: =IF(Q121="",'Unit Rates - Land'!landcst,IF($E$8="Landuse",VLOOKUP(Q121,LAndcost3,2,FALSE),IF($E$8="Location",VLOOKUP(Q121,Landcost2,2,FALSE),"Error"))) -> 10 | T121: 0 | U121: 2016 | V121: =IFERROR(('General Input Sheet'!$G$38/(VLOOKUP(U121,'General Input Sheet'!$E$38:$G$44,3,FALSE))),1) -> 1 | W121: 159187.6116 | AA121: y | BF121: 10371 | CG121: 10371 | CL121: 159187.6116
B122: SW-011240 | D122: Active (Above Ground) | E122: Wastewater Treatment | F122: MSTP - Pipework - Inlet works to Bioreactor | L122: 0 | M122: 23937.96443 | O122: 1 | P122: 23937.96443 | S122: =IF(Q122="",'Unit Rates - Land'!landcst,IF($E$8="Landuse",VLOOKUP(Q122,LAndcost3,2,FALSE),IF($E$8="Location",VLOOKUP(Q122,Landcost2,2,FALSE),"Error"))) -> 10 | T122: 0 | U122: 2016 | V122: =IFERROR(('General Input Sheet'!$G$38/(VLOOKUP(U122,'General Input Sheet'!$E$38:$G$44,3,FALSE))),1) -> 1 | W122: 23937.96443 | AA122: y | BF122: 10371 | CG122: 10371 | CL122: 23937.96443
B123: SW-011241 | D123: Active (Above Ground) | E123: Wastewater Treatment | F123: MSTP - Flowmeter - Inlet Works to Emergency Bypass | L123: 0 | M123: 8272.607779 | O123: 1 | P123: 8272.607779 | S123: =IF(Q123="",'Unit Rates - Land'!landcst,IF($E$8="Landuse",VLOOKUP(Q123,LAndcost3,2,FALSE),IF($E$8="Location",VLOOKUP(Q123,Landcost2,2,FALSE),"Error"))) -> 10 | T123: 0 | U123: 2016 | V123: =IFERROR(('General Input Sheet'!$G$38/(VLOOKUP(U123,'General Input Sheet'!$E$38:$G$44,3,FALSE))),1) -> 1 | W123: 8272.607779 | AA123: y | BF123: 10371 | CG123: 10371 | CL123: 8272.607779
B124: SW-011242 | D124: Active (Above Ground) | E124: Wastewater Treatment | F124: MSTP - Inlet Works - Electrical | L124: 0 | M124: 16531.24156 | O124: 1 | P124: 16531.24156 | S124: =IF(Q124="",'Unit Rates - Land'!landcst,IF($E$8="Landuse",VLOOKUP(Q124,LAndcost3,2,FALSE),IF($E$8="Location",VLOOKUP(Q124,Landcost2,2,FALSE),"Error"))) -> 10 | T124: 0 | U124: 2016 | V124: =IFERROR(('General Input Sheet'!$G$38/(VLOOKUP(U124,'General Input Sheet'!$E$38:$G$44,3,FALSE))),1) -> 1 | W124: 16531.24156 | AA124: y | BF124: 10371 | CG124: 10371 | CL124: 16531.24156
B125: SW-011243 | D125: Active (Above Ground) | E125: Wastewater Treatment | F125: MSTP - Inlet Works - Instrumentation & Controls | L125: 0 | M125: 28087.73925 | O125: 1 | P125: 28087.73925 | S125: =IF(Q125="",'Unit Rates - Land'!landcst,IF($E$8="Landuse",VLOOKUP(Q125,LAndcost3,2,FALSE),IF($E$8="Location",VLOOKUP(Q125,Landcost2,2,FALSE),"Error"))) -> 10 | T125: 0 | U125: 2016 | V125: =IFERROR(('General Input Sheet'!$G$38/(VLOOKUP(U125,'General Input Sheet'!$E$38:$G$44,3,FALSE))),1) -> 1 | W125: 28087.73925 | AA125: y | BF125: 10371 | CG125: 10371 | CL125: 28087.73925
B126: SW-011244 | D126: Active (Above Ground) | E126: Wastewater Treatment | F126: MSTP - Inlet Works - Inlet Chamber | L126: 0 | M126: 111791.997 | O126: 1 | P126: 111791.997 | S126: =IF(Q126="",'Unit Rates - Land'!landcst,IF($E$8="Landuse",VLOOKUP(Q126,LAndcost3,2,FALSE),IF($E$8="Location",VLOOKUP(Q126,Landcost2,2,FALSE),"Error"))) -> 10 | T126: 0 | U126: 2016 | V126: =IFERROR(('General Input Sheet'!$G$38/(VLOOKUP(U126,'General Input Sheet'!$E$38:$G$44,3,FALSE))),1) -> 1 | W126: 111791.997 | AA126: y | BF126: 10371 | CG126: 10371 | CL126: 111791.997
B127: SW-011245 | D127: Active (Above Ground) | E127: Wastewater Treatment | F127: MSTP - Inlet Works - Inlet Screw Screens (Mechanical & Compactor) | L127: 0 | M127: 419219.9888 | O127: 1 | P127: 419219.9888 | S127: =IF(Q127="",'Unit Rates - Land'!landcst,IF($E$8="Landuse",VLOOKUP(Q127,LAndcost3,2,FALSE),IF($E$8="Location",VLOOKUP(Q127,Landcost2,2,FALSE),"Error"))) -> 10 | T127: 0 | U127: 2016 | V127: =IFERROR(('General Input Sheet'!$G$38/(VLOOKUP(U127,'General Input Sheet'!$E$38:$G$44,3,FALSE))),1) -> 1 | W127: 419219.9888 | AA127: y | BF127: 10371 | CG127: 10371 | CL127: 419219.9888
B128: SW-011246 | D128: Active (Above Ground) | E128: Wastewater Treatment | F128: MSTP - Inlet Works - Pista Grit Chamber (Mechanical) | L128: 0 | M128: 251536.1855 | O128: 1 | P128: 251536.1855 | S128: =IF(Q128="",'Unit Rates - Land'!landcst,IF($E$8="Landuse",VLOOKUP(Q128,LAndcost3,2,FALSE),IF($E$8="Location",VLOOKUP(Q128,Landcost2,2,FALSE),"Error"))) -> 10 | T128: 0 | U128: 2016 | V128: =IFERROR(('General Input Sheet'!$G$38/(VLOOKUP(U128,'General Input Sheet'!$E$38:$G$44,3,FALSE))),1) -> 1 | W128: 251536.1855 | AA128: y | BF128: 10371 | CG128: 10371 | CL128: 251536.1855
B129: SW-011247 | D129: Active (Above Ground) | E129: Wastewater Treatment | F129: MSTP - Inlet Works - Grit Classifer (Mechanical) | L129: 0 | M129: 139739.9963 | O129: 1 | P129: 139739.9963 | S129: =IF(Q129="",'Unit Rates - Land'!landcst,IF($E$8="Landuse",VLOOKUP(Q129,LAndcost3,2,FALSE),IF($E$8="Location",VLOOKUP(Q129,Landcost2,2,FALSE),"Error"))) -> 10 | T129: 0 | U129: 2016 | V129: =IFERROR(('General Input Sheet'!$G$38/(VLOOKUP(U129,'General Input Sheet'!$E$38:$G$44,3,FALSE))),1) -> 1 | W129: 139739.9963 | AA129: y | BF129: 10371 | CG129: 10371 | CL129: 139739.9963
B130: SW-011248 | D130: Active (Above Ground) | E130: Wastewater Treatment | F130: MSTP - Inlet Works - Civil Strucutre | L130: 0 | M130: 120550.9 | O130: 1 | P130: 120550.9 | S130: =IF(Q130="",'Unit Rates - Land'!landcst,IF($E$8="Landuse",VLOOKUP(Q130,LAndcost3,2,FALSE),IF($E$8="Location",VLOOKUP(Q130,Landcost2,2,FALSE),"Error"))) -> 10 | T130: 0 | U130: 2016 | V130: =IFERROR(('General Input Sheet'!$G$38/(VLOOKUP(U130,'General Input Sheet'!$E$38:$G$44,3,FALSE))),1) -> 1 | W130: 120550.9 | AA130: y | BF130: 10371 | CG130: 10371 | CL130: 120550.9
B131: SW-011249 | D131: Active (Above Ground) | E131: Wastewater Treatment | F131: MSTP - Grease Trap - Waste Receival Station | L131: 0 | M131: 27947.99925 | O131: 1 | P131: 27947.99925 | S131: =IF(Q131="",'Unit Rates - Land'!landcst,IF($E$8="Landuse",VLOOKUP(Q131,LAndcost3,2,FALSE),IF($E$8="Location",VLOOKUP(Q131,Landcost2,2,FALSE),"Error"))) -> 10 | T131: 0 | U131: 2016 | V131: =IFERROR(('General Input Sheet'!$G$38/(VLOOKUP(U131,'General Input Sheet'!$E$38:$G$44,3,FALSE))),1) -> 1 | W131: 27947.99925 | AA131: y | BF131: 10371 | CG131: 10371 | CL131: 27947.99925
B132: SW-011250 | D132: Passive (Below Ground) | E132: Wastewater Treatment | F132: MSTP - Septage - Waste Receival Station | L132: 0 | M132: 55578.78872 | O132: 1 | P132: 55578.78872 | S132: =IF(Q132="",'Unit Rates - Land'!landcst,IF($E$8="Landuse",VLOOKUP(Q132,LAndcost3,2,FALSE),IF($E$8="Location",VLOOKUP(Q132,Landcost2,2,FALSE),"Error"))) -> 10 | T132: 0 | U132: 2016 | V132: =IFERROR(('General Input Sheet'!$G$38/(VLOOKUP(U132,'General Input Sheet'!$E$38:$G$44,3,FALSE))),1) -> 1 | W132: 55578.78872 | AA132: y | BF132: 10371 | CG132: 10371 | CL132: 55578.78872
B133: SW-011251 | D133: Active (Above Ground) | E133: Wastewater Treatment | F133: MSTP - General Purpose Pump Station - Structure | L133: 0 | M133: 91641.48956 | O133: 1 | P133: 91641.48956 | S133: =IF(Q133="",'Unit Rates - Land'!landcst,IF($E$8="Landuse",VLOOKUP(Q133,LAndcost3,2,FALSE),IF($E$8="Location",VLOOKUP(Q133,Landcost2,2,FALSE),"Error"))) -> 10 | T133: 0 | U133: 2016 | V133: =IFERROR(('General Input Sheet'!$G$38/(VLOOKUP(U133,'General Input Sheet'!$E$38:$G$44,3,FALSE))),1) -> 1 | W133: 91641.48956 | AA133: y | BF133: 10371 | CG133: 10371 | CL133: 91641.48956
B134: SW-011252 | D134: Active (Above Ground) | E134: Wastewater Treatment | F134: MSTP - General Purpose Pump Station - Pumps | L134: 0 | M134: 55029.61053 | O134: 1 | P134: 55029.61053 | S134: =IF(Q134="",'Unit Rates - Land'!landcst,IF($E$8="Landuse",VLOOKUP(Q134,LAndcost3,2,FALSE),IF($E$8="Location",VLOOKUP(Q134,Landcost2,2,FALSE),"Error"))) -> 10 | T134: 0 | U134: 2016 | V134: =IFERROR(('General Input Sheet'!$G$38/(VLOOKUP(U134,'General Input Sheet'!$E$38:$G$44,3,FALSE))),1) -> 1 | W134: 55029.61053 | AA134: y | BF134: 10371 | CG134: 10371 | CL134: 55029.61053
B135: SW-011253 | D135: Active (Above Ground) | E135: Wastewater Treatment | F135: MSTP - General Purpose Pump Station - Flowmeter | L135: 0 | M135: 4713.430074 | O135: 1 | P135: 4713.430074 | S135: =IF(Q135="",'Unit Rates - Land'!landcst,IF($E$8="Landuse",VLOOKUP(Q135,LAndcost3,2,FALSE),IF($E$8="Location",VLOOKUP(Q135,Landcost2,2,FALSE),"Error"))) -> 10 | T135: 0 | U135: 2016 | V135: =IFERROR(('General Input Sheet'!$G$38/(VLOOKUP(U135,'General Input Sheet'!$E$38:$G$44,3,FALSE))),1) -> 1 | W135: 4713.430074 | AA135: y | BF135: 10371 | CG135: 10371 | CL135: 4713.430074
B136: SW-011254 | D136: Active (Above Ground) | E136: Wastewater Treatment | F136: MSTP - General Purpose Pump Station - Electrical | L136: 0 | M136: 8272.607779 | O136: 1 | P136: 8272.607779 | S136: =IF(Q136="",'Unit Rates - Land'!landcst,IF($E$8="Landuse",VLOOKUP(Q136,LAndcost3,2,FALSE),IF($E$8="Location",VLOOKUP(Q136,Landcost2,2,FALSE),"Error"))) -> 10 | T136: 0 | U136: 2016 | V136: =IFERROR(('General Input Sheet'!$G$38/(VLOOKUP(U136,'General Input Sheet'!$E$38:$G$44,3,FALSE))),1) -> 1 | W136: 8272.607779 | AA136: y | BF136: 10371 | CG136: 10371 | CL136: 8272.607779
B137: SW-011255 | D137: Active (Above Ground) | E137: Wastewater Treatment | F137: MSTP - General Purpose Pump Station - Instrumentation & Controls | L137: 0 | M137: 11817.81148 | O137: 1 | P137: 11817.81148 | S137: =IF(Q137="",'Unit Rates - Land'!landcst,IF($E$8="Landuse",VLOOKUP(Q137,LAndcost3,2,FALSE),IF($E$8="Location",VLOOKUP(Q137,Landcost2,2,FALSE),"Error"))) -> 10 | T137: 0 | U137: 2016 | V137: =IFERROR(('General Input Sheet'!$G$38/(VLOOKUP(U137,'General Input Sheet'!$E$38:$G$44,3,FALSE))),1) -> 1 | W137: 11817.81148 | AA137: y | BF137: 10371 | CG137: 10371 | CL137: 11817.81148
B138: SW-011256 | D138: Active (Above Ground) | E138: Wastewater Treatment | F138: MSTP - General Purpose Pump Station - Receiving Pipework | L138: 0 | M138: 129930.2485 | O138: 1 | P138: 129930.2485 | S138: =IF(Q138="",'Unit Rates - Land'!landcst,IF($E$8="Landuse",VLOOKUP(Q138,LAndcost3,2,FALSE),IF($E$8="Location",VLOOKUP(Q138,Landcost2,2,FALSE),"Error"))) -> 10 | T138: 0 | U138: 2016 | V138: =IFERROR(('General Input Sheet'!$G$38/(VLOOKUP(U138,'General Input Sheet'!$E$38:$G$44,3,FALSE))),1) -> 1 | W138: 129930.2485 | AA138: y | BF138: 10371 | CG138: 10371 | CL138: 129930.2485 | CY138: =IF(BS138="","",(BS138/$CG138)*$W138) -> 
B139: SW-011257 | D139: Active (Above Ground) | E139: Wastewater Treatment | F139: MSTP - Bioreactor - Structure | L139: 0 | M139: 2676859.369 | O139: 1 | P139: 2676859.369 | S139: =IF(Q139="",'Unit Rates - Land'!landcst,IF($E$8="Landuse",VLOOKUP(Q139,LAndcost3,2,FALSE),IF($E$8="Location",VLOOKUP(Q139,Landcost2,2,FALSE),"Error"))) -> 10 | T139: 0 | U139: 2016 | V139: =IFERROR(('General Input Sheet'!$G$38/(VLOOKUP(U139,'General Input Sheet'!$E$38:$G$44,3,FALSE))),1) -> 1 | W139: 2676859.369 | AA139: y | BF139: 10371 | CG139: 10371 | CL139: 2676859.369
B140: SW-011258 | D140: Active (Above Ground) | E140: Wastewater Treatment | F140: MSTP - Bioreactor - Pipework to Clarifier | L140: 0 | M140: 55965.86851 | O140: 1 | P140: 55965.86851 | S140: =IF(Q140="",'Unit Rates - Land'!landcst,IF($E$8="Landuse",VLOOKUP(Q140,LAndcost3,2,FALSE),IF($E$8="Location",VLOOKUP(Q140,Landcost2,2,FALSE),"Error"))) -> 10 | T140: 0 | U140: 2016 | V140: =IFERROR(('General Input Sheet'!$G$38/(VLOOKUP(U140,'General Input Sheet'!$E$38:$G$44,3,FALSE))),1) -> 1 | W140: 55965.86851 | AA140: y | BF140: 10371 | CG140: 10371 | CL140: 55965.86851
B141: SW-011259 | D141: Active (Above Ground) | E141: Wastewater Treatment | F141: MSTP - Bioreactor - Stairs, walkways, handrails | L141: 0 | M141: 103533.3632 | O141: 1 | P141: 103533.3632 | S141: =IF(Q141="",'Unit Rates - Land'!landcst,IF($E$8="Landuse",VLOOKUP(Q141,LAndcost3,2,FALSE),IF($E$8="Location",VLOOKUP(Q141,Landcost2,2,FALSE),"Error"))) -> 10 | T141: 0 | U141: 2016 | V141: =IFERROR(('General Input Sheet'!$G$38/(VLOOKUP(U141,'General Input Sheet'!$E$38:$G$44,3,FALSE))),1) -> 1 | W141: 103533.3632 | AA141: y | BF141: 10371 | CG141: 10371 | CL141: 103533.3632
B142: SW-011260 | D142: Active (Above Ground) | E142: Wastewater Treatment | F142: MSTP - Bioreactor - Air Diffuser Pipework | L142: 0 | M142: 430510.9805 | O142: 1 | P142: 430510.9805 | S142: =IF(Q142="",'Unit Rates - Land'!landcst,IF($E$8="Landuse",VLOOKUP(Q142,LAndcost3,2,FALSE),IF($E$8="Location",VLOOKUP(Q142,Landcost2,2,FALSE),"Error"))) -> 10 | T142: 0 | U142: 2016 | V142: =IFERROR(('General Input Sheet'!$G$38/(VLOOKUP(U142,'General Input Sheet'!$E$38:$G$44,3,FALSE))),1) -> 1 | W142: 430510.9805 | AA142: y | BF142: 10371 | CG142: 10371 | CL142: 430510.9805
B143: SW-011261 | D143: Active (Above Ground) | E143: Wastewater Treatment | F143: MSTP - Bioreactor - Air Diffusers | L143: =IF(H143=SewerTYPE1,VLOOKUP(J143,SewerUnitrates1,2,FALSE),IF(H143=SEWERTYPE2,VLOOKUP((J143&"_"&K143),Sewerrates2,2,FALSE),0)) -> 0 | M143: 69869.99814 | O143: =IF(N143="",1,VLOOKUP(N143,Sewersitecond,2,FALSE)) -> 1 | P143: 69869.99814 | S143: =IF(Q143="",'Unit Rates - Land'!landcst,IF($E$8="Landuse",VLOOKUP(Q143,LAndcost3,2,FALSE),IF($E$8="Location",VLOOKUP(Q143,Landcost2,2,FALSE),"Error"))) -> 10 | T143: 0 | U143: 2016 | V143: =IFERROR(('General Input Sheet'!$G$38/(VLOOKUP(U143,'General Input Sheet'!$E$38:$G$44,3,FALSE))),1) -> 1 | W143: 69869.99814 | AA143: y | BF143: 10371 | CA143: =IF(AV143="y",CA$14,IF(AND(AV143>0,AV143<=1),AV143*CA$14,"")) ->  | CG143: 10371 | CL143: 69869.99814
B144: SW-011262 | D144: Active (Above Ground) | E144: Wastewater Treatment | F144: MSTP - Bioreactor - Aeration Blowers (3) | L144: 0 | M144: 211552.3804 | O144: 1 | P144: =IF(M144="","",M144*O144) -> 211552.3804 | S144: =IF(Q144="",'Unit Rates - Land'!landcst,IF($E$8="Landuse",VLOOKUP(Q144,LAndcost3,2,FALSE),IF($E$8="Location",VLOOKUP(Q144,Landcost2,2,FALSE),"Error"))) -> 10 | T144: =IF(S144="",0,S144*10000*R144) -> 0 | U144: 2016 | V144: =IFERROR(('General Input Sheet'!$G$38/(VLOOKUP(U144,'General Input Sheet'!$E$38:$G$44,3,FALSE))),1) -> 1 | W144: =IFERROR((P144+T144)*V144,0) -> 211552.3804 | AA144: y | BF144: =IF(AA144="y",BF$14,IF(AND(AA144>0,AA144<=1),AA144*BF$14,"")) -> 10371 | BV144: =IF(AQ144="y",BV$14,IF(AND(AQ144>0,AQ144<=1),AQ144*BV$14,"")) ->  | CG144: 10371 | CL144: 211552.3804
B145: SW-011263 | D145: Active (Above Ground) | E145: Wastewater Treatment | F145: MSTP - Bioreactor - Aeration Pipework | L145: 0 | M145: 405287.9112 | O145: 1 | P145: 405287.9112 | S145: =IF(Q145="",'Unit Rates - Land'!landcst,IF($E$8="Landuse",VLOOKUP(Q145,LAndcost3,2,FALSE),IF($E$8="Location",VLOOKUP(Q145,Landcost2,2,FALSE),"Error"))) -> 10 | T145: 0 | U145: 2016 | V145: =IFERROR(('General Input Sheet'!$G$38/(VLOOKUP(U145,'General Input Sheet'!$E$38:$G$44,3,FALSE))),1) -> 1 | W145: 405287.9112 | AA145: y | BC145: =IF(X145="y",BC$14,IF(AND(X145>0,X145<=1),X145*BC$14,"")) ->  | BF145: 10371 | CG145: 10371 | CL145: 405287.9112
B146: SW-011264 | D146: Active (Above Ground) | E146: Wastewater Treatment | F146: MSTP - Bioreactor - Aeraction Electrical Works | L146: 0 | M146: 30169.8652 | O146: 1 | P146: 30169.8652 | S146: =IF(Q146="",'Unit Rates - Land'!landcst,IF($E$8="Landuse",VLOOKUP(Q146,LAndcost3,2,FALSE),IF($E$8="Location",VLOOKUP(Q146,Landcost2,2,FALSE),"Error"))) -> 10 | T146: 0 | U146: 2016 | V146: =IFERROR(('General Input Sheet'!$G$38/(VLOOKUP(U146,'General Input Sheet'!$E$38:$G$44,3,FALSE))),1) -> 1 | W146: 30169.8652 | AA146: y | BF146: 10371 | CG146: =SUM(BC146:CF146) -> 10371 | CL146: 30169.8652 | DM146: =IF(SUM(CI146:DL146)=W146,"","ERROR") -> 
B147: SW-011265 | D147: Active (Above Ground) | E147: Wastewater Treatment | F147: MSTP - Bioreactor - DO Probes (2) | L147: 0 | M147: 11063.21551 | O147: 1 | P147: 11063.21551 | S147: =IF(Q147="",'Unit Rates - Land'!landcst,IF($E$8="Landuse",VLOOKUP(Q147,LAndcost3,2,FALSE),IF($E$8="Location",VLOOKUP(Q147,Landcost2,2,FALSE),"Error"))) -> 10 | T147: 0 | U147: 2016 | V147: =IFERROR(('General Input Sheet'!$G$38/(VLOOKUP(U147,'General Input Sheet'!$E$38:$G$44,3,FALSE))),1) -> 1 | W147: 11063.21551 | AA147: y | BF147: 10371 | CG147: 10371 | CL147: 11063.21551
B148: SW-011266 | D148: Active (Above Ground) | E148: Wastewater Treatment | F148: MSTP - Bioreactor - General Electrical Works | L148: 0 | M148: 41307.1429 | O148: 1 | P148: 41307.1429 | S148: =IF(Q148="",'Unit Rates - Land'!landcst,IF($E$8="Landuse",VLOOKUP(Q148,LAndcost3,2,FALSE),IF($E$8="Location",VLOOKUP(Q148,Landcost2,2,FALSE),"Error"))) -> 10 | T148: 0 | U148: 2016 | V148: =IFERROR(('General Input Sheet'!$G$38/(VLOOKUP(U148,'General Input Sheet'!$E$38:$G$44,3,FALSE))),1) -> 1 | W148: 41307.1429 | AA148: y | BF148: 10371 | CG148: 10371 | CL148: 41307.1429
B149: SW-011267 | D149: Passive (Below Ground) | E149: Wastewater Treatment | F149: MSTP - Bioreactor - Instrumentation & Control | L149: 0 | M149: 79809.70407 | O149: 1 | P149: 79809.70407 | S149: =IF(Q149="",'Unit Rates - Land'!landcst,IF($E$8="Landuse",VLOOKUP(Q149,LAndcost3,2,FALSE),IF($E$8="Location",VLOOKUP(Q149,Landcost2,2,FALSE),"Error"))) -> 10 | T149: 0 | U149: 2016 | V149: =IFERROR(('General Input Sheet'!$G$38/(VLOOKUP(U149,'General Input Sheet'!$E$38:$G$44,3,FALSE))),1) -> 1 | W149: 79809.70407 | AA149: y | BF149: 10371 | CG149: 10371 | CL149: 79809.70407
B150: SW-011268 | D150: Active (Above Ground) | E150: Wastewater Treatment | F150: MSTP - Bioreactor - Mechanical | L150: 0 | M150: 187301.9014 | O150: 1 | P150: 187301.9014 | S150: =IF(Q150="",'Unit Rates - Land'!landcst,IF($E$8="Landuse",VLOOKUP(Q150,LAndcost3,2,FALSE),IF($E$8="Location",VLOOKUP(Q150,Landcost2,2,FALSE),"Error"))) -> 10 | T150: 0 | U150: 2016 | V150: =IFERROR(('General Input Sheet'!$G$38/(VLOOKUP(U150,'General Input Sheet'!$E$38:$G$44,3,FALSE))),1) -> 1 | W150: 187301.9014 | AA150: y | BF150: 10371 | CG150: 10371 | CL150: 187301.9014 | CV150: =IF(BP150="","",(BP150/$CG150)*$W150) -> 
B151: SW-011269 | D151: Active (Above Ground) | E151: Wastewater Treatment | F151: MSTP - Blower Building | L151: 0 | M151: 328765.5766 | O151: 1 | P151: 328765.5766 | S151: =IF(Q151="",'Unit Rates - Land'!landcst,IF($E$8="Landuse",VLOOKUP(Q151,LAndcost3,2,FALSE),IF($E$8="Location",VLOOKUP(Q151,Landcost2,2,FALSE),"Error"))) -> 10 | T151: 0 | U151: 2016 | V151: =IFERROR(('General Input Sheet'!$G$38/(VLOOKUP(U151,'General Input Sheet'!$E$38:$G$44,3,FALSE))),1) -> 1 | W151: 328765.5766 | AA151: y | BF151: 10371 | CG151: 10371 | CI151: =IF(BC151="","",(BC151/$CG151)*$W151) ->  | CL151: 328765.5766
B152: SW-011270 | D152: Active (Above Ground) | E152: Wastewater Treatment | F152: MSTP - Bioreactor - Decanters (2) | L152: 0 | M152: 612005.2877 | O152: 1 | P152: 612005.2877 | S152: =IF(Q152="",'Unit Rates - Land'!landcst,IF($E$8="Landuse",VLOOKUP(Q152,LAndcost3,2,FALSE),IF($E$8="Location",VLOOKUP(Q152,Landcost2,2,FALSE),"Error"))) -> 10 | T152: 0 | U152: 2016 | V152: =IFERROR(('General Input Sheet'!$G$38/(VLOOKUP(U152,'General Input Sheet'!$E$38:$G$44,3,FALSE))),1) -> 1 | W152: 612005.2877 | AA152: y | BF152: 10371 | CG152: 10371 | CL152: 612005.2877
B153: SW-011271 | D153: Active (Above Ground) | E153: Wastewater Treatment | F153: MSTP - Clarifier - Pipework | L153: 0 | M153: 168260.3985 | O153: 1 | P153: 168260.3985 | S153: =IF(Q153="",'Unit Rates - Land'!landcst,IF($E$8="Landuse",VLOOKUP(Q153,LAndcost3,2,FALSE),IF($E$8="Location",VLOOKUP(Q153,Landcost2,2,FALSE),"Error"))) -> 10 | T153: 0 | U153: 2016 | V153: =IFERROR(('General Input Sheet'!$G$38/(VLOOKUP(U153,'General Input Sheet'!$E$38:$G$44,3,FALSE))),1) -> 1 | W153: 168260.3985 | AA153: y | BF153: 10371 | CG153: 10371 | CL153: 168260.3985
B154: SW-011272 | D154: Active (Above Ground) | E154: Wastewater Treatment | F154: MSTP - Clarifier - Civil Structure | L154: 0 | M154: 698699.9814 | O154: 1 | P154: 698699.9814 | S154: =IF(Q154="",'Unit Rates - Land'!landcst,IF($E$8="Landuse",VLOOKUP(Q154,LAndcost3,2,FALSE),IF($E$8="Location",VLOOKUP(Q154,Landcost2,2,FALSE),"Error"))) -> 10 | T154: 0 | U154: 2016 | V154: =IFERROR(('General Input Sheet'!$G$38/(VLOOKUP(U154,'General Input Sheet'!$E$38:$G$44,3,FALSE))),1) -> 1 | W154: 698699.9814 | AA154: y | BF154: 10371 | CG154: 10371 | CL154: 698699.9814
B155: SW-011273 | D155: Active (Above Ground) | E155: Wastewater Treatment | F155: MSTP - Clarifier - Mechanical (Stairways, walkways, hailrailing, bridge) | L155: 0 | M155: 209609.9944 | O155: 1 | P155: 209609.9944 | S155: =IF(Q155="",'Unit Rates - Land'!landcst,IF($E$8="Landuse",VLOOKUP(Q155,LAndcost3,2,FALSE),IF($E$8="Location",VLOOKUP(Q155,Landcost2,2,FALSE),"Error"))) -> 10 | T155: 0 | U155: 2016 | V155: =IFERROR(('General Input Sheet'!$G$38/(VLOOKUP(U155,'General Input Sheet'!$E$38:$G$44,3,FALSE))),1) -> 1 | W155: 209609.9944 | AA155: y | BF155: 10371 | CG155: 10371 | CL155: 209609.9944
B156: SW-011274 | D156: Active (Above Ground) | E156: Wastewater Treatment | F156: MSTP - Clarifier - Sludge Return Pump Station | L156: 0 | M156: 55895.99851 | O156: 1 | P156: 55895.99851 | S156: =IF(Q156="",'Unit Rates - Land'!landcst,IF($E$8="Landuse",VLOOKUP(Q156,LAndcost3,2,FALSE),IF($E$8="Location",VLOOKUP(Q156,Landcost2,2,FALSE),"Error"))) -> 10 | T156: 0 | U156: 2016 | V156: =IFERROR(('General Input Sheet'!$G$38/(VLOOKUP(U156,'General Input Sheet'!$E$38:$G$44,3,FALSE))),1) -> 1 | W156: 55895.99851 | AA156: y | BF156: 10371 | CG156: 10371 | CL156: 55895.99851
B157: SW-011275 | D157: Active (Above Ground) | E157: Wastewater Treatment | F157: MSTP - Clarifier - Sludge Return Pump Station - Electrical | L157: 0 | M157: 27947.99925 | O157: 1 | P157: 27947.99925 | S157: =IF(Q157="",'Unit Rates - Land'!landcst,IF($E$8="Landuse",VLOOKUP(Q157,LAndcost3,2,FALSE),IF($E$8="Location",VLOOKUP(Q157,Landcost2,2,FALSE),"Error"))) -> 10 | T157: 0 | U157: 2016 | V157: =IFERROR(('General Input Sheet'!$G$38/(VLOOKUP(U157,'General Input Sheet'!$E$38:$G$44,3,FALSE))),1) -> 1 | W157: 27947.99925 | AA157: y | BF157: 10371 | CG157: 10371 | CL157: 27947.99925 | DG157: =IF(CA157="","",(CA157/$CG157)*$W157) -> 
B158: SW-011276 | D158: Active (Above Ground) | E158: Wastewater Treatment | F158: MSTP - Clarifier - Sludge Return Pump Station - Instrumentation & Controls | L158: 0 | M158: 13973.99963 | O158: 1 | P158: 13973.99963 | S158: =IF(Q158="",'Unit Rates - Land'!landcst,IF($E$8="Landuse",VLOOKUP(Q158,LAndcost3,2,FALSE),IF($E$8="Location",VLOOKUP(Q158,Landcost2,2,FALSE),"Error"))) -> 10 | T158: 0 | U158: 2016 | V158: =IFERROR(('General Input Sheet'!$G$38/(VLOOKUP(U158,'General Input Sheet'!$E$38:$G$44,3,FALSE))),1) -> 1 | W158: 13973.99963 | AA158: y | BF158: 10371 | CG158: 10371 | CL158: 13973.99963
B159: SW-011277 | D159: Active (Above Ground) | E159: Wastewater Treatment | F159: MSTP - Clarifier - Sludge Return Pump Station - Valving & Equipment | L159: 0 | M159: 13973.99963 | O159: 1 | P159: 13973.99963 | S159: =IF(Q159="",'Unit Rates - Land'!landcst,IF($E$8="Landuse",VLOOKUP(Q159,LAndcost3,2,FALSE),IF($E$8="Location",VLOOKUP(Q159,Landcost2,2,FALSE),"Error"))) -> 10 | T159: 0 | U159: 2016 | V159: =IFERROR(('General Input Sheet'!$G$38/(VLOOKUP(U159,'General Input Sheet'!$E$38:$G$44,3,FALSE))),1) -> 1 | W159: 13973.99963 | AA159: y | BF159: 10371 | BU159: =IF(AP159="y",BU$14,IF(AND(AP159>0,AP159<=1),AP159*BU$14,"")) ->  | CG159: 10371 | CL159: 13973.99963
B160: SW-011278 | D160: Active (Above Ground) | E160: Wastewater Treatment | F160: MSTP - Return Activate Sludge (RAS) Pump Station - Concrete Slab | L160: 0 | M160: 21240.47943 | O160: 1 | P160: 21240.47943 | S160: =IF(Q160="",'Unit Rates - Land'!landcst,IF($E$8="Landuse",VLOOKUP(Q160,LAndcost3,2,FALSE),IF($E$8="Location",VLOOKUP(Q160,Landcost2,2,FALSE),"Error"))) -> 10 | T160: 0 | U160: 2016 | V160: =IFERROR(('General Input Sheet'!$G$38/(VLOOKUP(U160,'General Input Sheet'!$E$38:$G$44,3,FALSE))),1) -> 1 | W160: 21240.47943 | AA160: y | BF160: 10371 | BS160: =IF(AN160="y",BS$14,IF(AND(AN160>0,AN160<=1),AN160*BS$14,"")) ->  | CG160: 10371 | CL160: 21240.47943
B161: SW-011279 | D161: Active (Above Ground) | E161: Wastewater Treatment | F161: MSTP - Return Activate Sludge (RAS) Pump Station - Pumps (4) | L161: 0 | M161: 64056.81429 | O161: 1 | P161: 64056.81429 | S161: =IF(Q161="",'Unit Rates - Land'!landcst,IF($E$8="Landuse",VLOOKUP(Q161,LAndcost3,2,FALSE),IF($E$8="Location",VLOOKUP(Q161,Landcost2,2,FALSE),"Error"))) -> 10 | T161: 0 | U161: 2016 | V161: =IFERROR(('General Input Sheet'!$G$38/(VLOOKUP(U161,'General Input Sheet'!$E$38:$G$44,3,FALSE))),1) -> 1 | W161: 64056.81429 | AA161: y | BF161: 10371 | CG161: 10371 | CL161: 64056.81429
B162: SW-011280 | D162: Active (Above Ground) | E162: Wastewater Treatment | F162: MSTP - Return Activate Sludge (RAS) Pump Station - Pipework | L162: 0 | M162: 170547.0759 | O162: 1 | P162: 170547.0759 | S162: =IF(Q162="",'Unit Rates - Land'!landcst,IF($E$8="Landuse",VLOOKUP(Q162,LAndcost3,2,FALSE),IF($E$8="Location",VLOOKUP(Q162,Landcost2,2,FALSE),"Error"))) -> 10 | T162: 0 | U162: 2016 | V162: =IFERROR(('General Input Sheet'!$G$38/(VLOOKUP(U162,'General Input Sheet'!$E$38:$G$44,3,FALSE))),1) -> 1 | W162: 170547.0759 | AA162: y | BF162: 10371 | CG162: 10371 | CL162: 170547.0759
B163: SW-011281 | D163: Active (Above Ground) | E163: Wastewater Treatment | F163: MSTP - Return Activate Sludge (RAS) Pump Station - Flowmeters | L163: 0 | M163: 11827.59328 | O163: 1 | P163: 11827.59328 | S163: =IF(Q163="",'Unit Rates - Land'!landcst,IF($E$8="Landuse",VLOOKUP(Q163,LAndcost3,2,FALSE),IF($E$8="Location",VLOOKUP(Q163,Landcost2,2,FALSE),"Error"))) -> 10 | T163: 0 | U163: 2016 | V163: =IFERROR(('General Input Sheet'!$G$38/(VLOOKUP(U163,'General Input Sheet'!$E$38:$G$44,3,FALSE))),1) -> 1 | W163: 11827.59328 | AA163: y | BF163: 10371 | CG163: 10371 | CL163: 11827.59328
B164: SW-011282 | D164: Active (Above Ground) | E164: Wastewater Treatment | F164: MSTP - Return Activate Sludge (RAS) Pump Station - Electrical | L164: 0 | M164: 8272.607779 | O164: 1 | P164: 8272.607779 | S164: =IF(Q164="",'Unit Rates - Land'!landcst,IF($E$8="Landuse",VLOOKUP(Q164,LAndcost3,2,FALSE),IF($E$8="Location",VLOOKUP(Q164,Landcost2,2,FALSE),"Error"))) -> 10 | T164: 0 | U164: 2016 | V164: =IFERROR(('General Input Sheet'!$G$38/(VLOOKUP(U164,'General Input Sheet'!$E$38:$G$44,3,FALSE))),1) -> 1 | W164: 8272.607779 | AA164: y | BF164: 10371 | CG164: 10371 | CL164: 8272.607779
B165: SW-011283 | D165: Active (Above Ground) | E165: Wastewater Treatment | F165: MSTP - Return Activate Sludge (RAS) Pump Station - Instrumentation & Controls | L165: 0 | M165: 12576.59966 | O165: 1 | P165: 12576.59966 | S165: =IF(Q165="",'Unit Rates - Land'!landcst,IF($E$8="Landuse",VLOOKUP(Q165,LAndcost3,2,FALSE),IF($E$8="Location",VLOOKUP(Q165,Landcost2,2,FALSE),"Error"))) -> 10 | T165: 0 | U165: 2016 | V165: =IFERROR(('General Input Sheet'!$G$38/(VLOOKUP(U165,'General Input Sheet'!$E$38:$G$44,3,FALSE))),1) -> 1 | W165: 12576.59966 | AA165: y | BF165: 10371 | CG165: 10371 | CL165: 12576.59966
B166: SW-011284 | D166: Active (Above Ground) | E166: Wastewater Treatment | F166: MSTP - Pump & Generator Shelters x 4 | L166: 0 | M166: 79867.55643 | O166: 1 | P166: 79867.55643 | S166: =IF(Q166="",'Unit Rates - Land'!landcst,IF($E$8="Landuse",VLOOKUP(Q166,LAndcost3,2,FALSE),IF($E$8="Location",VLOOKUP(Q166,Landcost2,2,FALSE),"Error"))) -> 10 | T166: 0 | U166: 2016 | V166: =IFERROR(('General Input Sheet'!$G$38/(VLOOKUP(U166,'General Input Sheet'!$E$38:$G$44,3,FALSE))),1) -> 1 | W166: 79867.55643 | AA166: y | BF166: 10371 | CG166: 10371 | CL166: 79867.55643
B167: SW-011285 | D167: Passive (Below Ground) | E167: Wastewater Treatment | F167: MSTP - Chlorine Contact Tank - Structure | L167: 0 | M167: 279941.1345 | O167: 1 | P167: 279941.1345 | S167: =IF(Q167="",'Unit Rates - Land'!landcst,IF($E$8="Landuse",VLOOKUP(Q167,LAndcost3,2,FALSE),IF($E$8="Location",VLOOKUP(Q167,Landcost2,2,FALSE),"Error"))) -> 10 | T167: 0 | U167: 2016 | V167: =IFERROR(('General Input Sheet'!$G$38/(VLOOKUP(U167,'General Input Sheet'!$E$38:$G$44,3,FALSE))),1) -> 1 | W167: 279941.1345 | AA167: y | BF167: 10371 | CG167: 10371 | CL167: 279941.1345
B168: SW-011286 | D168: Active (Above Ground) | E168: Wastewater Treatment | F168: MSTP - Chlorine Contact Tank - Flowmeter | L168: 0 | M168: 23755.79937 | O168: 1 | P168: 23755.79937 | S168: =IF(Q168="",'Unit Rates - Land'!landcst,IF($E$8="Landuse",VLOOKUP(Q168,LAndcost3,2,FALSE),IF($E$8="Location",VLOOKUP(Q168,Landcost2,2,FALSE),"Error"))) -> 10 | T168: 0 | U168: 2016 | V168: =IFERROR(('General Input Sheet'!$G$38/(VLOOKUP(U168,'General Input Sheet'!$E$38:$G$44,3,FALSE))),1) -> 1 | W168: 23755.79937 | AA168: y | BF168: 10371 | CG168: 10371 | CL168: 23755.79937
B169: SW-011287 | D169: Active (Above Ground) | E169: Wastewater Treatment | F169: MSTP - Chlorine Contact Tank - Pipework | L169: 0 | M169: 279004.8766 | O169: 1 | P169: 279004.8766 | S169: =IF(Q169="",'Unit Rates - Land'!landcst,IF($E$8="Landuse",VLOOKUP(Q169,LAndcost3,2,FALSE),IF($E$8="Location",VLOOKUP(Q169,Landcost2,2,FALSE),"Error"))) -> 10 | T169: 0 | U169: 2016 | V169: =IFERROR(('General Input Sheet'!$G$38/(VLOOKUP(U169,'General Input Sheet'!$E$38:$G$44,3,FALSE))),1) -> 1 | W169: 279004.8766 | AA169: y | BF169: 10371 | CG169: 10371 | CL169: 279004.8766
B170: SW-011288 | D170: Active (Above Ground) | E170: Wastewater Treatment | F170: MSTP - Chlorine Contact Tank - Instrumentation & Control | L170: 0 | M170: 57838.38446 | O170: 1 | P170: 57838.38446 | S170: =IF(Q170="",'Unit Rates - Land'!landcst,IF($E$8="Landuse",VLOOKUP(Q170,LAndcost3,2,FALSE),IF($E$8="Location",VLOOKUP(Q170,Landcost2,2,FALSE),"Error"))) -> 10 | T170: 0 | U170: 2016 | V170: =IFERROR(('General Input Sheet'!$G$38/(VLOOKUP(U170,'General Input Sheet'!$E$38:$G$44,3,FALSE))),1) -> 1 | W170: 57838.38446 | AA170: y | BF170: 10371 | CG170: 10371 | CL170: 57838.38446 | CQ170: =IF(BK170="","",(BK170/$CG170)*$W170) -> 
B171: SW-011289 | D171: Active (Above Ground) | E171: Wastewater Treatment | F171: MSTP - Chlorine Contact Tank - Electrical | L171: 0 | M171: 13973.99963 | O171: 1 | P171: 13973.99963 | S171: =IF(Q171="",'Unit Rates - Land'!landcst,IF($E$8="Landuse",VLOOKUP(Q171,LAndcost3,2,FALSE),IF($E$8="Location",VLOOKUP(Q171,Landcost2,2,FALSE),"Error"))) -> 10 | T171: 0 | U171: 2016 | V171: =IFERROR(('General Input Sheet'!$G$38/(VLOOKUP(U171,'General Input Sheet'!$E$38:$G$44,3,FALSE))),1) -> 1 | W171: 13973.99963 | AA171: y | BF171: 10371 | CG171: 10371 | CI171: =IF(BC171="","",(BC171/$CG171)*$W171) ->  | CL171: 13973.99963
B172: SW-011290 | D172: Active (Above Ground) | E172: Wastewater Treatment | F172: MSTP - Recycled Water Pump Station - Skid (Slab) | L172: 0 | M172: 137699.7923 | O172: 1 | P172: 137699.7923 | S172: =IF(Q172="",'Unit Rates - Land'!landcst,IF($E$8="Landuse",VLOOKUP(Q172,LAndcost3,2,FALSE),IF($E$8="Location",VLOOKUP(Q172,Landcost2,2,FALSE),"Error"))) -> 10 | T172: 0 | U172: 2016 | V172: =IFERROR(('General Input Sheet'!$G$38/(VLOOKUP(U172,'General Input Sheet'!$E$38:$G$44,3,FALSE))),1) -> 1 | W172: 137699.7923 | AA172: y | BF172: 10371 | CG172: 10371 | CL172: 137699.7923
B173: SW-011291 | D173: Active (Above Ground) | E173: Wastewater Treatment | F173: MSTP - Recycled Water Pump Station - Pipework (RE site service water reticulation) | L173: 0 | M173: 74600.61623 | O173: 1 | P173: 74600.61623 | S173: =IF(Q173="",'Unit Rates - Land'!landcst,IF($E$8="Landuse",VLOOKUP(Q173,LAndcost3,2,FALSE),IF($E$8="Location",VLOOKUP(Q173,Landcost2,2,FALSE),"Error"))) -> 10 | T173: 0 | U173: 2016 | V173: =IFERROR(('General Input Sheet'!$G$38/(VLOOKUP(U173,'General Input Sheet'!$E$38:$G$44,3,FALSE))),1) -> 1 | W173: 74600.61623 | AA173: y | BE173: =IF(Z173="y",BE$14,IF(AND(Z173>0,Z173<=1),Z173*BE$14,"")) ->  | BF173: 10371 | CG173: 10371 | CL173: 74600.61623
B174: SW-011292 | D174: Active (Above Ground) | E174: Wastewater Treatment | F174: MSTP - Recycled Water Pump Station - Electrical | L174: 0 | M174: 8272.607779 | O174: 1 | P174: 8272.607779 | S174: =IF(Q174="",'Unit Rates - Land'!landcst,IF($E$8="Landuse",VLOOKUP(Q174,LAndcost3,2,FALSE),IF($E$8="Location",VLOOKUP(Q174,Landcost2,2,FALSE),"Error"))) -> 10 | T174: 0 | U174: 2016 | V174: =IFERROR(('General Input Sheet'!$G$38/(VLOOKUP(U174,'General Input Sheet'!$E$38:$G$44,3,FALSE))),1) -> 1 | W174: 8272.607779 | AA174: y | BC174: =IF(X174="y",BC$14,IF(AND(X174>0,X174<=1),X174*BC$14,"")) ->  | BF174: 10371 | CG174: 10371 | CL174: 8272.607779
B175: SW-011293 | D175: Active (Above Ground) | E175: Wastewater Treatment | F175: MSTP - Recycled Water Pump Station - Flowmeter (Site Recycled Effluent) | L175: 0 | M175: 5205.314861 | O175: 1 | P175: 5205.314861 | S175: =IF(Q175="",'Unit Rates - Land'!landcst,IF($E$8="Landuse",VLOOKUP(Q175,LAndcost3,2,FALSE),IF($E$8="Location",VLOOKUP(Q175,Landcost2,2,FALSE),"Error"))) -> 10 | T175: 0 | U175: 2016 | V175: =IFERROR(('General Input Sheet'!$G$38/(VLOOKUP(U175,'General Input Sheet'!$E$38:$G$44,3,FALSE))),1) -> 1 | W175: 5205.314861 | AA175: y | BF175: 10371 | CG175: 10371 | CL175: 5205.314861
B176: SW-011294 | D176: Active (Above Ground) | E176: Wastewater Treatment | F176: MSTP - Recycled Water Pump Station - Instrumentation & Control | L176: 0 | M176: 11325.9267 | O176: 1 | P176: 11325.9267 | S176: =IF(Q176="",'Unit Rates - Land'!landcst,IF($E$8="Landuse",VLOOKUP(Q176,LAndcost3,2,FALSE),IF($E$8="Location",VLOOKUP(Q176,Landcost2,2,FALSE),"Error"))) -> 10 | T176: 0 | U176: 2016 | V176: =IFERROR(('General Input Sheet'!$G$38/(VLOOKUP(U176,'General Input Sheet'!$E$38:$G$44,3,FALSE))),1) -> 1 | W176: 11325.9267 | AA176: y | BF176: 10371 | CG176: 10371 | CL176: 11325.9267
B177: SW-011295 | D177: Active (Above Ground) | E177: Wastewater Treatment | F177: MSTP - Aerobic Digestor - Structure | L177: 0 | M177: 639981.2349 | O177: 1 | P177: 639981.2349 | S177: =IF(Q177="",'Unit Rates - Land'!landcst,IF($E$8="Landuse",VLOOKUP(Q177,LAndcost3,2,FALSE),IF($E$8="Location",VLOOKUP(Q177,Landcost2,2,FALSE),"Error"))) -> 10 | T177: 0 | U177: 2016 | V177: =IFERROR(('General Input Sheet'!$G$38/(VLOOKUP(U177,'General Input Sheet'!$E$38:$G$44,3,FALSE))),1) -> 1 | W177: 639981.2349 | AA177: y | BF177: 10371 | CG177: 10371 | CL177: 639981.2349
B178: SW-011296 | D178: Active (Above Ground) | E178: Wastewater Treatment | F178: MSTP - Aerobic Digestor - DO Probes | L178: 0 | M178: 3715.686501 | O178: 1 | P178: 3715.686501 | S178: =IF(Q178="",'Unit Rates - Land'!landcst,IF($E$8="Landuse",VLOOKUP(Q178,LAndcost3,2,FALSE),IF($E$8="Location",VLOOKUP(Q178,Landcost2,2,FALSE),"Error"))) -> 10 | T178: 0 | U178: 2016 | V178: =IFERROR(('General Input Sheet'!$G$38/(VLOOKUP(U178,'General Input Sheet'!$E$38:$G$44,3,FALSE))),1) -> 1 | W178: 3715.686501 | AA178: y | BF178: 10371 | CG178: 10371 | CL178: 3715.686501
B179: SW-011297 | D179: Active (Above Ground) | E179: Wastewater Treatment | F179: MSTP - Aerobic Digestor - Electrical | L179: 0 | M179: 8272.607779 | O179: 1 | P179: 8272.607779 | S179: =IF(Q179="",'Unit Rates - Land'!landcst,IF($E$8="Landuse",VLOOKUP(Q179,LAndcost3,2,FALSE),IF($E$8="Location",VLOOKUP(Q179,Landcost2,2,FALSE),"Error"))) -> 10 | T179: 0 | U179: 2016 | V179: =IFERROR(('General Input Sheet'!$G$38/(VLOOKUP(U179,'General Input Sheet'!$E$38:$G$44,3,FALSE))),1) -> 1 | W179: 8272.607779 | AA179: y | BF179: 10371 | CG179: 10371 | CL179: 8272.607779
B180: SW-011298 | D180: Active (Above Ground) | E180: Wastewater Treatment | F180: MSTP - Aerobic Digestor - Instrumentation & Control | L180: 0 | M180: 29360.77062 | O180: 1 | P180: 29360.77062 | S180: =IF(Q180="",'Unit Rates - Land'!landcst,IF($E$8="Landuse",VLOOKUP(Q180,LAndcost3,2,FALSE),IF($E$8="Location",VLOOKUP(Q180,Landcost2,2,FALSE),"Error"))) -> 10 | T180: 0 | U180: 2016 | V180: =IFERROR(('General Input Sheet'!$G$38/(VLOOKUP(U180,'General Input Sheet'!$E$38:$G$44,3,FALSE))),1) -> 1 | W180: 29360.77062 | AA180: y | BF180: 10371 | CG180: 10371 | CL180: 29360.77062
B181: SW-011299 | D181: Active (Above Ground) | E181: Wastewater Treatment | F181: MSTP - Aerobic Digestor - Aeration Blowers (2) | L181: 0 | M181: 72902.35606 | O181: 1 | P181: 72902.35606 | S181: =IF(Q181="",'Unit Rates - Land'!landcst,IF($E$8="Landuse",VLOOKUP(Q181,LAndcost3,2,FALSE),IF($E$8="Location",VLOOKUP(Q181,Landcost2,2,FALSE),"Error"))) -> 10 | T181: 0 | U181: 2016 | V181: =IFERROR(('General Input Sheet'!$G$38/(VLOOKUP(U181,'General Input Sheet'!$E$38:$G$44,3,FALSE))),1) -> 1 | W181: 72902.35606 | AA181: y | BF181: 10371 | CG181: 10371 | CL181: 72902.35606
B182: SW-011300 | D182: Active (Above Ground) | E182: Wastewater Treatment | F182: MSTP - Aerobic Digestor - Aeration Pipework | L182: 0 | M182: 147775.0461 | O182: 1 | P182: 147775.0461 | S182: =IF(Q182="",'Unit Rates - Land'!landcst,IF($E$8="Landuse",VLOOKUP(Q182,LAndcost3,2,FALSE),IF($E$8="Location",VLOOKUP(Q182,Landcost2,2,FALSE),"Error"))) -> 10 | T182: 0 | U182: 2016 | V182: =IFERROR(('General Input Sheet'!$G$38/(VLOOKUP(U182,'General Input Sheet'!$E$38:$G$44,3,FALSE))),1) -> 1 | W182: 147775.0461 | AA182: y | BF182: 10371 | CG182: 10371 | CL182: 147775.0461
B183: SW-011301 | D183: Active (Above Ground) | E183: Wastewater Treatment | F183: MSTP - Aerobic Digestor - Aeration Air Diffuser System Pipework | L183: 0 | M183: 144169.7542 | O183: 1 | P183: 144169.7542 | S183: =IF(Q183="",'Unit Rates - Land'!landcst,IF($E$8="Landuse",VLOOKUP(Q183,LAndcost3,2,FALSE),IF($E$8="Location",VLOOKUP(Q183,Landcost2,2,FALSE),"Error"))) -> 10 | T183: 0 | U183: 2016 | V183: =IFERROR(('General Input Sheet'!$G$38/(VLOOKUP(U183,'General Input Sheet'!$E$38:$G$44,3,FALSE))),1) -> 1 | W183: 144169.7542 | AA183: y | BF183: 10371 | CG183: 10371 | CL183: 144169.7542
B184: SW-011302 | D184: Active (Above Ground) | E184: Wastewater Treatment | F184: MSTP - Sludge Dewatering Facility - Structure | L184: 0 | M184: 344626.7788 | O184: 1 | P184: 344626.7788 | S184: =IF(Q184="",'Unit Rates - Land'!landcst,IF($E$8="Landuse",VLOOKUP(Q184,LAndcost3,2,FALSE),IF($E$8="Location",VLOOKUP(Q184,Landcost2,2,FALSE),"Error"))) -> 10 | T184: 0 | U184: 2016 | V184: =IFERROR(('General Input Sheet'!$G$38/(VLOOKUP(U184,'General Input Sheet'!$E$38:$G$44,3,FALSE))),1) -> 1 | W184: 344626.7788 | AA184: y | BF184: 10371 | CG184: 10371 | CL184: 344626.7788
B185: SW-011303 | D185: Active (Above Ground) | E185: Wastewater Treatment | F185: MSTP - Waste Activate Sludge (WAS) Pump Station - Pumps (4) | L185: 0 | M185: 28101.71325 | O185: 1 | P185: 28101.71325 | S185: =IF(Q185="",'Unit Rates - Land'!landcst,IF($E$8="Landuse",VLOOKUP(Q185,LAndcost3,2,FALSE),IF($E$8="Location",VLOOKUP(Q185,Landcost2,2,FALSE),"Error"))) -> 10 | T185: 0 | U185: 2016 | V185: =IFERROR(('General Input Sheet'!$G$38/(VLOOKUP(U185,'General Input Sheet'!$E$38:$G$44,3,FALSE))),1) -> 1 | W185: 28101.71325 | AA185: y | BF185: 10371 | CD185: =IF(AY185="y",CD$14,IF(AND(AY185>0,AY185<=1),AY185*CD$14,"")) ->  | CG185: 10371 | CL185: 28101.71325
B186: SW-011304 | D186: Active (Above Ground) | E186: Wastewater Treatment | F186: MSTP - Waste Activate Sludge (WAS) Pump Station - Pipework | L186: 0 | M186: 5994.84584 | O186: 1 | P186: 5994.84584 | S186: =IF(Q186="",'Unit Rates - Land'!landcst,IF($E$8="Landuse",VLOOKUP(Q186,LAndcost3,2,FALSE),IF($E$8="Location",VLOOKUP(Q186,Landcost2,2,FALSE),"Error"))) -> 10 | T186: 0 | U186: 2016 | V186: =IFERROR(('General Input Sheet'!$G$38/(VLOOKUP(U186,'General Input Sheet'!$E$38:$G$44,3,FALSE))),1) -> 1 | W186: 5994.84584 | AA186: y | BF186: 10371 | CG186: 10371 | CL186: 5994.84584
B187: SW-011305 | D187: Active (Above Ground) | E187: Wastewater Treatment | F187: MSTP - Waste Activate Sludge (WAS) Pump Station - Flowmeters | L187: 0 | M187: 11179.1997 | O187: 1 | P187: 11179.1997 | S187: =IF(Q187="",'Unit Rates - Land'!landcst,IF($E$8="Landuse",VLOOKUP(Q187,LAndcost3,2,FALSE),IF($E$8="Location",VLOOKUP(Q187,Landcost2,2,FALSE),"Error"))) -> 10 | T187: 0 | U187: 2016 | V187: =IFERROR(('General Input Sheet'!$G$38/(VLOOKUP(U187,'General Input Sheet'!$E$38:$G$44,3,FALSE))),1) -> 1 | W187: 11179.1997 | AA187: y | BF187: 10371 | CG187: 10371 | CL187: 11179.1997
B188: SW-011306 | D188: Active (Above Ground) | E188: Wastewater Treatment | F188: MSTP - Waste Activate Sludge (WAS) Pump Station - Electrical | L188: 0 | M188: 16196.92759 | O188: 1 | P188: 16196.92759 | S188: =IF(Q188="",'Unit Rates - Land'!landcst,IF($E$8="Landuse",VLOOKUP(Q188,LAndcost3,2,FALSE),IF($E$8="Location",VLOOKUP(Q188,Landcost2,2,FALSE),"Error"))) -> 10 | T188: 0 | U188: 2016 | V188: =IFERROR(('General Input Sheet'!$G$38/(VLOOKUP(U188,'General Input Sheet'!$E$38:$G$44,3,FALSE))),1) -> 1 | W188: 16196.92759 | AA188: y | BF188: 10371 | CG188: 10371 | CL188: 16196.92759
B189: SW-011307 | D189: Active (Above Ground) | E189: Wastewater Treatment | F189: MSTP - Waste Activate Sludge (WAS) Pump Station - Instrumentation & Controls | L189: 0 | M189: 13973.99963 | O189: 1 | P189: 13973.99963 | S189: =IF(Q189="",'Unit Rates - Land'!landcst,IF($E$8="Landuse",VLOOKUP(Q189,LAndcost3,2,FALSE),IF($E$8="Location",VLOOKUP(Q189,Landcost2,2,FALSE),"Error"))) -> 10 | T189: 0 | U189: 2016 | V189: =IFERROR(('General Input Sheet'!$G$38/(VLOOKUP(U189,'General Input Sheet'!$E$38:$G$44,3,FALSE))),1) -> 1 | W189: 13973.99963 | AA189: y | BF189: 10371 | CG189: 10371 | CL189: 13973.99963
B190: SW-011308 | D190: Active (Above Ground) | E190: Wastewater Treatment | F190: MSTP - Sludge Dewatering Facility - Mechanical (Belt Filter Press) | L190: 0 | M190: 461407.4937 | O190: 1 | P190: 461407.4937 | S190: =IF(Q190="",'Unit Rates - Land'!landcst,IF($E$8="Landuse",VLOOKUP(Q190,LAndcost3,2,FALSE),IF($E$8="Location",VLOOKUP(Q190,Landcost2,2,FALSE),"Error"))) -> 10 | T190: 0 | U190: 2016 | V190: =IFERROR(('General Input Sheet'!$G$38/(VLOOKUP(U190,'General Input Sheet'!$E$38:$G$44,3,FALSE))),1) -> 1 | W190: 461407.4937 | AA190: y | BF190: 10371 | CG190: 10371 | CL190: 461407.4937
B191: SW-011309 | D191: Active (Above Ground) | E191: Wastewater Treatment | F191: MSTP - Sludge Dewatering Facility - Compressed Air System | L191: 0 | M191: 84319.11375 | O191: 1 | P191: 84319.11375 | S191: =IF(Q191="",'Unit Rates - Land'!landcst,IF($E$8="Landuse",VLOOKUP(Q191,LAndcost3,2,FALSE),IF($E$8="Location",VLOOKUP(Q191,Landcost2,2,FALSE),"Error"))) -> 10 | T191: 0 | U191: 2016 | V191: =IFERROR(('General Input Sheet'!$G$38/(VLOOKUP(U191,'General Input Sheet'!$E$38:$G$44,3,FALSE))),1) -> 1 | W191: 84319.11375 | AA191: y | BF191: 10371 | BH191: =IF(AC191="y",BH$14,IF(AND(AC191>0,AC191<=1),AC191*BH$14,"")) ->  | CA191: =IF(AV191="y",CA$14,IF(AND(AV191>0,AV191<=1),AV191*CA$14,"")) ->  | CG191: 10371 | CL191: 84319.11375
B192: SW-011310 | D192: Active (Above Ground) | E192: Wastewater Treatment | F192: MSTP - Sludge Dewatering Facility - Polymer Batching & Dosing System | L192: 0 | M192: 196488.4088 | O192: 1 | P192: 196488.4088 | S192: =IF(Q192="",'Unit Rates - Land'!landcst,IF($E$8="Landuse",VLOOKUP(Q192,LAndcost3,2,FALSE),IF($E$8="Location",VLOOKUP(Q192,Landcost2,2,FALSE),"Error"))) -> 10 | T192: 0 | U192: 2016 | V192: =IFERROR(('General Input Sheet'!$G$38/(VLOOKUP(U192,'General Input Sheet'!$E$38:$G$44,3,FALSE))),1) -> 1 | W192: 196488.4088 | AA192: y | BF192: 10371 | CG192: 10371 | CL192: 196488.4088 | CS192: =IF(BM192="","",(BM192/$CG192)*$W192) -> 
B193: SW-011311 | D193: Active (Above Ground) | E193: Wastewater Treatment | F193: MSTP - Sludge Dewatering Facility - Mechanical (Belt Conveyor System) | L193: 0 | M193: 181270.7232 | O193: 1 | P193: 181270.7232 | S193: =IF(Q193="",'Unit Rates - Land'!landcst,IF($E$8="Landuse",VLOOKUP(Q193,LAndcost3,2,FALSE),IF($E$8="Location",VLOOKUP(Q193,Landcost2,2,FALSE),"Error"))) -> 10 | T193: 0 | U193: 2016 | V193: =IFERROR(('General Input Sheet'!$G$38/(VLOOKUP(U193,'General Input Sheet'!$E$38:$G$44,3,FALSE))),1) -> 1 | W193: 181270.7232 | AA193: y | BF193: 10371 | CG193: 10371 | CL193: 181270.7232
B194: SW-011312 | D194: Active (Above Ground) | E194: Wastewater Treatment | F194: MSTP - Sludge Dewatering Facility - Instrumentation & Controls | L194: 0 | M194: 33048.50912 | O194: 1 | P194: 33048.50912 | S194: =IF(Q194="",'Unit Rates - Land'!landcst,IF($E$8="Landuse",VLOOKUP(Q194,LAndcost3,2,FALSE),IF($E$8="Location",VLOOKUP(Q194,Landcost2,2,FALSE),"Error"))) -> 10 | T194: 0 | U194: 2016 | V194: =IFERROR(('General Input Sheet'!$G$38/(VLOOKUP(U194,'General Input Sheet'!$E$38:$G$44,3,FALSE))),1) -> 1 | W194: 33048.50912 | AA194: y | BF194: 10371 | CG194: 10371 | CL194: 33048.50912
B195: SW-011313 | D195: Active (Above Ground) | E195: Wastewater Treatment | F195: MSTP - Sludge Dewatering Facility - Electrical | L195: 0 | M195: 52233.63679 | O195: 1 | P195: 52233.63679 | S195: =IF(Q195="",'Unit Rates - Land'!landcst,IF($E$8="Landuse",VLOOKUP(Q195,LAndcost3,2,FALSE),IF($E$8="Location",VLOOKUP(Q195,Landcost2,2,FALSE),"Error"))) -> 10 | T195: 0 | U195: 2016 | V195: =IFERROR(('General Input Sheet'!$G$38/(VLOOKUP(U195,'General Input Sheet'!$E$38:$G$44,3,FALSE))),1) -> 1 | W195: 52233.63679 | AA195: y | BF195: 10371 | CG195: 10371 | CL195: 52233.63679
B196: SW-011314 | D196: Active (Above Ground) | E196: Wastewater Treatment | F196: MSTP - Sludge Dewatering Facility - Potable Water Ring Main | L196: 0 | M196: 38721.95297 | O196: 1 | P196: 38721.95297 | S196: =IF(Q196="",'Unit Rates - Land'!landcst,IF($E$8="Landuse",VLOOKUP(Q196,LAndcost3,2,FALSE),IF($E$8="Location",VLOOKUP(Q196,Landcost2,2,FALSE),"Error"))) -> 10 | T196: 0 | U196: 2016 | V196: =IFERROR(('General Input Sheet'!$G$38/(VLOOKUP(U196,'General Input Sheet'!$E$38:$G$44,3,FALSE))),1) -> 1 | W196: 38721.95297 | AA196: y | BF196: 10371 | CG196: 10371 | CL196: 38721.95297
B197: SW-011315 | D197: Active (Above Ground) | E197: Wastewater Treatment | F197: MSTP - Sludge Dewatering Facility - Outloading Building | L197: 0 | M197: 73921.1864 | O197: 1 | P197: 73921.1864 | S197: =IF(Q197="",'Unit Rates - Land'!landcst,IF($E$8="Landuse",VLOOKUP(Q197,LAndcost3,2,FALSE),IF($E$8="Location",VLOOKUP(Q197,Landcost2,2,FALSE),"Error"))) -> 10 | T197: 0 | U197: 2016 | V197: =IFERROR(('General Input Sheet'!$G$38/(VLOOKUP(U197,'General Input Sheet'!$E$38:$G$44,3,FALSE))),1) -> 1 | W197: 73921.1864 | AA197: y | BF197: 10371 | CG197: 10371 | CL197: 73921.1864
B198: SW-011316 | D198: Active (Above Ground) | E198: Wastewater Treatment | F198: MSTP - Sludge Dewatering Facility - Structure | L198: 0 | M198: 279479.9925 | O198: 1 | P198: 279479.9925 | S198: =IF(Q198="",'Unit Rates - Land'!landcst,IF($E$8="Landuse",VLOOKUP(Q198,LAndcost3,2,FALSE),IF($E$8="Location",VLOOKUP(Q198,Landcost2,2,FALSE),"Error"))) -> 10 | T198: 0 | U198: 2016 | V198: =IFERROR(('General Input Sheet'!$G$38/(VLOOKUP(U198,'General Input Sheet'!$E$38:$G$44,3,FALSE))),1) -> 1 | W198: 279479.9925 | AA198: y | BF198: 10371 | CG198: 10371 | CL198: 279479.9925
B199: SW-011317 | D199: Active (Above Ground) | E199: Wastewater Treatment | F199: MSTP - Bulk Chemical Dosing System - Structure | L199: 0 | M199: 272011.8352 | O199: 1 | P199: 272011.8352 | S199: =IF(Q199="",'Unit Rates - Land'!landcst,IF($E$8="Landuse",VLOOKUP(Q199,LAndcost3,2,FALSE),IF($E$8="Location",VLOOKUP(Q199,Landcost2,2,FALSE),"Error"))) -> 10 | T199: 0 | U199: 2016 | V199: =IFERROR(('General Input Sheet'!$G$38/(VLOOKUP(U199,'General Input Sheet'!$E$38:$G$44,3,FALSE))),1) -> 1 | W199: 272011.8352 | AA199: y | BF199: 10371 | CG199: 10371 | CL199: 272011.8352
B200: SW-011318 | D200: Active (Above Ground) | E200: Wastewater Treatment | F200: MSTP - Bulk Chemical Dosing System - Electrical | L200: 0 | M200: 18666.74686 | O200: 1 | P200: 18666.74686 | S200: =IF(Q200="",'Unit Rates - Land'!landcst,IF($E$8="Landuse",VLOOKUP(Q200,LAndcost3,2,FALSE),IF($E$8="Location",VLOOKUP(Q200,Landcost2,2,FALSE),"Error"))) -> 10 | T200: 0 | U200: 2016 | V200: =IFERROR(('General Input Sheet'!$G$38/(VLOOKUP(U200,'General Input Sheet'!$E$38:$G$44,3,FALSE))),1) -> 1 | W200: 18666.74686 | AA200: y | BF200: 10371 | CG200: 10371 | CL200: 18666.74686 | CR200: =IF(BL200="","",(BL200/$CG200)*$W200) -> 
B201: SW-011319 | D201: Active (Above Ground) | E201: Wastewater Treatment | F201: MSTP - Alum Dosing - Storage Tank | L201: 0 | M201: 34944.15012 | O201: 1 | P201: 34944.15012 | S201: =IF(Q201="",'Unit Rates - Land'!landcst,IF($E$8="Landuse",VLOOKUP(Q201,LAndcost3,2,FALSE),IF($E$8="Location",VLOOKUP(Q201,Landcost2,2,FALSE),"Error"))) -> 10 | T201: 0 | U201: 2016 | V201: =IFERROR(('General Input Sheet'!$G$38/(VLOOKUP(U201,'General Input Sheet'!$E$38:$G$44,3,FALSE))),1) -> 1 | W201: 34944.15012 | AA201: y | BF201: 10371 | CG201: 10371 | CI201: =IF(BC201="","",(BC201/$CG201)*$W201) ->  | CL201: 34944.15012
B202: SW-011320 | D202: Active (Above Ground) | E202: Wastewater Treatment | F202: MSTP - Alum Dosing - Dosing Pump Skids | L202: 0 | M202: 64008.27498 | O202: 1 | P202: 64008.27498 | S202: =IF(Q202="",'Unit Rates - Land'!landcst,IF($E$8="Landuse",VLOOKUP(Q202,LAndcost3,2,FALSE),IF($E$8="Location",VLOOKUP(Q202,Landcost2,2,FALSE),"Error"))) -> 10 | T202: 0 | U202: 2016 | V202: =IFERROR(('General Input Sheet'!$G$38/(VLOOKUP(U202,'General Input Sheet'!$E$38:$G$44,3,FALSE))),1) -> 1 | W202: 64008.27498 | AA202: y | BF202: 10371 | CG202: 10371 | CL202: 64008.27498
B203: SW-011321 | D203: Active (Above Ground) | E203: Wastewater Treatment | F203: MSTP - Alum Dosing - Instrumentation & Controls | L203: 0 | M203: 33114.80893 | O203: 1 | P203: 33114.80893 | S203: =IF(Q203="",'Unit Rates - Land'!landcst,IF($E$8="Landuse",VLOOKUP(Q203,LAndcost3,2,FALSE),IF($E$8="Location",VLOOKUP(Q203,Landcost2,2,FALSE),"Error"))) -> 10 | T203: 0 | U203: 2016 | V203: =IFERROR(('General Input Sheet'!$G$38/(VLOOKUP(U203,'General Input Sheet'!$E$38:$G$44,3,FALSE))),1) -> 1 | W203: 33114.80893 | AA203: y | BF203: 10371 | CG203: 10371 | CL203: 33114.80893 | DI203: =IF(CC203="","",(CC203/$CG203)*$W203) -> 
B204: SW-011322 | D204: Active (Above Ground) | E204: Wastewater Treatment | F204: MSTP - Alum Dosing - Dosing Pipework | L204: 0 | M204: 88891.04854 | O204: 1 | P204: 88891.04854 | S204: =IF(Q204="",'Unit Rates - Land'!landcst,IF($E$8="Landuse",VLOOKUP(Q204,LAndcost3,2,FALSE),IF($E$8="Location",VLOOKUP(Q204,Landcost2,2,FALSE),"Error"))) -> 10 | T204: 0 | U204: 2016 | V204: =IFERROR(('General Input Sheet'!$G$38/(VLOOKUP(U204,'General Input Sheet'!$E$38:$G$44,3,FALSE))),1) -> 1 | W204: 88891.04854 | AA204: y | BF204: 10371 | CG204: 10371 | CL204: 88891.04854
... 588 more rows

Sheet Exist Trunk Assets - Transport (hidden)
B2: ='Navigation Pane'!C2 -> Mareeba Shire Council
B3: Transport
A4: Return to "Existing Trunk Assets"
B5: EXISTING TRUNK ASSETS
B8: Land Valuation Type | D8: Location
H10: Asset Data | V10: Catchment Asset Allocation | BO10: Asset Usage | CU10: Cost Allocation
B11: Basic Asset Data | G11: Asset Attributes | J11: Basic Asset Valuation | O11: Land Attributes | S11: Refined Asset Value | V11: ='Catchment Demand Road Transport'!$C8 -> CHILLAGOE | W11: ='Catchment Demand Road Transport'!$C9 -> DIMBULAH | X11: ='Catchment Demand Road Transport'!$C10 -> KURANDA | Y11: ='Catchment Demand Road Transport'!$C11 -> MAREEBA | Z11: ='Catchment Demand Road Transport'!$C12 -> 0 | AA11: ='Catchment Demand Road Transport'!$C13 -> 0 | AB11: ='Catchment Demand Road Transport'!$C14 -> 0 | AC11: ='Catchment Demand Road Transport'!$C15 -> 0 | AD11: ='Catchment Demand Road Transport'!$C16 -> 0 | AE11: ='Catchment Demand Road Transport'!$C17 -> 0 | AF11: ='Catchment Demand Road Transport'!$C18 -> 0 | AG11: ='Catchment Demand Road Transport'!$C19 -> 0 | AH11: ='Catchment Demand Road Transport'!$C20 -> 0 | AI11: ='Catchment Demand Road Transport'!$C21 -> 0 | AJ11: ='Catchment Demand Road Transport'!$C22 -> 0 | AK11: ='Catchment Demand Road Transport'!$C23 -> 0 | AL11: ='Catchment Demand Road Transport'!$C24 -> 0 | AM11: ='Catchment Demand Road Transport'!$C25 -> 0 | AN11: ='Catchment Demand Road Transport'!$C26 -> 0 | AO11: ='Catchment Demand Road Transport'!$C27 -> 0 | AP11: ='Catchment Demand Road Transport'!$C28 -> 0 | AQ11: ='Catchment Demand Road Transport'!$C29 -> 0 | AR11: ='Catchment Demand Road Transport'!$C30 -> 0 | AS11: ='Catchment Demand Road Transport'!$C31 -> 0 | AT11: ='Catchment Demand Road Transport'!$C32 -> 0 | AU11: ='Catchment Demand Road Transport'!$C33 -> 0 | AV11: ='Catchment Demand Road Transport'!$C34 -> 0 | AW11: ='Catchment Demand Road Transport'!$C35 -> 0 | AX11: ='Catchment Demand Road Transport'!$C36 -> 0 | AY11: ='Catchment Demand Road Transport'!$C37 -> 0 | BA11: =V11 -> CHILLAGOE | BB11: =W11 -> DIMBULAH | BC11: KURANDA | BD11: MAREEBA | BE11: 0 | BF11: 0 | BG11: 0 | BH11: 0 | BI11: 0 | BJ11: 0 | BK11: 0 | BL11: 0 | BM11: 0 | BN11: 0 | BO11: 0 | BP11: 0 | BQ11: 0 | BR11: 0 | BS11: 0 | BT11: 0 | BU11: 0 | BV11: 0 | BW11: 0 | BX11: 0 | BY11: 0 | BZ11: 0 | CA11: 0 | CB11: 0 | CC11: 0 | CD11: 0 | CE11: TOTALS | CG11: =V11 -> CHILLAGOE | CH11: =W11 -> DIMBULAH | CI11: KURANDA | CJ11: MAREEBA | CK11: 0 | CL11: 0 | CM11: 0 | CN11: 0 | CO11: 0 | CP11: 0 | CQ11: 0 | CR11: 0 | CS11: 0 | CT11: 0 | CU11: 0 | CV11: 0 | CW11: 0 | CX11: 0 | CY11: 0 | CZ11: 0 | DA11: 0 | DB11: 0 | DC11: 0 | DD11: 0 | DE11: 0 | DF11: 0 | DG11: 0 | DH11: 0 | DI11: 0 | DJ11: 0 | DK11: Checksum 2
B12: Asset ID | C12: LGIP ID | D12: Asset Class | E12: Asset Name | F12: Description | G12: Unit Rate Type (*) | H12: Length/unit (*) | I12: Hiercahy/name | J12: Unit Rate | K12: Baseline Valuation | L12: Site/Condition | M12: Multiplier | N12: Gross Value | O12: Land Location/Type | P12: Size of land (ha) (*) | Q12: Unit Cost | R12: Land Value | S12: Valuation Year | T12: Escalation | U12: Current Replacement Cost
V13: 1 | W13: =V13+1 -> 2 | X13: =W13+1 -> 3 | Y13: 4 | Z13: 5 | AA13: 6 | AB13: 7 | AC13: 8 | AD13: 9 | AE13: 10 | AF13: 11 | AG13: 12 | AH13: 13 | AI13: 14 | AJ13: 15 | AK13: 16 | AL13: 17 | AM13: 18 | AN13: 19 | AO13: 20 | AP13: 21 | AQ13: 22 | AR13: 23 | AS13: 24 | AT13: 25 | AU13: 26 | AV13: 27 | AW13: 28 | AX13: 29 | AY13: 30
B14: Councils ID (from GIS, FAR, AMA etc.) | C14: ID from the LGIP drawings | D14: Arterial, Subarterial, Collector | K14: May be calculated from unit rates OR unique values can be direct entered | U14: CRC | V14: =IFERROR(VLOOKUP(V11,Roadcatch,5,FALSE),"") -> 1238 | W14: =IFERROR(VLOOKUP(W11,Roadcatch,5,FALSE),"") -> 2568 | X14: =IFERROR(VLOOKUP(X11,Roadcatch,5,FALSE),"") -> 12253 | Y14: =IFERROR(VLOOKUP(Y11,Roadcatch,5,FALSE),"") -> 55758 | Z14: =IFERROR(VLOOKUP(Z11,Parkscatch,5,FALSE),"") ->  | AA14: =IFERROR(VLOOKUP(AA11,Roadcatch,6,FALSE),"") ->  | BA14: =V14 -> 1238 | BB14: =W14 -> 2568 | BC14: 12253 | BD14: 55758 | CG14: =SUM(CG15:CG401) -> 0 | CH14: 0 | CI14: 5882789.427 | CJ14: 16563768.11 | CK14: 0 | CL14: 0 | CM14: 0 | CN14: 0 | CO14: 0 | CP14: 0 | CQ14: 0 | CR14: 0 | CS14: 0 | CT14: 0 | CU14: 0 | CV14: 0 | CW14: 0 | CX14: 0 | CY14: 0 | CZ14: 0 | DA14: 0 | DB14: 0 | DC14: 0 | DD14: 0 | DE14: 0 | DF14: 0 | DG14: 0 | DH14: 0 | DI14: 0 | DJ14: 0 | DK14: 0
B15: RD-027453 | E15: Anzac Avenue - 1 - Mareeba | J15: =IF(G15=RoadTYPE1,VLOOKUP(I15,Roadunitrates1,2,FALSE),IF(G15=ROADTYPE2,VLOOKUP(I15,Roadunitrates2,2,FALSE),0)) -> 0 | K15: 10381.32518 | M15: =IF(L15="",1,VLOOKUP(L15,Roadsitecond,2,FALSE)) -> 1 | N15: =IF(K15="","",K15*M15) -> 10381.32518 | Q15: =IF(O15="",'Unit Rates - Land'!landcst,IF($D$8="Landuse",VLOOKUP(O15,LAndcost3,2,FALSE),IF($D$8="Location",VLOOKUP(O15,Landcost2,2,FALSE),"Error"))) -> 10 | R15: =IF(Q15="",0,Q15*10000*P15) -> 0 | T15: =IFERROR(('General Input Sheet'!$G$38/(VLOOKUP(S15,'General Input Sheet'!$E$38:$G$44,3,FALSE))),1) -> 1 | U15: =IFERROR((N15+R15)*T15,0) -> 10381.32518 | Y15: y | BA15: =IF(V15="y",BA$14,IF(AND(V15>0,V15<=1),V15*BA$14,"")) ->  | BB15: =IF(W15="y",BB$14,IF(AND(W15>0,W15<=1),W15*BB$14,"")) ->  | BD15: 55758 | CE15: =SUM(BA15:CD15) -> 55758 | CG15: =IF(BA15="","",(BA15/$CE15)*$U15) ->  | CJ15: 10381.32518 | CW15: =IF(BQ15="","",(BQ15/$CE15)*$U15) ->  | DK15: =IF(SUM(CG15:DJ15)=U15,"","ERROR") ->  | DM15: Mareeba
B16: RD-000158 | E16: Anzac Avenue - 20 - Mareeba | J16: 0 | K16: 16267.83437 | M16: 1 | N16: =IF(K16="","",K16*M16) -> 16267.83437 | Q16: =IF(O16="",'Unit Rates - Land'!landcst,IF($D$8="Landuse",VLOOKUP(O16,LAndcost3,2,FALSE),IF($D$8="Location",VLOOKUP(O16,Landcost2,2,FALSE),"Error"))) -> 10 | R16: =IF(Q16="",0,Q16*10000*P16) -> 0 | T16: =IFERROR(('General Input Sheet'!$G$38/(VLOOKUP(S16,'General Input Sheet'!$E$38:$G$44,3,FALSE))),1) -> 1 | U16: =IFERROR((N16+R16)*T16,0) -> 16267.83437 | Y16: y | BA16: =IF(V16="y",BA$14,IF(AND(V16>0,V16<=1),V16*BA$14,"")) ->  | BD16: 55758 | CE16: =SUM(BA16:CD16) -> 55758 | CJ16: 16267.83437 | DK16: =IF(SUM(CG16:DJ16)=U16,"","ERROR") ->  | DM16: Mareeba
B17: RD-000157 | E17: Anzac Avenue - 21 - Mareeba | J17: 0 | K17: 54436.82174 | M17: 1 | N17: 54436.82174 | Q17: =IF(O17="",'Unit Rates - Land'!landcst,IF($D$8="Landuse",VLOOKUP(O17,LAndcost3,2,FALSE),IF($D$8="Location",VLOOKUP(O17,Landcost2,2,FALSE),"Error"))) -> 10 | R17: 0 | T17: =IFERROR(('General Input Sheet'!$G$38/(VLOOKUP(S17,'General Input Sheet'!$E$38:$G$44,3,FALSE))),1) -> 1 | U17: 54436.82174 | Y17: y | BD17: 55758 | CE17: =SUM(BA17:CD17) -> 55758 | CJ17: 54436.82174 | DK17: =IF(SUM(CG17:DJ17)=U17,"","ERROR") ->  | DM17: Mareeba
B18: RD-000174 | E18: Anzac Avenue - 2 - Mareeba | J18: 0 | K18: 102980.6806 | M18: 1 | N18: 102980.6806 | Q18: =IF(O18="",'Unit Rates - Land'!landcst,IF($D$8="Landuse",VLOOKUP(O18,LAndcost3,2,FALSE),IF($D$8="Location",VLOOKUP(O18,Landcost2,2,FALSE),"Error"))) -> 10 | R18: 0 | T18: =IFERROR(('General Input Sheet'!$G$38/(VLOOKUP(S18,'General Input Sheet'!$E$38:$G$44,3,FALSE))),1) -> 1 | U18: 102980.6806 | Y18: y | BD18: 55758 | CE18: =SUM(BA18:CD18) -> 55758 | CJ18: 102980.6806 | DK18: =IF(SUM(CG18:DJ18)=U18,"","ERROR") ->  | DM18: Mareeba
B19: RD-000159 | E19: Anzac Avenue - 3 - Mareeba | J19: 0 | K19: 89548.4179 | M19: 1 | N19: 89548.4179 | Q19: =IF(O19="",'Unit Rates - Land'!landcst,IF($D$8="Landuse",VLOOKUP(O19,LAndcost3,2,FALSE),IF($D$8="Location",VLOOKUP(O19,Landcost2,2,FALSE),"Error"))) -> 10 | R19: 0 | T19: =IFERROR(('General Input Sheet'!$G$38/(VLOOKUP(S19,'General Input Sheet'!$E$38:$G$44,3,FALSE))),1) -> 1 | U19: 89548.4179 | Y19: y | BD19: 55758 | CE19: 55758 | CJ19: 89548.4179 | DM19: Mareeba
B20: RD-000160 | E20: Anzac Avenue - 4 - Mareeba | J20: 0 | K20: 133874.8848 | M20: 1 | N20: 133874.8848 | Q20: =IF(O20="",'Unit Rates - Land'!landcst,IF($D$8="Landuse",VLOOKUP(O20,LAndcost3,2,FALSE),IF($D$8="Location",VLOOKUP(O20,Landcost2,2,FALSE),"Error"))) -> 10 | R20: 0 | T20: =IFERROR(('General Input Sheet'!$G$38/(VLOOKUP(S20,'General Input Sheet'!$E$38:$G$44,3,FALSE))),1) -> 1 | U20: 133874.8848 | Y20: y | BD20: 55758 | CE20: 55758 | CJ20: 133874.8848 | DM20: Mareeba
B21: RD-000161 | E21: Anzac Avenue - 5 - Mareeba | J21: 0 | K21: 52410.69903 | M21: 1 | N21: 52410.69903 | Q21: =IF(O21="",'Unit Rates - Land'!landcst,IF($D$8="Landuse",VLOOKUP(O21,LAndcost3,2,FALSE),IF($D$8="Location",VLOOKUP(O21,Landcost2,2,FALSE),"Error"))) -> 10 | R21: 0 | T21: =IFERROR(('General Input Sheet'!$G$38/(VLOOKUP(S21,'General Input Sheet'!$E$38:$G$44,3,FALSE))),1) -> 1 | U21: 52410.69903 | Y21: y | BD21: 55758 | CE21: 55758 | CJ21: 52410.69903 | DM21: Mareeba
B22: RD-000162 | E22: Anzac Avenue - 6 - Mareeba | J22: 0 | K22: 53132.06129 | M22: 1 | N22: 53132.06129 | Q22: =IF(O22="",'Unit Rates - Land'!landcst,IF($D$8="Landuse",VLOOKUP(O22,LAndcost3,2,FALSE),IF($D$8="Location",VLOOKUP(O22,Landcost2,2,FALSE),"Error"))) -> 10 | R22: 0 | T22: =IFERROR(('General Input Sheet'!$G$38/(VLOOKUP(S22,'General Input Sheet'!$E$38:$G$44,3,FALSE))),1) -> 1 | U22: 53132.06129 | Y22: y | BD22: 55758 | CE22: 55758 | CJ22: 53132.06129 | DM22: Mareeba
B23: RD-000163 | E23: Anzac Avenue - 7 - Mareeba | J23: 0 | K23: 70363.91309 | M23: 1 | N23: 70363.91309 | Q23: =IF(O23="",'Unit Rates - Land'!landcst,IF($D$8="Landuse",VLOOKUP(O23,LAndcost3,2,FALSE),IF($D$8="Location",VLOOKUP(O23,Landcost2,2,FALSE),"Error"))) -> 10 | R23: 0 | T23: =IFERROR(('General Input Sheet'!$G$38/(VLOOKUP(S23,'General Input Sheet'!$E$38:$G$44,3,FALSE))),1) -> 1 | U23: 70363.91309 | Y23: y | BD23: 55758 | BY23: =IF(AT23="y",BY$14,IF(AND(AT23>0,AT23<=1),AT23*BY$14,"")) ->  | CE23: 55758 | CJ23: 70363.91309 | DM23: Mareeba
B24: RD-000164 | E24: Anzac Avenue - 8 - Mareeba | J24: 0 | K24: 49158.35024 | M24: 1 | N24: 49158.35024 | Q24: =IF(O24="",'Unit Rates - Land'!landcst,IF($D$8="Landuse",VLOOKUP(O24,LAndcost3,2,FALSE),IF($D$8="Location",VLOOKUP(O24,Landcost2,2,FALSE),"Error"))) -> 10 | R24: 0 | T24: =IFERROR(('General Input Sheet'!$G$38/(VLOOKUP(S24,'General Input Sheet'!$E$38:$G$44,3,FALSE))),1) -> 1 | U24: 49158.35024 | Y24: y | BD24: 55758 | BQ24: =IF(AL24="y",BQ$14,IF(AND(AL24>0,AL24<=1),AL24*BQ$14,"")) ->  | CE24: 55758 | CJ24: 49158.35024 | DM24: Mareeba
B25: RD-030493 | E25: Anzac Avenue - | J25: 0 | K25: 88662.10348 | M25: 1 | N25: 88662.10348 | Q25: =IF(O25="",'Unit Rates - Land'!landcst,IF($D$8="Landuse",VLOOKUP(O25,LAndcost3,2,FALSE),IF($D$8="Location",VLOOKUP(O25,Landcost2,2,FALSE),"Error"))) -> 10 | R25: 0 | T25: =IFERROR(('General Input Sheet'!$G$38/(VLOOKUP(S25,'General Input Sheet'!$E$38:$G$44,3,FALSE))),1) -> 1 | U25: 88662.10348 | Y25: y | BD25: 55758 | CE25: 55758 | CJ25: 88662.10348 | DM25: Mareeba
B26: RD-000165 | E26: Anzac Avenue - 10 - Mareeba | J26: 0 | K26: 83663.14816 | M26: 1 | N26: 83663.14816 | Q26: =IF(O26="",'Unit Rates - Land'!landcst,IF($D$8="Landuse",VLOOKUP(O26,LAndcost3,2,FALSE),IF($D$8="Location",VLOOKUP(O26,Landcost2,2,FALSE),"Error"))) -> 10 | R26: 0 | T26: =IFERROR(('General Input Sheet'!$G$38/(VLOOKUP(S26,'General Input Sheet'!$E$38:$G$44,3,FALSE))),1) -> 1 | U26: 83663.14816 | Y26: y | BD26: 55758 | CE26: 55758 | CJ26: 83663.14816 | DM26: Mareeba
B27: RD-000166 | E27: Anzac Avenue - 11 - Mareeba | J27: 0 | K27: 55041.05559 | M27: 1 | N27: 55041.05559 | Q27: =IF(O27="",'Unit Rates - Land'!landcst,IF($D$8="Landuse",VLOOKUP(O27,LAndcost3,2,FALSE),IF($D$8="Location",VLOOKUP(O27,Landcost2,2,FALSE),"Error"))) -> 10 | R27: 0 | T27: =IFERROR(('General Input Sheet'!$G$38/(VLOOKUP(S27,'General Input Sheet'!$E$38:$G$44,3,FALSE))),1) -> 1 | U27: 55041.05559 | Y27: y | BD27: 55758 | CE27: 55758 | CJ27: 55041.05559 | DM27: Mareeba
B28: RD-000167 | E28: Anzac Avenue - 12 - Mareeba | J28: 0 | K28: 46433.04723 | M28: 1 | N28: 46433.04723 | Q28: =IF(O28="",'Unit Rates - Land'!landcst,IF($D$8="Landuse",VLOOKUP(O28,LAndcost3,2,FALSE),IF($D$8="Location",VLOOKUP(O28,Landcost2,2,FALSE),"Error"))) -> 10 | R28: 0 | T28: =IFERROR(('General Input Sheet'!$G$38/(VLOOKUP(S28,'General Input Sheet'!$E$38:$G$44,3,FALSE))),1) -> 1 | U28: 46433.04723 | Y28: y | BD28: 55758 | CE28: 55758 | CJ28: 46433.04723 | DM28: Mareeba
B29: RD-000168 | E29: Anzac Avenue - 13 - Mareeba | J29: 0 | K29: 158761.8826 | M29: 1 | N29: 158761.8826 | Q29: =IF(O29="",'Unit Rates - Land'!landcst,IF($D$8="Landuse",VLOOKUP(O29,LAndcost3,2,FALSE),IF($D$8="Location",VLOOKUP(O29,Landcost2,2,FALSE),"Error"))) -> 10 | R29: 0 | T29: =IFERROR(('General Input Sheet'!$G$38/(VLOOKUP(S29,'General Input Sheet'!$E$38:$G$44,3,FALSE))),1) -> 1 | U29: 158761.8826 | Y29: y | BD29: 55758 | CE29: 55758 | CJ29: 158761.8826 | DM29: Mareeba
B30: RD-000169 | E30: Anzac Avenue - 14 - Mareeba | J30: 0 | K30: 16417.20995 | M30: 1 | N30: 16417.20995 | Q30: =IF(O30="",'Unit Rates - Land'!landcst,IF($D$8="Landuse",VLOOKUP(O30,LAndcost3,2,FALSE),IF($D$8="Location",VLOOKUP(O30,Landcost2,2,FALSE),"Error"))) -> 10 | R30: 0 | T30: =IFERROR(('General Input Sheet'!$G$38/(VLOOKUP(S30,'General Input Sheet'!$E$38:$G$44,3,FALSE))),1) -> 1 | U30: 16417.20995 | Y30: y | BD30: 55758 | CE30: 55758 | CJ30: 16417.20995 | CV30: =IF(BP30="","",(BP30/$CE30)*$U30) ->  | DM30: Mareeba
B31: RD-000170 | E31: Anzac Avenue - 15 - Mareeba | J31: 0 | K31: 28631.38848 | M31: 1 | N31: 28631.38848 | Q31: =IF(O31="",'Unit Rates - Land'!landcst,IF($D$8="Landuse",VLOOKUP(O31,LAndcost3,2,FALSE),IF($D$8="Location",VLOOKUP(O31,Landcost2,2,FALSE),"Error"))) -> 10 | R31: 0 | T31: =IFERROR(('General Input Sheet'!$G$38/(VLOOKUP(S31,'General Input Sheet'!$E$38:$G$44,3,FALSE))),1) -> 1 | U31: 28631.38848 | Y31: y | BD31: 55758 | CE31: 55758 | CG31: =IF(BA31="","",(BA31/$CE31)*$U31) ->  | CJ31: 28631.38848 | DM31: Mareeba
B32: RD-004489 | E32: Rob Veivers Drive - 3 - Kuranda | J32: 0 | K32: 117042.195 | M32: 1 | N32: 117042.195 | Q32: =IF(O32="",'Unit Rates - Land'!landcst,IF($D$8="Landuse",VLOOKUP(O32,LAndcost3,2,FALSE),IF($D$8="Location",VLOOKUP(O32,Landcost2,2,FALSE),"Error"))) -> 10 | R32: 0 | T32: =IFERROR(('General Input Sheet'!$G$38/(VLOOKUP(S32,'General Input Sheet'!$E$38:$G$44,3,FALSE))),1) -> 1 | U32: 117042.195 | X32: y | BA32: =IF(V32="y",BA$14,IF(AND(V32>0,V32<=1),V32*BA$14,"")) ->  | BC32: 12253 | CE32: 12253 | CI32: 117042.195 | DM32: Kuranda
B33: RD-000171 | E33: Anzac Avenue - 16 - Mareeba | J33: 0 | K33: 88961.81421 | M33: 1 | N33: 88961.81421 | Q33: =IF(O33="",'Unit Rates - Land'!landcst,IF($D$8="Landuse",VLOOKUP(O33,LAndcost3,2,FALSE),IF($D$8="Location",VLOOKUP(O33,Landcost2,2,FALSE),"Error"))) -> 10 | R33: 0 | T33: =IFERROR(('General Input Sheet'!$G$38/(VLOOKUP(S33,'General Input Sheet'!$E$38:$G$44,3,FALSE))),1) -> 1 | U33: 88961.81421 | Y33: y | BD33: 55758 | CE33: 55758 | CJ33: 88961.81421 | DM33: Mareeba
B34: RD-000172 | E34: Anzac Avenue - 17 - Mareeba | J34: 0 | K34: 46498.11857 | M34: 1 | N34: 46498.11857 | Q34: =IF(O34="",'Unit Rates - Land'!landcst,IF($D$8="Landuse",VLOOKUP(O34,LAndcost3,2,FALSE),IF($D$8="Location",VLOOKUP(O34,Landcost2,2,FALSE),"Error"))) -> 10 | R34: 0 | T34: =IFERROR(('General Input Sheet'!$G$38/(VLOOKUP(S34,'General Input Sheet'!$E$38:$G$44,3,FALSE))),1) -> 1 | U34: 46498.11857 | Y34: y | BD34: 55758 | CE34: 55758 | CJ34: 46498.11857 | DM34: Mareeba
B35: RD-000173 | E35: Anzac Avenue - 18 - Mareeba | J35: 0 | K35: 29320.88822 | M35: 1 | N35: 29320.88822 | Q35: =IF(O35="",'Unit Rates - Land'!landcst,IF($D$8="Landuse",VLOOKUP(O35,LAndcost3,2,FALSE),IF($D$8="Location",VLOOKUP(O35,Landcost2,2,FALSE),"Error"))) -> 10 | R35: 0 | T35: =IFERROR(('General Input Sheet'!$G$38/(VLOOKUP(S35,'General Input Sheet'!$E$38:$G$44,3,FALSE))),1) -> 1 | U35: 29320.88822 | Y35: y | BD35: 55758 | CE35: 55758 | CJ35: 29320.88822 | DM35: Mareeba
B36: RD-017896 | E36: Anzac Avenue - 19 - Mareeba | J36: 0 | K36: 41212.91555 | M36: 1 | N36: 41212.91555 | Q36: =IF(O36="",'Unit Rates - Land'!landcst,IF($D$8="Landuse",VLOOKUP(O36,LAndcost3,2,FALSE),IF($D$8="Location",VLOOKUP(O36,Landcost2,2,FALSE),"Error"))) -> 10 | R36: 0 | T36: =IFERROR(('General Input Sheet'!$G$38/(VLOOKUP(S36,'General Input Sheet'!$E$38:$G$44,3,FALSE))),1) -> 1 | U36: 41212.91555 | Y36: y | BD36: 55758 | CE36: 55758 | CJ36: 41212.91555 | DM36: Mareeba
B37: RD-000349 | E37: Barron Falls Road - 1 - Kuranda | J37: 0 | K37: 20079.15556 | M37: 1 | N37: 20079.15556 | Q37: =IF(O37="",'Unit Rates - Land'!landcst,IF($D$8="Landuse",VLOOKUP(O37,LAndcost3,2,FALSE),IF($D$8="Location",VLOOKUP(O37,Landcost2,2,FALSE),"Error"))) -> 10 | R37: 0 | T37: =IFERROR(('General Input Sheet'!$G$38/(VLOOKUP(S37,'General Input Sheet'!$E$38:$G$44,3,FALSE))),1) -> 1 | U37: 20079.15556 | X37: y | BC37: 12253 | CE37: 12253 | CI37: 20079.15556 | DM37: Kuranda
B38: RD-027512 | E38: Barron Falls Road - 2 - Kuranda | J38: 0 | K38: 10944.80663 | M38: 1 | N38: 10944.80663 | Q38: =IF(O38="",'Unit Rates - Land'!landcst,IF($D$8="Landuse",VLOOKUP(O38,LAndcost3,2,FALSE),IF($D$8="Location",VLOOKUP(O38,Landcost2,2,FALSE),"Error"))) -> 10 | R38: 0 | T38: =IFERROR(('General Input Sheet'!$G$38/(VLOOKUP(S38,'General Input Sheet'!$E$38:$G$44,3,FALSE))),1) -> 1 | U38: 10944.80663 | X38: y | BC38: 12253 | CE38: 12253 | CI38: 10944.80663 | DM38: Kuranda
B39: RD-027513 | E39: Barron Falls Road - 3 - Kuranda | J39: 0 | K39: 4359.459061 | M39: 1 | N39: 4359.459061 | Q39: =IF(O39="",'Unit Rates - Land'!landcst,IF($D$8="Landuse",VLOOKUP(O39,LAndcost3,2,FALSE),IF($D$8="Location",VLOOKUP(O39,Landcost2,2,FALSE),"Error"))) -> 10 | R39: 0 | T39: =IFERROR(('General Input Sheet'!$G$38/(VLOOKUP(S39,'General Input Sheet'!$E$38:$G$44,3,FALSE))),1) -> 1 | U39: 4359.459061 | X39: y | BC39: 12253 | CE39: 12253 | CI39: 4359.459061 | DM39: Kuranda
B40: RD-027514 | E40: Barron Falls Road - 4 - Kuranda | J40: 0 | K40: 9452.333 | M40: 1 | N40: 9452.333 | Q40: =IF(O40="",'Unit Rates - Land'!landcst,IF($D$8="Landuse",VLOOKUP(O40,LAndcost3,2,FALSE),IF($D$8="Location",VLOOKUP(O40,Landcost2,2,FALSE),"Error"))) -> 10 | R40: 0 | T40: =IFERROR(('General Input Sheet'!$G$38/(VLOOKUP(S40,'General Input Sheet'!$E$38:$G$44,3,FALSE))),1) -> 1 | U40: 9452.333 | X40: y | BC40: 12253 | CE40: 12253 | CI40: 9452.333 | DM40: Kuranda
B41: RD-000350 | E41: Barron Falls Road - 5 - Kuranda | J41: 0 | K41: 25679.93853 | M41: 1 | N41: 25679.93853 | Q41: =IF(O41="",'Unit Rates - Land'!landcst,IF($D$8="Landuse",VLOOKUP(O41,LAndcost3,2,FALSE),IF($D$8="Location",VLOOKUP(O41,Landcost2,2,FALSE),"Error"))) -> 10 | R41: 0 | T41: =IFERROR(('General Input Sheet'!$G$38/(VLOOKUP(S41,'General Input Sheet'!$E$38:$G$44,3,FALSE))),1) -> 1 | U41: 25679.93853 | X41: y | BC41: 12253 | CE41: 12253 | CI41: 25679.93853 | DM41: Kuranda
B42: RD-000351 | E42: Barron Falls Road - 6 - Kuranda | J42: 0 | K42: 12991.02773 | M42: 1 | N42: 12991.02773 | Q42: =IF(O42="",'Unit Rates - Land'!landcst,IF($D$8="Landuse",VLOOKUP(O42,LAndcost3,2,FALSE),IF($D$8="Location",VLOOKUP(O42,Landcost2,2,FALSE),"Error"))) -> 10 | R42: 0 | T42: =IFERROR(('General Input Sheet'!$G$38/(VLOOKUP(S42,'General Input Sheet'!$E$38:$G$44,3,FALSE))),1) -> 1 | U42: 12991.02773 | X42: y | BC42: 12253 | CE42: 12253 | CI42: 12991.02773 | DM42: Kuranda
B43: RD-000352 | E43: Barron Falls Road - 7 - Kuranda | J43: 0 | K43: 44573.86616 | M43: 1 | N43: 44573.86616 | Q43: =IF(O43="",'Unit Rates - Land'!landcst,IF($D$8="Landuse",VLOOKUP(O43,LAndcost3,2,FALSE),IF($D$8="Location",VLOOKUP(O43,Landcost2,2,FALSE),"Error"))) -> 10 | R43: 0 | T43: =IFERROR(('General Input Sheet'!$G$38/(VLOOKUP(S43,'General Input Sheet'!$E$38:$G$44,3,FALSE))),1) -> 1 | U43: 44573.86616 | X43: y | BC43: 12253 | CE43: 12253 | CI43: 44573.86616 | DM43: Kuranda
B44: RD-027515 | E44: Barron Falls Road - 8 - Kuranda | J44: 0 | K44: 12967.78797 | M44: 1 | N44: 12967.78797 | Q44: =IF(O44="",'Unit Rates - Land'!landcst,IF($D$8="Landuse",VLOOKUP(O44,LAndcost3,2,FALSE),IF($D$8="Location",VLOOKUP(O44,Landcost2,2,FALSE),"Error"))) -> 10 | R44: 0 | T44: =IFERROR(('General Input Sheet'!$G$38/(VLOOKUP(S44,'General Input Sheet'!$E$38:$G$44,3,FALSE))),1) -> 1 | U44: 12967.78797 | X44: y | BC44: 12253 | CE44: 12253 | CI44: 12967.78797 | DM44: Kuranda
B45: RD-000353 | E45: Barron Falls Road - 9 - Kuranda | J45: 0 | K45: 14408.65329 | M45: 1 | N45: 14408.65329 | Q45: =IF(O45="",'Unit Rates - Land'!landcst,IF($D$8="Landuse",VLOOKUP(O45,LAndcost3,2,FALSE),IF($D$8="Location",VLOOKUP(O45,Landcost2,2,FALSE),"Error"))) -> 10 | R45: 0 | T45: =IFERROR(('General Input Sheet'!$G$38/(VLOOKUP(S45,'General Input Sheet'!$E$38:$G$44,3,FALSE))),1) -> 1 | U45: 14408.65329 | X45: y | BC45: 12253 | CE45: 12253 | CI45: 14408.65329 | DM45: Kuranda
B46: RD-000354 | E46: Barron Falls Road - 10 - Kuranda | J46: 0 | K46: 67395.3138 | M46: 1 | N46: 67395.3138 | Q46: =IF(O46="",'Unit Rates - Land'!landcst,IF($D$8="Landuse",VLOOKUP(O46,LAndcost3,2,FALSE),IF($D$8="Location",VLOOKUP(O46,Landcost2,2,FALSE),"Error"))) -> 10 | R46: 0 | T46: =IFERROR(('General Input Sheet'!$G$38/(VLOOKUP(S46,'General Input Sheet'!$E$38:$G$44,3,FALSE))),1) -> 1 | U46: 67395.3138 | X46: y | BC46: 12253 | CE46: 12253 | CI46: 67395.3138 | DM46: Kuranda
B47: RD-000355 | E47: Barron Falls Road - 11 - Kuranda | J47: 0 | K47: 26400.3712 | M47: 1 | N47: 26400.3712 | Q47: =IF(O47="",'Unit Rates - Land'!landcst,IF($D$8="Landuse",VLOOKUP(O47,LAndcost3,2,FALSE),IF($D$8="Location",VLOOKUP(O47,Landcost2,2,FALSE),"Error"))) -> 10 | R47: 0 | T47: =IFERROR(('General Input Sheet'!$G$38/(VLOOKUP(S47,'General Input Sheet'!$E$38:$G$44,3,FALSE))),1) -> 1 | U47: 26400.3712 | X47: y | BC47: 12253 | BP47: =IF(AK47="y",BP$14,IF(AND(AK47>0,AK47<=1),AK47*BP$14,"")) ->  | CE47: 12253 | CI47: 26400.3712 | DJ47: =IF(CD47="","",(CD47/$CE47)*$U47) ->  | DM47: Kuranda
B48: RD-000356 | E48: Barron Falls Road - 12 - Kuranda | J48: 0 | K48: 43225.95988 | M48: 1 | N48: 43225.95988 | Q48: =IF(O48="",'Unit Rates - Land'!landcst,IF($D$8="Landuse",VLOOKUP(O48,LAndcost3,2,FALSE),IF($D$8="Location",VLOOKUP(O48,Landcost2,2,FALSE),"Error"))) -> 10 | R48: 0 | T48: =IFERROR(('General Input Sheet'!$G$38/(VLOOKUP(S48,'General Input Sheet'!$E$38:$G$44,3,FALSE))),1) -> 1 | U48: 43225.95988 | X48: y | BA48: =IF(V48="y",BA$14,IF(AND(V48>0,V48<=1),V48*BA$14,"")) ->  | BC48: 12253 | CE48: 12253 | CG48: =IF(BA48="","",(BA48/$CE48)*$U48) ->  | CI48: 43225.95988 | CW48: =IF(BQ48="","",(BQ48/$CE48)*$U48) ->  | DM48: Kuranda
B49: RD-000357 | E49: Barron Falls Road - 13 - Kuranda | J49: 0 | K49: 11810.44775 | M49: 1 | N49: 11810.44775 | Q49: =IF(O49="",'Unit Rates - Land'!landcst,IF($D$8="Landuse",VLOOKUP(O49,LAndcost3,2,FALSE),IF($D$8="Location",VLOOKUP(O49,Landcost2,2,FALSE),"Error"))) -> 10 | R49: 0 | T49: =IFERROR(('General Input Sheet'!$G$38/(VLOOKUP(S49,'General Input Sheet'!$E$38:$G$44,3,FALSE))),1) -> 1 | U49: 11810.44775 | X49: y | BC49: 12253 | CE49: 12253 | CI49: 11810.44775 | DM49: Kuranda
B50: RD-000358 | E50: Barron Falls Road - 14 - Kuranda | J50: 0 | K50: 7566.866956 | M50: 1 | N50: 7566.866956 | Q50: =IF(O50="",'Unit Rates - Land'!landcst,IF($D$8="Landuse",VLOOKUP(O50,LAndcost3,2,FALSE),IF($D$8="Location",VLOOKUP(O50,Landcost2,2,FALSE),"Error"))) -> 10 | R50: 0 | T50: =IFERROR(('General Input Sheet'!$G$38/(VLOOKUP(S50,'General Input Sheet'!$E$38:$G$44,3,FALSE))),1) -> 1 | U50: 7566.866956 | X50: y | BC50: 12253 | CE50: 12253 | CI50: 7566.866956 | DM50: Kuranda
B51: RD-000359 | E51: Barron Falls Road - 15 - Kuranda | J51: 0 | K51: 40344.22923 | M51: 1 | N51: 40344.22923 | Q51: =IF(O51="",'Unit Rates - Land'!landcst,IF($D$8="Landuse",VLOOKUP(O51,LAndcost3,2,FALSE),IF($D$8="Location",VLOOKUP(O51,Landcost2,2,FALSE),"Error"))) -> 10 | R51: 0 | T51: =IFERROR(('General Input Sheet'!$G$38/(VLOOKUP(S51,'General Input Sheet'!$E$38:$G$44,3,FALSE))),1) -> 1 | U51: 40344.22923 | X51: y | BC51: 12253 | CE51: 12253 | CI51: 40344.22923 | DM51: Kuranda
B52: RD-000360 | E52: Barron Falls Road - 16 - Kuranda | J52: 0 | K52: 45452.32922 | M52: 1 | N52: 45452.32922 | Q52: =IF(O52="",'Unit Rates - Land'!landcst,IF($D$8="Landuse",VLOOKUP(O52,LAndcost3,2,FALSE),IF($D$8="Location",VLOOKUP(O52,Landcost2,2,FALSE),"Error"))) -> 10 | R52: 0 | T52: =IFERROR(('General Input Sheet'!$G$38/(VLOOKUP(S52,'General Input Sheet'!$E$38:$G$44,3,FALSE))),1) -> 1 | U52: 45452.32922 | X52: y | BC52: 12253 | CE52: 12253 | CI52: 45452.32922 | DM52: Kuranda
B53: RD-000361 | E53: Barron Falls Road - 17 - Kuranda | J53: 0 | K53: 65508.24501 | M53: 1 | N53: 65508.24501 | Q53: =IF(O53="",'Unit Rates - Land'!landcst,IF($D$8="Landuse",VLOOKUP(O53,LAndcost3,2,FALSE),IF($D$8="Location",VLOOKUP(O53,Landcost2,2,FALSE),"Error"))) -> 10 | R53: 0 | T53: =IFERROR(('General Input Sheet'!$G$38/(VLOOKUP(S53,'General Input Sheet'!$E$38:$G$44,3,FALSE))),1) -> 1 | U53: 65508.24501 | X53: y | BC53: 12253 | CE53: 12253 | CI53: 65508.24501 | DM53: Kuranda
B54: RD-000362 | E54: Barron Falls Road - 18 - Kuranda | J54: 0 | K54: 22552.50748 | M54: 1 | N54: 22552.50748 | Q54: =IF(O54="",'Unit Rates - Land'!landcst,IF($D$8="Landuse",VLOOKUP(O54,LAndcost3,2,FALSE),IF($D$8="Location",VLOOKUP(O54,Landcost2,2,FALSE),"Error"))) -> 10 | R54: 0 | T54: =IFERROR(('General Input Sheet'!$G$38/(VLOOKUP(S54,'General Input Sheet'!$E$38:$G$44,3,FALSE))),1) -> 1 | U54: 22552.50748 | X54: y | BC54: 12253 | CE54: 12253 | CI54: 22552.50748 | DM54: Kuranda
B55: RD-000363 | E55: Barron Falls Road - 19 - Kuranda | J55: 0 | K55: 83609.29602 | M55: 1 | N55: 83609.29602 | Q55: =IF(O55="",'Unit Rates - Land'!landcst,IF($D$8="Landuse",VLOOKUP(O55,LAndcost3,2,FALSE),IF($D$8="Location",VLOOKUP(O55,Landcost2,2,FALSE),"Error"))) -> 10 | R55: 0 | T55: =IFERROR(('General Input Sheet'!$G$38/(VLOOKUP(S55,'General Input Sheet'!$E$38:$G$44,3,FALSE))),1) -> 1 | U55: 83609.29602 | X55: y | BC55: 12253 | BX55: =IF(AS55="y",BX$14,IF(AND(AS55>0,AS55<=1),AS55*BX$14,"")) ->  | CE55: 12253 | CI55: 83609.29602 | DM55: Kuranda
B56: RD-000378 | E56: Basalt Street - 1 - Mareeba | J56: 0 | K56: 40352.75581 | M56: 1 | N56: 40352.75581 | Q56: =IF(O56="",'Unit Rates - Land'!landcst,IF($D$8="Landuse",VLOOKUP(O56,LAndcost3,2,FALSE),IF($D$8="Location",VLOOKUP(O56,Landcost2,2,FALSE),"Error"))) -> 10 | R56: 0 | T56: =IFERROR(('General Input Sheet'!$G$38/(VLOOKUP(S56,'General Input Sheet'!$E$38:$G$44,3,FALSE))),1) -> 1 | U56: 40352.75581 | Y56: y | BD56: 55758 | CE56: 55758 | CJ56: 40352.75581 | DM56: Mareeba
B57: RD-000379 | E57: Basalt Street - 2 - Mareeba | J57: 0 | K57: 90313.31063 | M57: 1 | N57: 90313.31063 | Q57: =IF(O57="",'Unit Rates - Land'!landcst,IF($D$8="Landuse",VLOOKUP(O57,LAndcost3,2,FALSE),IF($D$8="Location",VLOOKUP(O57,Landcost2,2,FALSE),"Error"))) -> 10 | R57: 0 | T57: =IFERROR(('General Input Sheet'!$G$38/(VLOOKUP(S57,'General Input Sheet'!$E$38:$G$44,3,FALSE))),1) -> 1 | U57: 90313.31063 | Y57: y | BD57: 55758 | CE57: 55758 | CJ57: 90313.31063 | DM57: Mareeba
B58: RD-030483 | E58: Basalt Street - 3 - Mareeba | J58: 0 | K58: 10306.03903 | M58: 1 | N58: 10306.03903 | Q58: =IF(O58="",'Unit Rates - Land'!landcst,IF($D$8="Landuse",VLOOKUP(O58,LAndcost3,2,FALSE),IF($D$8="Location",VLOOKUP(O58,Landcost2,2,FALSE),"Error"))) -> 10 | R58: 0 | T58: =IFERROR(('General Input Sheet'!$G$38/(VLOOKUP(S58,'General Input Sheet'!$E$38:$G$44,3,FALSE))),1) -> 1 | U58: 10306.03903 | Y58: y | BD58: 55758 | CE58: 55758 | CJ58: 10306.03903 | DM58: Mareeba
B59: RD-000380 | E59: Basalt Street - 4 - Mareeba | J59: 0 | K59: 19019.42235 | M59: 1 | N59: 19019.42235 | Q59: =IF(O59="",'Unit Rates - Land'!landcst,IF($D$8="Landuse",VLOOKUP(O59,LAndcost3,2,FALSE),IF($D$8="Location",VLOOKUP(O59,Landcost2,2,FALSE),"Error"))) -> 10 | R59: 0 | T59: =IFERROR(('General Input Sheet'!$G$38/(VLOOKUP(S59,'General Input Sheet'!$E$38:$G$44,3,FALSE))),1) -> 1 | U59: 19019.42235 | Y59: y | BD59: 55758 | CE59: 55758 | CJ59: 19019.42235 | DM59: Mareeba
B60: RD-000381 | E60: Basalt Street - 5 - Mareeba | J60: 0 | K60: 49491.40009 | M60: 1 | N60: 49491.40009 | Q60: =IF(O60="",'Unit Rates - Land'!landcst,IF($D$8="Landuse",VLOOKUP(O60,LAndcost3,2,FALSE),IF($D$8="Location",VLOOKUP(O60,Landcost2,2,FALSE),"Error"))) -> 10 | R60: 0 | T60: =IFERROR(('General Input Sheet'!$G$38/(VLOOKUP(S60,'General Input Sheet'!$E$38:$G$44,3,FALSE))),1) -> 1 | U60: 49491.40009 | Y60: y | BD60: 55758 | CE60: 55758 | CJ60: 49491.40009 | DM60: Mareeba
B61: RD-027520 | E61: Basalt Street - 6 - Mareeba | J61: 0 | K61: 22573.66368 | M61: 1 | N61: 22573.66368 | Q61: =IF(O61="",'Unit Rates - Land'!landcst,IF($D$8="Landuse",VLOOKUP(O61,LAndcost3,2,FALSE),IF($D$8="Location",VLOOKUP(O61,Landcost2,2,FALSE),"Error"))) -> 10 | R61: 0 | T61: =IFERROR(('General Input Sheet'!$G$38/(VLOOKUP(S61,'General Input Sheet'!$E$38:$G$44,3,FALSE))),1) -> 1 | U61: 22573.66368 | Y61: y | BD61: 55758 | CE61: 55758 | CJ61: 22573.66368 | DM61: Mareeba
B62: RD-000382 | E62: Basalt Street - 7 - Mareeba | J62: 0 | K62: 97049.25187 | M62: 1 | N62: 97049.25187 | Q62: =IF(O62="",'Unit Rates - Land'!landcst,IF($D$8="Landuse",VLOOKUP(O62,LAndcost3,2,FALSE),IF($D$8="Location",VLOOKUP(O62,Landcost2,2,FALSE),"Error"))) -> 10 | R62: 0 | T62: =IFERROR(('General Input Sheet'!$G$38/(VLOOKUP(S62,'General Input Sheet'!$E$38:$G$44,3,FALSE))),1) -> 1 | U62: 97049.25187 | Y62: y | BD62: 55758 | CE62: 55758 | CJ62: 97049.25187 | DM62: Mareeba
B63: RD-000383 | E63: Basalt Street - 8 - Mareeba | J63: 0 | K63: 44774.20895 | M63: 1 | N63: 44774.20895 | Q63: =IF(O63="",'Unit Rates - Land'!landcst,IF($D$8="Landuse",VLOOKUP(O63,LAndcost3,2,FALSE),IF($D$8="Location",VLOOKUP(O63,Landcost2,2,FALSE),"Error"))) -> 10 | R63: 0 | T63: =IFERROR(('General Input Sheet'!$G$38/(VLOOKUP(S63,'General Input Sheet'!$E$38:$G$44,3,FALSE))),1) -> 1 | U63: 44774.20895 | Y63: y | BD63: 55758 | CE63: 55758 | CJ63: 44774.20895 | CV63: =IF(BP63="","",(BP63/$CE63)*$U63) ->  | DM63: Mareeba
B64: RD-000384 | E64: Basalt Street - 9 - Mareeba | J64: 0 | K64: 75296.83335 | M64: 1 | N64: 75296.83335 | Q64: =IF(O64="",'Unit Rates - Land'!landcst,IF($D$8="Landuse",VLOOKUP(O64,LAndcost3,2,FALSE),IF($D$8="Location",VLOOKUP(O64,Landcost2,2,FALSE),"Error"))) -> 10 | R64: 0 | T64: =IFERROR(('General Input Sheet'!$G$38/(VLOOKUP(S64,'General Input Sheet'!$E$38:$G$44,3,FALSE))),1) -> 1 | U64: 75296.83335 | Y64: y | BD64: 55758 | CE64: 55758 | CG64: =IF(BA64="","",(BA64/$CE64)*$U64) ->  | CJ64: 75296.83335 | DM64: Mareeba
B65: RD-027521 | E65: Basalt Street - 10 - Mareeba | J65: 0 | K65: 39177.43283 | M65: 1 | N65: 39177.43283 | Q65: =IF(O65="",'Unit Rates - Land'!landcst,IF($D$8="Landuse",VLOOKUP(O65,LAndcost3,2,FALSE),IF($D$8="Location",VLOOKUP(O65,Landcost2,2,FALSE),"Error"))) -> 10 | R65: 0 | T65: =IFERROR(('General Input Sheet'!$G$38/(VLOOKUP(S65,'General Input Sheet'!$E$38:$G$44,3,FALSE))),1) -> 1 | U65: 39177.43283 | Y65: y | BA65: =IF(V65="y",BA$14,IF(AND(V65>0,V65<=1),V65*BA$14,"")) ->  | BD65: 55758 | CB65: =IF(AW65="y",CB$14,IF(AND(AW65>0,AW65<=1),AW65*CB$14,"")) ->  | CE65: 55758 | CJ65: 39177.43283 | DM65: Mareeba
B66: RD-000385 | E66: Basalt Street - 11 - Mareeba | J66: 0 | K66: 57774.05176 | M66: 1 | N66: 57774.05176 | Q66: =IF(O66="",'Unit Rates - Land'!landcst,IF($D$8="Landuse",VLOOKUP(O66,LAndcost3,2,FALSE),IF($D$8="Location",VLOOKUP(O66,Landcost2,2,FALSE),"Error"))) -> 10 | R66: 0 | T66: =IFERROR(('General Input Sheet'!$G$38/(VLOOKUP(S66,'General Input Sheet'!$E$38:$G$44,3,FALSE))),1) -> 1 | U66: 57774.05176 | Y66: y | BD66: 55758 | CE66: 55758 | CJ66: 57774.05176 | DM66: Mareeba
B67: RD-000386 | E67: Basalt Street - 12 - Mareeba | J67: 0 | K67: 28108.2534 | M67: 1 | N67: 28108.2534 | Q67: =IF(O67="",'Unit Rates - Land'!landcst,IF($D$8="Landuse",VLOOKUP(O67,LAndcost3,2,FALSE),IF($D$8="Location",VLOOKUP(O67,Landcost2,2,FALSE),"Error"))) -> 10 | R67: 0 | T67: =IFERROR(('General Input Sheet'!$G$38/(VLOOKUP(S67,'General Input Sheet'!$E$38:$G$44,3,FALSE))),1) -> 1 | U67: 28108.2534 | Y67: y | BD67: 55758 | CE67: 55758 | CJ67: 28108.2534 | DE67: =IF(BY67="","",(BY67/$CE67)*$U67) ->  | DM67: Mareeba
B68: RD-000387 | E68: Basalt Street - 13 - Mareeba | J68: 0 | K68: 23500.209 | M68: 1 | N68: 23500.209 | Q68: =IF(O68="",'Unit Rates - Land'!landcst,IF($D$8="Landuse",VLOOKUP(O68,LAndcost3,2,FALSE),IF($D$8="Location",VLOOKUP(O68,Landcost2,2,FALSE),"Error"))) -> 10 | R68: 0 | T68: =IFERROR(('General Input Sheet'!$G$38/(VLOOKUP(S68,'General Input Sheet'!$E$38:$G$44,3,FALSE))),1) -> 1 | U68: 23500.209 | Y68: y | BD68: 55758 | CE68: 55758 | CJ68: 23500.209 | DM68: Mareeba
B69: RD-000522 | E69: Black Mountain Road - 1 - Kuranda | J69: 0 | K69: 17744.7614 | M69: 1 | N69: 17744.7614 | Q69: =IF(O69="",'Unit Rates - Land'!landcst,IF($D$8="Landuse",VLOOKUP(O69,LAndcost3,2,FALSE),IF($D$8="Location",VLOOKUP(O69,Landcost2,2,FALSE),"Error"))) -> 10 | R69: 0 | T69: =IFERROR(('General Input Sheet'!$G$38/(VLOOKUP(S69,'General Input Sheet'!$E$38:$G$44,3,FALSE))),1) -> 1 | U69: 17744.7614 | X69: y | BC69: 12253 | CE69: 12253 | CI69: 17744.7614 | DM69: Kuranda
B70: RD-000523 | E70: Black Mountain Road - 2 - Kuranda | J70: 0 | K70: 43793.33066 | M70: 1 | N70: 43793.33066 | Q70: =IF(O70="",'Unit Rates - Land'!landcst,IF($D$8="Landuse",VLOOKUP(O70,LAndcost3,2,FALSE),IF($D$8="Location",VLOOKUP(O70,Landcost2,2,FALSE),"Error"))) -> 10 | R70: 0 | T70: =IFERROR(('General Input Sheet'!$G$38/(VLOOKUP(S70,'General Input Sheet'!$E$38:$G$44,3,FALSE))),1) -> 1 | U70: 43793.33066 | X70: y | BC70: 12253 | CE70: 12253 | CI70: 43793.33066 | DM70: Kuranda
B71: RD-000524 | E71: Black Mountain Road - 3 - Kuranda | J71: 0 | K71: 10948.33266 | M71: 1 | N71: 10948.33266 | Q71: =IF(O71="",'Unit Rates - Land'!landcst,IF($D$8="Landuse",VLOOKUP(O71,LAndcost3,2,FALSE),IF($D$8="Location",VLOOKUP(O71,Landcost2,2,FALSE),"Error"))) -> 10 | R71: 0 | T71: =IFERROR(('General Input Sheet'!$G$38/(VLOOKUP(S71,'General Input Sheet'!$E$38:$G$44,3,FALSE))),1) -> 1 | U71: 10948.33266 | X71: y | BC71: 12253 | CE71: 12253 | CI71: 10948.33266 | DM71: Kuranda
B72: RD-000525 | E72: Black Mountain Road - 4 - Kuranda | J72: 0 | K72: 18326.55685 | M72: 1 | N72: 18326.55685 | Q72: =IF(O72="",'Unit Rates - Land'!landcst,IF($D$8="Landuse",VLOOKUP(O72,LAndcost3,2,FALSE),IF($D$8="Location",VLOOKUP(O72,Landcost2,2,FALSE),"Error"))) -> 10 | R72: 0 | T72: =IFERROR(('General Input Sheet'!$G$38/(VLOOKUP(S72,'General Input Sheet'!$E$38:$G$44,3,FALSE))),1) -> 1 | U72: 18326.55685 | X72: y | BC72: 12253 | CE72: 12253 | CI72: 18326.55685 | DM72: Kuranda
B73: RD-027610 | E73: Black Mountain Road - 5 - Kuranda | J73: 0 | K73: 4331.73162 | M73: 1 | N73: 4331.73162 | Q73: =IF(O73="",'Unit Rates - Land'!landcst,IF($D$8="Landuse",VLOOKUP(O73,LAndcost3,2,FALSE),IF($D$8="Location",VLOOKUP(O73,Landcost2,2,FALSE),"Error"))) -> 10 | R73: 0 | T73: =IFERROR(('General Input Sheet'!$G$38/(VLOOKUP(S73,'General Input Sheet'!$E$38:$G$44,3,FALSE))),1) -> 1 | U73: 4331.73162 | X73: y | BC73: 12253 | CE73: 12253 | CI73: 4331.73162 | DM73: Kuranda
B74: RD-027611 | E74: Black Mountain Road - 6 - Kuranda | J74: 0 | K74: 6970.775039 | M74: 1 | N74: 6970.775039 | Q74: =IF(O74="",'Unit Rates - Land'!landcst,IF($D$8="Landuse",VLOOKUP(O74,LAndcost3,2,FALSE),IF($D$8="Location",VLOOKUP(O74,Landcost2,2,FALSE),"Error"))) -> 10 | R74: 0 | T74: =IFERROR(('General Input Sheet'!$G$38/(VLOOKUP(S74,'General Input Sheet'!$E$38:$G$44,3,FALSE))),1) -> 1 | U74: 6970.775039 | X74: y | BC74: 12253 | CE74: 12253 | CI74: 6970.775039 | DM74: Kuranda
B75: RD-000526 | E75: Black Mountain Road - 7 - Kuranda | J75: 0 | K75: 4744.277488 | M75: 1 | N75: 4744.277488 | Q75: =IF(O75="",'Unit Rates - Land'!landcst,IF($D$8="Landuse",VLOOKUP(O75,LAndcost3,2,FALSE),IF($D$8="Location",VLOOKUP(O75,Landcost2,2,FALSE),"Error"))) -> 10 | R75: 0 | T75: =IFERROR(('General Input Sheet'!$G$38/(VLOOKUP(S75,'General Input Sheet'!$E$38:$G$44,3,FALSE))),1) -> 1 | U75: 4744.277488 | X75: y | BC75: 12253 | CE75: 12253 | CI75: 4744.277488 | DM75: Kuranda
B76: RD-027612 | E76: Black Mountain Road - 8 - Kuranda | J76: 0 | K76: 14756.44837 | M76: 1 | N76: 14756.44837 | Q76: =IF(O76="",'Unit Rates - Land'!landcst,IF($D$8="Landuse",VLOOKUP(O76,LAndcost3,2,FALSE),IF($D$8="Location",VLOOKUP(O76,Landcost2,2,FALSE),"Error"))) -> 10 | R76: 0 | T76: =IFERROR(('General Input Sheet'!$G$38/(VLOOKUP(S76,'General Input Sheet'!$E$38:$G$44,3,FALSE))),1) -> 1 | U76: 14756.44837 | X76: y | BC76: 12253 | CE76: 12253 | CI76: 14756.44837 | DM76: Kuranda
B77: RD-027613 | E77: Black Mountain Road - 9 - Kuranda | J77: 0 | K77: 10267.80828 | M77: 1 | N77: 10267.80828 | Q77: =IF(O77="",'Unit Rates - Land'!landcst,IF($D$8="Landuse",VLOOKUP(O77,LAndcost3,2,FALSE),IF($D$8="Location",VLOOKUP(O77,Landcost2,2,FALSE),"Error"))) -> 10 | R77: 0 | T77: =IFERROR(('General Input Sheet'!$G$38/(VLOOKUP(S77,'General Input Sheet'!$E$38:$G$44,3,FALSE))),1) -> 1 | U77: 10267.80828 | X77: y | BC77: 12253 | CE77: 12253 | CI77: 10267.80828 | DM77: Kuranda
B78: RD-000527 | E78: Black Mountain Road - 10 - Kuranda | J78: 0 | K78: 6431.484309 | M78: 1 | N78: 6431.484309 | Q78: =IF(O78="",'Unit Rates - Land'!landcst,IF($D$8="Landuse",VLOOKUP(O78,LAndcost3,2,FALSE),IF($D$8="Location",VLOOKUP(O78,Landcost2,2,FALSE),"Error"))) -> 10 | R78: 0 | T78: =IFERROR(('General Input Sheet'!$G$38/(VLOOKUP(S78,'General Input Sheet'!$E$38:$G$44,3,FALSE))),1) -> 1 | U78: 6431.484309 | X78: y | BC78: 12253 | CE78: 12253 | CI78: 6431.484309 | DM78: Kuranda
B79: RD-027614 | E79: Black Mountain Road - 11 - Kuranda | J79: =IF(G79=RoadTYPE1,VLOOKUP(I79,Roadunitrates1,2,FALSE),IF(G79=ROADTYPE2,VLOOKUP(I79,Roadunitrates2,2,FALSE),0)) -> 0 | K79: 63680.15714 | M79: =IF(L79="",1,VLOOKUP(L79,Roadsitecond,2,FALSE)) -> 1 | N79: 63680.15714 | Q79: =IF(O79="",'Unit Rates - Land'!landcst,IF($D$8="Landuse",VLOOKUP(O79,LAndcost3,2,FALSE),IF($D$8="Location",VLOOKUP(O79,Landcost2,2,FALSE),"Error"))) -> 10 | R79: 0 | T79: =IFERROR(('General Input Sheet'!$G$38/(VLOOKUP(S79,'General Input Sheet'!$E$38:$G$44,3,FALSE))),1) -> 1 | U79: 63680.15714 | X79: y | BC79: 12253 | CE79: 12253 | CI79: 63680.15714 | DM79: Kuranda
B80: RD-027615 | E80: Black Mountain Road - 12 - Kuranda | J80: 0 | K80: 2301.794384 | M80: 1 | N80: =IF(K80="","",K80*M80) -> 2301.794384 | Q80: =IF(O80="",'Unit Rates - Land'!landcst,IF($D$8="Landuse",VLOOKUP(O80,LAndcost3,2,FALSE),IF($D$8="Location",VLOOKUP(O80,Landcost2,2,FALSE),"Error"))) -> 10 | R80: =IF(Q80="",0,Q80*10000*P80) -> 0 | T80: =IFERROR(('General Input Sheet'!$G$38/(VLOOKUP(S80,'General Input Sheet'!$E$38:$G$44,3,FALSE))),1) -> 1 | U80: =IFERROR((N80+R80)*T80,0) -> 2301.794384 | X80: y | BC80: 12253 | CE80: 12253 | CI80: 2301.794384 | DM80: Kuranda
B81: RD-027616 | E81: Black Mountain Road - 13 - Kuranda | J81: 0 | K81: 2975.330809 | M81: 1 | N81: 2975.330809 | Q81: =IF(O81="",'Unit Rates - Land'!landcst,IF($D$8="Landuse",VLOOKUP(O81,LAndcost3,2,FALSE),IF($D$8="Location",VLOOKUP(O81,Landcost2,2,FALSE),"Error"))) -> 10 | R81: 0 | T81: =IFERROR(('General Input Sheet'!$G$38/(VLOOKUP(S81,'General Input Sheet'!$E$38:$G$44,3,FALSE))),1) -> 1 | U81: 2975.330809 | X81: y | BC81: 12253 | CE81: 12253 | CG81: =IF(BA81="","",(BA81/$CE81)*$U81) ->  | CI81: 2975.330809 | DM81: Kuranda
B82: RD-000553 | E82: Blacks Road - 1 - Mareeba | J82: 0 | K82: 16858.84025 | M82: 1 | N82: 16858.84025 | Q82: =IF(O82="",'Unit Rates - Land'!landcst,IF($D$8="Landuse",VLOOKUP(O82,LAndcost3,2,FALSE),IF($D$8="Location",VLOOKUP(O82,Landcost2,2,FALSE),"Error"))) -> 10 | R82: 0 | T82: =IFERROR(('General Input Sheet'!$G$38/(VLOOKUP(S82,'General Input Sheet'!$E$38:$G$44,3,FALSE))),1) -> 1 | U82: 16858.84025 | Y82: y | BA82: =IF(V82="y",BA$14,IF(AND(V82>0,V82<=1),V82*BA$14,"")) ->  | BD82: 55758 | CE82: =SUM(BA82:CD82) -> 55758 | CJ82: 16858.84025 | DK82: =IF(SUM(CG82:DJ82)=U82,"","ERROR") ->  | DM82: Mareeba
